Workbook

Sheet PI vs gap
A1: Measurement | B1: Hall
A2: Type | B2: Off-axis
A4: PS type | B4: HXR
A5: PS serial no | B5: 16314
A7: Measurement date | B7: ='DF raw data'!B2 -> 4. sep 2017
C11: Nominal gap [mm] | D11: Encoder [counts] | E11: Encoder [mm] | F11: PI [T^2mm^3] | G11: x [mm] | H11: Encoder offset
C12: 10 | D12: =' 10 x=-2'!B3 -> 17895606 | E12: =(D12-$H$12)*-0.00025+10 -> 10.00125 | F12: =' 10 x=-2'!Q3 -> 706.6100602 | G12: -2 | H12: 17895611
C13: 10 | D13: ='10 x=-1'!B3 -> 17895605 | E13: =(D13-$H$12)*-0.00025+10 -> 10.0015 | F13: ='10 x=-1'!Q3 -> 706.9793884 | G13: -1
C14: 10 | D14: ='10 x=0'!B3 -> 17895605 | E14: 10.0015 | F14: ='10 x=0'!Q3 -> 706.9926248 | G14: 0
C15: 10 | D15: ='10 x=1'!B3 -> 17895606 | E15: 10.00125 | F15: ='10 x=1'!Q3 -> 706.7976247 | G15: 1
C16: 10 | D16: ='10 x=2'!B3 -> 17895607 | E16: 10.001 | F16: ='10 x=2'!Q3 -> 706.4943666 | G16: 2
C17: 30 | D17: ='30 x=-2'!B3 -> 17815515 | E17: 30.024 | F17: ='30 x=-2'!Q3 -> 67.4518909 | G17: -2
C18: 30 | D18: ='30 x=-1'!B3 -> 17815521 | E18: 30.0225 | F18: ='30 x=-1'!Q3 -> 67.51345616 | G18: -1
C19: 30 | D19: ='30 x=0'!B3 -> 17815517 | E19: 30.0235 | F19: ='30 x=0'!Q3 -> 67.52735357 | G19: 0
C20: 30 | D20: ='30 x=1'!B3 -> 17815523 | E20: 30.022 | F20: ='30 x=1'!Q3 -> 67.48163556 | G20: 1
C21: 30 | D21: ='30 x=2'!B3 -> 17815520 | E21: 30.02275 | F21: ='30 x=2'!Q3 -> 67.37780506 | G21: 2
A41: Measuring series at 10 mm gap:
A42: Reference magnet
A43: Tref | B43: 21 | C43: degC
A44: Hall ref field | B44: 0.50528 | C44: T
A45: NMR ref field | B45: 0.506438 | C45: T
A47: Measuring series at larger gaps:
A48: Reference magnet
A49: Tref | B49: 21.005 | C49: degC
A50: Hall ref field | B50: 0.50527 | C50: T
A51: NMR ref field | B51: 0.506443 | C51: T
A53: Offset from Faro | B53: 0.04

Sheet 10 x=-2
A1: dz | B1: ='DF raw data'!B7 -> 0.50015 | C1: mm | F1: T_coeff | G1: -0.0008 | H1: /degC | L1: Hallref | M1: ='PI vs gap'!B44 -> 0.50528 | N1: T | P1: IBy total | Q1: =L1203*1000 -> -6.717644622 | R1: muTm | X1: DF ref | Y1: 18
A2: Tref | B2: ='DF raw data'!B8 -> 21.5 | C2: degC | F2: Tcorr | G2: 20 | H2: degC | L2: NMRref | M2: ='PI vs gap'!B45 -> 0.506438 | N2: T | P2: JBy total | Q2: =M1203 -> -2.219139197 | R2: muTm^2
A3: Encoder | B3: ='DF raw data'!B9 -> 17895606 | P3: PI total | Q3: =N1203 -> 706.6100602 | R3: T^2mm^3
A5: z [mm] | B5: Bx | C5: By | D5: Bz | F5: Bx_corr | G5: By_corr | H5: Bz_corr | J5: Ix | K5: Jx | L5: Iy | M5: Jy | N5: PI
A6: ='PI vs gap'!B53 -> 0.04 | B6: ='DF raw data'!A11 -> -1.0915121e-05 | C6: ='DF raw data'!B11 -> 1.0425029e-05 | D6: ='DF raw data'!C11 -> 9.9701683e-06 | F6: =(1-$G$1*($B$2-$G$2))*B6 -> -1.092821915e-05 | G6: =(1-$G$1*($B$2-$G$2))*C6*$M$2/$M$1 -> 1.046145977e-05 | H6: =(1-$G$1*($B$2-$G$2))*D6 -> 9.982132502e-06 | J6: =F6*$B$1 -> -5.465748805e-06 | K6: =J6*$B$1 -> -2.733694265e-06 | L6: =G6*$B$1 -> 5.232299105e-06 | M6: =L6*$B$1 -> 2.616934397e-06 | N6: =(J6^2+L6)^2*$B$1 -> 1.369273986e-11
A7: =A6+$B$1 -> 0.54015 | B7: ='DF raw data'!A12 -> -1.0396346e-05 | C7: ='DF raw data'!B12 -> -4.3424234e-06 | D7: ='DF raw data'!C12 -> 5.7702086e-06 | F7: =(1-$G$1*($B$2-$G$2))*B7 -> -1.040882162e-05 | G7: =(1-$G$1*($B$2-$G$2))*C7*$M$2/$M$1 -> -4.35759821e-06 | H7: =(1-$G$1*($B$2-$G$2))*D7 -> 5.77713285e-06 | J7: =F7*$B$1+J6 -> -1.067172094e-05 | K7: =J7*$B$1+K6 -> -8.071155491e-06 | L7: =G7*$B$1+L6 -> 3.05284636e-06 | M7: =L7*$B$1+M6 -> 4.143815504e-06 | N7: =(J7^2+L7^2)*$B$1+N6 -> 7.531397001e-11
A8: =A7+$B$1 -> 1.0403 | B8: ='DF raw data'!A13 -> -1.0482377e-05 | C8: ='DF raw data'!B13 -> -3.2150974e-06 | D8: ='DF raw data'!C13 -> -2.4576768e-06 | F8: -1.049495585e-05 | G8: -3.226332715e-06 | H8: -2.460626012e-06 | J8: =F8*$B$1+J7 -> -1.592077311e-05 | K8: =J8*$B$1+K7 -> -1.603393016e-05 | L8: =G8*$B$1+L7 -> 1.439196053e-06 | M8: =L8*$B$1+M7 -> 4.86362941e-06 | N8: =(J8^2+L8^2)*$B$1+N7 -> 2.031234521e-10
A9: 1.54045 | B9: ='DF raw data'!A14 -> -1.0381517e-05 | C9: ='DF raw data'!B14 -> -5.14779e-06 | D9: ='DF raw data'!C14 -> 2.002718e-06 | F9: -1.039397482e-05 | G9: -5.165779203e-06 | H9: 2.005121262e-06 | J9: -2.111931961e-05 | K9: -2.659675786e-05 | L9: -1.144468416e-06 | M9: 4.291223532e-06 | N9: 4.268582869e-10
A10: 2.0406 | B10: ='DF raw data'!A15 -> -1.0650786e-05 | C10: ='DF raw data'!B15 -> 2.1630854e-06 | D10: ='DF raw data'!C15 -> 1.8238894e-06 | F10: -1.066356694e-05 | G10: 2.170644407e-06 | H10: 1.826078067e-06 | J10: -2.645270262e-05 | K10: -3.982707708e-05 | L10: -5.882061516e-08 | M10: 4.261804402e-06 | N10: 7.768377171e-10
A11: 2.54075 | B11: ='DF raw data'!A16 -> -1.0195151e-05 | C11: ='DF raw data'!B16 -> -1.0870882e-05 | D11: ='DF raw data'!C16 -> -2.0485643e-06 | F11: =(1-$G$1*($B$2-$G$2))*B11 -> -1.020738518e-05 | G11: -1.090887083e-05 | H11: =(1-$G$1*($B$2-$G$2))*D11 -> -2.051022577e-06 | J11: -3.155792632e-05 | K11: -5.561077393e-05 | L11: -5.514892359e-06 | M11: 1.503530988e-06 | N11: 1.29015004e-09
A12: 3.0409 | B12: ='DF raw data'!A17 -> -1.0542985e-05 | C12: ='DF raw data'!B17 -> -1.2945467e-06 | D12: ='DF raw data'!C17 -> -1.9748297e-06 | F12: -1.055563658e-05 | G12: -1.299070557e-06 | H12: -1.977199496e-06 | J12: -3.683732795e-05 | K12: -7.40349635e-05 | L12: -6.164622498e-06 | M12: -1.579704954e-06 | N12: 1.98785494e-09
A13: 3.54105 | B13: ='DF raw data'!A18 -> -1.0666342e-05 | C13: ='DF raw data'!B18 -> 2.3166601e-06 | D13: ='DF raw data'!C18 -> -3.4757642e-07 | F13: -1.067914161e-05 | G13: 2.324755782e-06 | H13: -3.479935117e-07 | J13: -4.217850063e-05 | K13: -9.513054059e-05 | L13: -5.001895894e-06 | M13: -4.081403186e-06 | N13: 2.890147985e-09
A14: 4.0412 | B14: ='DF raw data'!A19 -> -1.083689e-05 | C14: ='DF raw data'!B19 -> 6.7401711e-06 | D14: ='DF raw data'!C19 -> -8.3761216e-07 | F14: -1.084989427e-05 | G14: 6.763724957e-06 | H14: -8.386172946e-07 | J14: -4.760507525e-05 | K14: -0.000118940219 | L14: -1.619018857e-06 | M14: -4.891155467e-06 | N14: 4.024920521e-09
A15: 4.54135 | B15: ='DF raw data'!A20 -> -1.0578099e-05 | C15: ='DF raw data'!B20 -> -2.7089305e-07 | D15: ='DF raw data'!C20 -> -5.1546813e-08 | F15: -1.059079272e-05 | G15: -2.71839699e-07 | H15: -5.160866918e-08 | J15: -5.290206023e-05 | K15: -0.0001453991844 | L15: -1.754979482e-06 | M15: -5.768908455e-06 | N15: 5.426194741e-09
A16: 5.0415 | B16: ='DF raw data'!A21 -> -1.0061259e-05 | C16: ='DF raw data'!B21 -> -1.4623921e-05 | D16: ='DF raw data'!C21 -> -2.1598428e-06 | F16: -1.007333251e-05 | G16: -1.467502501e-05 | H16: -2.162434611e-06 | J16: -5.794023748e-05 | K16: -0.0001743779942 | L16: -9.094693239e-06 | M16: -1.031761928e-05 | N16: 7.146602991e-09
A17: 5.54165 | B17: ='DF raw data'!A22 -> -1.0374911e-05 | C17: ='DF raw data'!B22 -> -5.7566176e-06 | D17: ='DF raw data'!C22 -> -9.8356793e-07 | F17: -1.038736089e-05 | G17: -5.776734381e-06 | H17: -9.847482115e-07 | J17: -6.313547603e-05 | K17: -0.0002059552025 | L17: -1.198392694e-05 | M17: -1.631138034e-05 | N17: 9.212073866e-09
A18: 6.0418 | B18: ='DF raw data'!A23 -> -1.0720213e-05 | C18: ='DF raw data'!B23 -> 3.6051661e-06 | D18: ='DF raw data'!C23 -> -1.1615961e-06 | F18: -1.073307726e-05 | G18: 3.617764529e-06 | H18: -1.162990015e-06 | J18: -6.850362462e-05 | K18: -0.0002402172904 | L18: -1.017450201e-05 | M18: -2.140015752e-05 | N18: 1.161092685e-08
A19: 6.54195 | B19: ='DF raw data'!A24 -> -1.0387527e-05 | C19: ='DF raw data'!B24 -> -6.5905379e-06 | D19: ='DF raw data'!C24 -> -7.6243346e-06 | F19: -1.039999203e-05 | G19: -6.613568856e-06 | H19: -7.633483802e-06 | J19: -7.370518064e-05 | K19: -0.0002770809365 | L19: -1.348227847e-05 | M19: -2.81433191e-05 | N19: 1.441888172e-08
A20: 7.0421 | B20: ='DF raw data'!A25 -> -1.036017e-05 | C20: ='DF raw data'!B25 -> -8.03889e-06 | D20: ='DF raw data'!C25 -> -1.2122724e-05 | F20: -1.03726022e-05 | G20: -8.066982293e-06 | H20: -1.213727127e-05 | J20: -7.889303763e-05 | K20: -0.0003165392892 | L20: -1.751697967e-05 | M20: -3.690443648e-05 | N20: 1.768533935e-08
A21: 7.54225 | B21: ='DF raw data'!A26 -> -1.0763127e-05 | C21: ='DF raw data'!B26 -> 3.8955036e-06 | D21: ='DF raw data'!C26 -> -6.7536062e-06 | F21: -1.077604275e-05 | G21: 3.909116627e-06 | H21: -6.761710527e-06 | J21: -8.428267541e-05 | K21: -0.0003586932693 | L21: -1.556183499e-05 | M21: -4.468768825e-05 | N21: 2.135931125e-08
A22: 8.0424 | B22: ='DF raw data'!A27 -> -9.4176567e-06 | C22: ='DF raw data'!B27 -> -2.3061912e-06 | D22: ='DF raw data'!C27 -> 2.1453496e-07 | F22: -9.428957888e-06 | G22: -2.314250298e-06 | H22: 2.14792402e-07 | J22: -8.89985687e-05 | K22: -0.0004032059035 | L22: -1.671930727e-05 | M22: -5.304984978e-05 | N22: 2.546068152e-08
A23: 8.54255 | B23: ='DF raw data'!A28 -> -5.1420852e-06 | C23: ='DF raw data'!B28 -> 3.8662829e-06 | D23: ='DF raw data'!C28 -> 5.1689466e-07 | F23: -5.148255702e-06 | G23: 3.879793814e-06 | H23: 5.175149336e-07 | J23: -9.157346879e-05 | K23: -0.0004490063739 | L23: -1.47788284e-05 | M23: -6.04414808e-05 | N23: 2.976402912e-08
A24: 9.0427 | B24: ='DF raw data'!A29 -> 9.3264066e-07 | C24: ='DF raw data'!B29 -> 1.0143364e-05 | D24: ='DF raw data'!C29 -> -3.5571468e-06 | F24: 9.337598288e-07 | G24: 1.017881048e-05 | H24: -3.561415376e-06 | J24: -9.110644881e-05 | K24: -0.0004945732643 | L24: -9.687896335e-06 | M24: -6.528688215e-05 | N24: 3.396240843e-08
A25: 9.54285 | B25: ='DF raw data'!A30 -> 3.2733453e-06 | C25: ='DF raw data'!B30 -> 7.3109723e-06 | D25: ='DF raw data'!C30 -> -5.608807e-06 | F25: 3.277273314e-06 | G25: 7.336520849e-06 | H25: -5.615537568e-06 | J25: -8.946732056e-05 | K25: -0.0005393203446 | L25: -6.018535432e-06 | M25: -6.829705265e-05 | N25: 3.798392663e-08
A26: 10.043 | B26: ='DF raw data'!A31 -> -7.3569277e-07 | C26: ='DF raw data'!B31 -> 1.5250365e-06 | D26: ='DF raw data'!C31 -> -5.0082203e-06 | F26: -7.365756013e-07 | G26: 1.530365814e-06 | H26: -5.014230164e-06 | J26: -8.983571885e-05 | K26: -0.0005842516794 | L26: -5.25312297e-06 | M26: -7.09244021e-05 | N26: 4.203416718e-08
A27: 10.54315 | B27: ='DF raw data'!A32 -> -4.6605624e-06 | C27: ='DF raw data'!B32 -> 1.0361384e-05 | D27: ='DF raw data'!C32 -> -3.6826716e-06 | F27: -4.666155075e-06 | G27: 1.039759236e-05 | H27: -3.687090806e-06 | J27: -9.216949631e-05 | K27: -0.000630350253 | L27: -5.276715053e-08 | M27: -7.095079359e-05 | N27: 4.628305088e-08
A28: 11.0433 | B28: ='DF raw data'!A33 -> -2.8219685e-07 | C28: ='DF raw data'!B33 -> 4.3268737e-06 | D28: ='DF raw data'!C33 -> 8.0772924e-07 | F28: -2.825354862e-07 | G28: 4.341994171e-06 | H28: 8.086985151e-07 | J28: -9.231080643e-05 | K28: -0.0006765195028 | L28: 2.118881234e-06 | M28: -6.989103514e-05 | N28: 5.054721707e-08
A29: 11.54345 | B29: ='DF raw data'!A34 -> 4.4074927e-06 | C29: ='DF raw data'!B34 -> -4.9333721e-06 | D29: ='DF raw data'!C34 -> 1.9170509e-06 | F29: 4.412781691e-06 | G29: -4.950612009e-06 | H29: 1.919351361e-06 | J29: -9.010375367e-05 | K29: -0.0007215848952 | L29: -3.571673623e-07 | M29: -7.00696724e-05 | N29: 5.460784189e-08
A30: 12.0436 | B30: ='DF raw data'!A35 -> 5.5302166e-06 | C30: ='DF raw data'!B35 -> -3.282611e-06 | D30: ='DF raw data'!C35 -> -5.3288136e-06 | F30: 5.53685286e-06 | G30: -3.294082244e-06 | H30: -5.335208176e-06 | J30: -8.733449671e-05 | K30: -0.0007652652438 | L30: -2.004702597e-06 | M30: -7.10723244e-05 | N30: 5.842465316e-08
A31: 12.54375 | B31: ='DF raw data'!A36 -> 4.1961553e-06 | C31: ='DF raw data'!B36 -> -5.3379235e-06 | D31: ='DF raw data'!C36 -> -5.0796411e-06 | F31: 4.201190686e-06 | G31: -5.356577134e-06 | H31: -5.085736669e-06 | J31: -8.523327119e-05 | K31: -0.0008078946644 | L31: -4.68379465e-06 | M31: -7.34149243e-05 | N31: 6.206907038e-08
A32: 13.0439 | B32: ='DF raw data'!A37 -> 2.0030359e-06 | C32: ='DF raw data'!B37 -> -3.1228992e-06 | D32: ='DF raw data'!C37 -> -8.9743153e-06 | F32: 2.005439543e-06 | G32: -3.133812324e-06 | H32: -8.985084478e-06 | J32: -8.42302506e-05 | K32: -0.0008500224242 | L32: -6.251170884e-06 | M32: -7.654144742e-05 | N32: 6.563704658e-08
A33: 13.54405 | B33: ='DF raw data'!A38 -> 2.804384e-07 | C33: ='DF raw data'!B38 -> -3.1577238e-06 | D33: ='DF raw data'!C38 -> -5.4728339e-06 | F33: 2.807749261e-07 | G33: -3.16875862e-06 | H33: -5.479401301e-06 | J33: -8.408982102e-05 | K33: -0.0008920799482 | L33: -7.836025508e-06 | M33: -8.046063557e-05 | N33: 6.920436711e-08
A34: 14.0442 | B34: ='DF raw data'!A39 -> 4.1577819e-06 | C34: ='DF raw data'!B39 -> -4.6537089e-06 | D34: ='DF raw data'!C39 -> 7.5988254e-07 | F34: 4.162771238e-06 | G34: -4.669971513e-06 | H34: 7.60794399e-07 | J34: -8.200781099e-05 | K34: -0.0009330961549 | L34: -1.017171176e-05 | M34: -8.554801721e-05 | N34: 7.261976381e-08
A35: 14.54435 | B35: ='DF raw data'!A40 -> 8.2575361e-06 | C35: ='DF raw data'!B40 -> -8.9111027e-06 | D35: ='DF raw data'!C40 -> 2.868979e-06 | F35: 8.267445143e-06 | G35: -8.942242983e-06 | H35: 2.872421775e-06 | J35: -7.78728483e-05 | K35: -0.0009720442599 | L35: -1.464417459e-05 | M35: -9.287230113e-05 | N35: 7.576002178e-08
A36: 15.0445 | B36: ='DF raw data'!A41 -> 8.3011191e-06 | C36: ='DF raw data'!B41 -> -7.1133633e-07 | D36: ='DF raw data'!C41 -> 5.4416992e-06 | F36: 8.311080443e-06 | G36: -7.138221295e-07 | H36: 5.448229239e-06 | J36: -7.371606142e-05 | K36: -0.001008913348 | L36: -1.500119273e-05 | M36: -0.0001003751477 | N36: 7.859041739e-08
A37: 15.54465 | B37: ='DF raw data'!A42 -> 3.694405e-06 | C37: ='DF raw data'!B42 -> 5.0743329e-06 | D37: ='DF raw data'!C42 -> 4.5318407e-06 | F37: 3.698838286e-06 | G37: 5.092065404e-06 | H37: 4.537278909e-06 | J37: -7.186608745e-05 | K37: -0.001044857172 | L37: -1.245439621e-05 | M37: -0.0001066042139 | N37: 8.125113862e-08
A38: 16.0448 | B38: ='DF raw data'!A43 -> -6.4350638e-07 | C38: ='DF raw data'!B43 -> 1.788822e-06 | D38: ='DF raw data'!C43 -> 9.2613817e-07 | F38: -6.442785877e-07 | G38: 1.795073126e-06 | H38: 9.272495358e-07 | J38: -7.218832338e-05 | K38: -0.001080962162 | L38: -1.155659039e-05 | M38: -0.0001123842426 | N38: 8.392429474e-08
A39: 16.54495 | B39: ='DF raw data'!A44 -> -3.4546858e-07 | C39: ='DF raw data'!B44 -> 2.4234018e-06 | D39: ='DF raw data'!C44 -> -5.6335743e-06 | F39: -3.458831423e-07 | G39: 2.431870496e-06 | H39: -5.640334589e-06 | J39: -7.236131684e-05 | K39: -0.001117153674 | L39: -1.034029036e-05 | M39: -0.0001175559388 | N39: 8.659663709e-08
A40: 17.0451 | B40: ='DF raw data'!A45 -> -2.1034564e-06 | C40: ='DF raw data'!B45 -> 4.7062072e-06 | D40: ='DF raw data'!C45 -> 1.7540486e-07 | F40: -2.105980548e-06 | G40: 4.722653271e-06 | H40: 1.756153458e-07 | J40: -7.341462301e-05 | K40: -0.001153871998 | L40: -7.978255328e-06 | M40: -0.0001215462632 | N40: 8.932413481e-08
A41: 17.54525 | B41: ='DF raw data'!A46 -> -1.5568428e-06 | C41: ='DF raw data'!B46 -> 2.1752271e-06 | D41: ='DF raw data'!C46 -> 5.5237574e-06 | F41: -1.558711011e-06 | G41: 2.182828537e-06 | H41: 5.530385909e-06 | J41: -7.419421232e-05 | K41: -0.001190980233 | L41: -6.886513636e-06 | M41: -0.000124990553 | N41: 9.210107024e-08
A42: 18.0454 | B42: ='DF raw data'!A47 -> -1.9572096e-06 | C42: ='DF raw data'!B47 -> 8.6214941e-06 | D42: ='DF raw data'!C47 -> 2.0996774e-06 | F42: -1.959558252e-06 | G42: 8.651622332e-06 | H42: 2.102197013e-06 | J42: -7.517428538e-05 | K42: -0.001228578652 | L42: -2.559404726e-06 | M42: -0.0001262706393 | N42: 9.493078077e-08
A43: 18.54555 | B43: ='DF raw data'!A48 -> -1.2947773e-06 | C43: ='DF raw data'!B48 -> -1.5639302e-05 | D43: ='DF raw data'!C48 -> 1.4057256e-06 | F43: -1.296331033e-06 | G43: -1.56939543e-05 | H43: 1.407412471e-06 | J43: -7.582264535e-05 | K43: -0.001266501348 | L43: -1.040873597e-05 | M43: -0.0001314765686 | N43: 9.786036705e-08
A44: 19.0457 | B44: ='DF raw data'!A49 -> -2.8346287e-07 | C44: ='DF raw data'!B49 -> -3.0815363e-06 | D44: ='DF raw data'!C49 -> 5.158839e-06 | F44: -2.838030254e-07 | G44: -3.092304879e-06 | H44: 5.165029607e-06 | J44: -7.596458943e-05 | K44: -0.001304495038 | L44: -1.195535226e-05 | M44: -0.000137456038 | N44: 1.008180287e-07
A45: 19.54585 | B45: ='DF raw data'!A50 -> -2.7174162e-06 | C45: ='DF raw data'!B50 -> 2.5078612e-06 | D45: ='DF raw data'!C50 -> 6.4581068e-06 | F45: -2.720677099e-06 | G45: 2.516625043e-06 | H45: 6.465856528e-06 | J45: -7.732533608e-05 | K45: -0.001343169304 | L45: -1.069666224e-05 | M45: -0.0001428059737 | N45: 1.038657559e-07
A46: 20.046 | B46: ='DF raw data'!A51 -> -9.0663411e-07 | C46: ='DF raw data'!B51 -> -2.0217244e-06 | D46: ='DF raw data'!C51 -> 5.5696833e-06 | F46: -9.077220709e-07 | G46: -2.028789415e-06 | H46: 5.57636692e-06 | J46: -7.777933328e-05 | K46: -0.001382070638 | L46: -1.171136127e-05 | M46: -0.000148663411 | N46: 1.069600742e-07
A47: 20.54615 | B47: ='DF raw data'!A52 -> 4.1609251e-06 | C47: ='DF raw data'!B52 -> -9.868977e-06 | D47: ='DF raw data'!C52 -> 4.1991984e-06 | F47: 4.16591821e-06 | G47: -9.903464621e-06 | H47: 4.204237438e-06 | J47: -7.569574928e-05 | K47: -0.001419929867 | L47: -1.66645791e-05 | M47: -0.0001569982002 | N47: 1.099647527e-07
A48: 21.0463 | B48: ='DF raw data'!A53 -> 1.216272e-06 | C48: ='DF raw data'!B53 -> 2.559631e-06 | D48: ='DF raw data'!C53 -> -2.1127964e-06 | F48: 1.217731526e-06 | G48: 2.568575755e-06 | H48: -2.115331756e-06 | J48: -7.508670086e-05 | K48: -0.00145748448 | L48: -1.537990593e-05 | M48: -0.0001646904602 | N48: 1.129029109e-07
A49: 21.54645 | B49: ='DF raw data'!A54 -> -2.2912602e-07 | C49: ='DF raw data'!B54 -> -2.183705e-06 | D49: ='DF raw data'!C54 -> -1.1490923e-05 | F49: -2.294009712e-07 | G49: -2.191336064e-06 | H49: -1.150471211e-05 | J49: -7.520143576e-05 | K49: -0.001495096478 | L49: -1.647590267e-05 | M49: -0.0001729308829 | N49: 1.158671556e-07
A50: 22.0466 | B50: ='DF raw data'!A55 -> 2.4136909e-06 | C50: ='DF raw data'!B55 -> -1.1148543e-05 | D50: ='DF raw data'!C55 -> -9.6375916e-06 | F50: 2.416587329e-06 | G50: -1.118750213e-05 | H50: -9.64915671e-06 | J50: -7.39927796e-05 | K50: -0.001532103967 | L50: -2.207133185e-05 | M50: -0.0001839698595 | N50: 1.188490875e-07
A51: 22.54675 | B51: ='DF raw data'!A56 -> -4.2303641e-06 | C51: ='DF raw data'!B56 -> 1.1220522e-05 | D51: ='DF raw data'!C56 -> 1.6898372e-06 | F51: -4.235440537e-06 | G51: 1.125973266e-05 | H51: 1.691865005e-06 | J51: -7.611113519e-05 | K51: -0.001570170951 | L51: -1.643977656e-05 | M51: -0.0001921922138 | N51: 1.218815825e-07
A52: 23.0469 | B52: ='DF raw data'!A57 -> -5.2330638e-06 | C52: ='DF raw data'!B57 -> 9.1111715e-06 | D52: ='DF raw data'!C57 -> 1.0491156e-05 | F52: -5.239343477e-06 | G52: 9.143010933e-06 | H52: 1.050374539e-05 | J52: -7.873159283e-05 | K52: -0.001609548558 | L52: -1.186689965e-05 | M52: -0.0001981274436 | N52: 1.25052277e-07
A53: 23.54705 | B53: ='DF raw data'!A58 -> -4.5166846e-07 | C53: ='DF raw data'!B58 -> 8.6710719e-07 | D53: ='DF raw data'!C58 -> 1.0135886e-05 | F53: -4.522104622e-07 | G53: 8.701373384e-07 | H53: 1.014804906e-05 | J53: -7.895776589e-05 | K53: -0.001649039284 | L53: -1.143170046e-05 | M53: -0.0002038450086 | N53: 1.28235738e-07
A54: 24.0472 | B54: ='DF raw data'!A59 -> 5.3519266e-06 | C54: ='DF raw data'!B59 -> 2.2499464e-06 | D54: ='DF raw data'!C59 -> -1.4958306e-07 | F54: 5.358348912e-06 | G54: 2.257808947e-06 | H54: -1.497625597e-07 | J54: -7.627778768e-05 | K54: -0.00168718962 | L54: -1.030245731e-05 | M54: -0.0002089977826 | N54: 1.311988474e-07
A55: 24.54735 | B55: ='DF raw data'!A60 -> 7.5131479e-06 | C55: ='DF raw data'!B60 -> 3.4500675e-07 | D55: ='DF raw data'!C60 -> -7.5548115e-07 | F55: 7.522163677e-06 | G55: 3.462123929e-07 | H55: -7.563877274e-07 | J55: -7.251557752e-05 | K55: -0.001723458286 | L55: -1.012929918e-05 | M55: -0.0002140639516 | N55: 1.338802074e-07
A56: 25.0475 | B56: ='DF raw data'!A61 -> 7.0932233e-06 | C56: ='DF raw data'!B61 -> -3.2456519e-06 | D56: ='DF raw data'!C61 -> 1.9435499e-06 | F56: 7.101735168e-06 | G56: -3.256993989e-06 | H56: 1.94588216e-06 | J56: -6.896364467e-05 | K56: -0.001757950453 | L56: -1.175828473e-05 | M56: -0.0002199448577 | N56: 1.363280623e-07
A57: 25.54765 | B57: ='DF raw data'!A62 -> 3.7500079e-06 | C57: ='DF raw data'!B62 -> -3.0713963e-06 | D57: ='DF raw data'!C62 -> -9.9341958e-07 | F57: 3.754507909e-06 | G57: -3.082129444e-06 | H57: -9.946116835e-07 | J57: -6.708582754e-05 | K57: -0.001791503429 | L57: -1.329981177e-05 | M57: -0.0002265967586 | N57: 1.386674606e-07
A58: 26.0478 | B58: ='DF raw data'!A63 -> 4.4219137e-06 | C58: ='DF raw data'!B63 -> -2.2300042e-06 | D58: ='DF raw data'!C63 -> -6.0420757e-06 | F58: 4.427219996e-06 | G58: -2.237797058e-06 | H58: -6.049326191e-06 | J58: -6.487155346e-05 | K58: -0.001823948937 | L58: -1.441904597e-05 | M58: -0.0002338084444 | N58: 1.408762367e-07
A59: 26.54795 | B59: ='DF raw data'!A64 -> 5.497373e-06 | C59: ='DF raw data'!B64 -> 4.0641557e-06 | D59: ='DF raw data'!C64 -> -7.7626937e-06 | F59: 5.503969848e-06 | G59: 4.07835809e-06 | H59: -7.772008932e-06 | J59: -6.211874294e-05 | K59: -0.001855017626 | L59: -1.237925517e-05 | M59: -0.0002399999289 | N59: 1.428828306e-07
A60: 27.0481 | B60: ='DF raw data'!A65 -> 2.8920706e-06 | C60: ='DF raw data'!B65 -> -7.5016357e-07 | D60: ='DF raw data'!C65 -> 6.8627895e-07 | F60: 2.895541085e-06 | G60: -7.527850532e-07 | H60: 6.871024847e-07 | J60: -6.067053807e-05 | K60: -0.001885361996 | L60: -1.275576061e-05 | M60: -0.0002463797226 | N60: 1.448052189e-07
A61: 27.54825 | B61: ='DF raw data'!A66 -> 1.7414507e-06 | C61: ='DF raw data'!B66 -> 6.2942572e-06 | D61: ='DF raw data'!C66 -> 3.7175448e-06 | F61: 1.743540441e-06 | G61: 6.316252789e-06 | H61: 3.722005854e-06 | J61: -5.979850632e-05 | K61: -0.001915270219 | L61: -9.596686779e-06 | M61: -0.0002511795055 | N61: 1.46639748e-07
A62: 28.0484 | B62: ='DF raw data'!A67 -> -6.2634967e-07 | C62: ='DF raw data'!B67 -> 5.444193e-06 | D62: ='DF raw data'!C67 -> -1.2915217e-07 | F62: -6.271012896e-07 | G62: 5.463217998e-06 | H62: -1.293071526e-07 | J62: -6.011215103e-05 | K62: -0.001945335311 | L62: -6.864258298e-06 | M62: -0.0002546126643 | N62: 1.484705914e-07
A63: 28.54855 | B63: ='DF raw data'!A68 -> 1.0709566e-06 | C63: ='DF raw data'!B68 -> 7.3280512e-06 | D63: ='DF raw data'!C68 -> -1.1062988e-06 | F63: 1.072241748e-06 | G63: 7.353659432e-06 | H63: -1.107626359e-06 | J63: -5.957586932e-05 | K63: -0.001975132182 | L63: -3.186325533e-06 | M63: -0.000256206305 | N63: 1.502508438e-07
A64: 29.0487 | B64: ='DF raw data'!A69 -> 3.7542861e-06 | C64: ='DF raw data'!B69 -> 4.0457426e-06 | D64: ='DF raw data'!C69 -> 4.597659e-06 | F64: 3.758791243e-06 | G64: 4.059880645e-06 | H64: 4.603176191e-06 | J64: -5.769590988e-05 | K64: -0.002003988791 | L64: -1.155776228e-06 | M64: -0.0002567843665 | N64: 1.519164202e-07
A65: 29.54885 | B65: ='DF raw data'!A70 -> 4.929339e-06 | C65: ='DF raw data'!B70 -> 5.7182524e-06 | D65: ='DF raw data'!C70 -> 7.9036654e-06 | F65: 4.935254207e-06 | G65: 5.738235112e-06 | H65: 7.913149798e-06 | J65: -5.522754249e-05 | K65: -0.002031610847 | L65: 1.714202063e-06 | M65: -0.0002559270083 | N65: 1.534433882e-07
A66: 30.049 | B66: ='DF raw data'!A71 -> 5.1450711e-06 | C66: ='DF raw data'!B71 -> 4.3540927e-06 | D66: ='DF raw data'!C71 -> 5.4932711e-06 | F66: 5.151245185e-06 | G66: 4.369308289e-06 | H66: 5.499863025e-06 | J66: -5.265114721e-05 | K66: -0.002057944318 | L66: 3.899511604e-06 | M66: -0.0002539766676 | N66: 1.54837481e-07
A67: 30.54915 | B67: ='DF raw data'!A72 -> 2.2266552e-06 | C67: ='DF raw data'!B72 -> -3.4361856e-06 | D67: ='DF raw data'!C72 -> 9.9208739e-07 | F67: 2.229327186e-06 | G67: -3.448193518e-06 | H67: 9.932778949e-07 | J67: -5.153614921e-05 | K67: -0.002083720123 | L67: 2.174897616e-06 | M67: -0.0002528888925 | N67: 1.561682325e-07
A68: 31.0493 | B68: ='DF raw data'!A73 -> 9.1328661e-07 | C68: ='DF raw data'!B73 -> -2.5729123e-06 | D68: ='DF raw data'!C73 -> -4.7571853e-06 | F68: 9.143825539e-07 | G68: -2.581903468e-06 | H68: -4.762893922e-06 | J68: -5.107882078e-05 | K68: -0.002109267195 | L68: 8.835585966e-07 | M68: -0.0002524469807 | N68: 1.574735373e-07
A69: 31.54945 | B69: ='DF raw data'!A74 -> -1.4168679e-06 | C69: ='DF raw data'!B74 -> 2.3701643e-06 | D69: ='DF raw data'!C74 -> -2.0357149e-06 | F69: -1.418568141e-06 | G69: 2.378446955e-06 | H69: -2.038157758e-06 | J69: -5.178831764e-05 | K69: -0.002135169122 | L69: 2.073138841e-06 | M69: -0.0002514101003 | N69: 1.588171041e-07
A70: 32.0496 | B70: ='DF raw data'!A75 -> -1.8297203e-06 | C70: ='DF raw data'!B75 -> -3.5020985e-06 | D70: ='DF raw data'!C75 -> 7.0231516e-07 | F70: -1.831915964e-06 | G70: -3.514336754e-06 | H70: 7.031579382e-07 | J70: -5.27045504e-05 | K70: -0.002161529303 | L70: 3.154433135e-07 | M70: -0.0002512523313 | N70: 1.602064554e-07
A71: 32.54975 | B71: ='DF raw data'!A76 -> 2.4951817e-06 | C71: ='DF raw data'!B76 -> 1.0124094e-06 | D71: ='DF raw data'!C76 -> -2.2707284e-06 | F71: 2.498175918e-06 | G71: =(1-$G$1*($B$2-$G$2))*C71*$M$2/$M$1 -> 1.015947314e-06 | H71: -2.273453274e-06 | J71: -5.145508772e-05 | K71: -0.002187264565 | L71: 8.235693626e-07 | M71: -0.0002508404231 | N71: 1.615310048e-07
A72: =A71+$B$1 -> 33.0499 | B72: ='DF raw data'!A77 -> 2.7596482e-06 | C72: ='DF raw data'!B77 -> 2.8351581e-06 | D72: ='DF raw data'!C77 -> -2.8923425e-06 | F72: 2.762959778e-06 | G72: 2.845065698e-06 | H72: -2.895813311e-06 | J72: =F72*$B$1+J71 -> -5.007319339e-05 | K72: =J72*$B$1+K71 -> -0.002212308673 | L72: =G72*$B$1+L71 -> 2.246528972e-06 | M72: =L72*$B$1+M71 -> -0.0002497168216 | N72: =(J72^2+L72^2)*$B$1+N71 -> 1.627875674e-07
A73: 33.55005 | B73: ='DF raw data'!A78 -> -2.1882213e-06 | C73: ='DF raw data'!B78 -> 2.9313589e-06 | D73: ='DF raw data'!C78 -> -4.5214442e-06 | F73: -2.190847166e-06 | G73: 2.941602677e-06 | H73: -4.526869933e-06 | J73: -5.11689456e-05 | K73: -0.002237900821 | L73: 3.71777155e-06 | M73: -0.0002478573782 | N73: 1.641040037e-07
A74: 34.0502 | B74: ='DF raw data'!A79 -> -6.7006827e-06 | C74: ='DF raw data'!B79 -> 1.5455843e-06 | D74: ='DF raw data'!C79 -> -2.4439689e-06 | F74: -6.708723519e-06 | G74: 1.55098542e-06 | H74: -2.446901663e-06 | J74: -5.452431366e-05 | K74: -0.002265171157 | L74: 4.493496908e-06 | M74: -0.0002456099557 | N74: 1.656009988e-07
A75: 34.55035 | B75: ='DF raw data'!A80 -> -5.3890603e-06 | C75: ='DF raw data'!B80 -> 7.9625732e-07 | D75: ='DF raw data'!C80 -> 2.0574914e-06 | F75: =(1-$G$1*($B$2-$G$2))*B75 -> -5.395527172e-06 | G75: 7.9903988e-07 | H75: =(1-$G$1*($B$2-$G$2))*D75 -> 2.05996039e-06 | J75: -5.722288658e-05 | K75: -0.002293791183 | L75: 4.893136704e-06 | M75: -0.0002431626534 | N75: 1.672506943e-07
A76: 35.0505 | B76: ='DF raw data'!A81 -> 9.1315565e-07 | C76: ='DF raw data'!B81 -> 1.9828253e-06 | D76: ='DF raw data'!C81 -> 8.3497107e-06 | F76: 9.142514368e-07 | G76: 1.98975438e-06 | H76: 8.359730353e-06 | J76: -5.676562372e-05 | K76: -0.00232218251 | L76: 5.888312357e-06 | M76: -0.000240217614 | N76: 1.68879687e-07
A77: 35.55065 | B77: ='DF raw data'!A82 -> 3.034985e-06 | C77: ='DF raw data'!B82 -> 9.9479701e-07 | D77: ='DF raw data'!C82 -> 1.1079825e-05 | F77: 3.038626982e-06 | G77: 9.982733767e-07 | H77: 1.109312079e-05 | J77: -5.524585444e-05 | K77: -0.002349813724 | L77: 6.387598786e-06 | M77: -0.0002370228564 | N77: 1.704266038e-07
A78: 36.0508 | B78: ='DF raw data'!A83 -> -6.762773e-07 | C78: ='DF raw data'!B83 -> 3.0671293e-07 | D78: ='DF raw data'!C83 -> 8.0252612e-06 | F78: -6.770888328e-07 | G78: 3.077847533e-07 | H78: 8.034891513e-06 | J78: -5.558450042e-05 | K78: -0.002377614312 | L78: 6.541537331e-06 | M78: -0.0002337511065 | N78: 1.719932879e-07
A79: 36.55095 | B79: ='DF raw data'!A84 -> -1.8787021e-06 | C79: ='DF raw data'!B84 -> -7.0636706e-06 | D79: ='DF raw data'!C84 -> 2.7031308e-06 | F79: -1.880956543e-06 | G79: -7.088354941e-06 | H79: 2.706374557e-06 | J79: -5.652526083e-05 | K79: -0.002405885421 | L79: 2.996296607e-06 | M79: -0.0002322525088 | N79: 1.7359581e-07
A80: 37.0511 | B80: ='DF raw data'!A85 -> 3.4001715e-08 | C80: ='DF raw data'!B85 -> 1.2859007e-05 | D80: ='DF raw data'!C85 -> -9.286635e-07 | F80: 3.404251706e-08 | G80: 1.290394343e-05 | H80: -9.297778962e-07 | J80: -5.650823447e-05 | K80: -0.002434148015 | L80: 9.450203912e-06 | M80: -0.0002275259893 | N80: 1.752375458e-07
A81: 37.55125 | B81: ='DF raw data'!A86 -> 2.8327424e-06 | C81: ='DF raw data'!B86 -> 4.9938762e-06 | D81: ='DF raw data'!C86 -> 3.8507237e-06 | F81: 2.836141691e-06 | G81: 5.011327544e-06 | H81: 3.855344568e-06 | J81: -5.50897382e-05 | K81: -0.002461701147 | L81: 1.195661938e-05 | M81: -0.0002215458861 | N81: 1.768269425e-07
A82: 38.0514 | B82: ='DF raw data'!A87 -> 4.9709283e-06 | C82: ='DF raw data'!B87 -> -8.1426961e-06 | D82: ='DF raw data'!C87 -> 1.1845328e-05 | F82: 4.976893414e-06 | G82: -8.171151149e-06 | H82: 1.185954239e-05 | J82: -5.260054496e-05 | K82: -0.00248800931 | L82: 7.869818136e-06 | M82: -0.0002176097966 | N82: 1.782417425e-07
A83: 38.55155 | B83: ='DF raw data'!A88 -> 2.3550758e-06 | C83: ='DF raw data'!B88 -> -3.904649e-06 | D83: ='DF raw data'!C88 -> 6.130063e-06 | F83: 2.357901891e-06 | G83: -3.918293986e-06 | H83: 6.137419076e-06 | J83: -5.142124033e-05 | K83: -0.002513727643 | L83: 5.910083399e-06 | M83: -0.0002146538684 | N83: 1.795816809e-07
A84: 39.0517 | B84: ='DF raw data'!A89 -> -1.5187895e-06 | C84: ='DF raw data'!B89 -> -5.7619545e-06 | D84: ='DF raw data'!C89 -> -6.0845382e-06 | F84: -1.520612047e-06 | G84: -5.782089931e-06 | H84: -6.091839646e-06 | J84: -5.218177445e-05 | K84: -0.002539826358 | L84: 3.01817112e-06 | M84: -0.0002131443301 | N84: 1.809481141e-07
A85: 39.55185 | B85: ='DF raw data'!A90 -> -3.488042e-06 | C85: ='DF raw data'!B90 -> -2.0576163e-06 | D85: ='DF raw data'!C90 -> -4.8526167e-06 | F85: -3.49222765e-06 | G85: -2.064806741e-06 | H85: -4.85843984e-06 | J85: -5.39284121e-05 | K85: -0.002566798653 | L85: 1.985458028e-06 | M85: -0.0002121513033 | N85: 1.824046588e-07
A86: 40.052 | B86: ='DF raw data'!A91 -> -1.1198924e-06 | C86: ='DF raw data'!B91 -> -1.1385643e-05 | D86: ='DF raw data'!C91 -> -4.124052e-07 | F86: -1.121236271e-06 | G86: -1.142543068e-05 | H86: -4.129000862e-07 | J86: -5.448919843e-05 | K86: -0.002594051426 | L86: -3.728971129e-06 | M86: -0.0002140163482 | N86: 1.838965952e-07
A87: 40.55215 | B87: ='DF raw data'!A92 -> 7.3393426e-07 | C87: ='DF raw data'!B92 -> -2.7306232e-06 | D87: ='DF raw data'!C92 -> 2.1240373e-06 | F87: 7.348149811e-07 | G87: -2.740165496e-06 | H87: 2.126586145e-06 | J87: -5.412168071e-05 | K87: -0.002621120384 | L87: -5.099464901e-06 | M87: -0.0002165668455 | N87: 1.85374619e-07
A88: 41.0523 | B88: ='DF raw data'!A93 -> 1.2101311e-06 | C88: ='DF raw data'!B93 -> 2.1881697e-06 | D88: ='DF raw data'!C93 -> -1.2740096e-06 | F88: 1.211583257e-06 | G88: 2.195816366e-06 | H88: -1.275538412e-06 | J88: -5.351570735e-05 | K88: -0.002647886265 | L88: -4.001227346e-06 | M88: -0.0002185680594 | N88: 1.868150213e-07
A89: 41.55245 | B89: ='DF raw data'!A94 -> -2.8052516e-06 | C89: ='DF raw data'!B94 -> -3.8670223e-06 | D89: ='DF raw data'!C94 -> -5.5993628e-06 | F89: -2.808617902e-06 | G89: -3.880535798e-06 | H89: -5.606082035e-06 | J89: -5.492043759e-05 | K89: -0.002675354722 | L89: -5.942077325e-06 | M89: -0.0002215399894 | N89: 1.883412604e-07
A90: 42.0526 | B90: ='DF raw data'!A95 -> -6.9734874e-06 | C90: ='DF raw data'!B95 -> 4.5626393e-06 | D90: ='DF raw data'!C95 -> -4.6640675e-06 | F90: -6.981855585e-06 | G90: 4.578583666e-06 | H90: -4.669664381e-06 | J90: -5.841241266e-05 | K90: -0.00270456969 | L90: -3.652098705e-06 | M90: -0.0002233665865 | N90: 1.900544481e-07
A91: 42.55275 | B91: ='DF raw data'!A96 -> -6.6917478e-06 | C91: ='DF raw data'!B96 -> 2.1968424e-06 | D91: ='DF raw data'!C96 -> 2.8867469e-06 | F91: -6.699777897e-06 | G91: 2.204519373e-06 | H91: 2.890210996e-06 | J91: -6.176330658e-05 | K91: -0.002735460608 | L91: -2.549508341e-06 | M91: -0.0002246417231 | N91: 1.919656243e-07
A92: 43.0529 | B92: ='DF raw data'!A97 -> -5.8396895e-06 | C92: ='DF raw data'!B97 -> -6.625095e-06 | D92: ='DF raw data'!C97 -> -1.7906524e-07 | F92: -5.846697127e-06 | G92: -6.648246718e-06 | H92: -1.792801183e-07 | J92: -6.468753214e-05 | K92: -0.002767814077 | L92: -5.874628937e-06 | M92: -0.0002275799188 | N92: 1.940757512e-07
A93: 43.55305 | B93: ='DF raw data'!A98 -> -3.9897918e-06 | C93: ='DF raw data'!B98 -> -1.4861481e-06 | D93: ='DF raw data'!C98 -> -3.2876017e-06 | F93: -3.99457955e-06 | G93: -1.491341517e-06 | H93: -3.291546822e-06 | J93: -6.668542111e-05 | K93: -0.002801166791 | L93: -6.620523396e-06 | M93: -0.0002308911736 | N93: 1.963218132e-07
A94: 44.0532 | B94: ='DF raw data'!A99 -> -1.5446337e-06 | C94: ='DF raw data'!B99 -> 5.1026191e-06 | D94: ='DF raw data'!C99 -> 3.1913039e-06 | F94: -1.54648726e-06 | G94: 5.120450451e-06 | H94: 3.195133465e-06 | J94: -6.745889671e-05 | K94: -0.002834906358 | L94: -4.059530103e-06 | M94: -0.0002329215476 | N94: 1.986060895e-07
A95: 44.55335 | B95: ='DF raw data'!A100 -> 2.1501558e-06 | C95: ='DF raw data'!B100 -> 5.7690289e-07 | D95: ='DF raw data'!C100 -> 1.145028e-06 | F95: 2.152735987e-06 | G95: 5.789189053e-07 | H95: 1.146402034e-06 | J95: -6.638220581e-05 | K95: -0.002868107418 | L95: -3.769983813e-06 | M95: -0.000234807105 | N95: 2.008171577e-07
A96: 45.0535 | B96: ='DF raw data'!A101 -> 4.1065882e-06 | C96: ='DF raw data'!B101 -> -3.2597954e-06 | D96: ='DF raw data'!C101 -> -3.1082348e-06 | F96: 4.111516106e-06 | G96: -3.271186914e-06 | H96: -3.111964682e-06 | J96: -6.432583103e-05 | K96: -0.002900279982 | L96: -5.406067948e-06 | M96: -0.0002375109498 | N96: 2.029013018e-07
A97: 45.55365 | B97: ='DF raw data'!A102 -> 9.5461405e-07 | C97: ='DF raw data'!B102 -> -4.8102193e-06 | D97: ='DF raw data'!C102 -> -2.4021031e-06 | F97: 9.557595869e-07 | G97: -4.827028846e-06 | H97: -2.404985624e-06 | J97: -6.384780787e-05 | K97: -0.002932213463 | L97: -7.820306425e-06 | M97: -0.0002414222761 | N97: 2.049707723e-07
A98: 46.0538 | B98: ='DF raw data'!A103 -> -2.6394471e-06 | C98: ='DF raw data'!B103 -> 2.9329601e-06 | D98: ='DF raw data'!C103 -> -2.5515803e-06 | F98: -2.642614437e-06 | G98: 2.943209472e-06 | H98: -2.554642196e-06 | J98: -6.516951148e-05 | K98: -0.002964807995 | L98: -6.348260207e-06 | M98: -0.0002445973584 | N98: 2.071150982e-07
A99: 46.55395 | B99: ='DF raw data'!A104 -> -7.40026e-08 | C99: ='DF raw data'!B104 -> -6.6690478e-07 | D99: ='DF raw data'!C104 -> -1.5703157e-06 | F99: -7.409140312e-08 | G99: -6.692353113e-07 | H99: -1.572200079e-06 | J99: -6.520656829e-05 | K99: -0.00299742106 | L99: -6.682978248e-06 | M99: -0.00024793985 | N99: 2.092640221e-07
A100: 47.0541 | B100: ='DF raw data'!A105 -> 1.189904e-06 | C100: ='DF raw data'!B105 -> 9.9140025e-06 | D100: ='DF raw data'!C105 -> 6.0134003e-06 | F100: 1.191331885e-06 | G100: 9.948647465e-06 | H100: 6.02061638e-06 | J100: -6.461072365e-05 | K100: -0.003029736113 | L100: -1.707162219e-06 | M100: -0.0002487936872 | N100: 2.113533787e-07
A101: 47.55425 | B101: ='DF raw data'!A106 -> -3.0587751e-06 | C101: ='DF raw data'!B106 -> 8.7797389e-06 | D101: ='DF raw data'!C106 -> 1.1093198e-05 | F101: -3.06244563e-06 | G101: 8.810420126e-06 | H101: 1.110650984e-05 | J101: -6.614240583e-05 | K101: -0.003062817238 | L101: 2.699369407e-06 | M101: -0.0002474435976 | N101: 2.135450882e-07
A102: 48.0544 | B102: ='DF raw data'!A107 -> -4.7921262e-06 | C102: ='DF raw data'!B107 -> 3.2739439e-07 | D102: ='DF raw data'!C107 -> 1.2285378e-05 | F102: -4.797876751e-06 | G102: 3.285384857e-07 | H102: 1.230012045e-05 | J102: -6.854206389e-05 | K102: -0.003097098551 | L102: 2.863687931e-06 | M102: -0.0002460113241 | N102: 2.158989018e-07
A103: 48.55455 | B103: ='DF raw data'!A108 -> -3.0717263e-06 | C103: ='DF raw data'!B108 -> 6.9471929e-07 | D103: ='DF raw data'!C108 -> 4.2867136e-06 | F103: -3.075412372e-06 | G103: 6.971470204e-07 | H103: 4.291857656e-06 | J103: -7.008023139e-05 | K103: -0.003132149178 | L103: 3.212366013e-06 | M103: -0.0002444046592 | N103: 2.183604191e-07
A104: 49.0547 | B104: ='DF raw data'!A109 -> -3.735541e-06 | C104: ='DF raw data'!B109 -> -4.3330838e-06 | D104: ='DF raw data'!C109 -> -2.7751414e-06 | F104: -3.740023649e-06 | G104: -4.348225973e-06 | H104: -2.77847157e-06 | J104: -7.195080422e-05 | K104: -0.003168135373 | L104: 1.037600793e-06 | M104: -0.0002438857032 | N104: 2.209501932e-07
A105: 49.55485 | B105: ='DF raw data'!A110 -> -4.618973e-06 | C105: ='DF raw data'!B110 -> -4.0555551e-06 | D105: ='DF raw data'!C110 -> -3.1893035e-06 | F105: -4.624515768e-06 | G105: -4.069727435e-06 | H105: -3.193130664e-06 | J105: -7.426375578e-05 | K105: -0.003205278391 | L105: -9.978733838e-07 | M105: -0.0002443847895 | N105: 2.237090712e-07
A106: 50.055 | B106: ='DF raw data'!A111 -> -2.0874347e-06 | C106: ='DF raw data'!B111 -> -4.2563624e-06 | D106: ='DF raw data'!C111 -> -3.5896994e-06 | F106: -2.089939622e-06 | G106: -4.271236466e-06 | H106: -3.594007039e-06 | J106: -7.530903908e-05 | K106: -0.003242944207 | L106: -3.134132302e-06 | M106: -0.0002459523258 | N106: 2.265505605e-07
A107: 50.55515 | B107: ='DF raw data'!A112 -> 2.1181124e-06 | C107: ='DF raw data'!B112 -> -1.3401788e-06 | D107: ='DF raw data'!C112 -> -7.0343999e-06 | F107: 2.120654135e-06 | G107: -1.34486212e-06 | H107: -7.04284118e-06 | J107: -7.424839391e-05 | K107: -0.003280079541 | L107: -3.806765092e-06 | M107: -0.0002478562794 | N107: 2.293150473e-07
A108: 51.0553 | B108: ='DF raw data'!A113 -> 4.490395e-06 | C108: ='DF raw data'!B113 -> 5.0004141e-06 | D108: ='DF raw data'!C113 -> -1.1567132e-05 | F108: 4.495783474e-06 | G108: 5.017888291e-06 | H108: -1.158101256e-05 | J108: -7.199982781e-05 | K108: -0.003316090255 | L108: -1.297068263e-06 | M108: -0.0002485050081 | N108: 2.31908654e-07
A109: 51.55545 | B109: ='DF raw data'!A114 -> 3.7602815e-06 | C109: ='DF raw data'!B114 -> -4.9137331e-08 | D109: ='DF raw data'!C114 -> -7.0725405e-06 | F109: 3.764793838e-06 | G109: -4.93090438e-08 | H109: -7.081027549e-06 | J109: -7.011686617e-05 | K109: -0.003351159205 | L109: -1.321730181e-06 | M109: -0.0002491660714 | N109: 2.343684526e-07
A110: 52.0556 | B110: ='DF raw data'!A115 -> -1.4970344e-06 | C110: ='DF raw data'!B115 -> -1.4934091e-07 | D110: ='DF raw data'!C115 -> -7.2270673e-06 | F110: -1.498830841e-06 | G110: -1.498627891e-07 | H110: -7.235739781e-06 | J110: -7.086650642e-05 | K110: -0.003386603088 | L110: -1.396684055e-06 | M110: -0.0002498646229 | N110: 2.368812124e-07
A111: 52.55575 | B111: ='DF raw data'!A116 -> -7.6028141e-06 | C111: ='DF raw data'!B116 -> -3.2759959e-07 | D111: ='DF raw data'!C116 -> -9.8161581e-06 | F111: -7.611937477e-06 | G111: -3.287444027e-07 | H111: -9.82793749e-06 | J111: -7.467361695e-05 | K111: -0.003423951098 | L111: -1.561105568e-06 | M111: -0.0002506454099 | N111: 2.396713423e-07
A112: 53.0559 | B112: ='DF raw data'!A117 -> -1.0025883e-05 | C112: ='DF raw data'!B117 -> -2.1119213e-06 | D112: ='DF raw data'!C117 -> -5.376995e-06 | F112: -1.003791406e-05 | G112: -2.119301512e-06 | H112: -5.383447394e-06 | J112: -7.969407966e-05 | K112: -0.003463810092 | L112: -2.621074219e-06 | M112: -0.0002519563402 | N112: 2.428513042e-07
A113: 53.55605 | B113: ='DF raw data'!A118 -> -7.6561473e-06 | C113: ='DF raw data'!B118 -> -3.6065721e-06 | D113: ='DF raw data'!C118 -> 5.2134087e-06 | F113: -7.665334677e-06 | G113: -3.619175442e-06 | H113: 5.21966479e-06 | J113: -8.35278968e-05 | K113: -0.00350558657 | L113: -4.431204817e-06 | M113: -0.0002541726073 | N113: 2.463506262e-07
A114: 54.0562 | B114: ='DF raw data'!A119 -> -2.5043471e-06 | C114: ='DF raw data'!B119 -> -4.3912578e-06 | D114: ='DF raw data'!C119 -> 6.2971189e-06 | F114: -2.507352317e-06 | G114: -4.406603265e-06 | H114: 6.304675443e-06 | J114: -8.478194906e-05 | K114: -0.003547990261 | L114: -6.63516744e-06 | M114: -0.0002574911863 | N114: 2.499677132e-07
A115: 54.55635 | B115: ='DF raw data'!A120 -> 2.0977749e-08 | C115: ='DF raw data'!B120 -> 1.2885442e-07 | D115: ='DF raw data'!C120 -> 2.3397632e-07 | F115: 2.10029223e-08 | G115: 1.293047081e-07 | H115: 2.342570916e-07 | J115: -8.477144445e-05 | K115: -0.003590388699 | L115: -6.57049569e-06 | M115: -0.0002607774197 | N115: 2.535834822e-07
A116: 55.0565 | B116: ='DF raw data'!A121 -> 4.6828295e-06 | C116: ='DF raw data'!B121 -> 1.5522556e-06 | D116: ='DF raw data'!C121 -> -4.4998201e-06 | F116: 4.688448895e-06 | G116: 1.557680033e-06 | H116: -4.505219884e-06 | J116: -8.242651674e-05 | K116: -0.003631614322 | L116: -5.791422021e-06 | M116: -0.0002636739994 | N116: 2.56998342e-07
A117: 55.55665 | B117: ='DF raw data'!A122 -> 8.5019064e-06 | C117: ='DF raw data'!B122 -> -5.8999185e-06 | D117: ='DF raw data'!C122 -> -5.0679268e-06 | F117: 8.512108688e-06 | G117: -5.920536053e-06 | H117: -5.074008312e-06 | J117: -7.816918558e-05 | K117: -0.00367071064 | L117: -8.752578128e-06 | M117: -0.0002680516013 | N117: 2.600927846e-07
A118: 56.0568 | B118: ='DF raw data'!A123 -> 3.2782202e-06 | C118: ='DF raw data'!B123 -> 1.6041589e-06 | D118: ='DF raw data'!C123 -> -4.161066e-06 | F118: 3.282154064e-06 | G118: 1.609764712e-06 | H118: -4.166059279e-06 | J118: -7.652761622e-05 | K118: -0.003708985927 | L118: -7.947454308e-06 | M118: -0.0002720265206 | N118: 2.630534916e-07
A119: 56.55695 | B119: ='DF raw data'!A124 -> -2.4514218e-06 | C119: ='DF raw data'!B124 -> 1.0961139e-05 | D119: ='DF raw data'!C124 -> -1.0699481e-06 | F119: -2.454363506e-06 | G119: 1.099944323e-05 | H119: -1.071232038e-06 | J119: -7.775516613e-05 | K119: -0.003747875173 | L119: -2.446082774e-06 | M119: -0.0002732499289 | N119: 2.66080324e-07
A120: 57.0571 | B120: ='DF raw data'!A125 -> -2.153515e-06 | C120: ='DF raw data'!B125 -> 4.8510532e-07 | D120: ='DF raw data'!C125 -> 2.6522864e-06 | F120: -2.156099218e-06 | G120: 4.868005442e-07 | H120: 2.655469144e-06 | J120: -7.883353915e-05 | K120: -0.003787303768 | L120: -2.202609482e-06 | M120: -0.000274351564 | N120: 2.691910461e-07
A121: 57.55725 | B121: ='DF raw data'!A126 -> -1.3495799e-06 | C121: ='DF raw data'!B126 -> 1.4537865e-06 | D121: ='DF raw data'!C126 -> -6.8260516e-07 | F121: -1.351199396e-06 | G121: 1.458866828e-06 | H121: -6.834242862e-07 | J121: -7.950934153e-05 | K121: -0.003827070365 | L121: -1.472957238e-06 | M121: -0.0002750882636 | N121: 2.723539472e-07
A122: 58.0574 | B122: ='DF raw data'!A127 -> -1.8551425e-06 | C122: ='DF raw data'!B127 -> 1.2148183e-06 | D122: ='DF raw data'!C127 -> -8.1891295e-07 | F122: -1.857368671e-06 | G122: 1.219063542e-06 | H122: -8.198956455e-07 | J122: -8.043830447e-05 | K122: -0.003867301583 | L122: -8.632426073e-07 | M122: -0.0002755200144 | N122: 2.755904508e-07
A123: 58.55755 | B123: ='DF raw data'!A128 -> -5.883549e-06 | C123: ='DF raw data'!B128 -> 3.0414365e-06 | D123: ='DF raw data'!C128 -> 1.2898487e-06 | F123: -5.890609259e-06 | G123: 3.052064948e-06 | H123: 1.291396518e-06 | J123: -8.338449269e-05 | K123: -0.003909006337 | L123: 6.632476765e-07 | M123: -0.0002751882911 | N123: 2.790682006e-07
A124: 59.0577 | B124: ='DF raw data'!A129 -> -7.3091128e-06 | C124: ='DF raw data'!B129 -> -4.7346994e-06 | D124: ='DF raw data'!C129 -> 3.5795864e-07 | F124: -7.317883735e-06 | G124: -4.751245038e-06 | H124: 3.583881904e-07 | J124: -8.704453224e-05 | K124: -0.00395254166 | L124: -1.713087529e-06 | M124: -0.0002760450918 | N124: 2.828591802e-07
A125: 59.55785 | B125: ='DF raw data'!A130 -> -4.838314e-06 | C125: ='DF raw data'!B130 -> -8.5783358e-06 | D125: ='DF raw data'!C130 -> -1.6414953e-07 | F125: -4.844119977e-06 | G125: -8.608313213e-06 | H125: -1.643465094e-07 | J125: -8.946731885e-05 | K125: -0.003997288739 | L125: -6.018535383e-06 | M125: -0.0002790552623 | N125: 2.868806982e-07
A126: 60.058 | B126: ='DF raw data'!A131 -> -5.7051861e-06 | C126: ='DF raw data'!B131 -> 7.2060396e-07 | D126: ='DF raw data'!C131 -> 3.0846131e-08 | F126: -5.712032323e-06 | G126: 7.231221457e-07 | H126: 3.088314636e-08 | J126: -9.232419181e-05 | K126: -0.004043464684 | L126: -5.656865841e-06 | M126: -0.0002818845437 | N126: 2.911598599e-07
A127: 60.55815 | B127: ='DF raw data'!A132 -> -4.9951691e-06 | C127: ='DF raw data'!B132 -> 8.7326389e-06 | D127: ='DF raw data'!C132 -> 1.082935e-06 | F127: -5.001163303e-06 | G127: 8.763155532e-06 | H127: 1.084234522e-06 | J127: -9.482552364e-05 | K127: -0.00409089167 | L127: -1.273973602e-06 | M127: -0.0002825217216 | N127: 2.956579604e-07
A128: 61.0583 | B128: ='DF raw data'!A133 -> 2.353737e-06 | C128: ='DF raw data'!B133 -> -2.8525756e-06 | D128: ='DF raw data'!C133 -> 2.3572463e-06 | F128: 2.356561484e-06 | G128: -2.862544065e-06 | H128: 2.360074996e-06 | J128: -9.364688941e-05 | K128: -0.004137729161 | L128: -2.705675016e-06 | M128: -0.000283874965 | N128: 3.000478072e-07
A129: 61.55845 | B129: ='DF raw data'!A134 -> 6.0211546e-06 | C129: ='DF raw data'!B134 -> 5.2548598e-06 | D129: ='DF raw data'!C134 -> 7.0087804e-06 | F129: 6.028379986e-06 | G129: 5.273223164e-06 | H129: 7.017190936e-06 | J129: -9.063179516e-05 | K129: -0.004183058654 | L129: -6.827245036e-08 | M129: -0.0002839091114 | N129: 3.041561028e-07
A130: 62.0586 | B130: ='DF raw data'!A135 -> -1.6959445e-06 | C130: ='DF raw data'!B135 -> 1.6772768e-06 | D130: ='DF raw data'!C135 -> 5.1599013e-06 | F130: -1.697979633e-06 | G130: 1.683138126e-06 | H130: 5.166093182e-06 | J130: -9.148103968e-05 | K130: -0.004228812896 | L130: 7.735490831e-07 | M130: -0.0002835222209 | N130: 3.083420477e-07
A131: 62.55875 | B131: ='DF raw data'!A136 -> -1.0798313e-05 | C131: ='DF raw data'!B136 -> 1.9022351e-06 | D131: ='DF raw data'!C136 -> -2.0641348e-06 | F131: -1.081127098e-05 | G131: 1.908882553e-06 | H131: -2.066611762e-06 | J131: -9.688829686e-05 | K131: -0.004277271577 | L131: 1.728276692e-06 | M131: -0.0002826578233 | N131: 3.130386208e-07
A132: 63.0589 | B132: ='DF raw data'!A137 -> -6.174369e-06 | C132: ='DF raw data'!B137 -> 3.5181159e-07 | D132: ='DF raw data'!C137 -> -3.6624299e-06 | F132: -6.181778243e-06 | G132: 3.530410128e-07 | H132: -3.666824816e-06 | J132: -9.998011324e-05 | K132: -0.004327276631 | L132: 1.904850155e-06 | M132: -0.0002817051125 | N132: 3.180399465e-07
A133: 63.55905 | B133: ='DF raw data'!A138 -> 2.5159472e-06 | C133: ='DF raw data'!B138 -> -4.926701e-06 | D133: ='DF raw data'!C138 -> 3.7816314e-06 | F133: 2.518966337e-06 | G133: -4.943917597e-06 | H133: 3.786169358e-06 | J133: -9.872025223e-05 | K133: -0.004376651565 | L133: -5.678502314e-07 | M133: -0.0002819891228 | N133: 3.229144137e-07
A134: 64.0592 | B134: ='DF raw data'!A139 -> 4.2966217e-06 | C134: ='DF raw data'!B139 -> -2.818952e-06 | D134: ='DF raw data'!C139 -> 6.0987763e-06 | F134: 4.301777646e-06 | G134: -2.828802965e-06 | H134: 6.106094832e-06 | J134: -9.656871814e-05 | K134: -0.00442495041 | L134: -1.982676034e-06 | M134: -0.0002829807582 | N134: 3.275805373e-07
A135: 64.55935 | B135: ='DF raw data'!A140 -> 9.1669176e-07 | C135: ='DF raw data'!B140 -> 2.3654943e-06 | D135: ='DF raw data'!C140 -> -1.1263575e-07 | F135: 9.177917901e-07 | G135: =(1-$G$1*($B$2-$G$2))*C135*$M$2/$M$1 -> 2.373760635e-06 | H135: -1.127709129e-07 | J135: -9.610968458e-05 | K135: -0.004473019668 | L135: -7.954396527e-07 | M135: -0.0002833785973 | N135: 3.32200775e-07
A136: =A135+$B$1 -> 65.0595 | B136: ='DF raw data'!A141 -> 2.7978324e-06 | C136: ='DF raw data'!B141 -> 8.370117e-06 | D136: ='DF raw data'!C141 -> -7.6067619e-07 | F136: 2.801189799e-06 | G136: 8.399366782e-06 | H136: -7.615890014e-07 | J136: =F136*$B$1+J135 -> -9.47086695e-05 | K136: =J136*$B$1+K135 -> -0.004520388209 | L136: =G136*$B$1+L135 -> 3.405503643e-06 | M136: =L136*$B$1+M135 -> -0.0002816753347 | N136: =(J136^2+L136^2)*$B$1+N135 -> 3.36692787e-07
A137: 65.55965 | B137: ='DF raw data'!A142 -> 5.7522207e-06 | C137: ='DF raw data'!B142 -> 1.3439996e-08 | D137: ='DF raw data'!C142 -> 2.7206368e-06 | F137: 5.759123365e-06 | G137: 1.348696272e-08 | H137: 2.723901564e-06 | J137: -9.182824395e-05 | K137: -0.004566316106 | L137: 3.412249148e-06 | M137: -0.0002799686983 | N137: 3.409160885e-07
A138: 66.0598 | B138: ='DF raw data'!A143 -> 4.0871614e-06 | C138: ='DF raw data'!B143 -> -4.9731334e-06 | D138: ='DF raw data'!C143 -> 4.5203883e-06 | F138: 4.092065994e-06 | G138: -4.990512257e-06 | H138: 4.525812766e-06 | J138: -8.978159714e-05 | K138: -0.004611220371 | L138: 9.162444423e-07 | M138: -0.0002795104386 | N138: 3.449480851e-07
A139: 66.55995 | B139: ='DF raw data'!A144 -> -4.1882478e-07 | C139: ='DF raw data'!B144 -> -6.527026e-06 | D139: ='DF raw data'!C144 -> 5.0912163e-06 | F139: =(1-$G$1*($B$2-$G$2))*B139 -> -4.193273697e-07 | G139: -6.549835011e-06 | H139: =(1-$G$1*($B$2-$G$2))*D139 -> 5.09732576e-06 | J139: -8.999132373e-05 | K139: -0.004656229532 | L139: -2.359655538e-06 | M139: -0.0002806906203 | N139: 3.490013039e-07
A140: 67.0601 | B140: ='DF raw data'!A145 -> -4.5855151e-07 | C140: ='DF raw data'!B145 -> 5.1676867e-09 | D140: ='DF raw data'!C145 -> 3.8487301e-06 | F140: -4.591017718e-07 | G140: 5.185745433e-09 | H140: 3.853348576e-06 | J140: -9.022094348e-05 | K140: -0.004701353537 | L140: -2.357061888e-06 | M140: -0.0002818695048 | N140: 3.530752129e-07
A141: 67.56025 | B141: ='DF raw data'!A146 -> 6.1145488e-06 | C141: ='DF raw data'!B146 -> 1.7849526e-06 | D141: ='DF raw data'!C146 -> 5.7816465e-06 | F141: 6.121886259e-06 | G141: 1.791190204e-06 | H141: 5.788584476e-06 | J141: -8.715908207e-05 | K141: -0.004744946152 | L141: -1.461198107e-06 | M141: -0.0002826003231 | N141: 3.56875773e-07
A142: 68.0604 | B142: ='DF raw data'!A147 -> 7.5353687e-06 | C142: ='DF raw data'!B147 -> 2.2384718e-06 | D142: ='DF raw data'!C147 -> 2.8458269e-06 | F142: 7.544411142e-06 | G142: 2.246294249e-06 | H142: 2.849241892e-06 | J142: -8.338574483e-05 | K142: -0.004786651532 | L142: -3.377140387e-07 | M142: -0.0002827692308 | N142: 3.603534643e-07
A143: 68.56055 | B143: ='DF raw data'!A148 -> 8.9313221e-07 | C143: ='DF raw data'!B148 -> 1.5793413e-06 | D143: ='DF raw data'!C148 -> -1.4938454e-06 | F143: 8.942039687e-07 | G143: 1.584860385e-06 | H143: -1.495638014e-06 | J143: -8.293850872e-05 | K143: -0.004828133227 | L143: 4.54953883e-07 | M143: -0.0002825416856 | N143: 3.637939977e-07
A144: 69.0607 | B144: ='DF raw data'!A149 -> -4.499429e-06 | C144: ='DF raw data'!B149 -> 3.0714575e-06 | D144: ='DF raw data'!C149 -> -5.2560455e-07 | F144: -4.504828315e-06 | G144: 3.082190858e-06 | H144: -5.262352755e-07 | J144: -8.51915986e-05 | K144: -0.004870741805 | L144: 1.996511641e-06 | M144: -0.0002815431303 | N144: 3.674258842e-07
A145: 69.56085 | B145: ='DF raw data'!A150 -> -4.9613941e-06 | C145: ='DF raw data'!B150 -> 1.9098406e-06 | D145: ='DF raw data'!C150 -> -5.2336441e-06 | F145: -4.967347773e-06 | G145: 1.916514631e-06 | H145: -5.239924473e-06 | J145: -8.767601759e-05 | K145: -0.004914592965 | L145: 2.955056433e-06 | M145: -0.0002800651588 | N145: 3.712749468e-07
A146: 70.061 | B146: ='DF raw data'!A151 -> -6.0948719e-06 | C146: ='DF raw data'!B151 -> 3.1796669e-06 | D146: ='DF raw data'!C151 -> -8.8768174e-06 | F146: -6.102185746e-06 | G146: 3.190778401e-06 | H146: -8.887469581e-06 | J146: -9.072802579e-05 | K146: -0.004959970587 | L146: 4.550924251e-06 | M146: -0.000277789014 | N146: 3.754023274e-07
A147: 70.56115 | B147: ='DF raw data'!A152 -> -8.2391989e-06 | C147: ='DF raw data'!B152 -> -5.7830954e-07 | D147: ='DF raw data'!C152 -> -7.6111505e-06 | F147: -8.249085939e-06 | G147: -5.803304709e-07 | H147: -7.620283881e-06 | J147: -9.485380612e-05 | K147: -0.005007411719 | L147: 4.260671966e-06 | M147: -0.0002756580389 | N147: 3.799113787e-07
A148: 71.0613 | B148: ='DF raw data'!A153 -> -7.0260198e-06 | C148: ='DF raw data'!B153 -> 2.9109447e-06 | D148: ='DF raw data'!C153 -> -3.9573392e-06 | F148: -7.034451024e-06 | G148: 2.921117138e-06 | H148: -3.962088007e-06 | J148: -9.83720868e-05 | K148: -0.005056612518 | L148: 5.721668702e-06 | M148: -0.0002727963463 | N148: 3.847677376e-07
A149: 71.56145 | B149: ='DF raw data'!A154 -> -5.2307937e-06 | C149: ='DF raw data'!B154 -> -1.1020112e-06 | D149: ='DF raw data'!C154 -> -7.0345309e-06 | F149: -5.237070652e-06 | G149: -1.105862232e-06 | H149: -7.042972337e-06 | J149: -0.0001009914077 | K149: -0.00510712337 | L149: 5.168571707e-06 | M149: -0.0002702112852 | N149: 3.898822608e-07
A150: 72.0616 | B150: ='DF raw data'!A155 -> -1.6306647e-06 | C150: ='DF raw data'!B155 -> 7.0816109e-06 | D150: ='DF raw data'!C155 -> -6.3200755e-06 | F150: -1.632621498e-06 | G150: 7.106357935e-06 | H150: -6.327659591e-06 | J150: -0.0001018079633 | K150: -0.005158042623 | L150: 8.722816628e-06 | M150: -0.0002658485685 | N150: 3.951043014e-07
A151: 72.56175 | B151: ='DF raw data'!A156 -> 3.2415057e-06 | C151: ='DF raw data'!B156 -> 1.3615673e-05 | D151: ='DF raw data'!C156 -> -1.9296315e-06 | F151: 3.245395507e-06 | G151: 1.366325363e-05 | H151: -1.931947058e-06 | J151: -0.0001001847788 | K151: -0.00520815004 | L151: 1.555649293e-05 | M151: -0.0002580679885 | N151: 4.002453405e-07
A152: 73.0619 | B152: ='DF raw data'!A157 -> 1.0172892e-06 | C152: ='DF raw data'!B157 -> 4.9539813e-06 | D152: ='DF raw data'!C157 -> 9.2380986e-07 | F152: 1.018509947e-06 | G152: 4.971293229e-06 | H152: 9.249184318e-07 | J152: -9.967537102e-05 | K152: -0.005258002677 | L152: 1.804288524e-05 | M152: -0.0002490438395 | N152: 4.053772422e-07
A153: 73.56205 | B153: ='DF raw data'!A158 -> -1.6147158e-06 | C153: ='DF raw data'!B158 -> -7.071676e-06 | D153: ='DF raw data'!C158 -> 5.239835e-06 | F153: -1.616653459e-06 | G153: -7.096388317e-06 | H153: 5.246122802e-06 | J153: -0.0001004839402 | K153: -0.00530825972 | L153: 1.449362662e-05 | M153: -0.0002417948521 | N153: 4.10532332e-07
A154: 74.0622 | B154: ='DF raw data'!A159 -> -1.5577741e-06 | C154: ='DF raw data'!B159 -> -7.4164518e-06 | D154: ='DF raw data'!C159 -> 3.6921808e-06 | F154: -1.559643429e-06 | G154: -7.442368952e-06 | H154: 3.696611417e-06 | J154: -0.0001012639959 | K154: -0.005358906907 | L154: 1.077132579e-05 | M154: -0.0002364075735 | N154: 4.157190967e-07
A155: 74.56235 | B155: ='DF raw data'!A160 -> -4.0129585e-06 | C155: ='DF raw data'!B160 -> 8.0426292e-07 | D155: ='DF raw data'!C160 -> -4.1204662e-06 | F155: -4.01777405e-06 | G155: 8.07073456e-07 | H155: -4.125410759e-06 | J155: -0.0001032734856 | K155: -0.005410559141 | L155: 1.117498358e-05 | M155: -0.0002308184055 | N155: 4.211158618e-07
A156: 75.0625 | B156: ='DF raw data'!A161 -> -4.8525894e-06 | C156: ='DF raw data'!B161 -> 2.9056075e-06 | D156: ='DF raw data'!C161 -> -5.4842135e-06 | F156: -4.858412507e-06 | G156: 2.915761287e-06 | H156: -5.490794556e-06 | J156: -0.0001057034206 | K156: -0.005463426707 | L156: 1.263330159e-05 | M156: -0.0002244998597 | N156: 4.267839685e-07
A157: 75.56265 | B157: ='DF raw data'!A162 -> -3.1805891e-06 | C157: ='DF raw data'!B162 -> 1.0487072e-05 | D157: ='DF raw data'!C162 -> 6.8268463e-07 | F157: -3.184405807e-06 | G157: 1.052371958e-05 | H157: 6.835038516e-07 | J157: -0.0001072961012 | K157: -0.005517090852 | L157: 1.789673994e-05 | M157: -0.0002155488052 | N157: 4.327021167e-07
A158: 76.0628 | B158: ='DF raw data'!A163 -> -1.9038769e-06 | C158: ='DF raw data'!B163 -> 1.1428935e-05 | D158: ='DF raw data'!C163 -> 3.736375e-06 | F158: -1.906161552e-06 | G158: 1.146887397e-05 | H158: 3.74085865e-06 | J158: -0.0001082494679 | K158: -0.005571231823 | L158: 2.363289726e-05 | M158: -0.0002037288117 | N158: 4.388421887e-07
A159: 76.56295 | B159: ='DF raw data'!A164 -> 3.6206413e-06 | C159: ='DF raw data'!B164 -> 7.0789424e-06 | D159: ='DF raw data'!C164 -> -8.0220735e-07 | F159: 3.62498607e-06 | G159: 7.103680109e-06 | H159: -8.031699988e-07 | J159: -0.0001064364311 | K159: -0.005624466004 | L159: 2.718580286e-05 | M159: -0.0001901318323 | N159: 4.448778898e-07
A160: 77.0631 | B160: ='DF raw data'!A165 -> 8.3826826e-06 | C160: ='DF raw data'!B165 -> 2.5939216e-06 | D160: ='DF raw data'!C165 -> 1.9796033e-07 | F160: 8.392741819e-06 | G160: 2.602986186e-06 | H160: 1.981978824e-07 | J160: -0.0001022388013 | K160: -0.005675600741 | L160: 2.84876864e-05 | M160: -0.000175883716 | N160: 4.505117398e-07
A161: 77.56325 | B161: ='DF raw data'!A166 -> 4.1589169e-06 | C161: ='DF raw data'!B166 -> 7.2198418e-06 | D161: ='DF raw data'!C166 -> 4.6102318e-06 | F161: 4.1639076e-06 | G161: 7.245071889e-06 | H161: 4.615764078e-06 | J161: -0.0001001562229 | K161: -0.005725693876 | L161: 3.211130911e-05 | M161: -0.0001598232447 | N161: 4.560446017e-07
A162: 78.0634 | B162: ='DF raw data'!A167 -> 7.71842e-07 | C162: ='DF raw data'!B167 -> 1.5341953e-05 | D162: ='DF raw data'!C167 -> 2.3883292e-06 | F162: 7.727682104e-07 | G162: 1.53955662e-05 | H162: 2.391195195e-06 | J162: -9.976972287e-05 | K162: -0.005775593703 | L162: 3.981140155e-05 | M162: -0.0001399115723 | N162: 4.618158052e-07
A163: 78.56355 | B163: ='DF raw data'!A168 -> -1.4689347e-06 | C163: ='DF raw data'!B168 -> 4.2577585e-06 | D163: ='DF raw data'!C168 -> 6.1297283e-06 | F163: -1.470697422e-06 | G163: 4.272637445e-06 | H163: 6.137083974e-06 | J163: -0.0001005052922 | K163: -0.005825861425 | L163: 4.194836116e-05 | M163: -0.0001189310994 | N163: 4.677480737e-07
A164: 79.0637 | B164: ='DF raw data'!A169 -> -2.0126088e-06 | C164: ='DF raw data'!B169 -> 2.3118566e-06 | D164: ='DF raw data'!C169 -> 4.9624318e-06 | F164: -2.015023931e-06 | G164: 2.319935496e-06 | H164: 4.968386718e-06 | J164: -0.0001015131064 | K164: -0.005876633205 | L164: 4.31086769e-05 | M164: -9.737029467e-05 | N164: 4.738315326e-07
A165: 79.56385 | B165: ='DF raw data'!A170 -> 1.2060566e-06 | C165: ='DF raw data'!B170 -> 6.8694617e-06 | D165: ='DF raw data'!C170 -> -1.8633476e-06 | F165: 1.207503868e-06 | G165: 6.893467369e-06 | H165: -1.865583617e-06 | J165: -0.0001009091733 | K165: -0.005927102928 | L165: 4.655644461e-05 | M165: -7.40850889e-05 | N165: 4.80008467e-07
A166: 80.064 | B166: ='DF raw data'!A171 -> 1.4068294e-06 | C166: ='DF raw data'!B171 -> 3.7224486e-06 | D166: ='DF raw data'!C171 -> 2.3682912e-06 | F166: 1.408517595e-06 | G166: 3.735456878e-06 | H166: 2.371133149e-06 | J166: -0.0001002047033 | K166: -0.00597722031 | L166: 4.842473336e-05 | M166: -4.986545851e-05 | N166: 4.862032936e-07
A167: 80.56415 | B167: ='DF raw data'!A172 -> 1.3510373e-06 | C167: ='DF raw data'!B172 -> 6.8186259e-06 | D167: ='DF raw data'!C172 -> 4.3528084e-06 | F167: 1.352658545e-06 | G167: 6.842453921e-06 | H167: 4.35803177e-06 | J167: -9.952817109e-05 | K167: -0.006026999325 | L167: 5.184698669e-05 | M167: -2.393418811e-05 | N167: 4.925021661e-07
A168: 81.0643 | B168: ='DF raw data'!A173 -> 2.5086713e-06 | C168: ='DF raw data'!B173 -> -8.5029178e-08 | D168: ='DF raw data'!C173 -> 9.81017e-06 | F168: 2.511681706e-06 | G168: -8.532631661e-08 | H168: 9.821942204e-06 | J168: -9.827195349e-05 | K168: -0.006076150042 | L168: 5.180431074e-05 | M168: 1.975737899e-06 | N168: 4.98674549e-07
A169: 81.56445 | B169: ='DF raw data'!A174 -> -1.1974687e-06 | C169: ='DF raw data'!B174 -> 2.7850485e-08 | D169: ='DF raw data'!C174 -> 1.0650689e-05 | F169: -1.198905662e-06 | G169: 2.794780988e-08 | H169: 1.066346983e-05 | J169: -9.887158616e-05 | K169: -0.006125600666 | L169: 5.181828883e-05 | M169: 2.789265506e-05 | N169: 5.049067809e-07
A170: 82.0646 | B170: ='DF raw data'!A175 -> -5.6052581e-06 | C170: ='DF raw data'!B175 -> -3.502766e-06 | D170: ='DF raw data'!C175 -> 4.2986899e-06 | F170: -5.61198441e-06 | G170: -3.515006587e-06 | H170: 4.303848328e-06 | J170: -0.0001016784202 | K170: -0.006176455128 | L170: 5.006025829e-05 | M170: 5.293029324e-05 | N170: 5.113309729e-07
A171: 82.56475 | B171: ='DF raw data'!A176 -> -5.1504962e-06 | C171: ='DF raw data'!B176 -> -2.4729752e-06 | D171: ='DF raw data'!C176 -> 4.5420501e-07 | F171: -5.156676795e-06 | G171: -2.481617132e-06 | H171: 4.54750056e-07 | J171: -0.0001042575321 | K171: -0.006228599533 | L171: 4.881907748e-05 | M171: 7.734715484e-05 | N171: 5.179594285e-07
A172: 83.0649 | B172: ='DF raw data'!A177 -> -1.8678318e-06 | C172: ='DF raw data'!B177 -> 3.702301e-06 | D172: ='DF raw data'!C177 -> -8.7029576e-07 | F172: -1.870073198e-06 | G172: 3.715238871e-06 | H172: -8.713401149e-07 | J172: -0.0001051928492 | K172: -0.006281211736 | L172: 5.06772542e-05 | M172: 0.0001026933835 | N172: 5.247783334e-07
A173: 83.56505 | B173: ='DF raw data'!A178 -> 1.5900671e-06 | C173: ='DF raw data'!B178 -> -1.6235778e-06 | D173: ='DF raw data'!C178 -> 1.2959023e-06 | F173: 1.591975181e-06 | G173: -1.629251472e-06 | H173: 1.297457383e-06 | J173: -0.0001043966228 | K173: -0.006333425707 | L173: 4.986238408e-05 | M173: 0.0001276320549 | N173: 5.314727972e-07
A174: 84.0652 | B174: ='DF raw data'!A179 -> 2.6920254e-06 | C174: ='DF raw data'!B179 -> 2.3590899e-06 | D174: ='DF raw data'!C179 -> 3.2439527e-06 | F174: 2.69525583e-06 | G174: 2.367333855e-06 | H174: 3.247845443e-06 | J174: -0.0001030485906 | K174: -0.00638496546 | L174: 5.10464061e-05 | M174: 0.0001531629149 | N174: 5.380871547e-07
A175: 84.56535 | B175: ='DF raw data'!A180 -> 2.3654222e-06 | C175: ='DF raw data'!B180 -> 1.3165658e-07 | D175: ='DF raw data'!C180 -> 3.2752248e-06 | F175: 2.368260707e-06 | G175: 1.321166603e-07 | H175: 3.27915507e-06 | J175: -0.000101864105 | K175: -0.006435912792 | L175: 5.111248425e-05 | M175: 0.0001787268239 | N175: 5.44583494e-07
A176: 85.0655 | B176: ='DF raw data'!A181 -> 2.695969e-06 | C176: ='DF raw data'!B181 -> 1.6509917e-06 | D176: ='DF raw data'!C181 -> 3.6372182e-06 | F176: 2.699204163e-06 | G176: 1.656761171e-06 | H176: 3.641582862e-06 | J176: -0.000100514098 | K176: -0.006486184918 | L176: 5.194111335e-05 | M176: 0.0002047051718 | N176: 5.509858957e-07
A177: 85.56565 | B177: ='DF raw data'!A182 -> 7.3413798e-07 | C177: ='DF raw data'!B182 -> 1.1573704e-05 | D177: ='DF raw data'!C182 -> 5.6276435e-06 | F177: 7.350189456e-07 | G177: 1.161414887e-05 | H177: 5.634396672e-06 | J177: -0.0001001464783 | K177: -0.006536273179 | L177: 5.774992991e-05 | M177: 0.0002335887992 | N177: 5.576700861e-07
A178: 86.0658 | B178: ='DF raw data'!A183 -> -3.9806532e-06 | C178: ='DF raw data'!B183 -> 1.9541385e-06 | D178: ='DF raw data'!C183 -> 8.0124846e-06 | F178: -3.985429984e-06 | G178: 1.960967332e-06 | H178: 8.022099582e-06 | J178: -0.0001021397911 | K178: -0.006587358396 | L178: 5.873070772e-05 | M178: 0.0002629629627 | N178: 5.646130849e-07
A179: 86.56595 | B179: ='DF raw data'!A184 -> -5.4793113e-06 | C179: ='DF raw data'!B184 -> -4.8691936e-06 | D179: ='DF raw data'!C184 -> 4.5385491e-06 | F179: -5.485886474e-06 | G179: -4.886209234e-06 | H179: 4.543995359e-06 | J179: -0.0001048835572 | K179: -0.006639815907 | L179: 5.628687017e-05 | M179: 0.0002911148408 | N179: 5.716995964e-07
A180: 87.0661 | B180: ='DF raw data'!A185 -> -2.1993098e-06 | C180: ='DF raw data'!B185 -> 4.8752595e-06 | D180: ='DF raw data'!C185 -> -2.3891955e-06 | F180: -2.201948972e-06 | G180: 4.892296332e-06 | H180: -2.392062535e-06 | J180: -0.000105984862 | K180: -0.006692824235 | L180: 5.873375218e-05 | M180: 0.000320490527 | N180: 5.790430211e-07
A181: 87.56625 | B181: ='DF raw data'!A186 -> 5.1198845e-07 | C181: ='DF raw data'!B186 -> 2.4045885e-06 | D181: ='DF raw data'!C186 -> -3.9718475e-06 | F181: 5.126028361e-07 | G181: 2.412991452e-06 | H181: -3.976613717e-06 | J181: -0.0001057284837 | K181: -0.006745704337 | L181: 5.994060986e-05 | M181: 0.000350469823 | N181: 5.864309313e-07
A182: 88.0664 | B182: ='DF raw data'!A187 -> -2.4266544e-06 | C182: ='DF raw data'!B187 -> 3.3807416e-06 | D182: ='DF raw data'!C187 -> -5.764949e-06 | F182: -2.429566385e-06 | G182: 3.392555766e-06 | H182: -5.771866939e-06 | J182: -0.0001069436313 | K182: -0.006799192194 | L182: 6.163739663e-05 | M182: 0.0003812977669 | N182: 5.940512711e-07
A183: 88.56655 | B183: ='DF raw data'!A188 -> -1.6245237e-06 | C183: ='DF raw data'!B188 -> -3.8376684e-06 | D183: ='DF raw data'!C188 -> -1.0178544e-05 | F183: -1.626473128e-06 | G183: -3.851079319e-06 | H183: -1.019075825e-05 | J183: -0.0001077571119 | K183: -0.006853086913 | L183: 5.97112793e-05 | M183: 0.0004111623633 | N183: 6.016420637e-07
A184: 89.0667 | B184: ='DF raw data'!A189 -> 3.4877532e-06 | C184: ='DF raw data'!B189 -> -8.9800102e-07 | D184: ='DF raw data'!C189 -> -1.0325432e-05 | F184: 3.491938504e-06 | G184: -9.011391284e-07 | H184: -1.033782252e-05 | J184: -0.0001060106188 | K184: -0.006906108124 | L184: 5.926057457e-05 | M184: 0.0004408015396 | N184: 6.090193097e-07
A185: 89.56685 | B185: ='DF raw data'!A190 -> 7.3536153e-06 | C185: ='DF raw data'!B190 -> 3.3966938e-07 | D185: ='DF raw data'!C190 -> -6.3703815e-06 | F185: 7.362439638e-06 | G185: 3.408563712e-07 | H185: -6.378025958e-06 | J185: -0.0001023282946 | K185: -0.006957287621 | L185: 5.943105388e-05 | M185: 0.0004705259812 | N185: 6.160229752e-07
A186: 90.067 | B186: ='DF raw data'!A191 -> 8.898126e-06 | C186: ='DF raw data'!B191 -> -1.0960067e-06 | D186: ='DF raw data'!C191 -> -4.0365308e-06 | F186: 8.908803751e-06 | G186: -1.099836749e-06 | H186: -4.041374637e-06 | J186: -9.787255643e-05 | K186: -0.00700623858 | L186: 5.888097053e-05 | M186: 0.0004999752986 | N186: 6.225479351e-07
A187: 90.56715 | B187: ='DF raw data'!A192 -> 5.7817319e-06 | C187: ='DF raw data'!B192 -> 3.207153e-06 | D187: ='DF raw data'!C192 -> -9.6892363e-06 | F187: 5.788669978e-06 | G187: 3.218360553e-06 | H187: -9.700863384e-06 | J187: -9.497735314e-05 | K187: -0.007053741503 | L187: 6.049063356e-05 | M187: 0.000530229689 | N187: 6.288897443e-07
A188: 91.0673 | B188: ='DF raw data'!A193 -> 1.0263695e-06 | C188: ='DF raw data'!B193 -> 3.40676e-06 | D188: ='DF raw data'!C193 -> -1.1590284e-05 | F188: 1.027601143e-06 | G188: 3.418665089e-06 | H188: -1.160419234e-05 | J188: -9.446339843e-05 | K188: -0.007100987372 | L188: 6.220047891e-05 | M188: 0.0005613392585 | N188: 6.352877797e-07
A189: 91.56745 | B189: ='DF raw data'!A194 -> 4.8783227e-07 | C189: ='DF raw data'!B194 -> 1.5623886e-05 | D189: ='DF raw data'!C194 -> -2.2200732e-06 | F189: 4.884176687e-07 | G189: 1.567848443e-05 | H189: -2.222737288e-06 | J189: -9.421911633e-05 | K189: -0.007148111063 | L189: 7.00420729e-05 | M189: 0.0005963708013 | N189: 6.421814141e-07
A190: 92.0676 | B190: ='DF raw data'!A195 -> -2.4383978e-06 | C190: ='DF raw data'!B195 -> 5.517044e-06 | D190: ='DF raw data'!C195 -> 4.650235e-06 | F190: -2.441323877e-06 | G190: 5.536323579e-06 | H190: 4.655815282e-06 | J190: -9.544014447e-05 | K190: -0.007195845451 | L190: 7.281106513e-05 | M190: 0.0006327872555 | N190: 6.493887118e-07
A191: 92.56775 | B191: ='DF raw data'!A196 -> -6.0409425e-06 | C191: ='DF raw data'!B196 -> -1.1397785e-05 | D191: ='DF raw data'!C196 -> 4.1534763e-06 | F191: -6.048191631e-06 | G191: -1.143761512e-05 | H191: 4.158460472e-06 | J191: -9.846514752e-05 | K191: -0.007245092795 | L191: 6.709054193e-05 | M191: 0.0006663425901 | N191: 6.564891044e-07
A192: 93.0679 | B192: ='DF raw data'!A197 -> -4.1726803e-06 | C192: ='DF raw data'!B197 -> -1.189139e-06 | D192: ='DF raw data'!C197 -> 3.8486573e-06 | F192: -4.177687516e-06 | G192: -1.193294504e-06 | H192: 3.853275689e-06 | J192: -0.0001005546179 | K192: -0.007295385187 | L192: 6.649371569e-05 | M192: 0.000699599422 | N192: 6.63757607e-07
A193: 93.56805 | B193: ='DF raw data'!A198 -> -6.0070947e-06 | C193: ='DF raw data'!B198 -> 1.4347121e-05 | D193: ='DF raw data'!C198 -> 3.2362984e-06 | F193: -6.014303214e-06 | G193: 1.439725771e-05 | H193: 3.240181958e-06 | J193: -0.0001035626717 | K193: -0.007347182057 | L193: 7.369450413e-05 | M193: 0.0007364577282 | N193: 6.718380838e-07
A194: 94.0682 | B194: ='DF raw data'!A199 -> -4.8503339e-06 | C194: ='DF raw data'!B199 -> 8.1202079e-06 | D194: ='DF raw data'!C199 -> 4.2955612e-06 | F194: -4.856154301e-06 | G194: 8.148584362e-06 | H194: 4.300715873e-06 | J194: -0.0001059914773 | K194: -0.007400193694 | L194: 7.77700186e-05 | M194: 0.000775354403 | N194: 6.804818607e-07
A195: 94.56835 | B195: ='DF raw data'!A200 -> 4.3933337e-06 | C195: ='DF raw data'!B200 -> 3.4397165e-06 | D195: ='DF raw data'!C200 -> 6.6967727e-06 | F195: 4.3986057e-06 | G195: 3.451736757e-06 | H195: 6.704808827e-06 | J195: -0.0001037915146 | K195: -0.00745210502 | L195: 7.949640474e-05 | M195: 0.0008151145298 | N195: 6.89030603e-07
A196: 95.0685 | B196: ='DF raw data'!A201 -> 8.6261944e-06 | C196: ='DF raw data'!B201 -> 6.7796655e-06 | D196: ='DF raw data'!C201 -> 5.3182989e-06 | F196: 8.636545833e-06 | G196: 6.803357372e-06 | H196: 5.324680859e-06 | J196: -9.947194621e-05 | K196: -0.007501855914 | L196: 8.289910393e-05 | M196: 0.0008565765167 | N196: 6.974165828e-07
A197: 95.56865 | B197: ='DF raw data'!A202 -> 7.0495676e-06 | C197: ='DF raw data'!B202 -> 1.7385199e-06 | D197: ='DF raw data'!C202 -> 2.8063475e-06 | F197: 7.058027081e-06 | G197: 1.744595243e-06 | H197: 2.809715117e-06 | J197: -9.594187397e-05 | K197: -0.007549841243 | L197: 8.377166324e-05 | M197: 0.000898474914 | N197: 7.055302836e-07
A198: 96.0688 | B198: ='DF raw data'!A203 -> 6.7806336e-06 | C198: ='DF raw data'!B203 -> 6.8794689e-06 | D198: ='DF raw data'!C203 -> 2.1187113e-06 | F198: 6.78877036e-06 | G198: 6.90350954e-06 | H198: 2.121253754e-06 | J198: -9.254647047e-05 | K198: -0.00759612836 | L198: 8.722445354e-05 | M198: 0.0009421002245 | N198: 7.136191867e-07
A199: 96.56895 | B199: ='DF raw data'!A204 -> 5.3505296e-06 | C199: ='DF raw data'!B204 -> 2.6110004e-06 | D199: ='DF raw data'!C204 -> 2.4576836e-06 | F199: 5.356950236e-06 | G199: =(1-$G$1*($B$2-$G$2))*C199*$M$2/$M$1 -> 2.620124668e-06 | H199: 2.46063282e-06 | J199: -8.986719181e-05 | K199: -0.007641075436 | L199: 8.853490889e-05 | M199: 0.0009863809592 | N199: 7.21578845e-07
A200: =A199+$B$1 -> 97.0691 | B200: ='DF raw data'!A205 -> 2.1289245e-06 | C200: ='DF raw data'!B205 -> 5.192549e-06 | D200: ='DF raw data'!C205 -> 5.255682e-06 | F200: 2.131479209e-06 | G200: 5.210694616e-06 | H200: 5.261988818e-06 | J200: =F200*$B$1+J199 -> -8.880113249e-05 | K200: =J200*$B$1+K199 -> -0.007685489322 | L200: =G200*$B$1+L199 -> 9.11410378e-05 | M200: =L200*$B$1+M199 -> 0.001031965149 | N200: =(J200^2+L200^2)*$B$1+N199 -> 7.296774389e-07
A201: 97.56925 | B201: ='DF raw data'!A206 -> 5.0215835e-06 | C201: ='DF raw data'!B206 -> 7.1922223e-06 | D201: ='DF raw data'!C206 -> 3.8448011e-06 | F201: 5.0276094e-06 | G201: 7.217355872e-06 | H201: 3.849414861e-06 | J201: -8.628657364e-05 | K201: -0.007728645552 | L201: 9.475079834e-05 | M201: 0.001079354761 | N201: 7.378914456e-07
... 1002 more rows

Sheet 10 x=-1
A1: dz | B1: ='DF raw data'!E7 -> 0.50015 | C1: mm | F1: T_coeff | G1: -0.0008 | H1: /degC | L1: Hallref | M1: ='PI vs gap'!B44 -> 0.50528 | N1: T | P1: IBy total | Q1: =L1203*1000 -> -6.377501128 | R1: muTm | X1: DF ref | Y1: 19
A2: Tref | B2: ='DF raw data'!E8 -> 21.56 | C2: degC | F2: Tcorr | G2: 20 | H2: degC | L2: NMRref | M2: ='PI vs gap'!B45 -> 0.506438 | N2: T | P2: JBy total | Q2: =M1203 -> -2.213348731 | R2: muTm^2
A3: Encoder | B3: ='DF raw data'!E9 -> 17895605 | P3: PI total | Q3: =N1203 -> 706.9793884 | R3: T^2mm^3
A5: z [mm] | B5: Bx | C5: By | D5: Bz | F5: Bx_corr | G5: By_corr | H5: Bz_corr | J5: Ix | K5: Jx | L5: Iy | M5: Jy | N5: PI
A6: ='PI vs gap'!B53 -> 0.04 | B6: ='DF raw data'!D11 -> -1.0717647e-05 | C6: ='DF raw data'!E11 -> 8.1480821e-06 | D6: ='DF raw data'!F11 -> 8.206709e-06 | F6: =(1-$G$1*($B$2-$G$2))*B6 -> -1.073102262e-05 | G6: =(1-$G$1*($B$2-$G$2))*C6*$M$2/$M$1 -> 8.176947975e-06 | H6: =(1-$G$1*($B$2-$G$2))*D6 -> 8.216950973e-06 | J6: =F6*$B$1 -> -5.367120965e-06 | K6: =J6*$B$1 -> -2.684365551e-06 | L6: =G6*$B$1 -> 4.089700529e-06 | M6: =L6*$B$1 -> 2.04546372e-06 | N6: =(J6^2+L6)^2*$B$1 -> 8.365451902e-12
A7: =A6+$B$1 -> 0.54015 | B7: ='DF raw data'!D12 -> -1.054183e-05 | C7: ='DF raw data'!E12 -> 4.0649443e-06 | D7: ='DF raw data'!F12 -> 1.2484332e-05 | F7: =(1-$G$1*($B$2-$G$2))*B7 -> -1.05549862e-05 | G7: =(1-$G$1*($B$2-$G$2))*C7*$M$2/$M$1 -> 4.079345011e-06 | H7: 1.249991245e-05 | J7: =F7*$B$1+J6 -> -1.064619731e-05 | K7: =J7*$B$1+K6 -> -8.009061138e-06 | L7: =G7*$B$1+L6 -> 6.129984936e-06 | M7: =L7*$B$1+M6 -> 5.111375686e-06 | N7: =(J7^2+L7^2)*$B$1+N6 -> 8.384720593e-11
A8: =A7+$B$1 -> 1.0403 | B8: ='DF raw data'!D13 -> -1.0447709e-05 | C8: ='DF raw data'!E13 -> 1.4104105e-06 | D8: ='DF raw data'!F13 -> 1.196608e-05 | F8: -1.046074774e-05 | G8: 1.415407103e-06 | H8: 1.198101367e-05 | J8: =F8*$B$1+J7 -> -1.58781403e-05 | K8: =J8*$B$1+K7 -> -1.595051301e-05 | L8: =G8*$B$1+L7 -> 6.837900799e-06 | M8: =L8*$B$1+M7 -> 8.53135177e-06 | N8: =(J8^2+L8^2)*$B$1+N7 -> 2.333281501e-10
A9: 1.54045 | B9: ='DF raw data'!D14 -> -1.0345307e-05 | C9: ='DF raw data'!E14 -> -2.31114e-06 | D9: ='DF raw data'!F14 -> 6.1212299e-06 | F9: -1.035821794e-05 | G9: -2.31932758e-06 | H9: 6.128869195e-06 | J9: -2.1058803e-05 | K9: -2.648307333e-05 | L9: 5.67788911e-06 | M9: 1.137114801e-05 | N9: 4.712553111e-10
A10: 2.0406 | B10: ='DF raw data'!D15 -> -1.0051751e-05 | C10: ='DF raw data'!E15 -> -1.0867157e-05 | D10: ='DF raw data'!F15 -> 2.0871917e-06 | F10: -1.006429559e-05 | G10: -1.090565563e-05 | H10: 2.089796515e-06 | J10: -2.609246044e-05 | K10: -3.953321742e-05 | L10: 2.234254469e-07 | M10: 1.148289425e-05 | N10: 8.117906464e-10
A11: 2.54075 | B11: ='DF raw data'!D16 -> -1.0482211e-05 | C11: ='DF raw data'!E16 -> 1.5385006e-06 | D11: ='DF raw data'!F16 -> 5.4844381e-06 | F11: -1.04952928e-05 | G11: 1.543950983e-06 | H11: 5.491282679e-06 | J11: -3.134168113e-05 | K11: -5.520875924e-05 | L11: 9.956325309e-07 | M11: 1.198085986e-05 | N11: 1.30358427e-09
A12: 3.0409 | B12: ='DF raw data'!D17 -> -1.060564e-05 | C12: ='DF raw data'!E17 -> 4.2387996e-06 | D12: ='DF raw data'!F17 -> 1.7772504e-06 | F12: -1.061887584e-05 | G12: 4.253816221e-06 | H12: 1.779468408e-06 | J12: -3.665271188e-05 | K12: -7.354061308e-05 | L12: 3.123178714e-06 | M12: 1.354291769e-05 | N12: 1.980375014e-09
A13: 3.54105 | B13: ='DF raw data'!D18 -> -1.0695018e-05 | C13: ='DF raw data'!E18 -> 8.9651903e-06 | D13: ='DF raw data'!F18 -> 1.6157454e-05 | F13: -1.070836538e-05 | G13: 8.99695091e-06 | H13: 1.61776185e-05 | J13: -4.200850083e-05 | K13: -9.455116477e-05 | L13: 7.623003711e-06 | M13: 1.7355563e-05 | N13: 2.892060601e-09
A14: 4.0412 | B14: ='DF raw data'!D19 -> -1.0315272e-05 | C14: ='DF raw data'!E19 -> -3.7404445e-07 | D14: ='DF raw data'!F19 -> 2.2468575e-05 | F14: -1.032814546e-05 | G14: -3.753695619e-07 | H14: 2.249661578e-05 | J14: -4.717412278e-05 | K14: -0.0001181453023 | L14: 7.435262625e-06 | M14: 2.10743096e-05 | N14: 4.032743198e-09
A15: 4.54135 | B15: ='DF raw data'!D20 -> -1.0298726e-05 | C15: ='DF raw data'!E20 -> -2.2895249e-06 | D15: ='DF raw data'!F20 -> 1.3347013e-05 | F15: -1.031157881e-05 | G15: -2.297635905e-06 | H15: 1.336367007e-05 | J15: -5.233145892e-05 | K15: -0.0001443188815 | L15: 6.286100027e-06 | M15: 2.421830253e-05 | N15: 5.422208236e-09
A16: 5.0415 | B16: ='DF raw data'!D21 -> -1.0563513e-05 | C16: ='DF raw data'!E21 -> 3.4470429e-06 | D16: ='DF raw data'!F21 -> 4.2381539e-06 | F16: -1.057669626e-05 | G16: 3.459254597e-06 | H16: 4.243443116e-06 | J16: -5.762139356e-05 | K16: -0.0001731382215 | L16: 8.016246213e-06 | M16: 2.822762807e-05 | N16: 7.114958508e-09
A17: 5.54165 | B17: ='DF raw data'!D22 -> -1.0616176e-05 | C17: ='DF raw data'!E22 -> 3.4505122e-06 | D17: ='DF raw data'!F22 -> -3.9750198e-06 | F17: -1.062942499e-05 | G17: 3.462736187e-06 | H17: -3.979980625e-06 | J17: -6.293770047e-05 | K17: -0.0002046165123 | L17: 9.748133717e-06 | M17: 3.310315715e-05 | N17: 9.143657061e-09
A18: 6.0418 | B18: ='DF raw data'!D23 -> -1.0612844e-05 | C18: ='DF raw data'!E23 -> 3.6058213e-06 | D18: ='DF raw data'!F23 -> -2.1992932e-06 | F18: -1.062608883e-05 | G18: 3.618595494e-06 | H18: -2.202037918e-06 | J18: -6.825233879e-05 | K18: -0.0002387529196 | L18: 1.155797425e-05 | M18: 3.888387797e-05 | N18: 1.154036012e-08
A19: 6.54195 | B19: ='DF raw data'!D24 -> -1.0163961e-05 | C19: ='DF raw data'!E24 -> -7.792195e-06 | D19: ='DF raw data'!F24 -> 2.5578588e-06 | F19: -1.017664562e-05 | G19: -7.819800088e-06 | H19: 2.561051008e-06 | J19: -7.33421881e-05 | K19: -0.000275435015 | L19: 7.64690124e-06 | M19: 4.270847563e-05 | N19: 1.425995158e-08
A20: 7.0421 | B20: ='DF raw data'!D25 -> -1.0408127e-05 | C20: ='DF raw data'!E25 -> -6.2195221e-07 | D20: ='DF raw data'!F25 -> 5.1891361e-06 | F20: -1.042111634e-05 | G20: -6.241555745e-07 | H20: 5.195612142e-06 | J20: -7.855430944e-05 | K20: -0.0003147239528 | L20: 7.334729829e-06 | M20: 4.637694075e-05 | N20: 1.737317416e-08
A21: 7.54225 | B21: ='DF raw data'!D26 -> -1.0614983e-05 | C21: ='DF raw data'!E26 -> 4.8801844e-06 | D21: ='DF raw data'!F26 -> 4.4458679e-06 | F21: -1.06282305e-05 | G21: 4.897473228e-06 | H21: 4.451416343e-06 | J21: -8.387001893e-05 | K21: -0.0003566715428 | L21: 9.784201064e-06 | M21: 5.127050891e-05 | N21: 2.093919898e-08
A22: 8.0424 | B22: ='DF raw data'!D27 -> -9.7396996e-06 | C22: ='DF raw data'!E27 -> -1.2142352e-06 | D22: ='DF raw data'!F27 -> 5.6402814e-07 | F22: -9.751854745e-06 | G22: -1.218536821e-06 | H22: 5.647320471e-07 | J22: -8.874740908e-05 | K22: -0.0004010585595 | L22: 9.174749873e-06 | M22: 5.585926006e-05 | N22: 2.492053235e-08
A23: 8.54255 | B23: ='DF raw data'!D28 -> -8.9487157e-06 | C23: ='DF raw data'!E28 -> -2.571621e-07 | D23: ='DF raw data'!F28 -> -1.2121641e-06 | F23: =(1-$G$1*($B$2-$G$2))*B23 -> -8.959883697e-06 | G23: -2.580731376e-07 | H23: -1.213676881e-06 | J23: -9.322869491e-05 | K23: -0.0004476868912 | L23: 9.045674594e-06 | M23: 6.038345421e-05 | N23: 2.930855525e-08
A24: 9.0427 | B24: ='DF raw data'!D29 -> -9.4302386e-06 | C24: ='DF raw data'!E29 -> 1.8926164e-06 | D24: ='DF raw data'!F29 -> 2.2752752e-06 | F24: -9.442007538e-06 | G24: 1.899321294e-06 | H24: 2.278114743e-06 | J24: -9.795111498e-05 | K24: -0.0004966771414 | L24: 9.995620139e-06 | M24: 6.538276362e-05 | N24: 3.415717607e-08
A25: 9.54285 | B25: ='DF raw data'!D30 -> -7.691081e-06 | C25: ='DF raw data'!E30 -> -2.1418211e-06 | D25: ='DF raw data'!F30 -> 3.4015643e-06 | F25: -7.700679469e-06 | G25: -2.149408841e-06 | H25: 3.405809452e-06 | J25: -0.0001018026098 | K25: -0.0005475937167 | L25: 8.920593307e-06 | M25: 6.984439837e-05 | N25: 3.938041675e-08
A26: 10.043 | B26: ='DF raw data'!D31 -> -3.2475807e-06 | C26: ='DF raw data'!E31 -> 9.8411078e-07 | D26: ='DF raw data'!F31 -> -5.0272397e-06 | F26: -3.251633681e-06 | G26: 9.875971487e-07 | H26: -5.033513695e-06 | J26: -0.0001034289144 | K26: -0.0005993236882 | L26: 9.414540021e-06 | M26: 7.455308056e-05 | N26: 4.477512163e-08
A27: 10.54315 | B27: ='DF raw data'!D32 -> 1.0220531e-06 | C27: ='DF raw data'!E32 -> 2.6251316e-06 | D27: ='DF raw data'!F32 -> -1.0229709e-05 | F27: 1.023328622e-06 | G27: 2.634431545e-06 | H27: -1.024247568e-05 | J27: -0.0001029170966 | K27: -0.0006507976741 | L27: 1.073215096e-05 | M27: 7.992076586e-05 | N27: 5.013028161e-08
A28: 11.0433 | B28: ='DF raw data'!D33 -> 1.5219405e-06 | C28: ='DF raw data'!E33 -> 2.8882189e-07 | D28: ='DF raw data'!F33 -> 6.9867051e-06 | F28: 1.523839882e-06 | G28: 2.898450874e-07 | H28: 6.995424508e-06 | J28: -0.0001021549481 | K28: -0.0007018904713 | L28: 1.087711698e-05 | M28: 8.536095592e-05 | N28: 5.540883725e-08
A29: 11.54345 | B29: ='DF raw data'!D34 -> 1.3382516e-06 | C29: ='DF raw data'!E34 -> -4.0969289e-06 | D29: ='DF raw data'!F34 -> -2.4395599e-06 | F29: 1.339921738e-06 | G29: -4.111442921e-06 | H29: -2.442604471e-06 | J29: -0.0001014847862 | K29: -0.0007526480872 | L29: 8.820778802e-06 | M29: 8.977266843e-05 | N29: 6.059887778e-08
A30: 12.0436 | B30: ='DF raw data'!D35 -> 9.1211331e-07 | C30: ='DF raw data'!E35 -> 1.1771799e-06 | D30: ='DF raw data'!F35 -> -4.9797859e-06 | F30: 9.132516274e-07 | G30: 1.181350247e-06 | H30: -4.986000673e-06 | J30: -0.0001010280234 | K30: -0.0008031772531 | L30: 9.411631128e-06 | M30: 9.447989574e-05 | N30: 6.574804222e-08
A31: 12.54375 | B31: ='DF raw data'!D36 -> -3.8212902e-06 | C31: ='DF raw data'!E36 -> 3.2216844e-06 | D31: ='DF raw data'!F36 -> -5.0551939e-06 | F31: -3.82605917e-06 | G31: 3.233097728e-06 | H31: -5.061502782e-06 | J31: -0.0001029416269 | K31: -0.0008546635078 | L31: 1.102866496e-05 | M31: 9.999588252e-05 | N31: 7.110895501e-08
A32: 13.0439 | B32: ='DF raw data'!D37 -> -9.7216116e-06 | C32: ='DF raw data'!E37 -> 1.2830976e-05 | D32: ='DF raw data'!F37 -> -1.0293338e-06 | F32: -9.733744171e-06 | G32: 1.287643177e-05 | H32: -1.030618409e-06 | J32: -0.0001078099591 | K32: -0.0009085846588 | L32: 1.746881231e-05 | M32: 0.000108732909 | N32: 7.707481757e-08
A33: 13.54405 | B33: ='DF raw data'!D38 -> -5.5133869e-06 | C33: ='DF raw data'!E38 -> -1.8344047e-06 | D33: ='DF raw data'!F38 -> -2.9064947e-07 | F33: -5.520267607e-06 | G33: -1.84090337e-06 | H33: -2.910122005e-07 | J33: -0.0001105709209 | K33: -0.0009638867049 | L33: 1.654808449e-05 | M33: 0.0001170094335 | N33: 8.332657636e-08
A34: 14.0442 | B34: ='DF raw data'!D39 -> -2.0348677e-06 | C34: ='DF raw data'!E39 -> -1.4735153e-07 | D34: ='DF raw data'!F39 -> -5.2897271e-06 | F34: -2.037407215e-06 | G34: -1.478735462e-07 | H34: -5.296328679e-06 | J34: -0.0001115899301 | K34: -0.001019698408 | L34: 1.647412553e-05 | M34: 0.0001252489673 | N34: 8.969033958e-08
A35: 14.54435 | B35: ='DF raw data'!D40 -> -3.8967128e-06 | C35: ='DF raw data'!E40 -> 1.5833323e-06 | D35: ='DF raw data'!F40 -> -1.2273999e-06 | F35: -3.901575898e-06 | G35: 1.588941506e-06 | H35: -1.228931695e-06 | J35: -0.0001135413033 | K35: -0.001076486091 | L35: 1.726883463e-05 | M35: 0.000133885975 | N35: 9.628723815e-08
A36: 15.0445 | B36: ='DF raw data'!D41 -> -5.9742897e-06 | C36: ='DF raw data'!E41 -> 4.7001598e-07 | D36: ='DF raw data'!F41 -> -3.2381981e-06 | F36: -5.981745614e-06 | G36: 4.716810862e-07 | H36: -3.242239371e-06 | J36: -0.0001165330734 | K36: -0.001134770108 | L36: 1.750474592e-05 | M36: 0.0001426409736 | N36: 1.032325078e-07
A37: 15.54465 | B37: ='DF raw data'!D42 -> -7.4186109e-06 | C37: ='DF raw data'!E42 -> -5.4465454e-06 | D37: ='DF raw data'!F42 -> -1.2572276e-05 | F37: -7.427869326e-06 | G37: -5.465840652e-06 | H37: -1.25879662e-05 | J37: -0.0001202481222 | K37: -0.001194912206 | L37: 1.477100572e-05 | M37: 0.0001500286922 | N37: 1.105736062e-07
A38: 16.0448 | B38: ='DF raw data'!D43 -> -6.0650063e-06 | C38: ='DF raw data'!E43 -> -7.2509118e-07 | D38: ='DF raw data'!F43 -> -8.465624e-06 | F38: -6.072575428e-06 | G38: -7.276599306e-07 | H38: -8.476189099e-06 | J38: -0.0001232853208 | K38: -0.001256573359 | L38: 1.44070666e-05 | M38: 0.0001572343865 | N38: 1.182793342e-07
A39: 16.54495 | B39: ='DF raw data'!D44 -> -8.3015047e-06 | C39: ='DF raw data'!E44 -> 1.4724575e-05 | D39: ='DF raw data'!F44 -> -3.9518677e-06 | F39: -8.311864978e-06 | G39: 1.477673914e-05 | H39: -3.956799631e-06 | J39: -0.0001274425001 | K39: -0.001320313726 | L39: 2.179765269e-05 | M39: 0.0001681364825 | N39: 1.266402059e-07
A40: 17.0451 | B40: ='DF raw data'!D45 -> -7.9033498e-06 | C40: ='DF raw data'!E45 -> -2.4784579e-06 | D40: ='DF raw data'!F45 -> 1.6288936e-06 | F40: -7.913213181e-06 | G40: -2.487238231e-06 | H40: 1.630926459e-06 | J40: -0.0001314002937 | K40: -0.001386033583 | L40: 2.055366049e-05 | M40: 0.0001784163958 | N40: 1.354871043e-07
A41: 17.54525 | B41: ='DF raw data'!D46 -> -1.0992378e-06 | C41: ='DF raw data'!E46 -> -1.0211663e-06 | D41: ='DF raw data'!F46 -> 3.8977264e-06 | F41: -1.100609649e-06 | G41: -1.024783944e-06 | H41: 3.902590763e-06 | J41: -0.0001319507636 | K41: -0.001452028757 | L41: 2.00411148e-05 | M41: 0.0001884399594 | N41: 1.443961013e-07
A42: 18.0454 | B42: ='DF raw data'!D47 -> 4.0050209e-06 | C42: ='DF raw data'!E47 -> -2.4819267e-06 | D42: ='DF raw data'!F47 -> -6.4498863e-07 | F42: 4.010019166e-06 | G42: -2.490719319e-06 | H42: -6.457935758e-07 | J42: -0.0001299451525 | K42: -0.001517020825 | L42: 1.879538153e-05 | M42: 0.0001978404694 | N42: 1.530181917e-07
A43: 18.54555 | B43: ='DF raw data'!D48 -> 2.2410961e-06 | C43: ='DF raw data'!E48 -> 2.564022e-06 | D43: ='DF raw data'!F48 -> -7.5953617e-06 | F43: 2.243892988e-06 | G43: 2.573105455e-06 | H43: -7.604840711e-06 | J43: -0.0001288228694 | K43: -0.001581451583 | L43: 2.008232022e-05 | M43: 0.0002078846419 | N43: 1.615200571e-07
A44: 19.0457 | B44: ='DF raw data'!D49 -> 1.1952645e-06 | C44: ='DF raw data'!E49 -> 4.0540031e-06 | D44: ='DF raw data'!F49 -> -5.0166605e-06 | F44: 1.19675619e-06 | G44: 4.06836505e-06 | H44: -5.022921292e-06 | J44: -0.0001282243118 | K44: -0.001645582973 | L44: 2.2117113e-05 | M44: 0.000218946516 | N44: 1.699879171e-07
A45: 19.54585 | B45: ='DF raw data'!D50 -> 1.1284567e-06 | C45: ='DF raw data'!E50 -> 6.2719306e-07 | D45: ='DF raw data'!F50 -> -6.4837923e-07 | F45: 1.129865014e-06 | G45: 6.29414991e-07 | H45: -6.491884073e-07 | J45: -0.0001276592098 | K45: -0.001709431727 | L45: 2.243191491e-05 | M45: 0.0002301658382 | N45: 1.783904694e-07
A46: 20.046 | B46: ='DF raw data'!D51 -> -2.3106847e-06 | C46: ='DF raw data'!E51 -> 3.6251683e-06 | D46: ='DF raw data'!F51 -> 2.1545379e-06 | F46: -2.313568435e-06 | G46: 3.638011034e-06 | H46: 2.157226763e-06 | J46: -0.0001288163411 | K46: -0.00177385922 | L46: 2.425146613e-05 | M46: 0.000242295209 | N46: 1.869839384e-07
A47: 20.54615 | B47: ='DF raw data'!D52 -> -3.7642756e-06 | C47: ='DF raw data'!E52 -> -8.1133539e-06 | D47: ='DF raw data'!F52 -> 4.9448454e-07 | F47: -3.768973416e-06 | G47: -8.142096744e-06 | H47: 4.951016567e-07 | J47: -0.0001307013931 | K47: -0.001839229521 | L47: 2.017919644e-05 | M47: 0.0002523878341 | N47: 1.957315889e-07
A48: 21.0463 | B48: ='DF raw data'!D53 -> -2.1119056e-06 | C48: ='DF raw data'!E53 -> -2.0646004e-07 | D48: ='DF raw data'!F53 -> -4.5245221e-07 | F48: -2.114541258e-06 | G48: -2.071914575e-07 | H48: -4.530168704e-07 | J48: -0.0001317589809 | K48: -0.001905128776 | L48: 2.007556964e-05 | M48: 0.0002624286303 | N48: 2.046159822e-07
A49: 21.54645 | B49: ='DF raw data'!D54 -> 1.8643034e-06 | C49: ='DF raw data'!E54 -> 1.0615151e-05 | D49: ='DF raw data'!F54 -> 2.7372257e-06 | F49: 1.866630051e-06 | G49: 1.065275686e-05 | H49: 2.740641758e-06 | J49: -0.0001308253859 | K49: -0.001970561092 | L49: 2.540354598e-05 | M49: 0.0002751342138 | N49: 2.134989572e-07
A50: 22.0466 | B50: ='DF raw data'!D55 -> -9.9110252e-07 | C50: ='DF raw data'!E55 -> 2.8043244e-06 | D50: ='DF raw data'!F55 -> -2.8131221e-06 | F50: -9.923394159e-07 | G50: 2.814259164e-06 | H50: -2.816632876e-06 | J50: -0.0001313217045 | K50: -0.002036241643 | L50: 2.68110977e-05 | M50: 0.0002885437843 | N50: 2.224837644e-07
A51: 22.54675 | B51: ='DF raw data'!D56 -> -5.8893211e-06 | C51: ='DF raw data'!E56 -> 1.2852558e-06 | D51: ='DF raw data'!F56 -> -1.6900199e-06 | F51: -5.896670973e-06 | G51: 1.289809023e-06 | H51: -1.692129045e-06 | J51: -0.0001342709245 | K51: -0.002103397246 | L51: 2.745619568e-05 | M51: 0.0003022760006 | N51: 2.318778437e-07
A52: 23.0469 | B52: ='DF raw data'!D57 -> -1.98267e-06 | C52: ='DF raw data'!E57 -> 9.099952e-06 | D52: ='DF raw data'!F57 -> -6.2779186e-06 | F52: -1.985144372e-06 | G52: 9.132190025e-06 | H52: -6.285753442e-06 | J52: -0.0001352637944 | K52: -0.002171049433 | L52: 3.202366052e-05 | M52: 0.0003182926344 | N52: 2.415416464e-07
A53: 23.54705 | B53: ='DF raw data'!D58 -> 4.9468645e-06 | C53: ='DF raw data'!E58 -> -2.2378883e-06 | D53: ='DF raw data'!F58 -> -4.5718084e-06 | F53: 4.953038187e-06 | G53: -2.245816375e-06 | H53: -4.577514017e-06 | J53: -0.0001327865324 | K53: -0.002237462617 | L53: 3.090041546e-05 | M53: 0.0003337474772 | N53: 2.508379839e-07
A54: 24.0472 | B54: ='DF raw data'!D59 -> 4.1285084e-06 | C54: ='DF raw data'!E59 -> -8.8506722e-06 | D54: ='DF raw data'!F59 -> 3.9575639e-06 | F54: 4.133660778e-06 | G54: -8.882027112e-06 | H54: 3.96250294e-06 | J54: -0.0001307190819 | K54: -0.002302841766 | L54: 2.64580696e-05 | M54: 0.0003469804807 | N54: 2.597344059e-07
A55: 24.54735 | B55: ='DF raw data'!D60 -> 6.397996e-06 | C55: ='DF raw data'!E60 -> -1.1939111e-05 | D55: ='DF raw data'!F60 -> 1.5846413e-06 | F55: 6.405980699e-06 | G55: -1.19814072e-05 | H55: 1.586618932e-06 | J55: -0.0001275151307 | K55: -0.002366618458 | L55: 2.046556879e-05 | M55: 0.0003572163349 | N55: 2.680763818e-07
A56: 25.0475 | B56: ='DF raw data'!D61 -> 1.2291565e-05 | C56: ='DF raw data'!E61 -> -6.4316382e-06 | D56: ='DF raw data'!F61 -> -9.4122261e-06 | F56: 1.230690487e-05 | G56: -6.454423299e-06 | H56: -9.423972558e-06 | J56: -0.0001213598322 | K56: -0.002427316578 | L56: 1.723738898e-05 | M56: 0.000365837615 | N56: 2.755913038e-07
A57: 25.54765 | B57: ='DF raw data'!D62 -> 9.8821756e-06 | C57: ='DF raw data'!E62 -> -5.7647685e-06 | D57: ='DF raw data'!F62 -> -6.9685525e-06 | F57: 9.894508555e-06 | G57: -5.785191108e-06 | H57: -6.977249254e-06 | J57: -0.0001164110938 | K57: -0.002485539587 | L57: 1.434392565e-05 | M57: 0.0003730117294 | N57: 2.824720129e-07
A58: 26.0478 | B58: ='DF raw data'!D63 -> 4.3536556e-06 | C58: ='DF raw data'!E63 -> 3.6710671e-06 | D58: ='DF raw data'!F63 -> 4.2114657e-06 | F58: 4.359088962e-06 | G58: 3.684072438e-06 | H58: 4.216721609e-06 | J58: -0.0001142308954 | K58: -0.002542672169 | L58: 1.618651448e-05 | M58: 0.0003811074146 | N58: 2.891293598e-07
A59: 26.54795 | B59: ='DF raw data'!D64 -> 5.1302914e-06 | C59: ='DF raw data'!E64 -> 1.4404318e-06 | D59: ='DF raw data'!F64 -> 6.9582125e-06 | F59: 5.136694004e-06 | G59: 1.445534758e-06 | H59: 6.966896349e-06 | J59: -0.0001116617779 | K59: -0.002598519807 | L59: 1.690949869e-05 | M59: 0.0003895647004 | N59: 2.955084149e-07
A60: 27.0481 | B60: ='DF raw data'!D65 -> 8.6646023e-06 | C60: ='DF raw data'!E65 -> 3.5500173e-07 | D60: ='DF raw data'!F65 -> 6.5309973e-06 | F60: 8.675415724e-06 | G60: 3.5625938e-07 | H60: 6.539147985e-06 | J60: -0.0001073227687 | K60: -0.00265219729 | L60: 1.708768182e-05 | M60: 0.0003981111045 | N60: 3.014152692e-07
A61: 27.54825 | B61: ='DF raw data'!D66 -> 1.0729359e-05 | C61: ='DF raw data'!E66 -> -8.6438939e-07 | D61: ='DF raw data'!F66 -> 8.7204353e-06 | F61: 1.074274924e-05 | G61: -8.674516267e-07 | H61: 8.731318403e-06 | J61: -0.0001019497827 | K61: -0.002703187474 | L61: 1.665382588e-05 | M61: 0.0004064405155 | N61: 3.067524239e-07
A62: 28.0484 | B62: ='DF raw data'!D67 -> 8.0316231e-06 | C62: ='DF raw data'!E67 -> 7.6222142e-07 | D62: ='DF raw data'!F67 -> 9.1820511e-06 | F62: 8.041646566e-06 | G62: 7.649217104e-07 | H62: 9.1935103e-06 | J62: -9.792775317e-05 | K62: -0.00275216604 | L62: 1.703640148e-05 | M62: 0.0004149612717 | N62: 3.116939478e-07
A63: 28.54855 | B63: ='DF raw data'!D68 -> 2.8466595e-06 | C63: ='DF raw data'!E68 -> -7.1788617e-07 | D63: ='DF raw data'!F68 -> 7.4429222e-06 | F63: 2.850212131e-06 | G63: -7.204293957e-07 | H63: 7.452210967e-06 | J63: -9.650221957e-05 | K63: -0.002800431625 | L63: 1.667607872e-05 | M63: 0.0004233018124 | N63: 3.164907714e-07
A64: 29.0487 | B64: ='DF raw data'!D69 -> 2.1845263e-07 | C64: ='DF raw data'!E69 -> -4.9700766e-06 | D64: ='DF raw data'!F69 -> 1.7144152e-06 | F64: 2.187252589e-07 | G64: -4.987683885e-06 | H64: 1.71655479e-06 | J64: -9.639282413e-05 | K64: -0.002848642496 | L64: 1.418148862e-05 | M64: 0.000430394684 | N64: 3.212385409e-07
A65: 29.54885 | B65: ='DF raw data'!D70 -> 1.4917016e-06 | C65: ='DF raw data'!E70 -> 4.1415315e-06 | D65: ='DF raw data'!F70 -> -3.4543086e-06 | F65: 1.493563244e-06 | G65: 4.156203533e-06 | H65: -3.458619577e-06 | J65: -9.564581847e-05 | K65: -0.002896479752 | L65: 1.626021382e-05 | M65: 0.0004385272299 | N65: 3.259462114e-07
A66: 30.049 | B66: ='DF raw data'!D71 -> 7.8659496e-06 | C66: ='DF raw data'!E71 -> -4.7980893e-06 | D66: ='DF raw data'!F71 -> -1.4082366e-06 | F66: 7.875766305e-06 | G66: -4.815087293e-06 | H66: -1.409994079e-06 | J66: -9.170675396e-05 | K66: -0.002942346885 | L66: 1.385194791e-05 | M66: 0.0004454552817 | N66: 3.302485043e-07
A67: 30.54915 | B67: ='DF raw data'!D72 -> 1.0380128e-05 | C67: ='DF raw data'!E72 -> -9.0213262e-06 | D67: ='DF raw data'!F72 -> -4.4078229e-06 | F67: 1.03930824e-05 | G67: -9.05328568e-06 | H67: -4.413323863e-06 | J67: -8.650865379e-05 | K67: -0.002985614188 | L67: 9.323947075e-06 | M67: 0.0004501186538 | N67: 3.340349814e-07
A68: 31.0493 | B68: ='DF raw data'!D73 -> 5.2089154e-06 | C68: ='DF raw data'!E73 -> -1.3147057e-06 | D68: ='DF raw data'!F73 -> -9.3630342e-07 | F68: 5.215416126e-06 | G68: -1.319363254e-06 | H68: -9.374719267e-07 | J68: -8.390016342e-05 | K68: -0.003027576855 | L68: 8.664067544e-06 | M68: 0.0004544519872 | N68: 3.375932003e-07
A69: 31.54945 | B69: ='DF raw data'!D74 -> -1.0671363e-06 | C69: ='DF raw data'!E74 -> 8.5028347e-07 | D69: ='DF raw data'!F74 -> -5.4540474e-06 | F69: -1.068468086e-06 | G69: 8.532957342e-07 | H69: -5.460854051e-06 | J69: -8.443455773e-05 | K69: -0.003069806799 | L69: 9.090843405e-06 | M69: 0.0004589987725 | N69: 3.412002011e-07
A70: 32.0496 | B70: ='DF raw data'!D75 -> -2.7909192e-07 | C70: ='DF raw data'!E75 -> 1.7142243e-06 | D70: ='DF raw data'!F75 -> -1.2013759e-05 | F70: -2.794402267e-07 | G70: 1.720297212e-06 | H70: -1.202875217e-05 | J70: -8.457431976e-05 | K70: -0.003112106645 | L70: 9.951250056e-06 | M70: 0.0004639758902 | N70: 3.448272103e-07
A71: 32.54975 | B71: ='DF raw data'!D76 -> 4.0686418e-06 | C71: ='DF raw data'!E76 -> 4.098968e-06 | D71: ='DF raw data'!F76 -> -9.3167218e-06 | F71: 4.073719465e-06 | G71: =(1-$G$1*($B$2-$G$2))*C71*$M$2/$M$1 -> 4.113489245e-06 | H71: -9.328349069e-06 | J71: -8.253684897e-05 | K71: -0.00315338745 | L71: 1.20086117e-05 | M71: 0.0004699819974 | N71: 3.483065229e-07
A72: =A71+$B$1 -> 33.0499 | B72: ='DF raw data'!D77 -> 6.5626655e-06 | C72: ='DF raw data'!E77 -> 1.0667721e-05 | D72: ='DF raw data'!F77 -> -5.9174095e-06 | F72: 6.570855707e-06 | G72: 1.07055131e-05 | H72: -5.924794427e-06 | J72: =F72*$B$1+J71 -> -7.925043549e-05 | K72: =J72*$B$1+K71 -> -0.003193024555 | L72: =G72*$B$1+L71 -> 1.736297408e-05 | M72: =L72*$B$1+M71 -> 0.0004786660888 | N72: =(J72^2+L72^2)*$B$1+N71 -> 3.515985624e-07
A73: 33.55005 | B73: ='DF raw data'!D78 -> 6.434303e-06 | C73: ='DF raw data'!E78 -> 1.0827834e-05 | D73: ='DF raw data'!F78 -> 4.3598807e-06 | F73: 6.44233301e-06 | G73: 1.086619332e-05 | H73: 4.365321831e-06 | J73: -7.602830263e-05 | K73: -0.003231050111 | L73: 2.279770067e-05 | M73: 0.0004900683588 | N73: 3.547495264e-07
A74: 34.0502 | B74: ='DF raw data'!D79 -> 3.6161357e-06 | C74: ='DF raw data'!E79 -> 2.421255e-06 | D74: ='DF raw data'!F79 -> 9.3664094e-06 | F74: 3.620648637e-06 | G74: 2.42983268e-06 | H74: 9.378098679e-06 | J74: -7.421743522e-05 | K74: -0.003268169961 | L74: 2.401298148e-05 | M74: 0.0005020784515 | N74: 3.577928646e-07
A75: 34.55035 | B75: ='DF raw data'!D80 -> 4.5542392e-06 | C75: ='DF raw data'!E80 -> -5.3049789e-06 | D75: ='DF raw data'!F80 -> 6.1638234e-06 | F75: 4.559922891e-06 | G75: -5.32377263e-06 | H75: 6.171515852e-06 | J75: -7.193678978e-05 | K75: -0.003304149146 | L75: 2.13502966e-05 | M75: 0.0005127568024 | N75: 3.606090777e-07
A76: 35.0505 | B76: ='DF raw data'!D81 -> 6.2680328e-06 | C76: ='DF raw data'!E81 -> -1.322775e-05 | D76: ='DF raw data'!F81 -> 3.0512851e-06 | F76: 6.275855305e-06 | G76: -1.32746114e-05 | H76: 3.055093104e-06 | J76: -6.879792075e-05 | K76: -0.003338558426 | L76: 1.471099971e-05 | M76: 0.0005201145089 | N76: 3.630846038e-07
A77: 35.55065 | B77: ='DF raw data'!D82 -> 2.06755e-06 | C77: ='DF raw data'!E82 -> -3.0112326e-06 | D77: ='DF raw data'!F82 -> 4.4017682e-07 | F77: 2.070130302e-06 | G77: -3.02190037e-06 | H77: 4.407261607e-07 | J77: -6.776254508e-05 | K77: -0.003372449863 | L77: 1.319959624e-05 | M77: 0.0005267162869 | N77: 3.654683147e-07
A78: 36.0508 | B78: ='DF raw data'!D83 -> 2.0619336e-08 | C78: ='DF raw data'!E83 -> 2.7285378e-06 | D78: ='DF raw data'!F83 -> -6.1349606e-06 | F78: 2.064506893e-08 | G78: 2.738204078e-06 | H78: -6.142617031e-06 | J78: -6.775221945e-05 | K78: -0.003406336136 | L78: 1.456910901e-05 | M78: 0.0005340030268 | N78: 3.678703461e-07
A79: 36.55095 | B79: ='DF raw data'!D84 -> 2.4513567e-06 | C79: ='DF raw data'!E84 -> 4.4875082e-06 | D79: ='DF raw data'!F84 -> -9.7136399e-06 | F79: 2.454415993e-06 | G79: 4.50340591e-06 | H79: -9.725762523e-06 | J79: -6.652464329e-05 | K79: -0.003439608436 | L79: 1.682148747e-05 | M79: 0.0005424162938 | N79: 3.702252977e-07
A80: 37.0511 | B80: ='DF raw data'!D85 -> 1.9905849e-06 | C80: ='DF raw data'!E85 -> 3.4326329e-06 | D80: ='DF raw data'!F85 -> -5.9407148e-07 | F80: 1.99306915e-06 | G80: 3.444793547e-06 | H80: -5.948128812e-07 | J80: -6.552780976e-05 | K80: -0.00347238217 | L80: 1.854440096e-05 | M80: 0.0005516912759 | N80: 3.725448877e-07
A81: 37.55125 | B81: ='DF raw data'!D86 -> -1.9551087e-06 | C81: ='DF raw data'!E86 -> 2.5573198e-07 | D81: ='DF raw data'!F86 -> 8.5919919e-07 | F81: -1.957548676e-06 | G81: 2.566379511e-07 | H81: 8.602714706e-07 | J81: -6.650687773e-05 | K81: -0.003505645585 | L81: 1.867275844e-05 | M81: 0.000561030456 | N81: 3.749315218e-07
A82: 38.0514 | B82: ='DF raw data'!D87 -> -5.5393475e-06 | C82: ='DF raw data'!E87 -> -2.4402977e-06 | D82: ='DF raw data'!F87 -> -3.3239235e-06 | F82: -5.546260606e-06 | G82: -2.448942842e-06 | H82: -3.328071757e-06 | J82: -6.928083997e-05 | K82: -0.003540296397 | L82: 1.744791967e-05 | M82: 0.0005697570331 | N82: 3.774844198e-07
A83: 38.55155 | B83: ='DF raw data'!D88 -> -8.5538932e-06 | C83: ='DF raw data'!E88 -> 4.2706888e-06 | D83: ='DF raw data'!F88 -> 1.5739893e-06 | F83: -8.564568459e-06 | G83: 4.285818393e-06 | H83: 1.575953639e-06 | J83: -7.356440888e-05 | K83: -0.003577089636 | L83: 1.959147174e-05 | M83: 0.0005795557076 | N83: 3.803830632e-07
A84: 39.0517 | B84: ='DF raw data'!D89 -> -7.502983e-06 | C84: ='DF raw data'!E89 -> -1.7030126e-07 | D84: ='DF raw data'!F89 -> 5.8215333e-06 | F84: -7.512346723e-06 | G84: -1.709045793e-07 | H84: 5.828798574e-06 | J84: -7.73217091e-05 | K84: -0.003615762089 | L84: 1.950599382e-05 | M84: 0.0005893116305 | N84: 3.835635823e-07
A85: 39.55185 | B85: ='DF raw data'!D90 -> -3.9468441e-06 | C85: ='DF raw data'!E90 -> 3.8662395e-07 | D85: ='DF raw data'!F90 -> 5.1311758e-06 | F85: -3.951769761e-06 | G85: 3.879936267e-07 | H85: 5.137579507e-06 | J85: -7.929818674e-05 | K85: -0.003655423077 | L85: 1.970004883e-05 | M85: 0.0005991646099 | N85: 3.869027309e-07
A86: 40.052 | B86: ='DF raw data'!D91 -> -1.6023266e-06 | C86: ='DF raw data'!E91 -> 4.746757e-06 | D86: ='DF raw data'!F91 -> 4.6213058e-06 | F86: -1.604326304e-06 | G86: 4.76357314e-06 | H86: 4.62707319e-06 | J86: -8.010059054e-05 | K86: -0.003695485388 | L86: 2.208254994e-05 | M86: 0.0006102091972 | N86: 3.903556383e-07
A87: 40.55215 | B87: ='DF raw data'!D92 -> -1.7884311e-06 | C87: ='DF raw data'!E92 -> -2.5128818e-06 | D87: ='DF raw data'!F92 -> 9.9070485e-07 | F87: =(1-$G$1*($B$2-$G$2))*B87 -> -1.790663062e-06 | G87: -2.521784083e-06 | H87: 9.919412497e-07 | J87: -8.099619067e-05 | K87: -0.003735995633 | L87: 2.082127963e-05 | M87: 0.0006206229602 | N87: 3.938536416e-07
A88: 41.0523 | B88: ='DF raw data'!D93 -> -2.9535447e-06 | C88: ='DF raw data'!E93 -> -5.1171137e-06 | D88: ='DF raw data'!F93 -> -6.6543621e-06 | F88: -2.957230724e-06 | G88: -5.135241888e-06 | H88: -6.662666744e-06 | J88: -8.247524962e-05 | K88: -0.003777245629 | L88: 1.82528884e-05 | M88: 0.0006297521424 | N88: 3.974223793e-07
A89: 41.55245 | B89: ='DF raw data'!D94 -> -4.3616174e-06 | C89: ='DF raw data'!E94 -> -6.9926991e-06 | D89: ='DF raw data'!F94 -> -5.0653803e-06 | F89: -4.367060699e-06 | G89: -7.017471847e-06 | H89: -5.071701895e-06 | J89: -8.465943503e-05 | K89: -0.003819588045 | L89: 1.474309985e-05 | M89: 0.0006371259038 | N89: 4.011157765e-07
A90: 42.0526 | B90: ='DF raw data'!D95 -> -7.0388787e-06 | C90: ='DF raw data'!E95 -> 2.1374553e-06 | D90: ='DF raw data'!F95 -> -7.4481477e-07 | F90: -7.047663221e-06 | G90: 2.145027575e-06 | H90: -7.457442988e-07 | J90: -8.818432379e-05 | K90: -0.003863693435 | L90: 1.581593539e-05 | M90: 0.0006450362438 | N90: 4.051302898e-07
A91: 42.55275 | B91: ='DF raw data'!D96 -> -5.4807469e-06 | C91: ='DF raw data'!E96 -> 7.9752945e-06 | D91: ='DF raw data'!F96 -> 3.9140973e-06 | F91: -5.487586872e-06 | G91: 8.003548247e-06 | H91: 3.918982093e-06 | J91: -9.092894036e-05 | K91: -0.003909171544 | L91: 1.981891005e-05 | M91: 0.0006549486717 | N91: 4.094620197e-07
A92: 43.0529 | B92: ='DF raw data'!D97 -> 3.2973111e-07 | C92: ='DF raw data'!E97 -> 2.4077788e-06 | D92: ='DF raw data'!F97 -> 4.5944867e-06 | F92: 3.301426144e-07 | G92: 2.416308739e-06 | H92: 4.600220619e-06 | J92: -9.076381954e-05 | K92: -0.003954567068 | L92: 2.102742687e-05 | M92: 0.0006654655393 | N92: 4.138034335e-07
A93: 43.55305 | B93: ='DF raw data'!D98 -> 2.1313601e-06 | C93: ='DF raw data'!E98 -> -6.5694358e-08 | D93: ='DF raw data'!F98 -> 4.0350965e-06 | F93: 2.134020037e-06 | G93: -6.592709069e-08 | H93: 4.0401323e-06 | J93: -8.969648941e-05 | K93: -0.003999428768 | L93: 2.099445343e-05 | M93: 0.0006759659151 | N93: 4.180478201e-07
A94: 44.0532 | B94: ='DF raw data'!D99 -> 1.3088713e-06 | C94: ='DF raw data'!E99 -> 7.7096411e-06 | D94: ='DF raw data'!F99 -> -3.4688169e-06 | F94: 1.310504771e-06 | G94: 7.736953728e-06 | H94: -3.473145983e-06 | J94: -8.904104045e-05 | K94: -0.004043962644 | L94: 2.486409084e-05 | M94: 0.0006884016902 | N94: 4.22322367e-07
A95: 44.55335 | B95: ='DF raw data'!D100 -> -1.0206138e-06 | C95: ='DF raw data'!E100 -> 8.3971909e-06 | D95: ='DF raw data'!F100 -> -9.0132999e-06 | F95: -1.021887526e-06 | G95: 8.426939282e-06 | H95: -9.024548498e-06 | J95: -8.95521375e-05 | K95: -0.004088752146 | L95: 2.907882452e-05 | M95: 0.0007029454643 | N95: 4.267562785e-07
A96: 45.0535 | B96: ='DF raw data'!D101 -> -6.0453758e-06 | C96: ='DF raw data'!E101 -> 5.9382619e-06 | D96: ='DF raw data'!F101 -> -2.1212735e-07 | F96: -6.052920429e-06 | G96: 5.959299136e-06 | H96: -2.123920849e-07 | J96: -9.257950565e-05 | K96: -0.004135055785 | L96: 3.205936798e-05 | M96: 0.0007189799571 | N96: 4.315571023e-07
A97: 45.55365 | B97: ='DF raw data'!D102 -> -5.4290877e-06 | C97: ='DF raw data'!E102 -> 3.3843321e-06 | D97: ='DF raw data'!F102 -> 4.5988668e-06 | F97: -5.435863201e-06 | G97: 3.396321634e-06 | H97: 4.604606186e-06 | J97: -9.529825263e-05 | K97: -0.004182719206 | L97: 3.375803825e-05 | M97: 0.00073586404 | N97: 4.366693165e-07
A98: 46.0538 | B98: ='DF raw data'!D103 -> -2.6086498e-06 | C98: ='DF raw data'!E103 -> -3.5362993e-07 | D98: ='DF raw data'!F103 -> 3.7454768e-07 | F98: -2.611905395e-06 | G98: -3.548827202e-07 | H98: 3.750151155e-07 | J98: -9.660459711e-05 | K98: -0.004231035996 | L98: 3.358054366e-05 | M98: 0.0007526593489 | N98: 4.419009361e-07
A99: 46.55395 | B99: ='DF raw data'!D104 -> -2.192465e-06 | C99: ='DF raw data'!E104 -> 4.2258575e-06 | D99: ='DF raw data'!F104 -> 1.7337256e-06 | F99: -2.195201196e-06 | G99: 4.240828271e-06 | H99: 1.73588929e-06 | J99: -9.770252699e-05 | K99: -0.004279901915 | L99: 3.570159391e-05 | M99: 0.0007705155011 | N99: 4.473127529e-07
A100: 47.0541 | B100: ='DF raw data'!D105 -> -1.7188147e-06 | C100: ='DF raw data'!E105 -> -2.6463092e-06 | D100: ='DF raw data'!F105 -> 1.0041866e-05 | F100: -1.720959781e-06 | G100: -2.65568417e-06 | H100: 1.005439825e-05 | J100: -9.856326503e-05 | K100: -0.004329198332 | L100: 3.437335348e-05 | M100: 0.0007877073338 | N100: 4.527625097e-07
A101: 47.55425 | B101: ='DF raw data'!D106 -> 2.7916533e-06 | C101: ='DF raw data'!E106 -> -6.8928957e-06 | D101: ='DF raw data'!F106 -> 9.6821423e-06 | F101: 2.795137283e-06 | G101: -6.917314877e-06 | H101: 9.694225614e-06 | J101: -9.716527711e-05 | K101: -0.004377795545 | L101: 3.091365844e-05 | M101: 0.0008031688001 | N101: 4.579624419e-07
A102: 48.0544 | B102: ='DF raw data'!D107 -> 9.5649148e-06 | C102: ='DF raw data'!E107 -> -1.3299134e-05 | D102: ='DF raw data'!F107 -> 7.3553701e-07 | F102: 9.576851814e-06 | G102: -1.334624829e-05 | H102: 7.364549602e-07 | J102: -9.237541468e-05 | K102: -0.004423997109 | L102: 2.423853236e-05 | M102: 0.0008152917021 | N102: 4.625241718e-07
A103: 48.55455 | B103: ='DF raw data'!D108 -> 6.997273e-06 | C103: ='DF raw data'!E108 -> 4.1722196e-06 | D103: ='DF raw data'!F108 -> -6.1515017e-08 | F103: 7.006005597e-06 | G103: 4.18700035e-06 | H103: -6.159178774e-08 | J103: -8.887136098e-05 | K103: -0.00446844612 | L103: 2.633266058e-05 | M103: 0.0008284619822 | N103: 4.668212245e-07
A104: 49.0547 | B104: ='DF raw data'!D109 -> -1.2665848e-06 | C104: ='DF raw data'!E109 -> 3.4659897e-06 | D104: ='DF raw data'!F109 -> 3.3941719e-06 | F104: -1.268165498e-06 | G104: 3.478268519e-06 | H104: 3.398407827e-06 | J104: -8.950563395e-05 | K104: -0.004513212363 | L104: 2.807231658e-05 | M104: 0.0008425023514 | N104: 4.712222011e-07
A105: 49.55485 | B105: ='DF raw data'!D110 -> -3.8076694e-06 | C105: ='DF raw data'!E110 -> -1.8285339e-06 | D105: ='DF raw data'!F110 -> 9.1983702e-07 | F105: -3.812421371e-06 | G105: -1.835011772e-06 | H105: 9.209849766e-07 | J105: -9.14124165e-05 | K105: -0.004558932283 | L105: 2.715453544e-05 | M105: 0.0008560836923 | N105: 4.757703645e-07
A106: 50.055 | B106: ='DF raw data'!D111 -> 2.0039436e-06 | C106: ='DF raw data'!E111 -> 2.7147624e-07 | D106: ='DF raw data'!F111 -> -1.0168919e-06 | F106: 2.006444522e-06 | G106: 2.724379877e-07 | H106: -1.018160981e-06 | J106: -9.040889328e-05 | K106: -0.004604150291 | L106: 2.72907953e-05 | M106: 0.0008697331836 | N106: 4.8023098e-07
A107: 50.55515 | B107: ='DF raw data'!D112 -> 7.5615671e-06 | C107: ='DF raw data'!E112 -> -4.9111013e-06 | D107: ='DF raw data'!F112 -> 4.4676884e-07 | F107: 7.571003936e-06 | G107: -4.928499656e-06 | H107: 4.473264075e-07 | J107: -8.662225566e-05 | K107: -0.004647474412 | L107: 2.48258062e-05 | M107: 0.0008821498105 | N107: 4.842920659e-07
A108: 51.0553 | B108: ='DF raw data'!D113 -> 7.4070404e-06 | C108: ='DF raw data'!E113 -> -6.7729443e-06 | D108: ='DF raw data'!F113 -> 3.8003595e-06 | F108: 7.416284386e-06 | G108: -6.796938531e-06 | H108: 3.805102349e-06 | J108: -8.291300102e-05 | K108: -0.004688943349 | L108: 2.142631739e-05 | M108: 0.0008928661832 | N108: 4.879599923e-07
A109: 51.55545 | B109: ='DF raw data'!D114 -> 1.3438541e-06 | C109: ='DF raw data'!E114 -> -4.8229067e-06 | D109: ='DF raw data'!F114 -> 4.5098964e-06 | F109: 1.34553123e-06 | G109: -4.839992613e-06 | H109: 4.515524751e-06 | J109: -8.224003358e-05 | K109: -0.004730075702 | L109: 1.900559509e-05 | M109: 0.0009023718316 | N109: 4.915233789e-07
A110: 52.0556 | B110: ='DF raw data'!D115 -> -1.6138081e-06 | C110: ='DF raw data'!E115 -> 3.2485034e-06 | D110: ='DF raw data'!F115 -> 7.6095921e-07 | F110: -1.615822133e-06 | G110: 3.260011739e-06 | H110: 7.619088871e-07 | J110: -8.304818702e-05 | K110: -0.004771612253 | L110: 2.063608996e-05 | M110: 0.000912692972 | N110: 4.951859021e-07
A111: 52.55575 | B111: ='DF raw data'!D116 -> -1.5046105e-06 | C111: ='DF raw data'!E116 -> 1.0470916e-05 | D111: ='DF raw data'!F116 -> 1.8658279e-06 | F111: -1.506488254e-06 | G111: 1.050801088e-05 | H111: 1.868156453e-06 | J111: -8.380165712e-05 | K111: -0.004813525652 | L111: 2.58916716e-05 | M111: 0.0009256426915 | N111: 4.990336043e-07
A112: 53.0559 | B112: ='DF raw data'!D117 -> -1.2031676e-06 | C112: ='DF raw data'!E117 -> -1.1874165e-06 | D112: ='DF raw data'!F117 -> 1.911812e-06 | F112: -1.204669153e-06 | G112: -1.191623111e-06 | H112: 1.914197941e-06 | J112: -8.440417239e-05 | K112: -0.004855740398 | L112: 2.52956813e-05 | M112: 0.0009382943265 | N112: 5.029167368e-07
A113: 53.55605 | B113: ='DF raw data'!D118 -> -4.0073801e-06 | C113: ='DF raw data'!E118 -> -6.3470452e-06 | D113: ='DF raw data'!F118 -> 9.7932525e-07 | F113: -4.01238131e-06 | G113: -6.369530615e-06 | H113: 9.805474479e-07 | J113: -8.641096491e-05 | K113: -0.004898958842 | L113: 2.210996057e-05 | M113: 0.0009493526233 | N113: 5.068957828e-07
A114: 54.0562 | B114: ='DF raw data'!D119 -> -7.3699493e-06 | C114: ='DF raw data'!E119 -> 2.9270773e-06 | D114: ='DF raw data'!F119 -> -3.1497516e-06 | F114: -7.379146997e-06 | G114: 2.937446936e-06 | H114: -3.15368249e-06 | J114: -9.010164528e-05 | K114: -0.00494402318 | L114: 2.357912465e-05 | M114: 0.0009611457225 | N114: 5.112342247e-07
A115: 54.55635 | B115: ='DF raw data'!D120 -> -4.6727373e-06 | C115: ='DF raw data'!E120 -> -1.3260471e-06 | D115: ='DF raw data'!F120 -> -1.6896852e-06 | F115: -4.678568876e-06 | G115: -1.330744832e-06 | H115: -1.691793927e-06 | J115: -9.24416315e-05 | K115: -0.004990257862 | L115: 2.291355262e-05 | M115: 0.0009726059358 | N115: 5.157708283e-07
A116: 55.0565 | B116: ='DF raw data'!D121 -> 1.0471486e-07 | C116: ='DF raw data'!E121 -> -4.9263126e-06 | D116: ='DF raw data'!F121 -> -5.5870955e-06 | F116: 1.048455441e-07 | G116: -4.943764845e-06 | H116: -5.594068195e-06 | J116: -9.2389193e-05 | K116: -0.005036466317 | L116: 2.044092864e-05 | M116: 0.0009828294663 | N116: 5.202489686e-07
A117: 55.55665 | B117: ='DF raw data'!D122 -> 2.4661852e-06 | C117: ='DF raw data'!E122 -> -2.7270328e-06 | D117: ='DF raw data'!F122 -> -9.6516778e-06 | F117: 2.469262999e-06 | G117: -2.736693747e-06 | H117: -9.663723094e-06 | J117: -9.115419111e-05 | K117: -0.005082057086 | L117: 1.907217126e-05 | M117: 0.0009923684127 | N117: 5.245866867e-07
A118: 56.0568 | B118: ='DF raw data'!D123 -> 2.5770562e-06 | C118: ='DF raw data'!E123 -> 2.2659456e-06 | D118: ='DF raw data'!F123 -> -3.3600559e-06 | F118: 2.580272366e-06 | G118: 2.273973072e-06 | H118: -3.36424925e-06 | J118: -8.986366789e-05 | K118: -0.005127002399 | L118: 2.020949889e-05 | M118: 0.001002476194 | N118: 5.288299106e-07
A119: 56.55695 | B119: ='DF raw data'!D124 -> -1.2699172e-06 | C119: ='DF raw data'!E124 -> -3.9280103e-06 | D119: ='DF raw data'!F124 -> 5.5346277e-06 | F119: -1.271502057e-06 | G119: -3.9419259e-06 | H119: 5.541534915e-06 | J119: -9.049960964e-05 | K119: -0.005172265779 | L119: 1.823794465e-05 | M119: 0.001011597902 | N119: 5.3309259e-07
A120: 57.0571 | B120: ='DF raw data'!D125 -> -8.104661e-06 | C120: ='DF raw data'!E125 -> -6.6040257e-06 | D120: ='DF raw data'!F125 -> 9.5489049e-06 | F120: -8.114775617e-06 | G120: -6.62742151e-06 | H120: 9.560821933e-06 | J120: -9.455821467e-05 | K120: -0.00521955907 | L120: 1.492323978e-05 | M120: 0.00101906176 | N120: 5.376759441e-07
A121: 57.55725 | B121: ='DF raw data'!D126 -> -1.0377757e-05 | C121: ='DF raw data'!E126 -> -1.2691507e-05 | D121: ='DF raw data'!F126 -> 5.102494e-06 | F121: -1.039070844e-05 | G121: -1.273646868e-05 | H121: 5.108861913e-06 | J121: -9.975512749e-05 | K121: -0.005269451597 | L121: 8.553094975e-06 | M121: 0.00102333959 | N121: 5.426895682e-07
A122: 58.0574 | B122: ='DF raw data'!D127 -> -7.8048915e-06 | C122: ='DF raw data'!E127 -> 1.7497159e-06 | D122: ='DF raw data'!F127 -> 1.7769157e-06 | F122: -7.814632005e-06 | G122: 1.755914546e-06 | H122: 1.779133291e-06 | J122: -0.0001036636157 | K122: -0.005321298955 | L122: 9.431315636e-06 | M122: 0.001028056663 | N122: 5.48108741e-07
A123: 58.55755 | B123: ='DF raw data'!D128 -> -3.9031884e-06 | C123: ='DF raw data'!E128 -> -1.763555e-06 | D123: ='DF raw data'!F128 -> 1.1504595e-05 | F123: -3.908059579e-06 | G123: -1.769802674e-06 | H123: 1.151895273e-05 | J123: -0.0001056182317 | K123: -0.005374123913 | L123: 8.546148829e-06 | M123: 0.001032331019 | N123: 5.53724549e-07
A124: 59.0577 | B124: ='DF raw data'!D129 -> 1.9113643e-06 | C124: ='DF raw data'!E129 -> -5.9064687e-06 | D124: ='DF raw data'!F129 -> 1.510356e-05 | F124: 1.913749683e-06 | G124: -5.927393303e-06 | H124: 1.512240924e-05 | J124: -0.0001046610698 | K124: -0.005426470147 | L124: 5.581563068e-06 | M124: 0.001035122638 | N124: 5.592187434e-07
A125: 59.55785 | B125: ='DF raw data'!D130 -> 5.7080752e-06 | C125: ='DF raw data'!E130 -> 6.6524972e-06 | D125: ='DF raw data'!F130 -> 4.7865574e-06 | F125: 5.715198878e-06 | G125: 6.676064728e-06 | H125: 4.792531024e-06 | J125: -0.0001018026131 | K125: -0.005477386724 | L125: 8.920596841e-06 | M125: 0.001039584275 | N125: 5.644419844e-07
A126: 60.058 | B126: ='DF raw data'!D131 -> 8.49353e-06 | C126: ='DF raw data'!E131 -> 2.6560545e-07 | D126: ='DF raw data'!F131 -> -3.1349814e-06 | F126: 8.504129925e-06 | G126: 2.665463995e-07 | H126: -3.138893857e-06 | J126: -9.754927248e-05 | K126: -0.005526175993 | L126: 9.053910023e-06 | M126: 0.001044112588 | N126: 5.69242341e-07
A127: 60.55815 | B127: ='DF raw data'!D132 -> 6.0493612e-06 | C127: ='DF raw data'!E132 -> 7.1842046e-06 | D127: ='DF raw data'!F132 -> -1.7406023e-06 | F127: 6.056910803e-06 | G127: 7.209655785e-06 | H127: -1.742774572e-06 | J127: -9.451990855e-05 | K127: -0.005573450125 | L127: 1.265981936e-05 | M127: 0.001050444396 | N127: 5.737908473e-07
A128: 61.0583 | B128: ='DF raw data'!D133 -> 3.3749814e-06 | C128: ='DF raw data'!E133 -> 3.0587698e-06 | D128: ='DF raw data'!F133 -> 5.3042854e-06 | F128: 3.379193377e-06 | G128: 3.069605978e-06 | H128: 5.310905148e-06 | J128: -9.282980498e-05 | K128: -0.005619878952 | L128: 1.419508279e-05 | M128: 0.001057544067 | N128: 5.782016066e-07
A129: 61.55845 | B129: ='DF raw data'!D134 -> 4.1385201e-06 | C129: ='DF raw data'!E134 -> 1.6170893e-06 | D129: ='DF raw data'!F134 -> 1.1551641e-05 | F129: 4.143684973e-06 | G129: 1.622818096e-06 | H129: 1.156605745e-05 | J129: -9.075734094e-05 | K129: -0.005665271236 | L129: 1.500673526e-05 | M129: 0.001065049686 | N129: 5.824339245e-07
A130: 62.0586 | B130: ='DF raw data'!D135 -> 4.7075582e-06 | C130: ='DF raw data'!E135 -> -6.0141438e-06 | D130: ='DF raw data'!F135 -> 9.5392425e-06 | F130: 4.713433233e-06 | G130: -6.035449859e-06 | H130: 9.551147475e-06 | J130: -8.839991731e-05 | K130: -0.005709484455 | L130: 1.198810502e-05 | M130: 0.001071045536 | N130: 5.864142482e-07
A131: 62.55875 | B131: ='DF raw data'!D136 -> 3.4572724e-06 | C131: ='DF raw data'!E136 -> -5.1209827e-06 | D131: ='DF raw data'!F136 -> 1.7734524e-06 | F131: 3.461587076e-06 | G131: -5.139124594e-06 | H131: 1.775665669e-06 | J131: -8.666860453e-05 | K131: -0.005752831757 | L131: 9.417771852e-06 | M131: 0.001075755835 | N131: 5.90215459e-07
A132: 63.0589 | B132: ='DF raw data'!D137 -> 2.0718865e-06 | C132: ='DF raw data'!E137 -> 3.4423731e-06 | D132: ='DF raw data'!F137 -> 4.4038711e-06 | F132: 2.074472214e-06 | G132: 3.454568253e-06 | H132: 4.409367131e-06 | J132: -8.563105725e-05 | K132: -0.005795660131 | L132: 1.114557416e-05 | M132: 0.001081330294 | N132: 5.939450284e-07
A133: 63.55905 | B133: ='DF raw data'!D138 -> 2.1033914e-06 | C133: ='DF raw data'!E138 -> 1.1978243e-05 | D133: ='DF raw data'!F138 -> 8.1963917e-06 | F133: 2.106016432e-06 | G133: 1.202067783e-05 | H133: 8.206620797e-06 | J133: -8.457773314e-05 | K133: -0.005837961684 | L133: 1.715771618e-05 | M133: 0.001089911726 | N133: 5.976700356e-07
A134: 64.0592 | B134: ='DF raw data'!D139 -> 3.6616686e-06 | C134: ='DF raw data'!E139 -> 4.8496295e-06 | D134: ='DF raw data'!F139 -> 4.7204044e-06 | F134: 3.666238362e-06 | G134: 4.866810082e-06 | H134: 4.726295465e-06 | J134: -8.274406402e-05 | K134: -0.005879346127 | L134: 1.959185124e-05 | M134: 0.00109971059 | N134: 6.012863306e-07
A135: 64.55935 | B135: ='DF raw data'!D140 -> 2.8622737e-06 | C135: ='DF raw data'!E140 -> -1.2391863e-06 | D135: ='DF raw data'!F140 -> 2.7413439e-06 | F135: 2.865845818e-06 | G135: =(1-$G$1*($B$2-$G$2))*C135*$M$2/$M$1 -> -1.243576314e-06 | H135: 2.744765097e-06 | J135: -8.131071123e-05 | K135: -0.00592001368 | L135: 1.896987655e-05 | M135: 0.001109198374 | N135: 6.047730203e-07
A136: =A135+$B$1 -> 65.0595 | B136: ='DF raw data'!D141 -> -2.0606392e-06 | C136: ='DF raw data'!E141 -> 7.1270979e-06 | D136: ='DF raw data'!F141 -> -1.2252754e-06 | F136: -2.063210878e-06 | G136: 7.152346776e-06 | H136: -1.226804544e-06 | J136: =F136*$B$1+J135 -> -8.234262615e-05 | K136: =J136*$B$1+K135 -> -0.005961197344 | L136: =G136*$B$1+L135 -> 2.254712279e-05 | M136: =L136*$B$1+M135 -> 0.001120475317 | N136: =(J136^2+L136^2)*$B$1+N135 -> 6.08418454e-07
A137: 65.55965 | B137: ='DF raw data'!D142 -> -5.3595295e-06 | C137: ='DF raw data'!E142 -> 5.3182257e-06 | D137: ='DF raw data'!F142 -> 6.4057122e-07 | F137: -5.366218193e-06 | G137: 5.337066359e-06 | H137: 6.413706529e-07 | J137: -8.502654018e-05 | K137: -0.006003723368 | L137: 2.521645653e-05 | M137: 0.001133087328 | N137: 6.123523249e-07
A138: 66.0598 | B138: ='DF raw data'!D143 -> -3.6177669e-06 | C138: ='DF raw data'!E143 -> 6.2941122e-06 | D138: ='DF raw data'!F143 -> 7.6776014e-06 | F138: -3.622281873e-06 | G138: 6.316410092e-06 | H138: 7.687183047e-06 | J138: -8.683822446e-05 | K138: -0.006047155506 | L138: 2.837560903e-05 | M138: 0.001147279389 | N138: 6.16526603e-07
A139: 66.55995 | B139: ='DF raw data'!D144 -> -1.6885031e-06 | C139: ='DF raw data'!E144 -> 6.6971957e-06 | D139: ='DF raw data'!F144 -> 1.0519518e-05 | F139: -1.690610352e-06 | G139: 6.720921579e-06 | H139: 1.053264636e-05 | J139: -8.768378323e-05 | K139: -0.00609101055 | L139: 3.173707796e-05 | M139: 0.001163152688 | N139: 6.208757513e-07
A140: 67.0601 | B140: ='DF raw data'!D145 -> -9.5686187e-07 | C140: ='DF raw data'!E145 -> 4.7826488e-06 | D140: ='DF raw data'!F145 -> 1.0831322e-05 | F140: -9.580560336e-07 | G140: 4.799592093e-06 | H140: 1.084483949e-05 | J140: -8.816295495e-05 | K140: -0.006135105252 | L140: 3.413759395e-05 | M140: 0.001180226606 | N140: 6.25346133e-07
A141: 67.56025 | B141: ='DF raw data'!D146 -> 3.382723e-06 | C141: ='DF raw data'!E146 -> 1.6347017e-06 | D141: ='DF raw data'!F146 -> 8.2727893e-06 | F141: 3.386944638e-06 | G141: 1.64049289e-06 | H141: 8.283113741e-06 | J141: -8.646897459e-05 | K141: -0.00617835271 | L141: 3.495808647e-05 | M141: 0.001197710893 | N141: 6.296969136e-07
A142: 68.0604 | B142: ='DF raw data'!D147 -> 7.2330286e-06 | C142: ='DF raw data'!E147 -> -3.1773808e-07 | D142: ='DF raw data'!F147 -> 5.0101039e-06 | F142: 7.24205542e-06 | G142: -3.188637176e-07 | H142: 5.01635651e-06 | J142: -8.284686057e-05 | K142: -0.006219788567 | L142: 3.479860678e-05 | M142: 0.001215115416 | N142: 6.337353974e-07
A143: 68.56055 | B143: ='DF raw data'!D148 -> 8.9523664e-06 | C143: ='DF raw data'!E148 -> -1.0097282e-05 | D143: ='DF raw data'!F148 -> 8.8249681e-07 | F143: 8.963538953e-06 | G143: -1.013305322e-05 | H143: 8.83598166e-07 | J143: -7.836374657e-05 | K143: -0.006258982195 | L143: 2.973056021e-05 | M143: 0.001229985156 | N143: 6.372488426e-07
A144: 69.0607 | B144: ='DF raw data'!D149 -> 9.4766719e-06 | C144: ='DF raw data'!E149 -> -4.3661848e-06 | D144: ='DF raw data'!F149 -> -1.7167808e-06 | F144: 9.488498787e-06 | G144: -4.381652703e-06 | H144: -1.718923342e-06 | J144: -7.36180739e-05 | K144: -0.006295802275 | L144: 2.753907661e-05 | M144: 0.001243758825 | N144: 6.403387801e-07
A145: 69.56085 | B145: ='DF raw data'!D150 -> 5.5592818e-06 | C145: ='DF raw data'!E150 -> 6.6705102e-06 | D145: ='DF raw data'!F150 -> -2.2645149e-06 | F145: 5.566219784e-06 | G145: 6.694141541e-06 | H145: -2.267341015e-06 | J145: -7.083412907e-05 | K145: -0.006331229964 | L145: 3.08871515e-05 | M145: 0.001259207034 | N145: 6.433254208e-07
A146: 70.061 | B146: ='DF raw data'!D151 -> -9.612711e-07 | C146: ='DF raw data'!E151 -> 8.6026685e-06 | D146: ='DF raw data'!F151 -> -2.7880421e-07 | F146: -9.624707663e-07 | G146: 8.633144819e-06 | H146: -2.791521577e-07 | J146: -7.131550883e-05 | K146: -0.006366898416 | L146: 3.520501888e-05 | M146: 0.001276814824 | N146: 6.464890172e-07
A147: 70.56115 | B147: ='DF raw data'!D152 -> -4.2414767e-06 | C147: ='DF raw data'!E152 -> -7.4180653e-06 | D147: ='DF raw data'!F152 -> -1.2956193e-06 | F147: -4.246770063e-06 | G147: -7.444344974e-06 | H147: -1.297236233e-06 | J147: -7.343953088e-05 | K147: -0.006403629198 | L147: 3.148172974e-05 | M147: 0.001292560411 | N147: 6.496822068e-07
A148: 71.0613 | B148: ='DF raw data'!D153 -> -3.8985754e-06 | C148: ='DF raw data'!E153 -> -1.4361215e-05 | D148: ='DF raw data'!F153 -> 2.7873425e-06 | F148: -3.903440822e-06 | G148: -1.441209188e-05 | H148: 2.790821103e-06 | J148: -7.53918368e-05 | K148: -0.006441336425 | L148: 2.427352199e-05 | M148: 0.001304700813 | N148: 6.528197143e-07
A149: 71.56145 | B149: ='DF raw data'!D154 -> -8.7021982e-07 | C149: ='DF raw data'!E154 -> 5.6552626e-06 | D149: ='DF raw data'!F154 -> 5.1874044e-06 | F149: -8.713058543e-07 | G149: 5.675297266e-06 | H149: 5.193878281e-06 | J149: -7.582762043e-05 | K149: -0.006479261609 | L149: 2.711202191e-05 | M149: 0.001318260891 | N149: 6.560631319e-07
A150: 72.0616 | B150: ='DF raw data'!D155 -> 4.3968457e-06 | C150: ='DF raw data'!E155 -> 4.5502188e-06 | D150: ='DF raw data'!F155 -> 1.5651632e-07 | F150: 4.402332963e-06 | G150: 4.566338673e-06 | H150: 1.567116524e-07 | J150: -7.362579359e-05 | K150: -0.00651608555 | L150: 2.93958762e-05 | M150: 0.001332963238 | N150: 6.592065121e-07
A151: 72.56175 | B151: ='DF raw data'!D156 -> 5.0534572e-06 | C151: ='DF raw data'!E156 -> 6.5161026e-07 | D151: ='DF raw data'!F156 -> -3.0347478e-06 | F151: =(1-$G$1*($B$2-$G$2))*B151 -> 5.059763915e-06 | G151: 6.539186928e-07 | H151: -3.038535165e-06 | J151: -7.109515267e-05 | K151: -0.00655164379 | L151: 2.972293364e-05 | M151: 0.001347829164 | N151: 6.621763896e-07
A152: 73.0619 | B152: ='DF raw data'!D157 -> 2.8908391e-06 | C152: ='DF raw data'!E157 -> -3.8055243e-06 | D152: ='DF raw data'!F157 -> -8.066494e-06 | F152: 2.894446867e-06 | G152: -3.819005974e-06 | H152: -8.076560985e-06 | J152: -6.964749507e-05 | K152: -0.006586477985 | L152: 2.78128578e-05 | M152: 0.001361739764 | N152: 6.649893975e-07
A153: 73.56205 | B153: ='DF raw data'!D158 -> 2.5390029e-06 | C153: ='DF raw data'!E158 -> 2.0248426e-06 | D153: ='DF raw data'!F158 -> -6.3531375e-06 | F153: 2.542171576e-06 | G153: 2.032015926e-06 | H153: -6.361066216e-06 | J153: -6.837602796e-05 | K153: -0.006620676255 | L153: 2.882917056e-05 | M153: 0.001376158674 | N153: 6.677434246e-07
A154: 74.0622 | B154: ='DF raw data'!D159 -> 2.5014881e-06 | C154: ='DF raw data'!E159 -> 6.5146673e-06 | D154: ='DF raw data'!F159 -> -4.4532936e-08 | F154: 2.504609957e-06 | G154: 6.537746543e-06 | H154: -4.45885131e-08 | J154: -6.712334729e-05 | K154: -0.006654247998 | L154: 3.20990245e-05 | M154: 0.001392213001 | N154: 6.705122006e-07
A155: 74.56235 | B155: ='DF raw data'!D160 -> 8.0064564e-07 | C155: ='DF raw data'!E160 -> 4.0713485e-06 | D155: ='DF raw data'!F160 -> 4.7375029e-06 | F155: 8.016448458e-07 | G155: 4.085771898e-06 | H155: 4.743415304e-06 | J155: -6.672240462e-05 | K155: -0.006687619208 | L155: 3.414252331e-05 | M155: 0.001409289384 | N155: 6.733218388e-07
A156: 75.0625 | B156: ='DF raw data'!D161 -> 2.6672132e-07 | C156: ='DF raw data'!E161 -> 3.447977e-06 | D156: ='DF raw data'!F161 -> 9.4857705e-07 | F156: 2.670541882e-07 | G156: 3.460192006e-06 | H156: 9.497608742e-07 | J156: -6.658883747e-05 | K156: -0.006720923615 | L156: 3.587313834e-05 | M156: 0.001427231334 | N156: 6.761831746e-07
A157: 75.56265 | B157: ='DF raw data'!D162 -> 7.0055385e-06 | C157: ='DF raw data'!E162 -> -5.3061794e-06 | D157: ='DF raw data'!F162 -> 7.1052227e-07 | F157: 7.014281412e-06 | G157: -5.324977383e-06 | H157: 7.114090018e-07 | J157: -6.308064462e-05 | K157: -0.0067524734 | L157: 3.320985091e-05 | M157: 0.001443841241 | N157: 6.787249679e-07
A158: 76.0628 | B158: ='DF raw data'!D163 -> 1.340889e-05 | C158: ='DF raw data'!E163 -> -5.5528863e-06 | D158: ='DF raw data'!F163 -> 8.7578337e-06 | F158: 1.342562429e-05 | G158: -5.572558281e-06 | H158: 8.768763476e-06 | J158: -5.636581863e-05 | K158: -0.006780664764 | L158: 3.042273588e-05 | M158: 0.001459057173 | N158: 6.807769075e-07
A159: 76.56295 | B159: ='DF raw data'!D164 -> 1.5502155e-05 | C159: ='DF raw data'!E164 -> 9.5809241e-07 | D159: ='DF raw data'!F164 -> 1.2064806e-06 | F159: 1.552150169e-05 | G159: 9.614866045e-07 | H159: 1.207986288e-06 | J159: -4.860273956e-05 | K159: -0.006804973424 | L159: 3.090362341e-05 | M159: 0.00147451362 | N159: 6.824360352e-07
A160: 77.0631 | B160: ='DF raw data'!D165 -> 1.9414278e-05 | C160: ='DF raw data'!E165 -> 6.00671e-06 | D160: ='DF raw data'!F165 -> -7.450541e-06 | F160: 1.943850702e-05 | G160: 6.027989724e-06 | H160: -7.459839275e-06 | J160: -3.888057027e-05 | K160: -0.006824419541 | L160: 3.391852247e-05 | M160: 0.001491477969 | N160: 6.83767517e-07
A161: 77.56325 | B161: ='DF raw data'!D166 -> 2.1501924e-05 | C161: ='DF raw data'!E166 -> 8.4300136e-06 | D161: ='DF raw data'!F166 -> 2.5602233e-07 | F161: 2.15287584e-05 | G161: 8.459878262e-06 | H161: 2.563418459e-07 | J161: -2.811296176e-05 | K161: -0.006838480239 | L161: 3.814973058e-05 | M161: 0.001510558557 | N161: 6.848907241e-07
A162: 78.0634 | B162: ='DF raw data'!D167 -> 1.8364837e-05 | C162: ='DF raw data'!E167 -> 1.2337296e-05 | D162: ='DF raw data'!F167 -> -4.1570863e-07 | F162: 1.838775632e-05 | G162: 1.238100283e-05 | H162: -4.162274344e-07 | J162: -1.891632543e-05 | K162: -0.006847941239 | L162: 4.434208915e-05 | M162: 0.001532736253 | N162: 6.860530968e-07
A163: 78.56355 | B163: ='DF raw data'!D168 -> 1.3429642e-05 | C163: ='DF raw data'!E168 -> 6.8048712e-06 | D163: ='DF raw data'!F168 -> -5.9982599e-06 | F163: 1.344640219e-05 | G163: 6.828978537e-06 | H163: -6.005745728e-06 | J163: -1.219110738e-05 | K163: -0.006854038622 | L163: 4.775760276e-05 | M163: 0.001556622218 | N163: 6.872681671e-07
A164: 79.0637 | B164: ='DF raw data'!D169 -> 5.8298892e-06 | C164: ='DF raw data'!E169 -> -2.796148e-06 | D164: ='DF raw data'!F169 -> 2.2962299e-06 | F164: 5.837164902e-06 | G164: -2.806053798e-06 | H164: 2.299095595e-06 | J164: -9.271649352e-06 | K164: -0.006858675837 | L164: 4.635415495e-05 | M164: 0.001579806248 | N164: 6.883858379e-07
A165: 79.56385 | B165: ='DF raw data'!D170 -> 3.1043527e-07 | C165: ='DF raw data'!E170 -> -8.2244987e-06 | D165: ='DF raw data'!F170 -> 6.1091228e-06 | F165: 3.108226932e-07 | G165: -8.253635292e-06 | H165: 6.116746985e-06 | J165: -9.116191382e-06 | K165: -0.0068632353 | L165: 4.222609926e-05 | M165: 0.001600925632 | N165: 6.89319192e-07
A166: 80.064 | B166: ='DF raw data'!D171 -> -9.8808229e-08 | C166: ='DF raw data'!E171 -> 6.5623008e-06 | D166: ='DF raw data'!F171 -> 7.5743114e-06 | F166: -9.893154167e-08 | G166: 6.585548792e-06 | H166: 7.583764141e-06 | J166: -9.165671993e-06 | K166: -0.006867819511 | L166: 4.551986149e-05 | M166: 0.00162369239 | N166: 6.903975491e-07
A167: 80.56415 | B167: ='DF raw data'!D172 -> -1.2268727e-06 | C167: ='DF raw data'!E172 -> 8.7541084e-06 | D167: ='DF raw data'!F172 -> 8.8209308e-06 | F167: -1.228403837e-06 | G167: 8.785121219e-06 | H167: 8.831939322e-06 | J167: -9.780058172e-06 | K167: -0.006872711007 | L167: 4.991373987e-05 | M167: 0.001648656747 | N167: 6.916914526e-07
A168: 81.0643 | B168: ='DF raw data'!D173 -> -3.3460244e-06 | C168: ='DF raw data'!E173 -> 1.9040911e-06 | D168: ='DF raw data'!F173 -> 5.2027858e-06 | F168: -3.350200238e-06 | G168: 1.910836645e-06 | H168: 5.209278877e-06 | J168: -1.145566082e-05 | K168: -0.006878440556 | L168: 5.086944482e-05 | M168: 0.0016740991 | N168: 6.930513268e-07
A169: 81.56445 | B169: ='DF raw data'!D174 -> -2.5274792e-06 | C169: ='DF raw data'!E174 -> -1.1216368e-06 | D169: ='DF raw data'!F174 -> 1.5026412e-06 | F169: -2.530633494e-06 | G169: -1.125610376e-06 | H169: 1.504516496e-06 | J169: -1.272135716e-05 | K169: -0.006884803143 | L169: 5.030647079e-05 | M169: 0.001699259882 | N169: 6.943980176e-07
A170: 82.0646 | B170: ='DF raw data'!D175 -> 1.1936638e-06 | C170: ='DF raw data'!E175 -> 1.8368439e-06 | D170: ='DF raw data'!F175 -> 2.7852034e-06 | F170: 1.195153492e-06 | G170: 1.843351211e-06 | H170: 2.788679334e-06 | J170: -1.212360114e-05 | K170: -0.006890866762 | L170: 5.122842289e-05 | M170: 0.001724881777 | N170: 6.957840998e-07
A171: 82.56475 | B171: ='DF raw data'!D176 -> 3.2259261e-06 | C171: ='DF raw data'!E176 -> 1.0661984e-05 | D171: ='DF raw data'!F176 -> 6.1799324e-06 | F171: 3.229952056e-06 | G171: 1.069975577e-05 | H171: 6.187644956e-06 | J171: -1.050814062e-05 | K171: -0.006896122408 | L171: 5.657990574e-05 | M171: 0.001753180217 | N171: 6.974404499e-07
A172: 83.0649 | B172: ='DF raw data'!D177 -> 3.697641e-06 | C172: ='DF raw data'!E177 -> 1.0780467e-05 | D172: ='DF raw data'!F177 -> 9.4758834e-06 | F172: 3.702255656e-06 | G172: 1.081865852e-05 | H172: 9.487709302e-06 | J172: -8.656457457e-06 | K172: -0.006900451935 | L172: 6.19908578e-05 | M172: 0.001784184945 | N172: 6.99399938e-07
A173: 83.56505 | B173: ='DF raw data'!D178 -> 8.6573264e-06 | C173: ='DF raw data'!E178 -> 3.8159692e-06 | D173: ='DF raw data'!F178 -> 1.0747532e-05 | F173: 8.668130743e-06 | G173: 3.829487877e-06 | H173: 1.076094492e-05 | J173: -4.321091866e-06 | K173: -0.00690261313 | L173: 6.390617616e-05 | M173: 0.001816147619 | N173: 7.01451889e-07
A174: 84.0652 | B174: ='DF raw data'!D179 -> 1.4457181e-05 | C174: ='DF raw data'!E179 -> -4.8764105e-06 | D174: ='DF raw data'!F179 -> 1.5007867e-05 | F174: 1.447522356e-05 | G174: -4.893685958e-06 | H174: 1.502659682e-05 | J174: 2.918691199e-06 | K174: -0.006901153346 | L174: 6.145859913e-05 | M174: 0.001846886137 | N174: 7.033452959e-07
A175: 84.56535 | B175: ='DF raw data'!D180 -> 1.2942647e-05 | C175: ='DF raw data'!E180 -> -5.4676266e-06 | D175: ='DF raw data'!F180 -> 1.6708258e-05 | F175: 1.295879942e-05 | G175: -5.486996535e-06 | H175: 1.672910991e-05 | J175: 9.40003473e-06 | K175: -0.006896451919 | L175: 5.871427781e-05 | M175: 0.001876252083 | N175: 7.051136898e-07
A176: 85.0655 | B176: ='DF raw data'!D181 -> 5.6157578e-06 | C176: ='DF raw data'!E181 -> -1.8017474e-07 | D176: ='DF raw data'!F181 -> 1.592618e-05 | F176: 5.622766266e-06 | G176: -1.808130376e-07 | H176: 1.594605587e-05 | J176: 1.221226128e-05 | K176: -0.006890343956 | L176: 5.862384417e-05 | M176: 0.001905572799 | N176: 7.069071749e-07
A177: 85.56565 | B177: ='DF raw data'!D182 -> 2.666827e-06 | C177: ='DF raw data'!E182 -> -4.2803913e-06 | D177: ='DF raw data'!F182 -> 1.0507745e-05 | F177: 2.6701552e-06 | G177: -4.295555266e-06 | H177: 1.052085867e-05 | J177: 1.35477394e-05 | K177: -0.006883568054 | L177: 5.647542221e-05 | M177: 0.001933818981 | N177: 7.085941881e-07
A178: 86.0658 | B178: ='DF raw data'!D183 -> 3.0427611e-06 | C178: ='DF raw data'!E183 -> -9.3052586e-06 | D178: ='DF raw data'!F183 -> 7.9491983e-06 | F178: 3.046558466e-06 | G178: -9.338223956e-06 | H178: 7.959118899e-06 | J178: 1.507147562e-05 | K178: -0.006876030056 | L178: 5.180490949e-05 | M178: 0.001959729207 | N178: 7.100500738e-07
A179: 86.56595 | B179: ='DF raw data'!D184 -> -2.2462409e-07 | C179: ='DF raw data'!E184 -> -6.6424826e-07 | D179: ='DF raw data'!F184 -> 1.194172e-05 | F179: -2.249044209e-07 | G179: -6.666014649e-07 | H179: 1.195662327e-05 | J179: 1.495898967e-05 | K179: -0.006868548317 | L179: 5.147150877e-05 | M179: 0.001985472682 | N179: 7.114870485e-07
A180: 87.0661 | B180: ='DF raw data'!D185 -> -3.879687e-06 | C180: ='DF raw data'!E185 -> -9.2775063e-06 | D180: ='DF raw data'!F185 -> 9.863561e-06 | F180: -3.884528849e-06 | G180: -9.310373339e-06 | H180: 9.875870724e-06 | J180: 1.301614257e-05 | K180: -0.006862038294 | L180: 4.681492555e-05 | M180: 0.002008887167 | N180: 7.126679313e-07
A181: 87.56625 | B181: ='DF raw data'!D186 -> -3.9403685e-06 | C181: ='DF raw data'!E186 -> -3.4466054e-06 | D181: ='DF raw data'!F186 -> 1.1446496e-06 | F181: -3.94528608e-06 | G181: -3.458815547e-06 | H181: 1.146078123e-06 | J181: 1.104290774e-05 | K181: -0.006856515183 | L181: 4.508499895e-05 | M181: 0.002031436429 | N181: 7.13745556e-07
A182: 88.0664 | B182: ='DF raw data'!D187 -> 3.1651797e-07 | C182: ='DF raw data'!E187 -> 6.0140483e-06 | D182: ='DF raw data'!F187 -> -5.5050955e-06 | F182: 3.169129844e-07 | G182: 6.035354021e-06 | H182: -5.511965859e-06 | J182: 1.120141176e-05 | K182: -0.006850912797 | L182: 4.810358126e-05 | M182: 0.002055495435 | N182: 7.14965635e-07
A183: 88.56655 | B183: ='DF raw data'!D188 -> 4.025248e-06 | C183: ='DF raw data'!E188 -> -8.2741335e-06 | D183: ='DF raw data'!F188 -> -2.2462086e-06 | F183: 4.03027151e-06 | G183: -8.303445932e-06 | H183: -2.249011868e-06 | J183: 1.321715206e-05 | K183: -0.006844302239 | L183: 4.395061278e-05 | M183: 0.002077477334 | N183: 7.160191256e-07
A184: 89.0667 | B184: ='DF raw data'!D189 -> 3.0689255e-06 | C184: ='DF raw data'!E189 -> 2.5287973e-06 | D184: ='DF raw data'!F189 -> 2.6507728e-06 | F184: 3.072755519e-06 | G184: 2.537755966e-06 | H184: 2.654080964e-06 | J184: 1.475399073e-05 | K184: -0.00683692303 | L184: 4.521987143e-05 | M184: 0.002100094053 | N184: 7.171507235e-07
A185: 89.56685 | B185: ='DF raw data'!D190 -> 9.2841145e-07 | C185: ='DF raw data'!E190 -> -7.7956638e-06 | D185: ='DF raw data'!F190 -> -2.3905054e-06 | F185: 9.295701075e-07 | G185: -7.823281177e-06 | H185: -2.393488751e-06 | J185: 1.521891522e-05 | K185: -0.00682931129 | L185: 4.130705735e-05 | M185: 0.002120753778 | N185: 7.181199584e-07
A186: 90.067 | B186: ='DF raw data'!D191 -> -2.9397853e-07 | C186: ='DF raw data'!E191 -> -1.3413912e-06 | D186: ='DF raw data'!F191 -> 7.55575e-07 | F186: -2.943454152e-07 | G186: -1.346143291e-06 | H186: 7.565179576e-07 | J186: 1.507169836e-05 | K186: -0.00682177318 | L186: 4.063378378e-05 | M186: 0.002141076765 | N186: 7.190593704e-07
A187: 90.56715 | B187: ='DF raw data'!D192 -> 1.5999678e-06 | C187: ='DF raw data'!E192 -> 1.0562848e-05 | D187: ='DF raw data'!F192 -> 6.5043819e-06 | F187: 1.60196456e-06 | G187: 1.060026857e-05 | H187: 6.512499369e-06 | J187: 1.587292094e-05 | K187: -0.006813834338 | L187: 4.59355081e-05 | M187: 0.002164051409 | N187: 7.202407349e-07
A188: 91.0673 | B188: ='DF raw data'!D193 -> 3.6840204e-06 | C188: ='DF raw data'!E193 -> 8.5678439e-06 | D188: ='DF raw data'!F193 -> 1.1686748e-06 | F188: 3.688618057e-06 | G188: 8.598196847e-06 | H188: 1.170133306e-06 | J188: 1.771778326e-05 | K188: -0.006804972789 | L188: 5.023589626e-05 | M188: 0.002189176892 | N188: 7.216599431e-07
A189: 91.56745 | B189: ='DF raw data'!D194 -> 6.3201578e-06 | C189: ='DF raw data'!E194 -> 8.4885887e-06 | D189: ='DF raw data'!F194 -> -3.3221918e-06 | F189: 6.328045357e-06 | G189: 8.518660873e-06 | H189: -3.326337895e-06 | J189: 2.088275514e-05 | K189: -0.006794528279 | L189: 5.449650449e-05 | M189: 0.002216433319 | N189: 7.233634333e-07
A190: 92.0676 | B190: ='DF raw data'!D195 -> 8.9970117e-06 | C190: ='DF raw data'!E195 -> 3.7040236e-06 | D190: ='DF raw data'!F195 -> -2.5429076e-06 | F190: 9.008239971e-06 | G190: 3.717145692e-06 | H190: -2.546081149e-06 | J190: 2.538822637e-05 | K190: -0.006781830358 | L190: 5.635563491e-05 | M190: 0.00224461959 | N190: 7.252742661e-07
A191: 92.56775 | B191: ='DF raw data'!D196 -> 6.2075551e-06 | C191: ='DF raw data'!E196 -> 3.2889318e-06 | D191: ='DF raw data'!F196 -> 2.0957773e-06 | F191: 6.215302129e-06 | G191: 3.300583363e-06 | H191: 2.09839283e-06 | J191: 2.849680972e-05 | K191: -0.006767577678 | L191: 5.800642168e-05 | M191: 0.002273631502 | N191: 7.273632992e-07
A192: 93.0679 | B192: ='DF raw data'!D197 -> 3.5719561e-06 | C192: ='DF raw data'!E197 -> 5.207748e-06 | D192: ='DF raw data'!F197 -> 5.8075634e-06 | F192: 3.576413901e-06 | G192: 5.226197274e-06 | H192: 5.814811239e-06 | J192: 3.028555314e-05 | K192: -0.006752430359 | L192: 6.062030425e-05 | M192: 0.002303950747 | N192: 7.29660006e-07
A193: 93.56805 | B193: ='DF raw data'!D198 -> 6.1387391e-06 | C193: ='DF raw data'!E198 -> 3.5480473e-06 | D193: ='DF raw data'!F198 -> 7.6247484e-06 | F193: 6.146400246e-06 | G193: 3.560616821e-06 | H193: 7.634264086e-06 | J193: 3.335967522e-05 | K193: -0.006735745517 | L193: 6.240114675e-05 | M193: 0.002335160681 | N193: 7.321641426e-07
A194: 94.0682 | B194: ='DF raw data'!D199 -> 8.5624042e-06 | C194: ='DF raw data'!E199 -> 6.3856432e-06 | D194: ='DF raw data'!F199 -> 7.1700592e-06 | F194: 8.57309008e-06 | G194: 6.408265355e-06 | H194: 7.179007434e-06 | J194: 3.764750622e-05 | K194: -0.006716916117 | L194: 6.560624067e-05 | M194: 0.002367973642 | N194: 7.350257576e-07
A195: 94.56835 | B195: ='DF raw data'!D200 -> 7.1812965e-06 | C195: ='DF raw data'!E200 -> -7.2495794e-07 | D195: ='DF raw data'!F200 -> 2.3981952e-06 | F195: 7.190258758e-06 | G195: -7.275262186e-07 | H195: 2.401188148e-06 | J195: 4.124371414e-05 | K195: -0.006696288073 | L195: 6.524236843e-05 | M195: 0.002400604612 | N195: 7.380054565e-07
A196: 95.0685 | B196: ='DF raw data'!D201 -> 3.7768034e-06 | C196: ='DF raw data'!E201 -> -9.9900071e-06 | D196: ='DF raw data'!F201 -> 1.6046065e-06 | F196: 3.781516851e-06 | G196: -1.002539829e-05 | H196: 1.606609049e-06 | J196: 4.31350398e-05 | K196: -0.006674714083 | L196: 6.022816547e-05 | M196: 0.002430727729 | N196: 7.407503115e-07
A197: 95.56865 | B197: ='DF raw data'!D202 -> 1.4530517e-06 | C197: ='DF raw data'!E202 -> -3.8169992e-06 | D197: ='DF raw data'!F202 -> 6.1838614e-06 | F197: 1.454865109e-06 | G197: -3.830521526e-06 | H197: 6.191578859e-06 | J197: 4.386269058e-05 | K197: -0.006652776159 | L197: 5.831233013e-05 | M197: 0.002459892641 | N197: 7.434132419e-07
A198: 96.0688 | B198: ='DF raw data'!D203 -> 3.6897762e-07 | C198: ='DF raw data'!E203 -> -4.6174282e-06 | D198: ='DF raw data'!F203 -> 4.7647295e-06 | F198: 3.694381041e-07 | G198: -4.633786173e-06 | H198: 4.770675882e-06 | J198: 4.404746505e-05 | K198: -0.006630745819 | L198: 5.599474198e-05 | M198: 0.002487898411 | N198: 7.459517984e-07
A199: 96.56895 | B199: ='DF raw data'!D204 -> -7.9500097e-07 | C199: ='DF raw data'!E204 -> -4.4406379e-06 | D199: ='DF raw data'!F204 -> 4.7332608e-07 | F199: -7.959931312e-07 | G199: =(1-$G$1*($B$2-$G$2))*C199*$M$2/$M$1 -> -4.456369565e-06 | H199: 4.739167909e-07 | J199: 4.364934908e-05 | K199: -0.006608914597 | L199: 5.376588874e-05 | M199: 0.002514789421 | N199: 7.48350536e-07
A200: =A199+$B$1 -> 97.0691 | B200: ='DF raw data'!D205 -> -1.9770675e-06 | C200: ='DF raw data'!E205 -> 5.9865624e-06 | D200: ='DF raw data'!F205 -> 9.9802446e-07 | F200: -1.97953488e-06 | G200: 6.007770748e-06 | H200: 9.992699945e-07 | J200: =F200*$B$1+J199 -> 4.265928471e-05 | K200: =J200*$B$1+K199 -> -0.006587578556 | L200: =G200*$B$1+L199 -> 5.677067528e-05 | M200: =L200*$B$1+M199 -> 0.002543183274 | N200: =(J200^2+L200^2)*$B$1+N199 -> 7.508726545e-07
A201: 97.56925 | B201: ='DF raw data'!D206 -> -3.8642685e-07 | C201: ='DF raw data'!E206 -> -2.3501318e-07 | D201: ='DF raw data'!F206 -> 3.5705411e-06 | F201: -3.869091107e-07 | G201: -2.358457515e-07 | H201: 3.574997135e-06 | J201: 4.246577212e-05 | K201: -0.0065663393 | L201: 5.665271703e-05 | M201: 0.00257151813 | N201: 7.533798425e-07
... 1002 more rows

Sheet 10 x=0
A1: dz | B1: ='DF raw data'!H7 -> 0.50016 | C1: mm | F1: T_coeff | G1: -0.0008 | H1: /degC | L1: Hallref | M1: ='PI vs gap'!B44 -> 0.50528 | N1: T | P1: IBy total | Q1: =L1203*1000 -> -4.78984542 | R1: muTm | X1: DF ref | Y1: 19
A2: Tref | B2: ='DF raw data'!H8 -> 21.5 | C2: degC | F2: Tcorr | G2: 20 | H2: degC | L2: NMRref | M2: ='PI vs gap'!B45 -> 0.506438 | N2: T | P2: JBy total | Q2: =M1203 -> -1.623370315 | R2: muTm^2
A3: Encoder | B3: ='DF raw data'!H9 -> 17895605 | P3: PI total | Q3: =N1203 -> 706.9926248 | R3: T^2mm^3
A5: z [mm] | B5: Bx | C5: By | D5: Bz | F5: Bx_corr | G5: By_corr | H5: Bz_corr | J5: Ix | K5: Jx | L5: Iy | M5: Jy | N5: PI
A6: ='PI vs gap'!B53 -> 0.04 | B6: ='DF raw data'!G11 -> -9.7347793e-06 | C6: ='DF raw data'!H11 -> -1.1232488e-05 | D6: ='DF raw data'!I11 -> 9.6182634e-07 | F6: =(1-$G$1*($B$2-$G$2))*B6 -> -9.746461035e-06 | G6: =(1-$G$1*($B$2-$G$2))*C6*$M$2/$M$1 -> -1.127174048e-05 | H6: =(1-$G$1*($B$2-$G$2))*D6 -> 9.629805316e-07 | J6: =F6*$B$1 -> -4.874789951e-06 | K6: =J6*$B$1 -> -2.438174942e-06 | L6: =G6*$B$1 -> -5.637673717e-06 | M6: =L6*$B$1 -> -2.819738886e-06 | N6: =(J6^2+L6)^2*$B$1 -> 1.589663379e-11
A7: =A6+$B$1 -> 0.54016 | B7: ='DF raw data'!G12 -> -9.5850546e-06 | C7: ='DF raw data'!H12 -> -1.4526671e-05 | D7: ='DF raw data'!I12 -> 5.7869938e-06 | F7: =(1-$G$1*($B$2-$G$2))*B7 -> -9.596556666e-06 | G7: =(1-$G$1*($B$2-$G$2))*C7*$M$2/$M$1 -> -1.457743516e-05 | H7: 5.793938193e-06 | J7: =F7*$B$1+J6 -> -9.674603733e-06 | K7: =J7*$B$1+K6 -> -7.277024745e-06 | L7: =G7*$B$1+L6 -> -1.292872369e-05 | M7: =L7*$B$1+M6 -> -9.286169325e-06 | N7: =(J7^2+L7^2)*$B$1+N6 -> 1.463132806e-10
A8: =A7+$B$1 -> 1.04032 | B8: ='DF raw data'!G13 -> -9.9982999e-06 | C8: ='DF raw data'!H13 -> -3.084891e-06 | D8: ='DF raw data'!I13 -> 7.2374705e-06 | F8: -1.001029786e-05 | G8: -3.095671302e-06 | H8: 7.246155465e-06 | J8: =F8*$B$1+J7 -> -1.468135431e-05 | K8: =J8*$B$1+K7 -> -1.462005092e-05 | L8: =G8*$B$1+L7 -> -1.447705465e-05 | M8: =L8*$B$1+M7 -> -1.652701298e-05 | N8: =(J8^2+L8^2)*$B$1+N7 -> 3.589449387e-10
A9: 1.54048 | B9: ='DF raw data'!G14 -> -9.6449212e-06 | C9: ='DF raw data'!H14 -> -1.3446845e-05 | D9: ='DF raw data'!I14 -> 3.1253614e-06 | F9: -9.656495105e-06 | G9: -1.349383566e-05 | H9: 3.129111834e-06 | J9: -1.95111469e-05 | K9: -2.437874615e-05 | L9: -2.122613149e-05 | M9: -2.71434749e-05 | N9: 7.746946918e-10
A10: 2.04064 | B10: ='DF raw data'!G15 -> -9.2233377e-06 | C10: ='DF raw data'!H15 -> -2.5802734e-05 | D10: ='DF raw data'!I15 -> -2.731799e-06 | F10: -9.234405705e-06 | G10: -2.589290291e-05 | H10: -2.735077159e-06 | J10: -2.412982726e-05 | K10: -3.644752055e-05 | L10: -3.417672581e-05 | M10: -4.423730608e-05 | N10: 1.650123315e-09
A11: 2.5408 | B11: ='DF raw data'!G16 -> -9.8322917e-06 | C11: ='DF raw data'!H16 -> -8.4702779e-06 | D11: ='DF raw data'!I16 -> 7.936498e-07 | F11: -9.84409045e-06 | G11: -8.499877699e-06 | H11: 7.946021798e-07 | J11: -2.905344754e-05 | K11: -5.097889288e-05 | L11: -3.842802464e-05 | M11: -6.345746688e-05 | N11: 2.810902591e-09
A12: 3.04096 | B12: ='DF raw data'!G17 -> -9.9123999e-06 | C12: ='DF raw data'!H17 -> -5.0927028e-06 | D12: ='DF raw data'!I17 -> 8.0401833e-06 | F12: -9.92429478e-06 | G12: -5.110499498e-06 | H12: 8.04983152e-06 | J12: -3.401718282e-05 | K12: -6.799292703e-05 | L12: -4.098409207e-05 | M12: -8.395607037e-05 | N12: 4.229788754e-09
A13: 3.54112 | B13: ='DF raw data'!G18 -> -9.9768067e-06 | C13: ='DF raw data'!H18 -> -4.4389099e-06 | D13: ='DF raw data'!I18 -> 1.9253232e-06 | F13: -9.988778868e-06 | G13: -4.454421887e-06 | H13: 1.927633588e-06 | J13: -3.901317046e-05 | K13: -8.750575437e-05 | L13: -4.321201572e-05 | M13: -0.0001055689922 | N13: 5.924983928e-09
A14: 4.04128 | B14: ='DF raw data'!G19 -> -1.0070652e-05 | C14: ='DF raw data'!H19 -> -1.8905843e-06 | D14: ='DF raw data'!I19 -> 1.9922766e-06 | F14: -1.008273678e-05 | G14: -1.897191039e-06 | H14: 1.994667332e-06 | J14: -4.405615208e-05 | K14: -0.0001095408794 | L14: -4.416091479e-05 | M14: -0.0001276565153 | N14: 7.871171975e-09
A15: 4.54144 | B15: ='DF raw data'!G20 -> -9.9011804e-06 | C15: ='DF raw data'!H20 -> -6.3389125e-06 | D15: ='DF raw data'!I20 -> 2.8586103e-06 | F15: -9.913061816e-06 | G15: -6.361064139e-06 | H15: 2.862040632e-06 | J15: -4.901426908e-05 | K15: -0.0001340558562 | L15: -4.734246463e-05 | M15: -0.0001513353224 | N15: 1.019376873e-08
A16: 5.0416 | B16: ='DF raw data'!G21 -> -1.025389e-05 | C16: ='DF raw data'!H21 -> 2.9057223e-06 | D16: ='DF raw data'!I21 -> 5.892536e-07 | F16: -1.026619467e-05 | G16: 2.915876488e-06 | H16: 5.899607043e-07 | J16: -5.414900901e-05 | K16: -0.0001611390246 | L16: -4.588405984e-05 | M16: -0.0001742846938 | N16: 1.271330579e-08
A17: 5.54176 | B17: ='DF raw data'!G22 -> -1.0238334e-05 | C17: ='DF raw data'!H22 -> 2.2304473e-06 | D17: ='DF raw data'!I22 -> -4.0519518e-07 | F17: -1.025062e-05 | G17: 2.238241707e-06 | H17: -4.056814142e-07 | J17: -5.927595911e-05 | K17: -0.0001907864883 | L17: -4.476458087e-05 | M17: -0.0001966741465 | N17: 1.547294211e-08
A18: 6.04192 | B18: ='DF raw data'!G23 -> -1.0270042e-05 | C18: ='DF raw data'!H23 -> 3.5552457e-06 | D18: ='DF raw data'!I23 -> 2.9138494e-06 | F18: -1.028236605e-05 | G18: 3.567669679e-06 | H18: 2.917346019e-06 | J18: -6.441878731e-05 | K18: -0.0002230061889 | L18: -4.29801752e-05 | M18: -0.000218171111 | N18: 1.847243945e-08
A19: 6.54208 | B19: ='DF raw data'!G24 -> -9.8510491e-06 | C19: ='DF raw data'!H24 -> -8.1484523e-06 | D19: ='DF raw data'!I24 -> 1.1576224e-06 | F19: -9.862870359e-06 | G19: -8.176927464e-06 | H19: 1.159011547e-06 | J19: -6.935180055e-05 | K19: -0.0002576931855 | L19: -4.706994724e-05 | M19: -0.0002417136158 | N19: 2.198618957e-08
A20: 7.04224 | B20: ='DF raw data'!G25 -> -9.7624134e-06 | C20: ='DF raw data'!H25 -> -1.0060196e-05 | D20: ='DF raw data'!I25 -> 3.5481091e-06 | F20: -9.774128296e-06 | G20: -1.009535185e-05 | H20: 3.552366831e-06 | J20: -7.424042856e-05 | K20: -0.0002948252782 | L20: -5.211923842e-05 | M20: -0.0002677815741 | N20: 2.610153419e-08
A21: 7.5424 | B21: ='DF raw data'!G26 -> -1.016911e-05 | C21: ='DF raw data'!H26 -> 1.3139361e-06 | D21: ='DF raw data'!I26 -> 5.0091794e-06 | F21: -1.018131293e-05 | G21: 1.318527714e-06 | H21: 5.015190415e-06 | J21: -7.933271403e-05 | K21: -0.0003345043285 | L21: -5.14597636e-05 | M21: -0.0002935196894 | N21: 3.057385826e-08
A22: 8.04256 | B22: ='DF raw data'!G27 -> -7.7739378e-06 | C22: ='DF raw data'!H27 -> -3.0985002e-06 | D22: ='DF raw data'!I27 -> 6.366553e-06 | F22: -7.783266525e-06 | G22: -3.10932806e-06 | H22: 6.374192864e-06 | J22: -8.322559262e-05 | K22: -0.0003761304409 | L22: -5.301492512e-05 | M22: -0.0003200356344 | N22: 3.544395697e-08
A23: 8.54272 | B23: ='DF raw data'!G28 -> -2.8575148e-06 | C23: ='DF raw data'!H28 -> -3.716802e-06 | D23: ='DF raw data'!I28 -> 4.1392514e-06 | F23: =(1-$G$1*($B$2-$G$2))*B23 -> -2.860943818e-06 | G23: -3.729790546e-06 | H23: 4.144218502e-06 | J23: -8.465652228e-05 | K23: -0.0004184722471 | L23: -5.488041716e-05 | M23: -0.0003474846238 | N23: 4.053487902e-08
A24: 9.04288 | B24: ='DF raw data'!G29 -> -2.7167978e-06 | C24: ='DF raw data'!H29 -> -4.5866136e-06 | D24: ='DF raw data'!I29 -> 8.5919163e-07 | F24: -2.720057957e-06 | G24: -4.602641745e-06 | H24: 8.6022266e-07 | J24: -8.601698647e-05 | K24: -0.000461494503 | L24: -5.718247446e-05 | M24: -0.0003760850103 | N24: 4.58709647e-08
A25: 9.54304 | B25: ='DF raw data'!G30 -> -5.1689117e-06 | C25: ='DF raw data'!H30 -> -2.5953464e-06 | D25: ='DF raw data'!I30 -> -3.2491196e-06 | F25: -5.175114394e-06 | G25: -2.604415965e-06 | H25: -3.253018544e-06 | J25: -8.860537168e-05 | K25: -0.0005058113657 | L25: -5.848509915e-05 | M25: -0.0004053369175 | N25: 5.150847748e-08
A26: 10.0432 | B26: ='DF raw data'!G31 -> -1.8028065e-06 | C26: ='DF raw data'!H31 -> 9.0591578e-07 | D26: ='DF raw data'!I31 -> -9.277047e-06 | F26: -1.804969868e-06 | G26: 9.090815469e-07 | H26: -9.288179456e-06 | J26: -8.950814541e-05 | K26: -0.0005505797597 | L26: -5.803041292e-05 | M26: -0.0004343614088 | N26: 5.719991662e-08
A27: 10.54336 | B27: ='DF raw data'!G32 -> 3.0968088e-06 | C27: ='DF raw data'!H32 -> -2.9378539e-06 | D27: ='DF raw data'!I32 -> -8.4239555e-06 | F27: 3.100524971e-06 | G27: -2.948120374e-06 | H27: -8.434064247e-06 | J27: -8.795738684e-05 | K27: -0.0005945725263 | L27: -5.950494481e-05 | M27: -0.000464123402 | N27: 6.284039117e-08
A28: 11.04352 | B28: ='DF raw data'!G33 -> 3.2182299e-06 | C28: ='DF raw data'!H33 -> 5.1004658e-06 | D28: ='DF raw data'!I33 -> -4.8864867e-06 | F28: 3.222091776e-06 | G28: 5.118289626e-06 | H28: -4.892350484e-06 | J28: -8.634582542e-05 | K28: -0.0006377592544 | L28: -5.694498107e-05 | M28: -0.0004926050037 | N28: 6.819126912e-08
A29: 11.54368 | B29: ='DF raw data'!G34 -> 3.5627571e-07 | C29: ='DF raw data'!H34 -> 2.5448016e-06 | D29: ='DF raw data'!I34 -> -1.2020434e-06 | F29: 3.567032409e-07 | G29: 2.553694533e-06 | H29: -1.203485852e-06 | J29: -8.616741673e-05 | K29: -0.0006808567495 | L29: -5.566772521e-05 | M29: -0.0005204477731 | N29: 7.345481259e-08
A30: 12.04384 | B30: ='DF raw data'!G35 -> -3.8369167e-06 | C30: ='DF raw data'!H35 -> 1.5206148e-06 | D30: ='DF raw data'!I35 -> 1.4181162e-06 | F30: -3.841521e-06 | G30: 1.525928663e-06 | H30: 1.419817939e-06 | J30: -8.808879187e-05 | K30: -0.0007249152397 | L30: -5.490451673e-05 | M30: -0.0005479088162 | N30: 7.884360705e-08
A31: 12.544 | B31: ='DF raw data'!G36 -> -1.8465205e-06 | C31: ='DF raw data'!H36 -> 3.4115446e-06 | D31: ='DF raw data'!I36 -> -2.6105379e-06 | F31: -1.848736325e-06 | G31: 3.423466409e-06 | H31: -2.613670545e-06 | J31: -8.901345583e-05 | K31: -0.0007694362098 | L31: -5.319223577e-05 | M31: -0.0005745134449 | N31: 8.422173214e-08
A32: 13.04416 | B32: ='DF raw data'!G37 -> 2.4490739e-06 | C32: ='DF raw data'!H37 -> 2.7378708e-06 | D32: ='DF raw data'!I37 -> 1.9464235e-06 | F32: 2.452012789e-06 | G32: 2.747438423e-06 | H32: 1.948759208e-06 | J32: -8.778705711e-05 | K32: -0.0008133437842 | L32: -5.181807697e-05 | M32: -0.0006004307743 | N32: 8.941923505e-08
A33: 13.54432 | B33: ='DF raw data'!G38 -> 1.9389711e-06 | C33: ='DF raw data'!H38 -> -2.8360491e-06 | D33: ='DF raw data'!I38 -> 4.9815599e-06 | F33: 1.941297865e-06 | G33: -2.845959812e-06 | H33: 4.987537772e-06 | J33: -8.681609757e-05 | K33: -0.0008567657236 | L33: -5.324151223e-05 | M33: -0.000627060049 | N33: 9.460674124e-08
A34: 14.04448 | B34: ='DF raw data'!G39 -> 1.4818809e-06 | C34: ='DF raw data'!H39 -> 4.4393341e-06 | D34: ='DF raw data'!I39 -> 4.6740051e-06 | F34: 1.483659157e-06 | G34: 4.454847569e-06 | H34: 4.679613906e-06 | J34: -8.607403061e-05 | K34: -0.0008998165108 | L34: -5.101337567e-05 | M34: -0.000652574899 | N34: 9.961389463e-08
A35: 14.54464 | B35: ='DF raw data'!G40 -> 4.1017934e-06 | C35: ='DF raw data'!H40 -> 1.732764e-06 | D35: ='DF raw data'!I40 -> 6.8993859e-06 | F35: 4.106715552e-06 | G35: 1.738819228e-06 | H35: 6.907665163e-06 | J35: -8.402001576e-05 | K35: -0.0009418399618 | L35: -5.014368784e-05 | M35: -0.0006776547659 | N35: 1.044023027e-07
A36: 15.0448 | B36: ='DF raw data'!G41 -> 7.9911561e-06 | C36: ='DF raw data'!H41 -> -1.4246207e-05 | D36: ='DF raw data'!I41 -> 1.9501488e-06 | F36: 8.000745487e-06 | G36: -1.429599107e-05 | H36: 1.952488979e-06 | J36: -8.00183629e-05 | K36: -0.0009818619462 | L36: -5.729397073e-05 | M36: -0.0007063109183 | N36: 1.092466211e-07
A37: 15.54496 | B37: ='DF raw data'!G42 -> 9.0863768e-06 | C37: ='DF raw data'!H42 -> -1.3572759e-06 | D37: ='DF raw data'!I42 -> 2.9063406e-06 | F37: 9.097280452e-06 | G37: -1.362018967e-06 | H37: 2.909828209e-06 | J37: -7.546826711e-05 | K37: -0.001019608155 | L37: -5.797519814e-05 | M37: -0.0007353077934 | N37: 1.137763616e-07
A38: 16.04512 | B38: ='DF raw data'!G43 -> 6.9063985e-06 | C38: ='DF raw data'!H43 -> 3.1118673e-06 | D38: ='DF raw data'!I43 -> 3.2709825e-06 | F38: 6.914686178e-06 | G38: 3.122741872e-06 | H38: 3.274907679e-06 | J38: -7.200981767e-05 | K38: -0.001055624585 | L38: -5.641332757e-05 | M38: -0.0007635234833 | N38: 1.179616392e-07
A39: 16.54528 | B39: ='DF raw data'!G44 -> 5.0112544e-07 | C39: ='DF raw data'!H44 -> -1.1673598e-05 | D39: ='DF raw data'!I44 -> 1.3896963e-06 | F39: 5.017267905e-07 | G39: -1.171439196e-05 | H39: 1.391363936e-06 | J39: -7.1758874e-05 | K39: -0.001091515504 | L39: -6.227239785e-05 | M39: -0.0007946696458 | N39: 1.224766773e-07
A40: 17.04544 | B40: ='DF raw data'!G45 -> -6.3261382e-06 | C40: ='DF raw data'!H45 -> -1.0567353e-05 | D40: ='DF raw data'!I45 -> 6.8673717e-06 | F40: -6.333729566e-06 | G40: -1.060428113e-05 | H40: 6.875612546e-06 | J40: -7.492675217e-05 | K40: -0.001128990868 | L40: -6.75762351e-05 | M40: -0.0008284685756 | N40: 1.27568589e-07
A41: 17.5456 | B41: ='DF raw data'!G46 -> -8.1922617e-06 | C41: ='DF raw data'!H46 -> 1.7258258e-06 | D41: ='DF raw data'!I46 -> 5.2781279e-06 | F41: -8.202092414e-06 | G41: 1.731856782e-06 | H41: 5.284461653e-06 | J41: -7.902911072e-05 | K41: -0.001168518068 | L41: -6.671002961e-05 | M41: -0.000861834264 | N41: 1.329182146e-07
A42: 18.04576 | B42: ='DF raw data'!G47 -> -6.9489165e-06 | C42: ='DF raw data'!H47 -> -3.8653066e-06 | D42: ='DF raw data'!I47 -> -4.7553914e-07 | F42: -6.9572552e-06 | G42: -3.878814102e-06 | H42: -4.76109787e-07 | J42: -8.250885148e-05 | K42: -0.001209785695 | L42: -6.865005727e-05 | M42: -0.0008961702766 | N42: 1.386803283e-07
A43: 18.54592 | B43: ='DF raw data'!G48 -> -3.0775834e-06 | C43: ='DF raw data'!H48 -> 5.6016183e-06 | D43: ='DF raw data'!I48 -> -1.97654e-06 | F43: -3.0812765e-06 | G43: 5.621193428e-06 | H43: -1.978911848e-06 | J43: -8.404998273e-05 | K43: -0.001251824134 | L43: -6.583856117e-05 | M43: -0.0009291000914 | N43: 1.443817101e-07
A44: 19.04608 | B44: ='DF raw data'!G49 -> -2.0463037e-06 | C44: ='DF raw data'!H49 -> 8.0864731e-07 | D44: ='DF raw data'!I49 -> -1.6138772e-06 | F44: -2.048759264e-06 | G44: 8.114731675e-07 | H44: -1.615813853e-06 | J44: -8.507469017e-05 | K44: -0.001294375091 | L44: -6.543269475e-05 | M44: -0.000961826908 | N44: 1.501431233e-07
A45: 19.54624 | B45: ='DF raw data'!G50 -> -6.5117042e-06 | C45: ='DF raw data'!H50 -> 4.8481957e-07 | D45: ='DF raw data'!I50 -> 2.8002426e-06 | F45: -6.519518245e-06 | G45: 4.865137956e-07 | H45: 2.803602891e-06 | J45: -8.833549241e-05 | K45: -0.001338556971 | L45: -6.518936001e-05 | M45: -0.0009944320183 | N45: 1.561714577e-07
A46: 20.0464 | B46: ='DF raw data'!G51 -> -8.3292971e-06 | C46: ='DF raw data'!H51 -> -7.8914297e-07 | D46: ='DF raw data'!I51 -> 2.3444184e-06 | F46: -8.339292257e-06 | G46: -7.919006686e-07 | H46: 2.347231702e-06 | J46: -9.250647283e-05 | K46: -0.001384825009 | L46: -6.558543704e-05 | M46: -0.00102723523 | N46: 1.626029637e-07
A47: 20.54656 | B47: ='DF raw data'!G52 -> -8.3439072e-06 | C47: ='DF raw data'!H52 -> 5.1363986e-07 | D47: ='DF raw data'!I52 -> -1.0288347e-05 | F47: -8.353919889e-06 | G47: 5.154347995e-07 | H47: -1.030069302e-05 | J47: -9.66847694e-05 | K47: -0.001433182863 | L47: -6.532763718e-05 | M47: -0.001059909501 | N47: 1.694129646e-07
A48: 21.04672 | B48: ='DF raw data'!G53 -> -6.7460628e-06 | C48: ='DF raw data'!H53 -> -2.2769891e-06 | D48: ='DF raw data'!I53 -> -1.0150642e-05 | F48: -6.754158075e-06 | G48: -2.284946149e-06 | H48: -1.016282277e-05 | J48: -0.0001000629291 | K48: -0.001483230338 | L48: -6.647047584e-05 | M48: -0.001093155375 | N48: 1.766307305e-07
A49: 21.54688 | B49: ='DF raw data'!G54 -> -2.2787851e-06 | C49: ='DF raw data'!H54 -> -7.2296725e-06 | D49: ='DF raw data'!I54 -> -2.050682e-06 | F49: -2.281519642e-06 | G49: -7.254936943e-06 | H49: -2.053142818e-06 | J49: -0.000101204054 | K49: -0.001533848557 | L49: -7.00991051e-05 | M49: -0.001128216143 | N49: 1.84211228e-07
A50: 22.04704 | B50: ='DF raw data'!G55 -> 1.5476846e-06 | C50: ='DF raw data'!H55 -> 1.2345469e-06 | D50: ='DF raw data'!I55 -> -6.8120253e-06 | F50: 1.549541822e-06 | G50: 1.238861084e-06 | H50: -6.82019973e-06 | J50: -0.0001004290351 | K50: -0.001584079144 | L50: -6.947947634e-05 | M50: -0.001162966998 | N50: 1.916703085e-07
A51: 22.5472 | B51: ='DF raw data'!G56 -> 2.679227e-06 | C51: ='DF raw data'!H56 -> -3.3781639e-06 | D51: ='DF raw data'!I56 -> -8.8502393e-06 | F51: 2.682442072e-06 | G51: -3.389969058e-06 | H51: -8.860859587e-06 | J51: -9.90873849e-05 | K51: -0.00163363869 | L51: -7.117500327e-05 | M51: -0.001198565888 | N51: 1.991147855e-07
A52: 23.04736 | B52: ='DF raw data'!G57 -> 1.1319073e-06 | C52: ='DF raw data'!H57 -> -3.242068e-06 | D52: ='DF raw data'!I57 -> 3.0703843e-06 | F52: 1.133265589e-06 | G52: -3.253397565e-06 | H52: 3.074068761e-06 | J52: -9.852057078e-05 | K52: -0.001682914739 | L52: -7.280222259e-05 | M52: -0.001234978647 | N52: 2.066204198e-07
A53: 23.54752 | B53: ='DF raw data'!G58 -> 2.0725431e-06 | C53: ='DF raw data'!H58 -> -1.3289895e-06 | D53: ='DF raw data'!I58 -> 6.4321675e-06 | F53: 2.075030152e-06 | G53: -1.333633719e-06 | H53: 6.439886101e-06 | J53: -9.74827237e-05 | K53: -0.001731671698 | L53: -7.346925283e-05 | M53: -0.001271725029 | N53: 2.140731101e-07
A54: 24.04768 | B54: ='DF raw data'!G59 -> 1.5557027e-06 | C54: ='DF raw data'!H59 -> -6.9171856e-06 | D54: ='DF raw data'!I59 -> 4.5602674e-06 | F54: 1.557569543e-06 | G54: -6.941358042e-06 | H54: 4.565739721e-06 | J54: -9.670368972e-05 | K54: -0.001780039015 | L54: -7.694104247e-05 | M54: -0.001310207861 | N54: 2.217113174e-07
A55: 24.54784 | B55: ='DF raw data'!G60 -> -3.5039836e-06 | C55: ='DF raw data'!H60 -> -2.8309787e-06 | D55: ='DF raw data'!I60 -> 6.4136401e-07 | F55: -3.50818838e-06 | G55: -2.840871693e-06 | H55: 6.421336468e-07 | J55: -9.845834522e-05 | K55: -0.001829283941 | L55: -7.836193286e-05 | M55: -0.001349401365 | N55: 2.2963117e-07
A56: 25.048 | B56: ='DF raw data'!G61 -> -6.8676877e-06 | C56: ='DF raw data'!H61 -> -3.2265903e-06 | D56: ='DF raw data'!I61 -> -3.4331431e-06 | F56: -6.875928925e-06 | G56: -3.237865777e-06 | H56: -3.437262872e-06 | J56: -0.0001018974098 | K56: -0.00188024895 | L56: -7.998138381e-05 | M56: -0.001389404854 | N56: 2.380239068e-07
A57: 25.54816 | B57: ='DF raw data'!G62 -> -3.456588e-06 | C57: ='DF raw data'!H62 -> -5.726482e-06 | D57: ='DF raw data'!I62 -> -3.8548869e-06 | F57: -3.460735906e-06 | G57: -5.746493471e-06 | H57: -3.859512764e-06 | J57: -0.0001036283315 | K57: -0.001932079696 | L57: -8.285554998e-05 | M57: -0.001430845886 | N57: 2.468286601e-07
A58: 26.04832 | B58: ='DF raw data'!G63 -> 3.2540713e-06 | C58: ='DF raw data'!H63 -> 1.034673e-06 | D58: ='DF raw data'!I63 -> 5.4827715e-06 | F58: 3.257976186e-06 | G58: 1.038288715e-06 | H58: 5.489350826e-06 | J58: -0.0001019988221 | K58: -0.001983095427 | L58: -8.23362395e-05 | M58: -0.001472027179 | N58: 2.554229174e-07
A59: 26.54848 | B59: ='DF raw data'!G64 -> 5.3647541e-06 | C59: ='DF raw data'!H64 -> 1.4468295e-06 | D59: ='DF raw data'!I64 -> 7.1498825e-06 | F59: 5.371191805e-06 | G59: 1.451885516e-06 | H59: 7.158462359e-06 | J59: -9.931236684e-05 | K59: -0.0020327675 | L59: -8.161006444e-05 | M59: -0.001512845269 | N59: 2.636871355e-07
A60: 27.04864 | B60: ='DF raw data'!G65 -> 5.5137366e-06 | C60: ='DF raw data'!H65 -> -7.9117526e-06 | D60: ='DF raw data'!I65 -> 2.0124135e-07 | F60: 5.520353084e-06 | G60: -7.939400605e-06 | H60: 2.014828396e-07 | J60: -9.655130704e-05 | K60: -0.002081058602 | L60: -8.558103504e-05 | M60: -0.00155564948 | N60: 2.720129331e-07
A61: 27.5488 | B61: ='DF raw data'!G66 -> 7.3701099e-06 | C61: ='DF raw data'!H66 -> 5.7127631e-06 | D61: ='DF raw data'!I66 -> -3.7613791e-08 | F61: 7.378954032e-06 | G61: 5.732726629e-06 | H61: -3.765892755e-08 | J61: -9.286064939e-05 | K61: -0.002127503784 | L61: -8.271375449e-05 | M61: -0.001597019591 | N61: 2.797477401e-07
A62: 28.04896 | B62: ='DF raw data'!G67 -> 9.0987169e-06 | C62: ='DF raw data'!H67 -> 3.8691996e-06 | D62: ='DF raw data'!I67 -> -5.7996368e-07 | F62: 9.10963536e-06 | G62: 3.882720707e-06 | H62: -5.806596364e-07 | J62: -8.830437417e-05 | K62: -0.0021716701 | L62: -8.07717729e-05 | M62: -0.001637418401 | N62: 2.869109025e-07
A63: 28.54912 | B63: ='DF raw data'!G68 -> 4.3356863e-06 | C63: ='DF raw data'!H68 -> 5.9653407e-06 | D63: ='DF raw data'!I68 -> -5.7026309e-06 | F63: 4.340889124e-06 | G63: 5.986186874e-06 | H63: -5.709474057e-06 | J63: -8.613323507e-05 | K63: -0.002214750499 | L63: -7.777772168e-05 | M63: -0.001676319706 | N63: 2.936472115e-07
A64: 29.04928 | B64: ='DF raw data'!G69 -> -7.8693733e-07 | C64: ='DF raw data'!H69 -> -1.226855e-05 | D64: ='DF raw data'!I69 -> -4.5228926e-06 | F64: -7.878816548e-07 | G64: -1.231142305e-05 | H64: -4.528320071e-06 | J64: -8.652730196e-05 | K64: -0.002258027994 | L64: -8.393540303e-05 | M64: -0.001718300837 | N64: 3.009155996e-07
A65: 29.54944 | B65: ='DF raw data'!G70 -> -1.6802503e-06 | C65: ='DF raw data'!H70 -> -6.4317783e-06 | D65: ='DF raw data'!I70 -> 9.6042936e-07 | F65: -1.6822666e-06 | G65: -6.454254463e-06 | H65: 9.615818752e-07 | J65: -8.736870442e-05 | K65: -0.002301726325 | L65: -8.716356294e-05 | M65: -0.001761896565 | N65: 3.085334251e-07
A66: 30.0496 | B66: ='DF raw data'!G71 -> -4.8800853e-06 | C66: ='DF raw data'!H71 -> 6.5697659e-06 | D66: ='DF raw data'!I71 -> 4.9479449e-06 | F66: -4.885941402e-06 | G66: 6.592724267e-06 | H66: 4.953882434e-06 | J66: -8.981245687e-05 | K66: -0.002346646924 | L66: -8.386614597e-05 | M66: -0.001803843057 | N66: 3.16085745e-07
A67: 30.54976 | B67: ='DF raw data'!G72 -> -5.5047262e-06 | C67: ='DF raw data'!H72 -> -1.9392851e-06 | D67: ='DF raw data'!I72 -> 8.3734803e-06 | F67: -5.511331871e-06 | G67: -1.946062026e-06 | H67: 8.383528476e-06 | J67: -9.256900462e-05 | K67: -0.002392946237 | L67: -8.483948835e-05 | M67: -0.001846276375 | N67: 3.239716474e-07
A68: 31.04992 | B68: ='DF raw data'!G73 -> -1.919411e-06 | C68: ='DF raw data'!H73 -> 8.0701539e-06 | D68: ='DF raw data'!I73 -> 5.2455753e-06 | F68: -1.921714293e-06 | G68: 8.098355446e-06 | H68: 5.25186999e-06 | J68: -9.353016924e-05 | K68: -0.002439726287 | L68: -8.078901489e-05 | M68: -0.001886683809 | N68: 3.316114701e-07
A69: 31.55008 | B69: ='DF raw data'!G74 -> 1.8083531e-06 | C69: ='DF raw data'!H74 -> 1.0976199e-05 | D69: ='DF raw data'!I74 -> -2.8042093e-06 | F69: 1.810523124e-06 | G69: 1.101455586e-05 | H69: -2.807574351e-06 | J69: -9.262461799e-05 | K69: -0.002486053416 | L69: -7.527997463e-05 | M69: -0.001924335841 | N69: 3.387369468e-07
A70: 32.05024 | B70: ='DF raw data'!G75 -> -1.4922832e-06 | C70: ='DF raw data'!H75 -> 1.0455832e-05 | D70: ='DF raw data'!I75 -> -2.2400316e-06 | F70: -1.49407394e-06 | G70: 1.049237041e-05 | H70: -2.242719638e-06 | J70: -9.337189402e-05 | K70: -0.002532754302 | L70: -7.003211065e-05 | M70: -0.001959363101 | N70: 3.4555053e-07
A71: 32.5504 | B71: ='DF raw data'!G76 -> -4.5130278e-06 | C71: ='DF raw data'!H76 -> 2.5706865e-06 | D71: ='DF raw data'!I76 -> 2.6748633e-06 | F71: -4.518443433e-06 | G71: =(1-$G$1*($B$2-$G$2))*C71*$M$2/$M$1 -> 2.579669889e-06 | H71: 2.678073136e-06 | J71: -9.563183868e-05 | K71: -0.002580585523 | L71: -6.874186295e-05 | M71: -0.001993745032 | N71: 3.524881955e-07
A72: =A71+$B$1 -> 33.05056 | B72: ='DF raw data'!G77 -> -4.3463501e-06 | C72: ='DF raw data'!H77 -> -2.3635411e-07 | D72: ='DF raw data'!I77 -> 3.3907708e-07 | F72: -4.35156572e-06 | G72: -2.37180061e-07 | H72: 3.394839725e-07 | J72: =F72*$B$1+J71 -> -9.780831779e-05 | K72: =J72*$B$1+K71 -> -0.002629505331 | L72: =G72*$B$1+L71 -> -6.886049093e-05 | M72: =L72*$B$1+M71 -> -0.002028186295 | N72: =(J72^2+L72^2)*$B$1+N71 -> 3.596446019e-07
A73: 33.55072 | B73: ='DF raw data'!G78 -> -6.2297609e-06 | C73: ='DF raw data'!H78 -> -1.3910329e-06 | D73: ='DF raw data'!I78 -> -4.224069e-06 | F73: -6.237236613e-06 | G73: -1.395893932e-06 | H73: -4.229137883e-06 | J73: -0.0001009279341 | K73: -0.002679985446 | L73: -6.955866124e-05 | M73: -0.002062976755 | N73: 3.671594335e-07
A74: 34.05088 | B74: ='DF raw data'!G79 -> -6.9728835e-06 | C74: ='DF raw data'!H79 -> 1.8656574e-06 | D74: ='DF raw data'!I79 -> -2.5402521e-06 | F74: -6.98125096e-06 | G74: 1.872177031e-06 | H74: -2.543300403e-06 | J74: -0.0001044196765 | K74: -0.002732211992 | L74: -6.862227318e-05 | M74: -0.002097298871 | N74: 3.749681741e-07
A75: 34.55104 | B75: ='DF raw data'!G80 -> -2.0763389e-06 | C75: ='DF raw data'!H80 -> 4.2197544e-07 | D75: ='DF raw data'!I80 -> 3.1917182e-06 | F75: -2.078830507e-06 | G75: 4.234500538e-07 | H75: 3.195548262e-06 | J75: -0.0001054594244 | K75: -0.002784958577 | L75: -6.84104804e-05 | M75: -0.002131515057 | N75: 3.828715444e-07
A76: 35.0512 | B76: ='DF raw data'!G81 -> -1.3347587e-06 | C76: ='DF raw data'!H81 -> -1.5571499e-06 | D76: ='DF raw data'!I81 -> 4.2522615e-06 | F76: -1.33636041e-06 | G76: -1.562591436e-06 | H76: 4.257364214e-06 | J76: -0.0001061278184 | K76: -0.002838039467 | L76: -6.919202613e-05 | M76: -0.002166122141 | N76: 3.908994376e-07
A77: 35.55136 | B77: ='DF raw data'!G82 -> -6.6197813e-06 | C77: ='DF raw data'!H82 -> 3.5966082e-06 | D77: ='DF raw data'!I82 -> -1.5216472e-06 | F77: -6.627725038e-06 | G77: 3.609176723e-06 | H77: -1.523473177e-06 | J77: -0.0001094427414 | K77: -0.002892778349 | L77: -6.73868603e-05 | M77: -0.002199826353 | N77: 3.991614319e-07
A78: 36.05152 | B78: ='DF raw data'!G83 -> -6.293571e-06 | C78: ='DF raw data'!H83 -> 2.4706162e-06 | D78: ='DF raw data'!I83 -> -3.3463555e-06 | F78: -6.301123285e-06 | G78: 2.479249889e-06 | H78: -3.350371127e-06 | J78: -0.0001125943112 | K78: -0.002949093519 | L78: -6.614683868e-05 | M78: -0.002232910355 | N78: 4.07690602e-07
A79: 36.55168 | B79: ='DF raw data'!G84 -> -3.0690414e-06 | C79: ='DF raw data'!H84 -> 2.6783623e-06 | D79: ='DF raw data'!I84 -> -3.9541892e-06 | F79: -3.07272425e-06 | G79: 2.687721968e-06 | H79: -3.958934227e-06 | J79: -0.000114131165 | K79: -0.003006177363 | L79: -6.480254766e-05 | M79: -0.002265321998 | N79: 4.163060045e-07
A80: 37.05184 | B80: ='DF raw data'!G85 -> 5.4384986e-07 | C80: ='DF raw data'!H85 -> 4.9679725e-06 | D80: ='DF raw data'!I85 -> 7.2874826e-07 | F80: 5.445024798e-07 | G80: 4.985333322e-06 | H80: 7.296227579e-07 | J80: -0.0001138588266 | K80: -0.003063124994 | L80: -6.230908335e-05 | M80: -0.002296486509 | N80: 4.247318271e-07
A81: 37.552 | B81: ='DF raw data'!G86 -> 5.0518443e-06 | C81: ='DF raw data'!H86 -> -3.2681791e-07 | D81: ='DF raw data'!I86 -> 1.3827114e-06 | F81: 5.057906513e-06 | G81: -3.279599911e-07 | H81: 1.384370654e-06 | J81: -0.0001113290641 | K81: -0.003118807338 | L81: -6.247311581e-05 | M81: -0.002327733062 | N81: 4.328829599e-07
A82: 38.05216 | B82: ='DF raw data'!G87 -> 6.9289686e-06 | C82: ='DF raw data'!H87 -> 2.5327934e-06 | D82: ='DF raw data'!I87 -> -1.7924758e-07 | F82: 6.937283362e-06 | G82: 2.54164437e-06 | H82: -1.794626771e-07 | J82: -0.0001078593124 | K82: -0.003172754252 | L82: -6.120188697e-05 | M82: -0.002358343798 | N82: 4.405750718e-07
A83: 38.55232 | B83: ='DF raw data'!G88 -> 6.343836e-06 | C83: ='DF raw data'!H88 -> 7.6314454e-06 | D83: ='DF raw data'!I88 -> 2.1502085e-06 | F83: 6.351448603e-06 | G83: 7.658113858e-06 | H83: 2.15278875e-06 | J83: -0.0001046825719 | K83: -0.003225112287 | L83: -5.737160474e-05 | M83: -0.00238703878 | N83: 4.477023227e-07
A84: 39.05248 | B84: ='DF raw data'!G89 -> 6.7317901e-06 | C84: ='DF raw data'!H89 -> 1.0156555e-05 | D84: ='DF raw data'!I89 -> 1.7590094e-06 | F84: 6.739868248e-06 | G84: 1.019204758e-05 | H84: 1.761120211e-06 | J84: -0.0001013115594 | K84: -0.003275784277 | L84: -5.227395022e-05 | M84: -0.002413184119 | N84: 4.542027011e-07
A85: 39.55264 | B85: ='DF raw data'!G90 -> 5.5172873e-06 | C85: ='DF raw data'!H90 -> -5.0792269e-06 | D85: ='DF raw data'!I90 -> -8.9569659e-07 | F85: 5.523908045e-06 | G85: -5.096976506e-06 | H85: -8.967714259e-07 | J85: -9.854872155e-05 | K85: -0.003325074405 | L85: -5.482325399e-05 | M85: -0.002440604518 | N85: 4.605634558e-07
A86: 40.0528 | B86: ='DF raw data'!G91 -> -1.097098e-08 | C86: ='DF raw data'!H91 -> -1.7017427e-07 | D86: ='DF raw data'!I91 -> -1.5559751e-06 | F86: -1.098414518e-08 | G86: -1.707689523e-07 | H86: -1.55784227e-06 | J86: -9.855421538e-05 | K86: -0.003374367282 | L86: -5.490866579e-05 | M86: -0.002468067636 | N86: 4.669294397e-07
A87: 40.55296 | B87: ='DF raw data'!G92 -> -1.9214774e-06 | C87: ='DF raw data'!H92 -> 2.7158553e-06 | D87: ='DF raw data'!I92 -> 5.8299947e-06 | F87: =(1-$G$1*($B$2-$G$2))*B87 -> -1.923783173e-06 | G87: 2.725345989e-06 | H87: 5.836990694e-06 | J87: -9.951641478e-05 | K87: -0.003424141412 | L87: -5.354555674e-05 | M87: -0.002494848982 | N87: 4.733168047e-07
A88: 41.05312 | B88: ='DF raw data'!G93 -> 3.2453256e-06 | C88: ='DF raw data'!H93 -> 2.5588115e-06 | D88: ='DF raw data'!I93 -> 8.694481e-06 | F88: 3.249219991e-06 | G88: 2.567753392e-06 | H88: 8.704914377e-06 | J88: -9.78912849e-05 | K88: -0.003473102717 | L88: -5.226126921e-05 | M88: -0.002520987978 | N88: 4.794757469e-07
A89: 41.55328 | B89: ='DF raw data'!G94 -> 7.9183965e-06 | C89: ='DF raw data'!H94 -> 6.3630873e-06 | D89: ='DF raw data'!I94 -> 6.5025843e-06 | F89: 7.927898576e-06 | G89: 6.385323419e-06 | H89: 6.510387401e-06 | J89: -9.392606715e-05 | K89: -0.003520080778 | L89: -4.906758584e-05 | M89: -0.002545529622 | N89: 4.850924107e-07
A90: 42.05344 | B90: ='DF raw data'!G95 -> 7.3436108e-06 | C90: ='DF raw data'!H95 -> 4.7483513e-06 | D90: ='DF raw data'!I95 -> 6.1490455e-06 | F90: 7.352423133e-06 | G90: 4.764944645e-06 | H90: 6.156424355e-06 | J90: -9.02486792e-05 | K90: -0.003565219558 | L90: -4.668435113e-05 | M90: -0.002568879267 | N90: 4.90256189e-07
A91: 42.5536 | B91: ='DF raw data'!G96 -> 7.0614637e-06 | C91: ='DF raw data'!H96 -> 2.9549569e-06 | D91: ='DF raw data'!I96 -> -8.7686641e-07 | F91: 7.069937456e-06 | G91: 2.965283141e-06 | H91: -8.779186497e-07 | J91: -8.671257928e-05 | K91: -0.003608589721 | L91: -4.520123511e-05 | M91: -0.002591487117 | N91: 4.950388304e-07
A92: 43.05376 | B92: ='DF raw data'!G97 -> 7.3538263e-06 | C92: ='DF raw data'!H97 -> -7.4037953e-06 | D92: ='DF raw data'!I97 -> -3.9013512e-06 | F92: 7.362650892e-06 | G92: -7.429668224e-06 | H92: -3.906032821e-06 | J92: -8.303007581e-05 | K92: -0.003650118044 | L92: -4.891725797e-05 | M92: -0.002615953572 | N92: 4.996837622e-07
A93: 43.55392 | B93: ='DF raw data'!G98 -> 3.1458051e-06 | C93: ='DF raw data'!H98 -> -1.2174884e-05 | D93: ='DF raw data'!I98 -> -5.7267289e-06 | F93: 3.149580066e-06 | G93: -1.221742973e-05 | H93: -5.733600975e-06 | J93: -8.145478184e-05 | K93: -0.003690858468 | L93: -5.502792763e-05 | M93: -0.002643476341 | N93: 5.045167854e-07
A94: 44.05408 | B94: ='DF raw data'!G99 -> -1.9217539e-06 | C94: ='DF raw data'!H99 -> -1.7125925e-06 | D94: ='DF raw data'!I99 -> -6.3775633e-06 | F94: -1.924060005e-06 | G94: -1.718577238e-06 | H94: -6.385216376e-06 | J94: -8.24171197e-05 | K94: -0.003732080214 | L94: -5.588749122e-05 | M94: -0.002671429028 | N94: 5.094763686e-07
A95: 44.55424 | B95: ='DF raw data'!G100 -> -2.7441699e-06 | C95: ='DF raw data'!H100 -> 8.3851755e-06 | D95: ='DF raw data'!I100 -> 4.3936888e-07 | F95: -2.747462904e-06 | G95: 8.414477905e-06 | H95: 4.398961227e-07 | J95: -8.379129074e-05 | K95: -0.003773989266 | L95: -5.167890595e-05 | M95: -0.00269727675 | N95: 5.143237641e-07
A96: 45.0544 | B96: ='DF raw data'!G101 -> -3.503944e-07 | C96: ='DF raw data'!H101 -> 8.9256891e-06 | D96: ='DF raw data'!I101 -> 4.6857194e-06 | F96: -3.508148733e-07 | G96: 8.956880356e-06 | H96: 4.691342263e-06 | J96: -8.396675431e-05 | K96: -0.003815986078 | L96: -4.719903267e-05 | M96: -0.002720883818 | N96: 5.189643309e-07
A97: 45.55456 | B97: ='DF raw data'!G102 -> 2.3594923e-06 | C97: ='DF raw data'!H102 -> -6.3450091e-07 | D97: ='DF raw data'!I102 -> 7.9655756e-06 | F97: 2.362323691e-06 | G97: -6.367182044e-07 | H97: 7.975134291e-06 | J97: -8.278521449e-05 | K97: -0.003857391931 | L97: -4.751749365e-05 | M97: -0.002744650168 | N97: 5.235214407e-07
A98: 46.05472 | B98: ='DF raw data'!G103 -> 2.6612117e-06 | C98: ='DF raw data'!H103 -> 4.5622205e-06 | D98: ='DF raw data'!I103 -> 4.8619577e-06 | F98: 2.664405154e-06 | G98: 4.578163402e-06 | H98: 4.867792049e-06 | J98: -8.145258561e-05 | K98: -0.003898131256 | L98: -4.522767944e-05 | M98: -0.002767271244 | N98: 5.278628628e-07
A99: 46.55488 | B99: ='DF raw data'!G104 -> 4.1767503e-06 | C99: ='DF raw data'!H104 -> 8.4347187e-07 | D99: ='DF raw data'!I104 -> -2.275902e-06 | F99: 4.1817624e-06 | G99: 8.464194236e-07 | H99: -2.278633082e-06 | J99: -7.936103533e-05 | K99: -0.003937824472 | L99: -4.48043343e-05 | M99: -0.00278968058 | N99: 5.320169929e-07
A100: 47.05504 | B100: ='DF raw data'!G105 -> 7.6359147e-06 | C100: ='DF raw data'!H105 -> 3.1789812e-06 | D100: ='DF raw data'!I105 -> -4.9877099e-06 | F100: 7.645077798e-06 | G100: 3.190090305e-06 | H100: -4.993695152e-06 | J100: -7.553727322e-05 | K100: -0.003975605194 | L100: -4.320877873e-05 | M100: -0.002811291882 | N100: 5.358046436e-07
A101: 47.5552 | B101: ='DF raw data'!G106 -> 7.4557479e-06 | C101: ='DF raw data'!H106 -> -8.8521062e-07 | D101: ='DF raw data'!I106 -> -5.4951206e-06 | F101: 7.464694797e-06 | G101: -8.883040317e-07 | H101: -5.501714745e-06 | J101: -7.180373147e-05 | K101: -0.004011518549 | L101: -4.365307288e-05 | M101: -0.002833125403 | N101: 5.393364568e-07
A102: 48.05536 | B102: ='DF raw data'!G107 -> 2.3703772e-06 | C102: ='DF raw data'!H107 -> -1.7819747e-06 | D102: ='DF raw data'!I107 -> -4.0277346e-06 | F102: 2.373221653e-06 | G102: -1.788201897e-06 | H102: -4.032567882e-06 | J102: -7.061674093e-05 | K102: -0.004046838218 | L102: -4.454745994e-05 | M102: -0.002855406261 | N102: 5.428231723e-07
A103: 48.55552 | B103: ='DF raw data'!G108 -> -1.1401705e-06 | C103: ='DF raw data'!H108 -> 1.576921e-06 | D103: ='DF raw data'!I108 -> -3.4356782e-07 | F103: -1.141538705e-06 | G103: 1.582431627e-06 | H103: -3.439801014e-07 | J103: -7.118769292e-05 | K103: -0.004082443454 | L103: -4.375599094e-05 | M103: -0.002877291257 | N103: 5.463154266e-07
A104: 49.05568 | B104: ='DF raw data'!G109 -> -3.2517989e-06 | C104: ='DF raw data'!H109 -> -1.5252607e-06 | D104: ='DF raw data'!I109 -> 4.3625477e-07 | F104: -3.255701059e-06 | G104: -1.530590798e-06 | H104: 4.367782757e-07 | J104: -7.281606437e-05 | K104: -0.004118863137 | L104: -4.452153123e-05 | M104: -0.002899559146 | N104: 5.499587651e-07
A105: 49.55584 | B105: ='DF raw data'!G110 -> -5.3073441e-06 | C105: ='DF raw data'!H110 -> 6.6143307e-06 | D105: ='DF raw data'!I110 -> 1.0073447e-06 | F105: -5.313712913e-06 | G105: 6.637444801e-06 | H105: 1.008553514e-06 | J105: -7.547377102e-05 | K105: -0.004156612098 | L105: -4.120174684e-05 | M105: -0.002920166612 | N105: 5.536568852e-07
A106: 50.056 | B106: ='DF raw data'!G111 -> -5.8530263e-06 | C106: ='DF raw data'!H111 -> -4.2940078e-06 | D106: ='DF raw data'!I111 -> -1.7631653e-06 | F106: -5.860049932e-06 | G106: -4.30901342e-06 | H106: -1.765281098e-06 | J106: -7.840473359e-05 | K106: -0.00419582701 | L106: -4.335694299e-05 | M106: -0.002941852021 | N106: 5.576717329e-07
A107: 50.55616 | B107: ='DF raw data'!G112 -> -6.2397726e-06 | C107: ='DF raw data'!H112 -> -1.0341154e-06 | D107: ='DF raw data'!I112 -> -4.5946481e-06 | F107: -6.247260327e-06 | G107: -1.037729167e-06 | H107: -4.600161678e-06 | J107: -8.152936331e-05 | K107: -0.004236604736 | L107: -4.387597361e-05 | M107: -0.002963797028 | N107: 5.619591735e-07
A108: 51.05632 | B108: ='DF raw data'!G113 -> -6.563509e-06 | C108: ='DF raw data'!H113 -> 6.1104174e-07 | D108: ='DF raw data'!I113 -> 2.2984925e-06 | F108: -6.571385211e-06 | G108: 6.131770552e-07 | H108: 2.301250691e-06 | J108: -8.481610734e-05 | K108: -0.004279026361 | L108: -4.356928697e-05 | M108: -0.002985588642 | N108: 5.665066556e-07
A109: 51.55648 | B109: ='DF raw data'!G114 -> -4.1237495e-06 | C109: ='DF raw data'!H114 -> -3.2093785e-06 | D109: ='DF raw data'!I114 -> 6.905032e-06 | F109: -4.128697999e-06 | G109: -3.22059383e-06 | H109: 6.913318038e-06 | J109: -8.688111693e-05 | K109: -0.00432248082 | L109: -4.518009918e-05 | M109: -0.003008185921 | N109: 5.713029749e-07
A110: 52.05664 | B110: ='DF raw data'!G115 -> -2.6174082e-06 | C110: ='DF raw data'!H115 -> -3.2229877e-06 | D110: ='DF raw data'!I115 -> 7.7961913e-06 | F110: -2.62054909e-06 | G110: -3.234250588e-06 | H110: 7.80554673e-06 | J110: -8.819181077e-05 | K110: -0.004366590836 | L110: -4.679774196e-05 | M110: -0.003031592279 | N110: 5.762884818e-07
A111: 52.5568 | B111: ='DF raw data'!G116 -> -4.4554167e-06 | C111: ='DF raw data'!H116 -> -9.1790014e-07 | D111: ='DF raw data'!I116 -> 3.7100428e-06 | F111: -4.4607632e-06 | G111: -9.211077868e-07 | H111: 3.714494851e-06 | J111: -9.042290609e-05 | K111: -0.004411816757 | L111: -4.725844323e-05 | M111: -0.003055229062 | N111: 5.814949786e-07
A112: 53.05696 | B112: ='DF raw data'!G117 -> -1.1407089e-06 | C112: ='DF raw data'!H117 -> -5.9186168e-06 | D112: ='DF raw data'!I117 -> 3.5688747e-06 | F112: -1.142077751e-06 | G112: -5.939299695e-06 | H112: 3.57315735e-06 | J112: -9.09941277e-05 | K112: -0.00445732838 | L112: -5.022904336e-05 | M112: -0.00308035162 | N112: 5.868981511e-07
A113: 53.55712 | B113: ='DF raw data'!G118 -> 6.4735955e-06 | C113: ='DF raw data'!H118 -> -7.8319626e-06 | D113: ='DF raw data'!I118 -> 3.3657591e-06 | F113: 6.481363815e-06 | G113: -7.859331775e-06 | H113: 3.369798011e-06 | J113: -8.775240877e-05 | K113: -0.004501218624 | L113: -5.415996674e-05 | M113: -0.003107440269 | N113: 5.922167461e-07
A114: 54.05728 | B114: ='DF raw data'!G119 -> 8.3356435e-06 | C114: ='DF raw data'!H119 -> -3.8147373e-06 | D114: ='DF raw data'!I119 -> -1.0080691e-05 | F114: 8.345646272e-06 | G114: -3.828068086e-06 | H114: -1.009278783e-05 | J114: -8.357825033e-05 | K114: -0.004543021122 | L114: -5.607461328e-05 | M114: -0.003135486548 | N114: 5.972832099e-07
A115: 54.55744 | B115: ='DF raw data'!G120 -> 3.0626991e-06 | C115: ='DF raw data'!H120 -> -9.7120846e-06 | D115: ='DF raw data'!I120 -> -1.5064256e-05 | F115: 3.066374339e-06 | G115: -9.746023953e-06 | H115: -1.508233311e-05 | J115: -8.204457254e-05 | K115: -0.004584056536 | L115: -6.094918462e-05 | M115: -0.003165970892 | N115: 6.025079388e-07
A116: 55.0576 | B116: ='DF raw data'!G121 -> -4.106389e-06 | C116: ='DF raw data'!H121 -> -1.1952953e-06 | D116: ='DF raw data'!I121 -> -6.4317401e-06 | F116: -4.111316667e-06 | G116: -1.199472318e-06 | H116: -6.439458188e-06 | J116: -8.410088869e-05 | K116: -0.004626120436 | L116: -6.154911269e-05 | M116: -0.003196755296 | N116: 6.07940303e-07
A117: 55.55776 | B117: ='DF raw data'!G122 -> -6.6431371e-06 | C117: ='DF raw data'!H122 -> -4.8194443e-06 | D117: ='DF raw data'!I122 -> -7.0727839e-07 | F117: -6.651108865e-06 | G117: -4.836286083e-06 | H117: -7.081271241e-07 | J117: -8.74275073e-05 | K117: -0.004669848178 | L117: -6.396802954e-05 | M117: -0.003228749546 | N117: 6.138099196e-07
A118: 56.05792 | B118: ='DF raw data'!G123 -> -3.1058141e-06 | C118: ='DF raw data'!H123 -> -7.2128605e-06 | D118: ='DF raw data'!I123 -> -2.2195861e-06 | F118: -3.109541077e-06 | G118: -7.238066193e-06 | H118: -2.222249603e-06 | J118: -8.898277536e-05 | K118: -0.004714353803 | L118: -6.758822073e-05 | M118: -0.003262554471 | N118: 6.200549683e-07
A119: 56.55808 | B119: ='DF raw data'!G124 -> -2.8565293e-07 | C119: ='DF raw data'!H124 -> 1.4365382e-05 | D119: ='DF raw data'!I124 -> -4.2088332e-06 | F119: -2.859957135e-07 | G119: 1.441558253e-05 | H119: -4.2138838e-06 | J119: -8.912581898e-05 | K119: -0.004758930973 | L119: -6.037812297e-05 | M119: -0.003292753193 | N119: 6.258512872e-07
A120: 57.05824 | B120: ='DF raw data'!G125 -> -2.1716539e-06 | C120: ='DF raw data'!H125 -> 4.4935055e-06 | D120: ='DF raw data'!I125 -> -3.2745418e-06 | F120: -2.174259885e-06 | G120: 4.509208274e-06 | H120: -3.27847125e-06 | J120: -9.02132968e-05 | K120: -0.004804052055 | L120: -5.812279736e-05 | M120: -0.003321823891 | N120: 6.316114791e-07
A121: 57.5584 | B121: ='DF raw data'!G126 -> -4.0429718e-06 | C121: ='DF raw data'!H126 -> -6.8346878e-07 | D121: ='DF raw data'!I126 -> -1.5510566e-06 | F121: -4.047823366e-06 | G121: -6.85857195e-07 | H121: -1.552917868e-06 | J121: -9.223785614e-05 | K121: -0.004850185741 | L121: -5.846583569e-05 | M121: -0.003351066163 | N121: 6.375764253e-07
A122: 58.05856 | B122: ='DF raw data'!G127 -> -1.4123204e-06 | C122: ='DF raw data'!H127 -> -3.0009651e-06 | D122: ='DF raw data'!I127 -> 3.5352713e-07 | F122: -1.414015184e-06 | G122: -3.011452119e-06 | H122: 3.539513626e-07 | J122: -9.294508997e-05 | K122: -0.004896673157 | L122: -5.997204359e-05 | M122: -0.003381061781 | N122: 6.436961009e-07
A123: 58.55872 | B123: ='DF raw data'!G128 -> 1.9246957e-06 | C123: ='DF raw data'!H128 -> -3.1857617e-06 | D123: ='DF raw data'!I128 -> 5.0489061e-06 | F123: 1.927005335e-06 | G123: -3.1968945e-06 | H123: 5.054964787e-06 | J123: -9.198127898e-05 | K123: -0.004942678514 | L123: -6.157100234e-05 | M123: -0.003411857133 | N123: 6.498238331e-07
A124: 59.05888 | B124: ='DF raw data'!G129 -> 4.424322e-06 | C124: ='DF raw data'!H129 -> 3.2400908e-06 | D124: ='DF raw data'!I129 -> 4.6431987e-06 | F124: 4.429631186e-06 | G124: 3.251413455e-06 | H124: 4.648770538e-06 | J124: -8.976575465e-05 | K124: -0.004987575754 | L124: -5.994477539e-05 | M124: -0.003441839112 | N124: 6.556513307e-07
A125: 59.55904 | B125: ='DF raw data'!G130 -> 2.3172481e-06 | C125: ='DF raw data'!H130 -> 2.9082573e-06 | D125: ='DF raw data'!I130 -> -6.1417524e-07 | F125: 2.320028798e-06 | G125: 2.918420347e-06 | H125: -6.149122503e-07 | J125: -8.860536904e-05 | K125: -0.005031892615 | L125: -5.848509826e-05 | M125: -0.003471091019 | N125: 6.612888432e-07
A126: 60.0592 | B126: ='DF raw data'!G131 -> -2.545187e-06 | C126: ='DF raw data'!H131 -> -2.6265684e-06 | D126: ='DF raw data'!I131 -> -6.8295312e-06 | F126: -2.548241224e-06 | G126: -2.635747071e-06 | H126: -6.837726637e-06 | J126: -8.987989737e-05 | K126: -0.005076846945 | L126: -5.980339352e-05 | M126: -0.003501002284 | N126: 6.671181289e-07
A127: 60.55936 | B127: ='DF raw data'!G132 -> -4.5711627e-06 | C127: ='DF raw data'!H132 -> 2.8470142e-06 | D127: ='DF raw data'!I132 -> -1.0526605e-05 | F127: -4.576648095e-06 | G127: 2.85696323e-06 | H127: -1.053923693e-05 | J127: -9.216895369e-05 | K127: -0.005122946169 | L127: -5.837445479e-05 | M127: -0.003530198851 | N127: 6.730713798e-07
A128: 61.05952 | B128: ='DF raw data'!G133 -> -3.8602871e-06 | C128: ='DF raw data'!H133 -> 1.1861621e-05 | D128: ='DF raw data'!I133 -> -1.3005219e-05 | F128: -3.864919445e-06 | G128: 1.190307201e-05 | H128: -1.302082526e-05 | J128: -9.41020318e-05 | K128: -0.005170012241 | L128: -5.242101429e-05 | M128: -0.003556417746 | N128: 6.788748139e-07
A129: 61.55968 | B129: ='DF raw data'!G134 -> -3.4167304e-06 | C129: ='DF raw data'!H134 -> 8.6494947e-06 | D129: ='DF raw data'!I134 -> -6.6500334e-06 | F129: -3.420830476e-06 | G129: 8.679720781e-06 | H129: -6.65801344e-06 | J129: -9.581299437e-05 | K129: -0.005217934068 | L129: -4.807976515e-05 | M129: -0.003580465321 | N129: 6.846225494e-07
A130: 62.05984 | B130: ='DF raw data'!G135 -> -5.113367e-06 | C130: ='DF raw data'!H135 -> 7.8118392e-06 | D130: ='DF raw data'!I135 -> -3.4489204e-07 | F130: -5.11950304e-06 | G130: 7.839138053e-06 | H130: -3.453059104e-07 | J130: -9.837356501e-05 | K130: -0.00526713659 | L130: -4.415894186e-05 | M130: -0.003602551857 | N130: 6.90438095e-07
A131: 62.56 | B131: ='DF raw data'!G136 -> -5.7711281e-06 | C131: ='DF raw data'!H136 -> 1.0086907e-05 | D131: ='DF raw data'!I136 -> 2.3659115e-06 | F131: -5.778053454e-06 | G131: 1.012215619e-05 | H131: 2.368750594e-06 | J131: -0.0001012635162 | K131: -0.005317784551 | L131: -3.909624422e-05 | M131: -0.003622106235 | N131: 6.963313883e-07
A132: 63.06016 | B132: ='DF raw data'!G137 -> -3.8419225e-06 | C132: ='DF raw data'!H137 -> -1.9737092e-06 | D132: ='DF raw data'!I137 -> 9.0565327e-06 | F132: -3.846532807e-06 | G132: -1.980606423e-06 | H132: 9.067400539e-06 | J132: -0.0001031873981 | K132: -0.00536939476 | L132: -4.008686433e-05 | M132: -0.003642156081 | N132: 7.024606469e-07
A133: 63.56032 | B133: ='DF raw data'!G138 -> 2.5762827e-07 | C133: ='DF raw data'!H138 -> 5.4673906e-06 | D133: ='DF raw data'!I138 -> 1.1059342e-05 | F133: 2.579374239e-07 | G133: 5.486496663e-06 | H133: 1.107261321e-05 | J133: -0.0001030583881 | K133: -0.005420940443 | L133: -3.734273816e-05 | M133: -0.003660833425 | N133: 7.084703252e-07
A134: 64.06048 | B134: ='DF raw data'!G139 -> 7.5656876e-06 | C134: ='DF raw data'!H139 -> 2.5026388e-06 | D134: ='DF raw data'!I139 -> 5.8279255e-07 | F134: 7.574766425e-06 | G134: 2.511384393e-06 | H134: 5.834919011e-07 | J134: -9.926979291e-05 | K134: -0.005470591223 | L134: -3.608664414e-05 | M134: -0.003678882521 | N134: 7.140504791e-07
A135: 64.56064 | B135: ='DF raw data'!G140 -> 1.0857636e-05 | C135: ='DF raw data'!H140 -> -4.8439947e-06 | D135: ='DF raw data'!I140 -> -3.4681404e-06 | F135: 1.087066516e-05 | G135: =(1-$G$1*($B$2-$G$2))*C135*$M$2/$M$1 -> -4.860922276e-06 | H135: -3.472302168e-06 | J135: -9.383272103e-05 | K135: -0.005517522596 | L135: -3.851788302e-05 | M135: -0.003698147625 | N135: 7.191962286e-07
A136: =A135+$B$1 -> 65.0608 | B136: ='DF raw data'!G141 -> 4.7804365e-06 | C136: ='DF raw data'!H141 -> -1.1984977e-06 | D136: ='DF raw data'!I141 -> 5.4698639e-06 | F136: 4.786173024e-06 | G136: -1.202685909e-06 | H136: 5.476427737e-06 | J136: =F136*$B$1+J135 -> -9.143886873e-05 | K136: =J136*$B$1+K135 -> -0.005563256661 | L136: =G136*$B$1+L135 -> -3.911941841e-05 | M136: =L136*$B$1+M135 -> -0.003717713594 | N136: =(J136^2+L136^2)*$B$1+N135 -> 7.24143509e-07
A137: 65.56096 | B137: ='DF raw data'!G142 -> -6.2645399e-06 | C137: ='DF raw data'!H142 -> 8.9326277e-06 | D137: ='DF raw data'!I142 -> 1.062568e-05 | F137: -6.272057348e-06 | G137: 8.963843203e-06 | H137: 1.063843082e-05 | J137: -9.457590093e-05 | K137: -0.005610559744 | L137: -3.463606259e-05 | M137: -0.003735037167 | N137: 7.29217261e-07
A138: 66.06112 | B138: ='DF raw data'!G143 -> -1.2919117e-05 | C138: ='DF raw data'!H143 -> 1.1227349e-06 | D138: ='DF raw data'!I143 -> 7.3253932e-06 | F138: -1.293461994e-05 | G138: 1.126658352e-06 | H138: 7.334183672e-06 | J138: -0.0001010452804 | K138: -0.005661098551 | L138: -3.407255315e-05 | M138: -0.003752078895 | N138: 7.349046242e-07
A139: 66.56128 | B139: ='DF raw data'!G144 -> -1.4236021e-05 | C139: ='DF raw data'!H144 -> 1.4876582e-06 | D139: ='DF raw data'!I144 -> 6.8083345e-06 | F139: -1.425310423e-05 | G139: 1.492856894e-06 | H139: 6.816504501e-06 | J139: -0.000108174113 | K139: -0.005715202915 | L139: -3.332588585e-05 | M139: -0.00376874717 | N139: 7.413128009e-07
A140: 67.06144 | B140: ='DF raw data'!G145 -> -1.1621784e-05 | C140: ='DF raw data'!H145 -> 1.7155519e-06 | D140: ='DF raw data'!I145 -> 1.062261e-05 | F140: -1.163573014e-05 | G140: 1.72154698e-06 | H140: 1.063535713e-05 | J140: -0.0001139938398 | K140: -0.005772218074 | L140: -3.246483691e-05 | M140: -0.003784984783 | N140: 7.483393292e-07
A141: 67.5616 | B141: ='DF raw data'!G146 -> -6.675908e-06 | C141: ='DF raw data'!H146 -> 8.5775773e-06 | D141: ='DF raw data'!I146 -> 9.5818423e-06 | F141: -6.68391909e-06 | G141: 8.607552062e-06 | H141: 9.593340511e-06 | J141: -0.0001173368688 | K141: -0.005830905283 | L141: -2.815968367e-05 | M141: -0.00379906913 | N141: 7.556221132e-07
A142: 68.06176 | B142: ='DF raw data'!G147 -> -2.5230972e-06 | C142: ='DF raw data'!H147 -> 1.2931973e-05 | D142: ='DF raw data'!I147 -> 5.7987809e-06 | F142: -2.526124917e-06 | G142: 1.297716441e-05 | H142: 5.805739437e-06 | J142: -0.0001186003354 | K142: -0.005890224426 | L142: -2.166902512e-05 | M142: -0.00380990711 | N142: 7.628922321e-07
A143: 68.56192 | B143: ='DF raw data'!G148 -> 4.863698e-07 | C143: ='DF raw data'!H148 -> 3.3282861e-06 | D143: ='DF raw data'!I148 -> 6.6898355e-07 | F143: 4.869534438e-07 | G143: 3.339916958e-06 | H143: 6.697863303e-07 | J143: -0.0001183567808 | K143: -0.005949421754 | L143: -1.999853225e-05 | M143: -0.003819909576 | N143: 7.700986718e-07
A144: 69.06208 | B144: ='DF raw data'!G149 -> 2.5811034e-06 | C144: ='DF raw data'!H149 -> 9.587221e-06 | D144: ='DF raw data'!I149 -> 8.0708122e-07 | F144: 2.584200724e-06 | G144: 9.620724011e-06 | H144: 8.080497175e-07 | J144: -0.000117064267 | K144: -0.006007972618 | L144: -1.518663093e-05 | M144: -0.003827505321 | N144: 7.770682395e-07
A145: 69.56224 | B145: ='DF raw data'!G150 -> 4.4045605e-06 | C145: ='DF raw data'!H150 -> 2.3090358e-06 | D145: ='DF raw data'!I150 -> 9.4545538e-07 | F145: 4.409845973e-06 | G145: 2.317104838e-06 | H145: 9.465899265e-07 | J145: -0.0001148586384 | K145: -0.006065420314 | L145: -1.402770777e-05 | M145: -0.003834521419 | N145: 7.837650235e-07
A146: 70.0624 | B146: ='DF raw data'!G151 -> 3.9925958e-06 | C146: ='DF raw data'!H151 -> 6.5456156e-06 | D146: ='DF raw data'!I151 -> 1.558484e-06 | F146: 3.997386915e-06 | G146: 6.568489573e-06 | H146: 1.560354181e-06 | J146: -0.0001128593054 | K146: -0.006121868024 | L146: -1.074241203e-05 | M146: -0.003839894344 | N146: 7.901933911e-07
A147: 70.56256 | B147: ='DF raw data'!G152 -> 1.953654e-06 | C147: ='DF raw data'!H152 -> -1.4139824e-06 | D147: ='DF raw data'!I152 -> 2.3974019e-06 | F147: 1.955998385e-06 | G147: -1.41892363e-06 | H147: 2.400278782e-06 | J147: -0.0001118809932 | K147: -0.006177826422 | L147: -1.145210087e-05 | M147: -0.003845622227 | N147: 7.965196684e-07
A148: 71.06272 | B148: ='DF raw data'!G153 -> 2.856382e-06 | C148: ='DF raw data'!H153 -> -9.2801811e-06 | D148: ='DF raw data'!I153 -> -1.0090414e-06 | F148: 2.859809658e-06 | G148: -9.312611145e-06 | H148: -1.01025225e-06 | J148: -0.0001104506308 | K148: -0.006233069409 | L148: -1.610989646e-05 | M148: -0.003853679753 | N148: 8.027510972e-07
A149: 71.56288 | B149: ='DF raw data'!G154 -> 7.5011353e-06 | C149: ='DF raw data'!H154 -> 4.9170035e-06 | D149: ='DF raw data'!I154 -> -4.4247254e-06 | F149: 7.510136662e-06 | G149: 4.934186209e-06 | H149: -4.43003507e-06 | J149: -0.0001066943609 | K149: -0.006286433661 | L149: -1.364201389e-05 | M149: -0.003860502942 | N149: 8.085378439e-07
A150: 72.06304 | B150: ='DF raw data'!G155 -> 9.9552572e-06 | C150: ='DF raw data'!H155 -> 5.2975379e-06 | D150: ='DF raw data'!I155 -> -7.1149088e-06 | F150: 9.967203509e-06 | G150: 5.316050405e-06 | H150: -7.123446691e-06 | J150: -0.0001017091644 | K150: -0.006337304517 | L150: -1.098313812e-05 | M150: -0.003865996269 | N150: 8.137722101e-07
A151: 72.5632 | B151: ='DF raw data'!G156 -> 4.4334752e-06 | C151: ='DF raw data'!H156 -> -3.1017025e-06 | D151: ='DF raw data'!I156 -> -5.1248762e-06 | F151: =(1-$G$1*($B$2-$G$2))*B151 -> 4.43879537e-06 | G151: -3.112541551e-06 | H151: -5.131026051e-06 | J151: -9.948905647e-05 | K151: -0.006387064963 | L151: -1.25399069e-05 | M151: -0.003872268229 | N151: 8.188014798e-07
A152: 73.06336 | B152: ='DF raw data'!G157 -> -2.1856674e-06 | C152: ='DF raw data'!H157 -> 7.8365229e-06 | D152: ='DF raw data'!I157 -> -2.4065491e-06 | F152: -2.188290201e-06 | G152: 7.863908011e-06 | H152: -2.409436959e-06 | J152: -0.0001005835517 | K152: -0.006437372832 | L152: -8.60669467e-06 | M152: -0.003876572953 | N152: 8.238986734e-07
A153: 73.56352 | B153: ='DF raw data'!G158 -> -2.4010794e-06 | C153: ='DF raw data'!H158 -> 7.0990714e-06 | D153: ='DF raw data'!I158 -> -5.171195e-06 | F153: -2.403960695e-06 | G153: 7.123879451e-06 | H153: -5.177400434e-06 | J153: -0.0001017859167 | K153: -0.006488282076 | L153: -5.043615123e-06 | M153: -0.003879095567 | N153: 8.290932406e-07
A154: 74.06368 | B154: ='DF raw data'!G159 -> 5.33096e-07 | C154: ='DF raw data'!H159 -> -4.6829482e-06 | D154: ='DF raw data'!I159 -> -8.3270543e-06 | F154: 5.337357152e-07 | G154: -4.699312991e-06 | H154: -8.337046765e-06 | J154: -0.0001015189634 | K154: -0.006539057801 | L154: -7.394023509e-06 | M154: -0.003882793762 | N154: 8.34275284e-07
A155: 74.56384 | B155: ='DF raw data'!G160 -> 3.6131835e-06 | C155: ='DF raw data'!H160 -> -4.6264663e-07 | D155: ='DF raw data'!I160 -> 1.5041035e-06 | F155: 3.61751932e-06 | G155: -4.642633712e-07 | H155: 1.505908424e-06 | J155: -9.970962496e-05 | K155: -0.006588928567 | L155: -7.626229477e-06 | M155: -0.003886608097 | N155: 8.392769684e-07
A156: 75.064 | B156: ='DF raw data'!G161 -> 5.4218267e-06 | C156: ='DF raw data'!H161 -> 4.5917081e-06 | D156: ='DF raw data'!I161 -> 9.0343701e-06 | F156: 5.428332892e-06 | G156: 4.607754048e-06 | H156: 9.045211344e-06 | J156: -9.699458998e-05 | K156: -0.006637441381 | L156: -5.321615212e-06 | M156: -0.003889269756 | N156: 8.439966133e-07
A157: 75.56416 | B157: ='DF raw data'!G162 -> 4.3919586e-06 | C157: ='DF raw data'!H162 -> 3.6028791e-06 | D157: ='DF raw data'!I162 -> 5.1600537e-06 | F157: 4.39722895e-06 | G157: 3.615469537e-06 | H157: 5.166245764e-06 | J157: -9.479527195e-05 | K157: -0.006684854185 | L157: -3.513301969e-06 | M157: -0.003891026969 | N157: 8.484972964e-07
A158: 76.06432 | B158: ='DF raw data'!G163 -> 8.2620068e-07 | C158: ='DF raw data'!H163 -> 7.1144154e-06 | D158: ='DF raw data'!I163 -> 2.346412e-06 | F158: 8.271921208e-07 | G158: 7.139277072e-06 | H158: 2.349227694e-06 | J158: -9.438154354e-05 | K158: -0.006732060057 | L158: 5.747885149e-08 | M158: -0.003890998221 | N158: 8.529526612e-07
A159: 76.56448 | B159: ='DF raw data'!G164 -> -1.2920343e-06 | C159: ='DF raw data'!H164 -> 1.1626122e-05 | D159: ='DF raw data'!I164 -> 8.4495986e-07 | F159: -1.293584741e-06 | G159: 1.166675005e-05 | H159: 8.459738118e-07 | J159: -9.502854288e-05 | K159: -0.006779589533 | L159: 5.892720557e-06 | M159: -0.003888050918 | N159: 8.574866857e-07
A160: 77.06464 | B160: ='DF raw data'!G165 -> -1.2059888e-06 | C160: ='DF raw data'!H165 -> 2.5657498e-06 | D160: ='DF raw data'!I165 -> 4.4604412e-06 | F160: -1.207435987e-06 | G160: 2.574715938e-06 | H160: 4.465793729e-06 | J160: -9.563245407e-05 | K160: -0.006827421062 | L160: 7.18049048e-06 | M160: -0.003884459524 | N160: 8.620867201e-07
A161: 77.5648 | B161: ='DF raw data'!G166 -> -2.0590512e-06 | C161: ='DF raw data'!H166 -> 4.1979642e-06 | D161: ='DF raw data'!I166 -> 3.7968887e-06 | F161: -2.061522061e-06 | G161: 4.212634191e-06 | H161: 3.801444966e-06 | J161: -9.666354494e-05 | K161: -0.0068757683 | L161: 9.287481597e-06 | M161: -0.003879814297 | N161: 8.668032781e-07
A162: 78.06496 | B162: ='DF raw data'!G167 -> -3.8555431e-06 | C162: ='DF raw data'!H167 -> 7.9894307e-06 | D162: ='DF raw data'!I167 -> 4.6480562e-07 | F162: -3.860169752e-06 | G162: 8.017350155e-06 | H162: 4.653633867e-07 | J162: -9.859424745e-05 | K162: -0.006925081199 | L162: 1.329743945e-05 | M162: -0.003873163449 | N162: 8.717536854e-07
A163: 78.56512 | B163: ='DF raw data'!G168 -> -2.9008213e-06 | C163: ='DF raw data'!H168 -> -1.0225981e-07 | D163: ='DF raw data'!I168 -> -2.5828456e-06 | F163: -2.904302286e-06 | G163: -1.026171619e-07 | H163: -2.585945015e-06 | J163: -0.0001000468633 | K163: -0.006975120638 | L163: 1.324611445e-05 | M163: -0.003866538273 | N163: 8.768477322e-07
A164: 79.06528 | B164: ='DF raw data'!G169 -> -2.1348998e-07 | C164: ='DF raw data'!H169 -> 6.7575388e-07 | D164: ='DF raw data'!I169 -> -5.0939243e-06 | F164: -2.13746168e-07 | G164: 6.781153349e-07 | H164: -5.100037009e-06 | J164: -0.0001001537706 | K164: -0.007025213548 | L164: 1.358528062e-05 | M164: -0.003859743459 | N164: 8.819570355e-07
A165: 79.56544 | B165: ='DF raw data'!G170 -> 3.1816424e-07 | C165: ='DF raw data'!H170 -> 3.9536594e-06 | D165: ='DF raw data'!I170 -> -8.69605e-07 | F165: 3.185460371e-07 | G165: 3.967475656e-06 | H165: -8.70648526e-07 | J165: -9.999444657e-05 | K165: -0.00707522677 | L165: 1.556965324e-05 | M165: -0.003851956141 | N165: 8.870793258e-07
A166: 80.0656 | B166: ='DF raw data'!G171 -> 2.4510093e-06 | C166: ='DF raw data'!H171 -> -5.8469668e-06 | D166: ='DF raw data'!I171 -> -3.4166267e-06 | F166: 2.453950511e-06 | G166: -5.867399311e-06 | H166: -3.420726652e-06 | J166: -9.876707869e-05 | K166: -0.007124626113 | L166: 1.26350148e-05 | M166: -0.003845636612 | N166: 8.920382019e-07
A167: 80.56576 | B167: ='DF raw data'!G172 -> 7.3463466e-06 | C167: ='DF raw data'!H172 -> 2.635974e-07 | D167: ='DF raw data'!I172 -> -9.2161617e-06 | F167: 7.355162216e-06 | G167: 2.64518554e-07 | H167: -9.227221094e-06 | J167: -9.508832075e-05 | K167: -0.007172185487 | L167: 1.27673164e-05 | M167: -0.003839250911 | N167: 8.966420712e-07
A168: 81.06592 | B168: ='DF raw data'!G173 -> 5.2401315e-06 | C168: ='DF raw data'!H173 -> 1.4035149e-05 | D168: ='DF raw data'!I173 -> -1.1553796e-05 | F168: 5.246419658e-06 | G168: 1.408419551e-05 | H168: -1.156766056e-05 | J168: -9.24642715e-05 | K168: -0.007218432417 | L168: 1.981166763e-05 | M168: -0.003829341907 | N168: 9.011145738e-07
A169: 81.56608 | B169: ='DF raw data'!G174 -> -2.4700264e-06 | C169: ='DF raw data'!H174 -> 6.6320763e-06 | D169: ='DF raw data'!I174 -> -3.79892e-06 | F169: -2.472990432e-06 | G169: 6.655252414e-06 | H169: -3.803478704e-06 | J169: -9.370116239e-05 | K169: -0.00726529799 | L169: 2.314035868e-05 | M169: -0.003817768026 | N169: 9.057737562e-07
A170: 82.06624 | B170: ='DF raw data'!G175 -> -5.2187665e-06 | C170: ='DF raw data'!H175 -> -5.5379492e-06 | D170: ='DF raw data'!I175 -> 4.4452636e-06 | F170: -5.22502902e-06 | G170: -5.557301834e-06 | H170: 4.450597916e-06 | J170: -9.63145129e-05 | K170: -0.007313470657 | L170: 2.036081859e-05 | M170: -0.003807584359 | N170: 9.10620831e-07
A171: 82.5664 | B171: ='DF raw data'!G176 -> -1.5209214e-06 | C171: ='DF raw data'!H176 -> -1.0332921e-05 | D171: ='DF raw data'!I176 -> -1.1266354e-06 | F171: -1.522746506e-06 | G171: -1.03690299e-05 | H171: -1.127987362e-06 | J171: -9.70761298e-05 | K171: -0.007362024254 | L171: 1.51746446e-05 | M171: -0.003799994608 | N171: 9.15449398e-07
A172: 83.06656 | B172: ='DF raw data'!G177 -> 2.9534287e-06 | C172: ='DF raw data'!H177 -> -4.626108e-06 | D172: ='DF raw data'!I177 -> -1.1453635e-05 | F172: 2.956972814e-06 | G172: -4.64227416e-06 | H172: -1.146737936e-05 | J172: -9.559717027e-05 | K172: -0.007409838135 | L172: 1.285276475e-05 | M172: -0.00379356617 | N172: 9.201028929e-07
A173: 83.56672 | B173: ='DF raw data'!G178 -> 4.7841036e-06 | C173: ='DF raw data'!H178 -> -9.7554073e-07 | D173: ='DF raw data'!I178 -> -9.0063086e-06 | F173: 4.789844524e-06 | G173: -9.789498047e-07 | H173: -9.01711617e-06 | J173: -9.320148164e-05 | K173: -0.007456453788 | L173: 1.236313322e-05 | M173: -0.003787382625 | N173: 9.245239888e-07
A174: 84.06688 | B174: ='DF raw data'!G179 -> 4.2101906e-06 | C174: ='DF raw data'!H179 -> -2.9389216e-06 | D174: ='DF raw data'!I179 -> 1.313357e-06 | F174: 4.215242829e-06 | G174: -2.949191805e-06 | H174: 1.314933028e-06 | J174: -9.109318578e-05 | K174: -0.007502014956 | L174: 1.088806545e-05 | M174: -0.00378193685 | N174: 9.287335947e-07
A175: 84.56704 | B175: ='DF raw data'!G180 -> 1.8638104e-06 | C175: ='DF raw data'!H180 -> 6.5427207e-07 | D175: ='DF raw data'!I180 -> 4.4369399e-06 | F175: 1.866046972e-06 | G175: 6.565584557e-07 | H175: 4.442264228e-06 | J175: -9.015986373e-05 | K175: -0.007547109313 | L175: 1.121644972e-05 | M175: -0.003776326831 | N175: 9.328622203e-07
A176: 85.0672 | B176: ='DF raw data'!G181 -> -2.0604482e-06 | C176: ='DF raw data'!H181 -> 3.7979498e-06 | D176: ='DF raw data'!I181 -> 1.6862643e-06 | F176: -2.062920738e-06 | G176: 3.811221921e-06 | H176: 1.688287817e-06 | J176: -9.119165417e-05 | K176: -0.007592719731 | L176: 1.312267048e-05 | M176: -0.003769763396 | N176: 9.371076396e-07
A177: 85.56736 | B177: ='DF raw data'!G182 -> -5.4142133e-06 | C177: ='DF raw data'!H182 -> 7.5918178e-06 | D177: ='DF raw data'!I182 -> -1.5851372e-06 | F177: -5.420710356e-06 | G177: 7.618347778e-06 | H177: -1.587039365e-06 | J177: -9.390287666e-05 | K177: -0.007639686194 | L177: 1.69330633e-05 | M177: -0.003761294155 | N177: 9.416613357e-07
A178: 86.06752 | B178: ='DF raw data'!G183 -> -7.5462581e-06 | C178: ='DF raw data'!H183 -> 3.9090946e-06 | D178: ='DF raw data'!I183 -> -1.8198014e-06 | F178: -7.55531361e-06 | G178: 3.922755122e-06 | H178: -1.821985162e-06 | J178: -9.768174231e-05 | K178: -0.007688542694 | L178: 1.889506851e-05 | M178: -0.003751843597 | N178: 9.466122927e-07
A179: 86.56768 | B179: ='DF raw data'!G184 -> -8.2977194e-06 | C179: ='DF raw data'!H184 -> 2.3104113e-07 | D179: ='DF raw data'!I184 -> -7.4707788e-07 | F179: -8.307676663e-06 | G179: 2.318485145e-07 | H179: -7.479743735e-07 | J179: -0.0001018369099 | K179: -0.007739477443 | L179: 1.901102986e-05 | M179: -0.003742335041 | N179: 9.519800976e-07
A180: 87.06784 | B180: ='DF raw data'!G185 -> -4.5661568e-06 | C180: ='DF raw data'!H185 -> -1.3792913e-06 | D180: ='DF raw data'!I185 -> -1.9866536e-06 | F180: -4.571636188e-06 | G180: -1.384111301e-06 | H180: -1.989037584e-06 | J180: -0.0001041234594 | K180: -0.007791555832 | L180: 1.831875275e-05 | M180: -0.003733172733 | N180: 9.575705217e-07
A181: 87.568 | B181: ='DF raw data'!G186 -> 3.2762339e-06 | C181: ='DF raw data'!H186 -> -5.7718471e-06 | D181: ='DF raw data'!I186 -> -6.3227782e-07 | F181: 3.280165381e-06 | G181: -5.792017101e-06 | H181: -6.330365534e-07 | J181: -0.0001024828519 | K181: -0.007842813656 | L181: 1.542181748e-05 | M181: -0.003725459357 | N181: 9.629425239e-07
A182: 88.06816 | B182: ='DF raw data'!G187 -> 9.2965065e-06 | C182: ='DF raw data'!H187 -> -9.9542137e-07 | D182: ='DF raw data'!I187 -> -3.4559605e-06 | F182: 9.307662308e-06 | G182: -9.988999185e-07 | H182: -3.460107653e-06 | J182: -9.782753153e-05 | K182: -0.007891743074 | L182: 1.492220769e-05 | M182: -0.003717995866 | N182: 9.678405399e-07
A183: 88.56832 | B183: ='DF raw data'!G188 -> 1.1109952e-05 | C183: ='DF raw data'!H188 -> -7.6287533e-06 | D183: ='DF raw data'!I188 -> -5.393621e-06 | F183: 1.112328394e-05 | G183: -7.65541235e-06 | H183: -5.400093345e-06 | J183: -9.226410984e-05 | K183: -0.007937889891 | L183: 1.109327665e-05 | M183: -0.003712447452 | N183: 9.72159785e-07
A184: 89.06848 | B184: ='DF raw data'!G189 -> 7.9745232e-06 | C184: ='DF raw data'!H189 -> -8.7811641e-06 | D184: ='DF raw data'!I189 -> -1.1605123e-06 | F184: 7.984092628e-06 | G184: -8.811850306e-06 | H184: -1.161904915e-06 | J184: -8.827078607e-05 | K184: -0.007982039407 | L184: 6.685941604e-06 | M184: -0.003709103412 | N184: 9.760792555e-07
A185: 89.56864 | B185: ='DF raw data'!G190 -> 1.7272407e-06 | C185: ='DF raw data'!H190 -> 7.5114019e-07 | D185: ='DF raw data'!I190 -> 1.9031024e-06 | F185: 1.729313389e-06 | G185: 7.53765086e-07 | H185: 1.905386123e-06 | J185: -8.740585268e-05 | K185: -0.008025756319 | L185: 7.06294475e-06 | M185: -0.003705570809 | N185: 9.7992532e-07
A186: 90.0688 | B186: ='DF raw data'!G191 -> -2.1271978e-06 | C186: ='DF raw data'!H191 -> 6.8745135e-06 | D186: ='DF raw data'!I191 -> 4.1025078e-06 | F186: -2.129750437e-06 | G186: 6.898536823e-06 | H186: 4.107430809e-06 | J186: -8.847106866e-05 | K186: -0.008070006008 | L186: 1.051331693e-05 | M186: -0.003700312469 | N186: 9.8389542e-07
A187: 90.56896 | B187: ='DF raw data'!G192 -> -1.4323439e-06 | C187: ='DF raw data'!H192 -> -6.8767577e-06 | D187: ='DF raw data'!I192 -> 6.3728103e-06 | F187: -1.434062713e-06 | G187: -6.900788865e-06 | H187: 6.380457672e-06 | J187: -8.918832947e-05 | K187: -0.008114614443 | L187: 7.061818368e-06 | M187: -0.00369678043 | N187: 9.878989144e-07
A188: 91.06912 | B188: ='DF raw data'!G193 -> -5.0672566e-07 | C188: ='DF raw data'!H193 -> -3.6670335e-06 | D188: ='DF raw data'!I193 -> 5.3221183e-06 | F188: -5.073337308e-07 | G188: -3.679848127e-06 | H188: 5.328504842e-06 | J188: -8.944207751e-05 | K188: -0.008159349793 | L188: 5.221305529e-06 | M188: -0.003694168941 | N188: 9.919137723e-07
A189: 91.56928 | B189: ='DF raw data'!G194 -> -3.9378821e-07 | C189: ='DF raw data'!H194 -> 8.745963e-06 | D189: ='DF raw data'!I194 -> 3.9560864e-06 | F189: -3.942607559e-07 | G189: 8.776526194e-06 | H189: 3.960833704e-06 | J189: -8.963927097e-05 | K189: -0.00820418377 | L189: 9.61097287e-06 | M189: -0.003689361917 | N189: 9.959788576e-07
A190: 92.06944 | B190: ='DF raw data'!G195 -> 1.1743552e-06 | C190: ='DF raw data'!H195 -> 5.6580996e-07 | D190: ='DF raw data'!I195 -> -2.0426232e-07 | F190: 1.175764426e-06 | G190: 5.677872105e-07 | H190: -2.045074348e-07 | J190: -8.905120063e-05 | K190: -0.008248723619 | L190: 9.894957321e-06 | M190: -0.003684412855 | N190: 9.999941553e-07
A191: 92.5696 | B191: ='DF raw data'!G196 -> -5.9463378e-07 | C191: ='DF raw data'!H196 -> 2.5692603e-07 | D191: ='DF raw data'!I196 -> 4.2049387e-06 | F191: -5.953473405e-07 | G191: 2.578238705e-07 | H191: 4.209984626e-06 | J191: -8.934896956e-05 | K191: -0.0082934124 | L191: 1.002391051e-05 | M191: -0.003679399296 | N191: 1.004037307e-06
A192: 93.06976 | B192: ='DF raw data'!G197 -> -2.9307255e-06 | C192: ='DF raw data'!H197 -> 1.8360366e-06 | D192: ='DF raw data'!I197 -> 5.6086892e-06 | F192: -2.934242371e-06 | G192: 1.842452719e-06 | H192: 5.615419627e-06 | J192: -9.081656022e-05 | K192: -0.00833883521 | L192: 1.094543166e-05 | M192: -0.003673924829 | N192: 1.008222371e-06
A193: 93.56992 | B193: ='DF raw data'!G198 -> -8.3132068e-07 | C193: ='DF raw data'!H198 -> 1.1519555e-06 | D193: ='DF raw data'!I198 -> 3.9494362e-06 | F193: -8.323182648e-07 | G193: 1.155981065e-06 | H193: 3.954175523e-06 | J193: -9.123285252e-05 | K193: -0.008384466234 | L193: 1.152360715e-05 | M193: -0.003668161182 | N193: 1.012451838e-06
A194: 94.07008 | B194: ='DF raw data'!G199 -> 2.246162e-06 | C194: ='DF raw data'!H199 -> 3.0734402e-06 | D194: ='DF raw data'!I199 -> -9.6912842e-08 | F194: 2.248857394e-06 | G194: 3.084180487e-06 | H194: -9.702913741e-08 | J194: -9.010806401e-05 | K194: -0.008429534683 | L194: 1.306619086e-05 | M194: -0.003661625996 | N194: 1.016598258e-06
A195: 94.57024 | B195: ='DF raw data'!G200 -> 3.6811991e-06 | C195: ='DF raw data'!H200 -> -8.3797738e-07 | D195: ='DF raw data'!I200 -> -2.432437e-06 | F195: 3.685616539e-06 | G195: -8.409057328e-07 | H195: -2.435355924e-06 | J195: -8.826466604e-05 | K195: -0.008473681138 | L195: 1.264560345e-05 | M195: -0.003655301171 | N195: 1.020574812e-06
A196: 95.0704 | B196: ='DF raw data'!G201 -> 4.8807574e-06 | C196: ='DF raw data'!H201 -> 5.408282e-06 | D196: ='DF raw data'!I201 -> -1.8530816e-06 | F196: 4.886614309e-06 | G196: 5.427181505e-06 | H196: -1.855305298e-06 | J196: -8.582057703e-05 | K196: -0.008516605158 | L196: 1.536006255e-05 | M196: -0.003647618682 | N196: 1.024376579e-06
A197: 95.57056 | B197: ='DF raw data'!G202 -> 6.9282992e-06 | C197: ='DF raw data'!H202 -> 1.5944e-06 | D197: ='DF raw data'!I202 -> 5.8498989e-07 | F197: 6.936613159e-06 | G197: 1.599971709e-06 | H197: 5.856918779e-07 | J197: -8.235116059e-05 | K197: -0.008557793915 | L197: 1.61603044e-05 | M197: -0.003639535944 | N197: 1.027899141e-06
A198: 96.07072 | B198: ='DF raw data'!G203 -> 5.8254677e-06 | C198: ='DF raw data'!H203 -> 1.5634449e-06 | D198: ='DF raw data'!I203 -> 4.3706559e-06 | F198: 5.832458261e-06 | G198: 1.568908434e-06 | H198: 4.375900687e-06 | J198: -7.943399827e-05 | K198: -0.008597523623 | L198: 1.694500964e-05 | M198: -0.003631060728 | N198: 1.031198643e-06
A199: 96.57088 | B199: ='DF raw data'!G204 -> 1.4304835e-06 | C199: ='DF raw data'!H204 -> 4.4734916e-06 | D199: ='DF raw data'!I204 -> 7.0547858e-06 | F199: 1.43220008e-06 | G199: =(1-$G$1*($B$2-$G$2))*C199*$M$2/$M$1 -> 4.489124435e-06 | H199: 7.063251543e-06 | J199: -7.871766907e-05 | K199: -0.008636895053 | L199: 1.919029012e-05 | M199: -0.003621462513 | N199: 1.034482063e-06
A200: =A199+$B$1 -> 97.07104 | B200: ='DF raw data'!G205 -> -2.2449519e-06 | C200: ='DF raw data'!H205 -> 2.9232012e-06 | D200: ='DF raw data'!I205 -> 7.2587745e-06 | F200: -2.247645842e-06 | G200: 2.933416469e-06 | H200: 7.267485029e-06 | J200: =F200*$B$1+J199 -> -7.984185162e-05 | K200: =J200*$B$1+K199 -> -0.008676828753 | L200: =G200*$B$1+L199 -> 2.06574677e-05 | M200: =L200*$B$1+M199 -> -0.003611130474 | N200: =(J200^2+L200^2)*$B$1+N199 -> 1.037883877e-06
A201: 97.5712 | B201: ='DF raw data'!G206 -> -3.189313e-06 | C201: ='DF raw data'!H206 -> -1.2286522e-06 | D201: ='DF raw data'!I206 -> 5.6550225e-06 | F201: -3.193140176e-06 | G201: -1.232945785e-06 | H201: 5.661808527e-06 | J201: -8.143893261e-05 | K201: -0.00871756125 | L201: 2.004079754e-05 | M201: -0.003601106868 | N201: 1.041401969e-06
... 1002 more rows

Sheet 10 x=1
A1: dz | B1: ='DF raw data'!K7 -> 0.50015 | C1: mm | F1: T_coeff | G1: -0.0008 | H1: /degC | L1: Hallref | M1: ='PI vs gap'!B44 -> 0.50528 | N1: T | P1: IBy total | Q1: =L1203*1000 -> -5.603783587 | R1: muTm | X1: DF ref | Y1: 20
A2: Tref | B2: ='DF raw data'!K8 -> 21.54 | C2: degC | F2: Tcorr | G2: 20 | H2: degC | L2: NMRref | M2: ='PI vs gap'!B45 -> 0.506438 | N2: T | P2: JBy total | Q2: =M1203 -> -1.800279203 | R2: muTm^2
A3: Encoder | B3: ='DF raw data'!K9 -> 17895606 | P3: PI total | Q3: =N1203 -> 706.7976247 | R3: T^2mm^3
A5: z [mm] | B5: Bx | C5: By | D5: Bz | F5: Bx_corr | G5: By_corr | H5: Bz_corr | J5: Ix | K5: Jx | L5: Iy | M5: Jy | N5: PI
A6: ='PI vs gap'!B53 -> 0.04 | B6: ='DF raw data'!J11 -> 1.0995728e-06 | C6: ='DF raw data'!K11 -> -2.3233279e-07 | D6: ='DF raw data'!L11 -> 4.7487974e-06 | F6: =(1-$G$1*($B$2-$G$2))*B6 -> 1.100927474e-06 | G6: =(1-$G$1*($B$2-$G$2))*C6*$M$2/$M$1 -> -2.3315214e-07 | H6: =(1-$G$1*($B$2-$G$2))*D6 -> 4.754647918e-06 | J6: =F6*$B$1 -> 5.50628876e-07 | K6: =J6*$B$1 -> 2.753970323e-07 | L6: =G6*$B$1 -> -1.166110428e-07 | M6: =L6*$B$1 -> -5.832301306e-08 | N6: =(J6^2+L6)^2*$B$1 -> 6.801072005e-15
A7: =A6+$B$1 -> 0.54015 | B7: ='DF raw data'!J12 -> 7.8238475e-07 | C7: ='DF raw data'!K12 -> 7.5418016e-06 | D7: ='DF raw data'!L12 -> -3.5584003e-07 | F7: =(1-$G$1*($B$2-$G$2))*B7 -> 7.83348648e-07 | G7: =(1-$G$1*($B$2-$G$2))*C7*$M$2/$M$1 -> 7.568398684e-06 | H7: -3.562784249e-07 | J7: =F7*$B$1+J6 -> 9.424207023e-07 | K7: =J7*$B$1+K6 -> 7.467487466e-07 | L7: =G7*$B$1+L6 -> 3.668723559e-06 | M7: =L7*$B$1+M6 -> 1.776589075e-06 | N7: =(J7^2+L7^2)*$B$1+N6 -> 7.182797892e-12
A8: =A7+$B$1 -> 1.0403 | B8: ='DF raw data'!J13 -> 1.3572873e-06 | C8: ='DF raw data'!K13 -> -8.0476957e-06 | D8: ='DF raw data'!L13 -> 3.0870228e-07 | F8: 1.358959478e-06 | G8: -8.076076882e-06 | H8: 3.090826012e-07 | J8: =F8*$B$1+J7 -> 1.622104285e-06 | K8: =J8*$B$1+K7 -> 1.558044205e-06 | L8: =G8*$B$1+L7 -> -3.705262932e-07 | M8: =L8*$B$1+M7 -> 1.591270349e-06 | N8: =(J8^2+L8^2)*$B$1+N7 -> 8.567469192e-12
A9: 1.54045 | B9: ='DF raw data'!J14 -> 8.8216723e-07 | C9: ='DF raw data'!K14 -> 4.1055182e-06 | D9: ='DF raw data'!L14 -> -4.4290809e-06 | F9: 8.8325406e-07 | G9: 4.119996811e-06 | H9: -4.434537528e-06 | J9: 2.063863803e-06 | K9: 2.590285686e-06 | L9: 1.690090112e-06 | M9: 2.436568919e-06 | N9: 1.212650578e-11
A10: 2.0406 | B10: ='DF raw data'!J15 -> 9.3910887e-07 | C10: ='DF raw data'!K15 -> 2.1190544e-06 | D10: ='DF raw data'!L15 -> -6.8142417e-06 | F10: 9.402658521e-07 | G10: 2.126527504e-06 | H10: -6.822636846e-06 | J10: 2.534137769e-06 | K10: 3.857734691e-06 | L10: 2.753672843e-06 | M10: 3.813818391e-06 | N10: 1.913089064e-11
A11: 2.54075 | B11: ='DF raw data'!J16 -> 1.4283879e-06 | C11: ='DF raw data'!K16 -> -1.1066352e-05 | D11: ='DF raw data'!L16 -> -6.0508046e-06 | F11: 1.430147674e-06 | G11: -1.110537884e-05 | H11: -6.058259191e-06 | J11: 3.249426128e-06 | K11: 5.482935169e-06 | L11: -2.800682384e-06 | M11: 2.413057097e-06 | N11: 2.833494702e-11
A12: 3.0409 | B12: ='DF raw data'!J17 -> 1.0701343e-06 | C12: ='DF raw data'!K17 -> -6.7437702e-07 | D12: ='DF raw data'!L17 -> -2.6525543e-06 | F12: 1.071452705e-06 | G12: -6.767552929e-07 | H12: -2.655822247e-06 | J12: 3.785313199e-06 | K12: 7.376159566e-06 | L12: -3.139161544e-06 | M12: 8.430054505e-07 | N12: 4.043004007e-11
A13: 3.54105 | B13: ='DF raw data'!J18 -> 1.0212108e-06 | C13: ='DF raw data'!K18 -> 4.5014721e-07 | D13: ='DF raw data'!L18 -> -3.651063e-06 | F13: 1.022468932e-06 | G13: 4.517347091e-07 | H13: -3.65556111e-06 | J13: 4.296701035e-06 | K13: 9.525154589e-06 | L13: -2.913226429e-06 | M13: -6.140447482e-07 | N13: 5.390834635e-11
A14: 4.0412 | B14: ='DF raw data'!J19 -> 1.1654494e-06 | C14: ='DF raw data'!K19 -> -3.5830892e-06 | D14: ='DF raw data'!L19 -> -3.9434981e-06 | F14: 1.166885234e-06 | G14: -3.595725402e-06 | H14: -3.94835649e-06 | J14: 4.880318685e-06 | K14: 1.196604598e-05 | L14: -4.711628489e-06 | M14: -2.970565737e-06 | N14: 7.692372564e-11
A15: 4.54135 | B15: ='DF raw data'!J20 -> 1.451671e-06 | C15: ='DF raw data'!K20 -> -1.0042966e-05 | D15: ='DF raw data'!L20 -> 3.8951675e-06 | F15: 1.453459459e-06 | G15: -1.007838375e-05 | H15: 3.899966346e-06 | J15: 5.607266433e-06 | K15: 1.477052029e-05 | L15: -9.75233212e-06 | M15: -7.848194647e-06 | N15: 1.402174174e-10
A16: 5.0415 | B16: ='DF raw data'!J21 -> 1.2592365e-06 | C16: ='DF raw data'!K21 -> -4.4210119e-06 | D16: ='DF raw data'!L21 -> 5.7782581e-06 | F16: 1.260787879e-06 | G16: -4.436603138e-06 | H16: 5.785376914e-06 | J16: 6.237849491e-06 | K16: 1.789038071e-05 | L16: -1.197129918e-05 | M16: -1.383563993e-05 | N16: 2.313561359e-10
A17: 5.54165 | B17: ='DF raw data'!J22 -> 1.2566317e-06 | C17: ='DF raw data'!K22 -> -4.0782375e-06 | D17: ='DF raw data'!L22 -> 7.1486702e-06 | F17: 1.25817987e-06 | G17: -4.092619903e-06 | H17: 7.157477362e-06 | J17: 6.867128153e-06 | K17: 2.132497485e-05 | L17: -1.401822302e-05 | M17: -2.084685418e-05 | N17: 3.53226699e-10
A18: 6.0418 | B18: ='DF raw data'!J23 -> 1.3111722e-06 | C18: ='DF raw data'!K23 -> -6.8703343e-06 | D18: ='DF raw data'!L23 -> -8.5319539e-07 | F18: 1.312787564e-06 | G18: -6.894563373e-06 | H18: -8.542465267e-07 | J18: 7.523718853e-06 | K18: 2.508796284e-05 | L18: -1.746653889e-05 | M18: -2.95827436e-05 | N18: 5.341241152e-10
A19: 6.54195 | B19: ='DF raw data'!J24 -> 8.3110456e-07 | C19: ='DF raw data'!K24 -> 5.1777388e-06 | D19: ='DF raw data'!L24 -> -6.8831887e-06 | F19: 8.321284808e-07 | G19: 5.195998728e-06 | H19: -6.891668788e-06 | J19: 7.939907913e-06 | K19: 2.905910778e-05 | L19: -1.486776013e-05 | M19: -3.701885383e-05 | N19: 6.762129435e-10
A20: 7.0421 | B20: ='DF raw data'!J25 -> 8.5873864e-07 | C20: ='DF raw data'!K25 -> 5.2904848e-06 | D20: ='DF raw data'!L25 -> -1.2447292e-06 | F20: 8.59796606e-07 | G20: 5.309142341e-06 | H20: -1.246262706e-06 | J20: 8.369935185e-06 | K20: 3.324533086e-05 | L20: -1.221239259e-05 | M20: -4.312688199e-05 | N20: 7.858449971e-10
A21: 7.54225 | B21: ='DF raw data'!J26 -> 1.3310647e-06 | C21: ='DF raw data'!K26 -> -7.1502641e-06 | D21: ='DF raw data'!L26 -> 1.2250218e-06 | F21: 1.332704572e-06 | G21: -7.175480379e-06 | H21: 1.226531027e-06 | J21: 9.036487377e-06 | K21: 3.776493003e-05 | L21: -1.58012091e-05 | M21: -5.102985672e-05 | N21: 9.515628541e-10
A22: 8.0424 | B22: ='DF raw data'!J27 -> 2.9813682e-06 | C22: ='DF raw data'!K27 -> 1.3469113e-06 | D22: ='DF raw data'!L27 -> -6.8698882e-06 | F22: 2.985041246e-06 | G22: 1.351661347e-06 | H22: -6.878351902e-06 | J22: 1.052945576e-05 | K22: 4.303123732e-05 | L22: -1.512517568e-05 | M22: -5.859471333e-05 | N22: 1.121433989e-09
A23: 8.54255 | B23: ='DF raw data'!J28 -> 3.3366096e-06 | C23: ='DF raw data'!K28 -> 1.2083528e-05 | D23: ='DF raw data'!L28 -> -7.6498272e-06 | F23: =(1-$G$1*($B$2-$G$2))*B23 -> 3.340720303e-06 | G23: 1.212614204e-05 | H23: -7.659251787e-06 | J23: 1.220031702e-05 | K23: 4.913322588e-05 | L23: -9.060285738e-06 | M23: -6.312621525e-05 | N23: 1.236936886e-09
A24: 9.0427 | B24: ='DF raw data'!J29 -> 7.2531213e-07 | C24: ='DF raw data'!K29 -> -7.1066916e-07 | D24: ='DF raw data'!L29 -> 3.9714487e-06 | F24: 7.262057145e-07 | G24: -7.131754216e-07 | H24: 3.976341525e-06 | J24: 1.25635288e-05 | K24: 5.541687481e-05 | L24: -9.416980425e-06 | M24: -6.783611801e-05 | N24: 1.360234752e-09
A25: 9.54285 | B25: ='DF raw data'!J30 -> 4.8524244e-06 | C25: ='DF raw data'!K30 -> 4.4566982e-06 | D25: ='DF raw data'!L30 -> 5.5123073e-06 | F25: 4.858402587e-06 | G25: 4.47241529e-06 | H25: 5.519098463e-06 | J25: 1.499345886e-05 | K25: 6.291585326e-05 | L25: -7.180101918e-06 | M25: -7.142724598e-05 | N25: 1.498455042e-09
A26: 10.043 | B26: ='DF raw data'!J31 -> 6.9619864e-06 | C26: ='DF raw data'!K31 -> -5.0933513e-06 | D26: ='DF raw data'!L31 -> -5.6060253e-06 | F26: 6.970563567e-06 | G26: -5.111313625e-06 | H26: -5.612931923e-06 | J26: 1.847978623e-05 | K26: 7.215851834e-05 | L26: -9.736525427e-06 | M26: -7.629696917e-05 | N26: 1.716671701e-09
A27: 10.54315 | B27: ='DF raw data'!J32 -> 3.3420956e-06 | C27: ='DF raw data'!K32 -> 3.131931e-08 | D27: ='DF raw data'!L32 -> -9.9094777e-06 | F27: 3.346213062e-06 | G27: 3.142976137e-08 | H27: -9.921686177e-06 | J27: 2.015339469e-05 | K27: 8.223823869e-05 | L27: -9.720805832e-06 | M27: -8.115883021e-05 | N27: 1.96707349e-09
A28: 11.0433 | B28: ='DF raw data'!J33 -> 1.0736122e-06 | C28: ='DF raw data'!K33 -> -4.2212714e-06 | D28: ='DF raw data'!L33 -> -6.3781208e-06 | F28: 1.07493489e-06 | G28: -4.236158229e-06 | H28: -6.385978645e-06 | J28: 2.069102337e-05 | K28: 9.258685403e-05 | L28: -1.183952037e-05 | M28: -8.708036632e-05 | N28: 2.25130508e-09
A29: 11.54345 | B29: ='DF raw data'!J34 -> 8.9591879e-07 | C29: ='DF raw data'!K34 -> -8.5299016e-06 | D29: ='DF raw data'!L34 -> -5.3408748e-06 | F29: 8.970225619e-07 | G29: -8.55998334e-06 | H29: -5.347454758e-06 | J29: 2.113966921e-05 | K29: 0.0001031598596 | L29: -1.612079604e-05 | M29: -9.514318246e-05 | N29: 2.604793934e-09
A30: 12.0436 | B30: ='DF raw data'!J35 -> -8.5144609e-07 | C30: ='DF raw data'!K35 -> -2.9710588e-06 | D30: ='DF raw data'!L35 -> -5.9002505e-06 | F30: -8.524950716e-07 | G30: -2.981536602e-06 | H30: -5.907519609e-06 | J30: 2.07132938e-05 | K30: 0.0001135196135 | L30: -1.761201157e-05 | M30: -0.00010395183 | N30: 2.974516563e-09
A31: 12.54375 | B31: ='DF raw data'!J36 -> -2.0892467e-06 | C31: ='DF raw data'!K36 -> 1.6282616e-05 | D31: ='DF raw data'!L36 -> -4.4069766e-06 | F31: -2.091820652e-06 | G31: 1.634003863e-05 | H31: -4.412405995e-06 | J31: 1.96670697e-05 | K31: 0.0001233560984 | L31: -9.439541246e-06 | M31: -0.0001086730166 | N31: 3.212537233e-09
A32: 13.0439 | B32: ='DF raw data'!J37 -> -2.2089944e-06 | C32: ='DF raw data'!K37 -> 3.5062965e-06 | D32: ='DF raw data'!L37 -> -8.2762435e-06 | F32: -2.211715881e-06 | G32: 3.518661883e-06 | H32: -8.286439832e-06 | J32: 1.856088e-05 | K32: 0.0001326393225 | L32: -7.679682506e-06 | M32: -0.0001125140098 | N32: 3.41433965e-09
A33: 13.54405 | B33: ='DF raw data'!J38 -> 1.6226851e-06 | C33: ='DF raw data'!K38 -> 5.8557583e-07 | D33: ='DF raw data'!L38 -> -6.4249052e-06 | F33: 1.624684248e-06 | G33: 5.876409347e-07 | H33: -6.432820683e-06 | J33: 1.937346583e-05 | K33: 0.0001423289615 | L33: -7.385773892e-06 | M33: -0.0001162080046 | N33: 3.62934455e-09
A34: 14.0442 | B34: ='DF raw data'!J39 -> 3.8552544e-06 | C34: ='DF raw data'!K39 -> -8.0000627e-06 | D34: ='DF raw data'!L39 -> -1.3773591e-07 | F34: 3.860004073e-06 | G34: -8.028275898e-06 | H34: -1.379056006e-07 | J34: 2.130404687e-05 | K34: 0.0001529841805 | L34: -1.140111608e-05 | M34: -0.0001219102728 | N34: 3.921356057e-09
A35: 14.54435 | B35: ='DF raw data'!J40 -> 2.7394717e-06 | C35: ='DF raw data'!K40 -> -8.0993323e-06 | D35: ='DF raw data'!L40 -> 4.5672436e-07 | F35: 2.742846729e-06 | G35: -8.127895584e-06 | H35: 4.572870444e-07 | J35: 2.267588166e-05 | K35: 0.0001643255227 | L35: -1.546628306e-05 | M35: -0.0001296457343 | N35: 4.298169828e-09
A36: 15.0445 | B36: ='DF raw data'!J41 -> 4.2260517e-06 | C36: ='DF raw data'!K41 -> 1.6164341e-06 | D36: ='DF raw data'!L41 -> -8.3063992e-07 | F36: 4.231258196e-06 | G36: 1.622134652e-06 | H36: -8.316632684e-07 | J36: 2.479214544e-05 | K36: 0.0001767253142 | L36: -1.465497241e-05 | M36: -0.0001369754188 | N36: 4.713003587e-09
A37: 15.54465 | B37: ='DF raw data'!J42 -> 4.1653702e-06 | C37: ='DF raw data'!K42 -> 2.9051087e-08 | D37: ='DF raw data'!L42 -> 2.2683942e-06 | F37: 4.170501936e-06 | G37: 2.915353921e-08 | H37: 2.271188862e-06 | J37: 2.687802199e-05 | K37: 0.0001901683569 | L37: -1.464039127e-05 | M37: -0.0001442978104 | N37: 5.181528663e-09
A38: 16.0448 | B38: ='DF raw data'!J43 -> -6.0975333e-07 | C38: ='DF raw data'!K43 -> -3.7075768e-06 | D38: ='DF raw data'!L43 -> 1.3051592e-06 | F38: -6.105045461e-07 | G38: -3.720652022e-06 | H38: 1.306767156e-06 | J38: 2.657267814e-05 | K38: 0.0002034586819 | L38: -1.650127538e-05 | M38: -0.0001525509233 | N38: 5.670875079e-09
A39: 16.54495 | B39: ='DF raw data'!J44 -> -3.8722637e-06 | C39: ='DF raw data'!K44 -> -4.2472893e-06 | D39: ='DF raw data'!L44 -> 8.9299078e-07 | F39: -3.877034329e-06 | G39: -4.262267884e-06 | H39: 8.940909446e-07 | J39: 2.463357942e-05 | K39: 0.0002157791667 | L39: -1.863304866e-05 | M39: -0.0001618702426 | N39: 6.148020049e-09
A40: 17.0451 | B40: ='DF raw data'!J45 -> -7.3203307e-07 | C40: ='DF raw data'!K45 -> -6.6487119e-06 | D40: ='DF raw data'!L45 -> -3.6171862e-06 | F40: -7.329349347e-07 | G40: -6.672159394e-06 | H40: -3.621642573e-06 | J40: 2.426700201e-05 | K40: 0.0002279163077 | L40: -2.197012918e-05 | M40: -0.0001728586027 | N40: 6.683967766e-09
A41: 17.54525 | B41: ='DF raw data'!J46 -> 4.226614e-07 | C41: ='DF raw data'!K46 -> -2.9880041e-06 | D41: ='DF raw data'!L46 -> -6.4069336e-06 | F41: 4.231821188e-07 | G41: -2.998541661e-06 | H41: -6.414826942e-06 | J41: 2.447865655e-05 | K41: 0.0002401593078 | L41: -2.346984979e-05 | M41: -0.0001845970481 | N41: 7.25915951e-09
A42: 18.0454 | B42: ='DF raw data'!J47 -> -2.8901457e-07 | C42: ='DF raw data'!K47 -> -8.1433636e-06 | D42: ='DF raw data'!L47 -> -6.3486241e-06 | F42: -2.89370636e-07 | G42: -8.172082166e-06 | H42: -6.356445605e-06 | J42: 2.433392782e-05 | K42: 0.0002523299218 | L42: -2.755711669e-05 | M42: -0.00019837974 | N42: 7.935129602e-09
A43: 18.54555 | B43: ='DF raw data'!J48 -> 7.5534627e-09 | C43: ='DF raw data'!K48 -> 2.9671173e-06 | D43: ='DF raw data'!L48 -> -4.0162035e-07 | F43: 7.562768566e-09 | G43: 2.977581201e-06 | H43: -4.021151463e-07 | J43: 2.433771034e-05 | K43: 0.0002645024276 | L43: -2.606787945e-05 | M43: -0.0002114175899 | N43: 8.571249622e-09
A44: 19.0457 | B44: ='DF raw data'!J49 -> -1.9193676e-06 | C44: ='DF raw data'!K49 -> 1.7539976e-06 | D44: ='DF raw data'!L49 -> 2.7668118e-06 | F44: -1.921732261e-06 | G44: 1.760183287e-06 | H44: 2.770220512e-06 | J44: 2.337655595e-05 | K44: 0.0002761942121 | L44: -2.518752378e-05 | M44: -0.0002240151299 | N44: 9.161864115e-09
A45: 19.54585 | B45: ='DF raw data'!J50 -> 2.0155139e-06 | C45: ='DF raw data'!K50 -> -5.8724327e-06 | D45: ='DF raw data'!L50 -> -6.6984126e-07 | F45: 2.017997013e-06 | G45: -5.893142551e-06 | H45: -6.706665044e-07 | J45: 2.438585716e-05 | K45: 0.0002883907985 | L45: -2.813497903e-05 | M45: -0.0002380868397 | N45: 9.855195589e-09
A46: 20.046 | B46: ='DF raw data'!J51 -> 2.1826572e-06 | C46: ='DF raw data'!K51 -> -6.8738032e-06 | D46: ='DF raw data'!L51 -> -2.2982879e-06 | F46: 2.185346234e-06 | G46: -6.898044506e-06 | H46: -2.301119391e-06 | J46: 2.547885808e-05 | K46: 0.0003011340494 | L46: -3.158503599e-05 | M46: -0.0002538840954 | N46: 1.067883596e-08
A47: 20.54615 | B47: ='DF raw data'!J52 -> 1.7602589e-06 | C47: ='DF raw data'!K52 -> -6.8249688e-06 | D47: ='DF raw data'!L52 -> 1.3041223e-07 | F47: 1.762427539e-06 | G47: -6.849037886e-06 | H47: 1.305728979e-07 | J47: 2.636033621e-05 | K47: 0.0003143181716 | L47: -3.501058229e-05 | M47: -0.0002713946382 | N47: 1.163942815e-08
A48: 21.0463 | B48: ='DF raw data'!J53 -> 2.6317439e-06 | C48: ='DF raw data'!K53 -> -4.7361668e-06 | D48: ='DF raw data'!L53 -> -2.1451435e-06 | F48: 2.634986208e-06 | G48: -4.752869471e-06 | H48: -2.147786317e-06 | J48: 2.767822456e-05 | K48: 0.0003281614356 | L48: -3.738772995e-05 | M48: -0.0002900941113 | N48: 1.272171597e-08
A49: 21.54645 | B49: ='DF raw data'!J54 -> -3.3361275e-06 | C49: ='DF raw data'!K54 -> -3.8800981e-06 | D49: ='DF raw data'!L54 -> -3.2705013e-06 | F49: -3.340237609e-06 | G49: -3.89378174e-06 | H49: -3.274530558e-06 | J49: 2.600760472e-05 | K49: 0.0003411691391 | L49: -3.933520489e-05 | M49: -0.000309767614 | N49: 1.383387644e-08
A50: 22.0466 | B50: ='DF raw data'!J55 -> -6.5145423e-06 | C50: ='DF raw data'!K55 -> -6.7691967e-06 | D50: ='DF raw data'!L55 -> 1.71027e-06 | F50: -6.522568216e-06 | G50: -6.793069099e-06 | H50: 1.712377053e-06 | J50: 2.274534223e-05 | K50: 0.000352545222 | L50: -4.27327584e-05 | M50: -0.0003311404032 | N50: 1.500594758e-08
A51: 22.54675 | B51: ='DF raw data'!J56 -> -1.9470745e-06 | C51: ='DF raw data'!K56 -> 3.2429114e-06 | D51: ='DF raw data'!L56 -> 2.4977323e-06 | F51: -1.949473296e-06 | G51: 3.254347923e-06 | H51: 2.500809506e-06 | J51: 2.177031316e-05 | K51: 0.0003634336441 | L51: -4.110509629e-05 | M51: -0.0003516991171 | N51: 1.608805985e-08
A52: 23.0469 | B52: ='DF raw data'!J57 -> 2.8591612e-06 | C52: ='DF raw data'!K57 -> -1.760741e-06 | D52: ='DF raw data'!L57 -> -6.1046944e-07 | F52: 2.862683687e-06 | G52: -1.766950468e-06 | H52: -6.112215384e-07 | J52: 2.320208441e-05 | K52: 0.0003750381666 | L52: -4.198883656e-05 | M52: -0.0003726998337 | N52: 1.723910462e-08
A53: 23.54705 | B53: ='DF raw data'!J58 -> 2.7167853e-06 | C53: ='DF raw data'!K58 -> 1.4388426e-06 | D53: ='DF raw data'!L58 -> 5.5412511e-06 | F53: 2.720132379e-06 | G53: 1.443916854e-06 | H53: 5.548077921e-06 | J53: 2.456255862e-05 | K53: 0.0003873231303 | L53: -4.126666155e-05 | M53: -0.0003933393544 | N53: 1.839257888e-08
A54: 24.0472 | B54: ='DF raw data'!J59 -> -2.7926478e-07 | C54: ='DF raw data'!K59 -> -1.1812667e-06 | D54: ='DF raw data'!L59 -> 5.9206777e-06 | F54: -2.796088342e-07 | G54: -1.185432581e-06 | H54: 5.927971975e-06 | J54: 2.442271226e-05 | K54: 0.0003995381499 | L54: -4.185955565e-05 | M54: -0.0004142754112 | N54: 1.956727682e-08
A55: 24.54735 | B55: ='DF raw data'!J60 -> 1.5060078e-06 | C55: ='DF raw data'!K60 -> 1.1112788e-06 | D55: ='DF raw data'!L60 -> 3.4255042e-06 | F55: 1.507863202e-06 | G55: 1.11519786e-06 | H55: 3.429724421e-06 | J55: 2.517687004e-05 | K55: 0.0004121303614 | L55: -4.130178944e-05 | M55: -0.0004349325012 | N55: 2.073748407e-08
A56: 25.0475 | B56: ='DF raw data'!J61 -> 2.4805495e-06 | C56: ='DF raw data'!K61 -> 4.1223298e-06 | D56: ='DF raw data'!L61 -> 1.0242345e-06 | F56: 2.483605537e-06 | G56: 4.136867699e-06 | H56: 1.025496357e-06 | J56: 2.641904535e-05 | K56: 0.0004253438469 | L56: -3.923273506e-05 | M56: -0.0004545547536 | N56: 2.185640638e-08
A57: 25.54765 | B57: ='DF raw data'!J62 -> -2.6526823e-06 | C57: ='DF raw data'!K62 -> -1.1230068e-05 | D57: ='DF raw data'!L62 -> 6.7305064e-06 | F57: -2.655950405e-06 | G57: -1.126967221e-05 | H57: 6.738798384e-06 | J57: 2.509067175e-05 | K57: 0.0004378929464 | L57: -4.486926162e-05 | M57: -0.0004769961148 | N57: 2.317819902e-08
A58: 26.0478 | B58: ='DF raw data'!J63 -> -1.128922e-06 | C58: ='DF raw data'!K63 -> -1.1197645e-05 | D58: ='DF raw data'!L63 -> 6.4059841e-06 | F58: -1.130312832e-06 | G58: -1.123713486e-05 | H58: 6.413876272e-06 | J58: 2.452534579e-05 | K58: 0.0004501592981 | L58: -5.048951462e-05 | M58: -0.0005022484456 | N58: 2.475401346e-08
A59: 26.54795 | B59: ='DF raw data'!J64 -> 2.7652432e-06 | C59: ='DF raw data'!K64 -> 8.4759249e-06 | D59: ='DF raw data'!L64 -> 3.6587714e-06 | F59: 2.76864998e-06 | G59: 8.505816284e-06 | H59: 3.663279006e-06 | J59: 2.591008608e-05 | K59: 0.0004631182277 | L59: -4.62353306e-05 | M59: -0.0005253730462 | N59: 2.615895399e-08
A60: 27.0481 | B60: ='DF raw data'!J65 -> 7.4021964e-06 | C60: ='DF raw data'!K65 -> 9.3977733e-06 | D60: ='DF raw data'!L65 -> 9.088717e-06 | F60: 7.411315906e-06 | G60: 9.430915695e-06 | H60: 9.099914299e-06 | J60: 2.961685573e-05 | K60: 0.0004779310981 | L60: -4.151845812e-05 | M60: -0.000546138503 | N60: 2.745981439e-08
A61: 27.54825 | B61: ='DF raw data'!J66 -> 1.2457614e-06 | C61: ='DF raw data'!K66 -> 2.8016677e-06 | D61: ='DF raw data'!L66 -> 2.0622081e-06 | F61: 1.247296178e-06 | G61: 2.811548123e-06 | H61: 2.06474874e-06 | J61: 3.024069091e-05 | K61: 0.0004930559796 | L61: -4.011226233e-05 | M61: -0.000566200651 | N61: 2.87219394e-08
A62: 28.0484 | B62: ='DF raw data'!J67 -> -2.5746549e-06 | C62: ='DF raw data'!K67 -> -5.6565473e-06 | D62: ='DF raw data'!L67 -> -2.4769126e-06 | F62: -2.577826875e-06 | G62: -5.676495805e-06 | H62: -2.479964156e-06 | J62: 2.89513908e-05 | K62: 0.0005075360177 | L62: -4.29513617e-05 | M62: -0.0005876827746 | N62: 3.00638431e-08
A63: 28.54855 | B63: ='DF raw data'!J68 -> -3.1858062e-06 | C63: ='DF raw data'!K68 -> -1.4031561e-06 | D63: ='DF raw data'!L68 -> 4.8995989e-06 | F63: -3.189731113e-06 | G63: -1.408104501e-06 | H63: 4.905635206e-06 | J63: 2.735604678e-05 | K63: 0.0005212181445 | L63: -4.365562517e-05 | M63: -0.0006095171355 | N63: 3.139132468e-08
A64: 29.0487 | B64: ='DF raw data'!J69 -> -5.8055875e-06 | C64: ='DF raw data'!K69 -> -1.5452561e-06 | D64: ='DF raw data'!L69 -> 8.1696762e-06 | F64: -5.812739984e-06 | G64: -1.550705634e-06 | H64: 8.179741241e-06 | J64: 2.444880488e-05 | K64: 0.0005334462143 | L64: -4.443121059e-05 | M64: -0.0006317394055 | N64: 3.267764873e-08
A65: 29.54885 | B65: ='DF raw data'!J70 -> -5.0953086e-06 | C65: ='DF raw data'!K70 -> 8.5923494e-07 | D65: ='DF raw data'!L70 -> 7.8225985e-06 | F65: -5.10158602e-06 | G65: 8.622651369e-07 | H65: 7.832235941e-06 | J65: 2.189724663e-05 | K65: 0.0005443981222 | L65: -4.399994868e-05 | M65: -0.0006537459798 | N65: 3.38857535e-08
A66: 30.049 | B66: ='DF raw data'!J71 -> 3.8794833e-06 | C66: ='DF raw data'!K71 -> 1.0873744e-05 | D66: ='DF raw data'!L71 -> 6.0192378e-06 | F66: 3.884262823e-06 | G66: 1.091209159e-05 | H66: 6.026653501e-06 | J66: 2.383996068e-05 | K66: 0.0005563216785 | L66: -3.854226608e-05 | M66: -0.0006730228942 | N66: 3.491298657e-08
A67: 30.54915 | B67: ='DF raw data'!J72 -> 6.7215451e-06 | C67: ='DF raw data'!K72 -> 3.0382341e-06 | D67: ='DF raw data'!L72 -> 1.0344374e-08 | F67: 6.729826044e-06 | G67: 3.048948804e-06 | H67: 1.035711827e-08 | J67: 2.720588318e-05 | K67: 0.000569928701 | L67: -3.701733433e-05 | M67: -0.0006915371139 | N67: 3.59685247e-08
A68: 31.0493 | B68: ='DF raw data'!J73 -> 3.3727274e-06 | C68: ='DF raw data'!K73 -> 6.4575725e-06 | D68: ='DF raw data'!L73 -> 1.0881902e-06 | F68: 3.3768826e-06 | G68: 6.480345918e-06 | H68: 1.08953085e-06 | J68: 2.889483101e-05 | K68: 0.0005843804507 | L68: -3.377618932e-05 | M68: -0.000708430275 | N68: 3.695669217e-08
A69: 31.54945 | B69: ='DF raw data'!J74 -> -3.6360279e-06 | C69: ='DF raw data'!K74 -> 7.6881706e-06 | D69: ='DF raw data'!L74 -> -1.9563798e-07 | F69: -3.640507486e-06 | G69: 7.715283872e-06 | H69: -1.95879006e-07 | J69: 2.707403119e-05 | K69: 0.0005979215274 | L69: -2.991739009e-05 | M69: -0.0007233934577 | N69: 3.777096308e-08
A70: 32.0496 | B70: ='DF raw data'!J75 -> -2.045329e-06 | C70: ='DF raw data'!K75 -> 5.303561e-06 | D70: ='DF raw data'!L75 -> 3.1656032e-07 | F70: -2.047848845e-06 | G70: 5.322264655e-06 | H70: 3.169503223e-07 | J70: 2.604979959e-05 | K70: 0.0006109503347 | L70: -2.725545943e-05 | M70: -0.0007370252757 | N70: 3.848190236e-08
A71: 32.54975 | B71: ='DF raw data'!J76 -> 3.8691369e-06 | C71: ='DF raw data'!K76 -> -3.4996972e-06 | D71: ='DF raw data'!L76 -> -3.7415759e-06 | F71: 3.873903677e-06 | G71: =(1-$G$1*($B$2-$G$2))*C71*$M$2/$M$1 -> -3.512039309e-06 | H71: -3.746185522e-06 | J71: 2.798733252e-05 | K71: 0.000624948199 | L71: -2.901200589e-05 | M71: -0.0007515356305 | N71: 3.929463974e-08
A72: =A71+$B$1 -> 33.0499 | B72: ='DF raw data'!J77 -> 7.6853476e-06 | C72: ='DF raw data'!K77 -> -2.3045902e-06 | D72: ='DF raw data'!L77 -> -9.5330488e-06 | F72: 7.694815948e-06 | G72: -2.312717619e-06 | H72: -9.544793516e-06 | J72: =F72*$B$1+J71 -> 3.183589471e-05 | K72: =J72*$B$1+K71 -> 0.0006408709218 | L72: =G72*$B$1+L71 -> -3.01687116e-05 | M72: =L72*$B$1+M71 -> -0.0007666245116 | N72: =(J72^2+L72^2)*$B$1+N71 -> 4.025676597e-08
A73: 33.55005 | B73: ='DF raw data'!J78 -> 2.1263122e-06 | C73: ='DF raw data'!K78 -> 8.9203704e-06 | D73: ='DF raw data'!L78 -> -1.1900369e-05 | F73: 2.128931817e-06 | G73: 8.951829175e-06 | H73: -1.191503025e-05 | J73: 3.290067996e-05 | K73: 0.0006573261969 | L73: -2.569145424e-05 | M73: -0.0007794740924 | N73: 4.112828013e-08
A74: 34.0502 | B74: ='DF raw data'!J79 -> -2.6473417e-06 | C74: ='DF raw data'!K79 -> 3.6837548e-06 | D74: ='DF raw data'!L79 -> -8.722609e-06 | F74: -2.650603225e-06 | G74: 3.696746011e-06 | H74: -8.733355254e-06 | J74: 3.157498076e-05 | K74: 0.0006731184235 | L74: -2.384252672e-05 | M74: -0.0007913989321 | N74: 4.191123769e-08
A75: 34.55035 | B75: ='DF raw data'!J80 -> -4.4061881e-06 | C75: ='DF raw data'!K80 -> 5.2716719e-06 | D75: ='DF raw data'!L80 -> 8.1619653e-08 | F75: -4.411616524e-06 | G75: 5.290263095e-06 | H75: 8.172020841e-08 | J75: 2.936851075e-05 | K75: 0.0006878070842 | L75: -2.119660164e-05 | M75: -0.0008020004124 | N75: 4.256733713e-08
A76: 35.0505 | B76: ='DF raw data'!J81 -> -6.1466117e-06 | C76: ='DF raw data'!K81 -> 5.6451345e-06 | D76: ='DF raw data'!L81 -> 6.3843599e-06 | F76: -6.154184326e-06 | G76: 5.665042756e-06 | H76: 6.392225431e-06 | J76: 2.629049546e-05 | K76: 0.0007009562755 | L76: -1.83632305e-05 | M76: -0.0008111847822 | N76: 4.308169059e-08
A77: 35.55065 | B77: ='DF raw data'!J82 -> -4.0491423e-06 | C77: ='DF raw data'!K82 -> 5.1318402e-06 | D77: ='DF raw data'!L82 -> 1.0086494e-06 | F77: -4.054130843e-06 | G77: 5.149938261e-06 | H77: 1.009892056e-06 | J77: 2.426282192e-05 | K77: 0.0007130913258 | L77: -1.578748888e-05 | M77: -0.0008190808947 | N77: 4.350078094e-08
A78: 36.0508 | B78: ='DF raw data'!J83 -> -2.5071631e-06 | C78: ='DF raw data'!K83 -> 6.1107953e-06 | D78: ='DF raw data'!L83 -> 3.8448616e-06 | F78: -2.510251925e-06 | G78: 6.132345766e-06 | H78: 3.849598469e-06 | J78: 2.300731942e-05 | K78: 0.0007245984366 | L78: -1.272039615e-05 | M78: -0.0008254430009 | N78: 4.384645723e-08
A79: 36.55095 | B79: ='DF raw data'!J84 -> -2.3388266e-06 | C79: ='DF raw data'!K84 -> 6.6211542e-06 | D79: ='DF raw data'!L84 -> 9.6300628e-06 | F79: -2.341708034e-06 | G79: 6.644504509e-06 | H79: 9.641927037e-06 | J79: 2.183611415e-05 | K79: 0.0007355197691 | L79: -9.397147216e-06 | M79: -0.0008301429841 | N79: 4.412910312e-08
A80: 37.0511 | B80: ='DF raw data'!J85 -> -1.3916423e-06 | C80: ='DF raw data'!K85 -> -2.162757e-06 | D80: ='DF raw data'!L85 -> 6.581422e-06 | F80: -1.393356803e-06 | G80: -2.170384227e-06 | H80: 6.589530312e-06 | J80: 2.113922674e-05 | K80: 0.0007460925534 | L80: -1.048266489e-05 | M80: -0.0008353858889 | N80: 4.440756322e-08
A81: 37.55125 | B81: ='DF raw data'!J86 -> -3.4993272e-06 | C81: ='DF raw data'!K86 -> -2.3580944e-06 | D81: ='DF raw data'!L86 -> 7.4538821e-06 | F81: -3.503638371e-06 | G81: -2.366410508e-06 | H81: 7.463065283e-06 | J81: 1.938688201e-05 | K81: 0.0007557889024 | L81: -1.16662251e-05 | M81: -0.0008412207514 | N81: 4.466361601e-08
A82: 38.0514 | B82: ='DF raw data'!J87 -> -3.5057446e-06 | C82: ='DF raw data'!K87 -> 7.2125035e-06 | D82: ='DF raw data'!L87 -> 7.5994449e-06 | F82: -3.510063677e-06 | G82: 7.237939274e-06 | H82: 7.608807416e-06 | J82: 1.763132366e-05 | K82: 0.000764607209 | L82: -8.046169774e-06 | M82: -0.0008452450432 | N82: 4.485147457e-08
A83: 38.55155 | B83: ='DF raw data'!J88 -> -1.2026129e-06 | C83: ='DF raw data'!K88 -> -9.9460215e-07 | D83: ='DF raw data'!L88 -> 3.8811977e-06 | F83: -1.204094519e-06 | G83: -9.981097359e-07 | H83: 3.885979336e-06 | J83: 1.702909579e-05 | K83: 0.0007731243112 | L83: -8.545374359e-06 | M83: -0.0008495190122 | N83: 4.503303578e-08
A84: 39.0517 | B84: ='DF raw data'!J89 -> 2.1957394e-06 | C84: ='DF raw data'!K89 -> -1.6524056e-05 | D84: ='DF raw data'!L89 -> -1.2177246e-07 | F84: 2.198444551e-06 | G84: -1.65823301e-05 | H84: -1.219224837e-07 | J84: 1.812864783e-05 | K84: 0.0007821913544 | L84: -1.683902676e-05 | M84: -0.0008579410514 | N84: 4.533922796e-08
A85: 39.55185 | B85: ='DF raw data'!J90 -> 9.8576231e-07 | C85: ='DF raw data'!K90 -> -5.0269045e-06 | D85: ='DF raw data'!L90 -> 7.9255346e-07 | F85: 9.869767692e-07 | G85: -5.044632493e-06 | H85: 7.935298859e-07 | J85: 1.862228426e-05 | K85: 0.0007915052899 | L85: -1.93620997e-05 | M85: -0.0008676250056 | N85: 4.57001764e-08
A86: 40.052 | B86: ='DF raw data'!J91 -> -4.3252555e-07 | C86: ='DF raw data'!K91 -> 2.1734927e-06 | D86: ='DF raw data'!L91 -> 1.3022925e-06 | F86: -4.330584215e-07 | G86: 2.181157787e-06 | H86: 1.303896924e-06 | J86: 1.840569009e-05 | K86: 0.0008007108958 | L86: -1.827119363e-05 | M86: -0.0008767633431 | N86: 4.603658026e-08
A87: 40.55215 | B87: ='DF raw data'!J92 -> -1.7585688e-06 | C87: ='DF raw data'!K92 -> 7.2641396e-06 | D87: ='DF raw data'!L92 -> 4.5752472e-07 | F87: =(1-$G$1*($B$2-$G$2))*B87 -> -1.760735357e-06 | G87: 7.289757475e-06 | H87: 4.580883905e-07 | J87: 1.75250583e-05 | K87: 0.0008094760537 | L87: -1.462522143e-05 | M87: -0.0008840781476 | N87: 4.62971708e-08
A88: 41.0523 | B88: ='DF raw data'!J93 -> 1.0330851e-06 | C88: ='DF raw data'!K93 -> -1.0518424e-06 | D88: ='DF raw data'!L93 -> 1.5164348e-07 | F88: 1.034357861e-06 | G88: -1.055551851e-06 | H88: 1.518303048e-07 | J88: 1.804239239e-05 | K88: 0.0008184999563 | L88: -1.515315569e-05 | M88: -0.0008916569984 | N88: 4.65748271e-08
A89: 41.55245 | B89: ='DF raw data'!J94 -> 5.1239049e-06 | C89: ='DF raw data'!K94 -> 1.9720176e-06 | D89: ='DF raw data'!L94 -> 4.0007271e-06 | F89: 5.130217551e-06 | G89: 1.978972161e-06 | H89: 4.005655996e-06 | J89: 2.06082707e-05 | K89: 0.0008288071829 | L89: -1.416337276e-05 | M89: -0.0008987408093 | N89: 4.688757187e-08
A90: 42.0526 | B90: ='DF raw data'!J95 -> 6.2285408e-06 | C90: ='DF raw data'!K95 -> 8.4026733e-06 | D90: ='DF raw data'!L95 -> 1.2754112e-05 | F90: 6.236214362e-06 | G90: 8.432306353e-06 | H90: 1.276982507e-05 | J90: 2.372731331e-05 | K90: 0.0008406743986 | L90: -9.945954741e-06 | M90: -0.0009037152785 | N90: 4.721862486e-08
A91: 42.55275 | B91: ='DF raw data'!J96 -> 4.5308998e-06 | C91: ='DF raw data'!K96 -> 4.5028065e-07 | D91: ='DF raw data'!L96 -> 1.0016081e-05 | F91: 4.536481869e-06 | G91: 4.518686197e-07 | H91: 1.002842081e-05 | J91: 2.599623472e-05 | K91: 0.0008536764154 | L91: -9.71995265e-06 | M91: -0.0009085767129 | N91: 4.760388125e-08
A92: 43.0529 | B92: ='DF raw data'!J97 -> -4.6429238e-07 | C92: ='DF raw data'!K97 -> -6.6900743e-06 | D92: ='DF raw data'!L97 -> 8.1829767e-06 | F92: -4.648643882e-07 | G92: -6.713667664e-06 | H92: 8.193058127e-06 | J92: 2.576373279e-05 | K92: 0.0008665621464 | L92: -1.307779353e-05 | M92: -0.0009151175713 | N92: 4.802140578e-08
A93: 43.55305 | B93: ='DF raw data'!J98 -> -3.1647787e-06 | C93: ='DF raw data'!K98 -> 7.3154513e-07 | D93: ='DF raw data'!L98 -> 8.4141193e-06 | F93: -3.168677707e-06 | G93: 7.341250132e-07 | H93: 8.424485495e-06 | J93: 2.417891864e-05 | K93: 0.0008786552325 | L93: -1.271062091e-05 | M93: -0.0009214747883 | N93: 4.83946077e-08
A94: 44.0532 | B94: ='DF raw data'!J99 -> -2.014217e-06 | C94: ='DF raw data'!K99 -> -2.6189446e-06 | D94: ='DF raw data'!L99 -> 3.8602284e-06 | F94: -2.016698515e-06 | G94: -2.628180628e-06 | H94: 3.864984201e-06 | J94: 2.317026687e-05 | K94: 0.0008902438415 | L94: -1.402510545e-05 | M94: -0.0009284894448 | N94: 4.876150016e-08
A95: 44.55335 | B95: ='DF raw data'!J100 -> -2.9050561e-06 | C95: ='DF raw data'!K100 -> -1.2735984e-06 | D95: ='DF raw data'!L100 -> -1.5371391e-07 | F95: -2.908635129e-06 | G95: -1.2780899e-06 | H95: -1.539032855e-07 | J95: 2.171551301e-05 | K95: 0.0009011048553 | L95: -1.466434211e-05 | M95: -0.0009358238155 | N95: 4.910490637e-08
A96: 45.0535 | B96: ='DF raw data'!J101 -> -6.9631633e-06 | C96: ='DF raw data'!K101 -> -2.1703624e-06 | D96: ='DF raw data'!L101 -> -2.0137688e-06 | F96: -6.971741917e-06 | G96: -2.178016448e-06 | H96: -2.016249763e-06 | J96: 1.82285963e-05 | K96: 0.0009102218878 | L96: -1.575367704e-05 | M96: -0.0009437030171 | N96: 4.939522347e-08
A97: 45.55365 | B97: ='DF raw data'!J102 -> -2.1767619e-06 | C97: ='DF raw data'!K102 -> -1.264146e-05 | D97: ='DF raw data'!L102 -> 1.9982487e-07 | F97: -2.179443671e-06 | G97: -1.268604165e-05 | H97: 2.000710542e-07 | J97: 1.713854754e-05 | K97: 0.0009187937323 | L97: -2.209860077e-05 | M97: -0.0009547556323 | N97: 4.978637976e-08
A98: 46.0538 | B98: ='DF raw data'!J103 -> 1.8474976e-06 | C98: ='DF raw data'!K103 -> 1.9937663e-06 | D98: ='DF raw data'!L103 -> 1.6340616e-06 | F98: 1.849773717e-06 | G98: 2.00079756e-06 | H98: 1.636074764e-06 | J98: 1.806371187e-05 | K98: 0.0009278282978 | L98: -2.109790187e-05 | M98: -0.0009653077479 | N98: 5.017220505e-08
A99: 46.55395 | B99: ='DF raw data'!J104 -> 5.0616227e-06 | C99: ='DF raw data'!K104 -> 4.9601194e-06 | D99: ='DF raw data'!L104 -> -6.8180398e-06 | F99: 5.067858619e-06 | G99: 4.977611867e-06 | H99: -6.826439625e-06 | J99: 2.059840136e-05 | K99: 0.0009381305883 | L99: -1.86083493e-05 | M99: -0.0009746147138 | N99: 5.055760304e-08
A100: 47.0541 | B100: ='DF raw data'!J105 -> 7.8109597e-06 | C100: ='DF raw data'!K105 -> 3.1169561e-06 | D100: ='DF raw data'!L105 -> -1.228272e-05 | F100: 7.820582802e-06 | G100: 3.127948426e-06 | H100: -1.229785231e-05 | J100: 2.450986584e-05 | K100: 0.0009503891977 | L100: -1.704390589e-05 | M100: -0.0009831392233 | N100: 5.100335085e-08
A101: 47.55425 | B101: ='DF raw data'!J106 -> 1.8857546e-06 | C101: ='DF raw data'!K106 -> -2.5891902e-06 | D101: ='DF raw data'!L106 -> -5.6078152e-06 | F101: 1.88807785e-06 | G101: -2.598321295e-06 | H101: -5.614724028e-06 | J101: 2.545418798e-05 | K101: 0.0009631201098 | L101: -1.834345629e-05 | M101: -0.000992313703 | N101: 5.149569754e-08
A102: 48.0544 | B102: ='DF raw data'!J107 -> -2.6454063e-06 | C102: ='DF raw data'!K107 -> -5.2918908e-06 | D102: ='DF raw data'!L107 -> 3.2881924e-06 | F102: -2.648665441e-06 | G102: -5.310553299e-06 | H102: 3.292243453e-06 | J102: 2.412945796e-05 | K102: 0.0009751884582 | L102: -2.099952952e-05 | M102: -0.001002816618 | N102: 5.200745652e-08
A103: 48.55455 | B103: ='DF raw data'!J108 -> 4.217437e-06 | C103: ='DF raw data'!K108 -> -5.5776161e-07 | D103: ='DF raw data'!L108 -> 1.5201929e-06 | F103: 4.222632882e-06 | G103: -5.597286244e-07 | H103: 1.522065778e-06 | J103: 2.62414078e-05 | K103: 0.0009883130983 | L103: -2.127947779e-05 | M103: -0.001013459549 | N103: 5.257834156e-08
A104: 49.0547 | B104: ='DF raw data'!J109 -> 9.5345031e-06 | C104: ='DF raw data'!K109 -> -2.9437638e-07 | D104: ='DF raw data'!L109 -> -7.9284237e-06 | F104: 9.546249608e-06 | G104: -2.954145342e-07 | H104: -7.938191518e-06 | J104: 3.101596454e-05 | K104: 0.001003825733 | L104: -2.142722937e-05 | M104: -0.001024176377 | N104: 5.328911283e-08
A105: 49.55485 | B105: ='DF raw data'!J110 -> 7.0623073e-06 | C105: ='DF raw data'!K110 -> 1.2361991e-05 | D105: ='DF raw data'!L110 -> -1.0996695e-05 | F105: 7.071008063e-06 | G105: 1.240558707e-05 | H105: -1.101024293e-05 | J105: 3.455252922e-05 | K105: 0.00102110718 | L105: -1.5222575e-05 | M105: -0.001031789948 | N105: 5.400212871e-08
A106: 50.055 | B106: ='DF raw data'!J111 -> 5.9407766e-06 | C106: ='DF raw data'!K111 -> 5.6867634e-06 | D106: ='DF raw data'!L111 -> -3.7656012e-06 | F106: 5.948095637e-06 | G106: 5.706818465e-06 | H106: -3.770240421e-06 | J106: 3.752746925e-05 | K106: 0.001039876544 | L106: -1.236830974e-05 | M106: -0.001037975958 | N106: 5.478300592e-08
A107: 50.55515 | B107: ='DF raw data'!J112 -> 1.7355643e-06 | C107: ='DF raw data'!K112 -> -7.3908916e-07 | D107: ='DF raw data'!L112 -> -2.5915235e-06 | F107: 1.737702515e-06 | G107: -7.416956482e-07 | H107: -2.594716257e-06 | J107: 3.839658117e-05 | K107: 0.001059080594 | L107: -1.273926882e-05 | M107: -0.001044347504 | N107: 5.560154461e-08
A108: 51.0553 | B108: ='DF raw data'!J113 -> -2.154934e-06 | C108: ='DF raw data'!K113 -> -1.9281922e-06 | D108: ='DF raw data'!L113 -> -5.848271e-06 | F108: -2.157588879e-06 | G108: -1.934992205e-06 | H108: -5.85547607e-06 | J108: 3.731746309e-05 | K108: 0.001077744923 | L108: -1.370705517e-05 | M108: -0.001051203087 | N108: 5.639201989e-08
A109: 51.55545 | B109: ='DF raw data'!J114 -> 4.044424e-07 | C109: ='DF raw data'!K114 -> 6.5140121e-06 | D109: ='DF raw data'!L114 -> 2.2930888e-06 | F109: 4.04940673e-07 | G109: 6.536984559e-06 | H109: 2.295913885e-06 | J109: 3.751999417e-05 | K109: 0.001096510548 | L109: -1.043758234e-05 | M109: -0.001056423444 | N109: 5.715059394e-08
A110: 52.0556 | B110: ='DF raw data'!J115 -> 1.3794498e-06 | C110: ='DF raw data'!K115 -> 3.4784102e-06 | D110: ='DF raw data'!L115 -> 2.9802593e-06 | F110: 1.381149282e-06 | G110: 3.490677238e-06 | H110: 2.983930979e-06 | J110: 3.821077598e-05 | K110: 0.001115621668 | L110: -8.691720123e-06 | M110: -0.001060770608 | N110: 5.791862898e-08
A111: 52.55575 | B111: ='DF raw data'!J116 -> -5.1920214e-08 | C111: ='DF raw data'!K116 -> -1.153268e-05 | D111: ='DF raw data'!L116 -> -5.5960427e-06 | F111: -5.19841797e-08 | G111: -1.15733514e-05 | H111: -5.602937025e-06 | J111: 3.818477609e-05 | K111: 0.001134719784 | L111: -1.448013183e-05 | M111: -0.001068012846 | N111: 5.875275481e-08
A112: 53.0559 | B112: ='DF raw data'!J117 -> -3.1492227e-06 | C112: ='DF raw data'!K117 -> -1.9507413e-06 | D112: ='DF raw data'!L117 -> -4.9667742e-06 | F112: -3.153102542e-06 | G112: -1.957620827e-06 | H112: -4.972893266e-06 | J112: 3.660775186e-05 | K112: 0.001153029151 | L112: -1.545923588e-05 | M112: -0.001075744783 | N112: 5.954254942e-08
A113: 53.55605 | B113: ='DF raw data'!J118 -> -8.9059022e-06 | C113: ='DF raw data'!K118 -> -2.0764877e-07 | D113: ='DF raw data'!L118 -> -5.4972061e-06 | F113: -8.916874272e-06 | G113: -2.083810687e-07 | H113: -5.503978658e-06 | J113: 3.214797719e-05 | K113: 0.001169107962 | L113: -1.556345768e-05 | M113: -0.001083528846 | N113: 6.01805976e-08
A114: 54.0562 | B114: ='DF raw data'!J119 -> -6.5094055e-06 | C114: ='DF raw data'!K119 -> -8.7167e-06 | D114: ='DF raw data'!L119 -> -9.7315806e-06 | F114: -6.517425088e-06 | G114: -8.747440507e-06 | H114: -9.743569907e-06 | J114: 2.888828703e-05 | K114: 0.001183556439 | L114: -1.993849005e-05 | M114: -0.001093501082 | N114: 6.079682067e-08
A115: 54.55635 | B115: ='DF raw data'!J120 -> -1.1732471e-06 | C115: ='DF raw data'!K120 -> 4.7799927e-06 | D115: ='DF raw data'!L120 -> -1.0241771e-05 | F115: -1.17469254e-06 | G115: 4.796849928e-06 | H115: -1.025438886e-05 | J115: 2.830076456e-05 | K115: 0.001197711066 | L115: -1.753934555e-05 | M115: -0.001102273385 | N115: 6.135126791e-08
A116: 55.0565 | B116: ='DF raw data'!J121 -> -2.919739e-06 | C116: ='DF raw data'!K121 -> 8.1609032e-06 | D116: ='DF raw data'!L121 -> -2.8234665e-06 | F116: -2.923336118e-06 | G116: 8.189683622e-06 | H116: -2.826945011e-06 | J116: 2.6838658e-05 | K116: 0.001211134421 | L116: -1.344327529e-05 | M116: -0.00110899704 | N116: 6.180192067e-08
A117: 55.55665 | B117: ='DF raw data'!J122 -> -4.5446204e-06 | C117: ='DF raw data'!K122 -> 2.1318057e-07 | D117: ='DF raw data'!L122 -> 3.9341085e-06 | F117: -4.550219372e-06 | G117: 2.139323773e-07 | H117: 3.938955322e-06 | J117: 2.456286578e-05 | K117: 0.001223419538 | L117: -1.333627701e-05 | M117: -0.001115667179 | N117: 6.219263318e-08
A118: 56.0568 | B118: ='DF raw data'!J123 -> -2.7290362e-06 | C118: ='DF raw data'!K123 -> 7.2205089e-06 | D118: ='DF raw data'!L123 -> 2.5893803e-06 | F118: -2.732398373e-06 | G118: 7.245972906e-06 | H118: 2.592570417e-06 | J118: 2.319625673e-05 | K118: 0.001235021146 | L118: -9.712203663e-06 | M118: -0.001120524737 | N118: 6.250892465e-08
A119: 56.55695 | B119: ='DF raw data'!J124 -> -8.3213081e-06 | C119: ='DF raw data'!K124 -> 5.5678802e-06 | D119: ='DF raw data'!L124 -> 1.3680526e-06 | F119: -8.331559952e-06 | G119: 5.587516009e-06 | H119: 1.369738041e-06 | J119: 1.902922702e-05 | K119: 0.001244538614 | L119: -6.917607531e-06 | M119: -0.001123984579 | N119: 6.271396854e-08
A120: 57.0571 | B120: ='DF raw data'!J125 -> -6.9769731e-06 | C120: ='DF raw data'!K125 -> 4.0717609e-06 | D120: ='DF raw data'!L125 -> 2.1097928e-06 | F120: -6.985568731e-06 | G120: 4.086120462e-06 | H120: 2.112392065e-06 | J120: 1.553539482e-05 | K120: 0.001252308641 | L120: -4.873934382e-06 | M120: -0.001126422277 | N120: 6.284656017e-08
A121: 57.55725 | B121: ='DF raw data'!J126 -> 1.7099384e-06 | C121: ='DF raw data'!K126 -> 3.3116264e-06 | D121: ='DF raw data'!L126 -> -1.5457248e-07 | F121: 1.712045044e-06 | G121: 3.323305255e-06 | H121: -1.547629133e-07 | J121: 1.639167415e-05 | K121: 0.001260506937 | L121: -3.211783258e-06 | M121: -0.00112802865 | N121: 6.298610328e-08
A122: 58.0574 | B122: ='DF raw data'!J127 -> 2.3485927e-06 | C122: ='DF raw data'!K127 -> -1.375003e-06 | D122: ='DF raw data'!L127 -> 6.2875711e-07 | F122: 2.351486166e-06 | G122: -1.379852116e-06 | H122: 6.295317388e-07 | J122: 1.756776996e-05 | K122: 0.001269293457 | L122: -3.901916294e-06 | M122: -0.001129980194 | N122: 6.314807761e-08
A123: 58.55755 | B123: ='DF raw data'!J128 -> 4.0229361e-06 | C123: ='DF raw data'!K128 -> 1.5753386e-06 | D123: ='DF raw data'!L128 -> 5.1652296e-06 | F123: 4.027892357e-06 | G123: 1.580894224e-06 | H123: 5.171593163e-06 | J123: 1.958232032e-05 | K123: 0.001279087555 | L123: -3.111232048e-06 | M123: -0.001131536276 | N123: 6.33447101e-08
A124: 59.0577 | B124: ='DF raw data'!J129 -> -2.9863338e-07 | C124: ='DF raw data'!K129 -> -4.6761243e-06 | D124: ='DF raw data'!L129 -> 5.6137924e-06 | F124: -2.990012963e-07 | G124: -4.692615223e-06 | H124: 5.620708592e-06 | J124: 1.943277482e-05 | K124: 0.001288806857 | L124: -5.458243552e-06 | M124: -0.001134266217 | N124: 6.354848379e-08
A125: 59.55785 | B125: ='DF raw data'!J130 -> -8.865055e-06 | C125: ='DF raw data'!K130 -> -3.430582e-06 | D125: ='DF raw data'!L130 -> -1.2452676e-06 | F125: -8.875976748e-06 | G125: -3.442680366e-06 | H125: -1.24680177e-06 | J125: 1.499345505e-05 | K125: 0.001296305834 | L125: -7.180100137e-06 | M125: -0.001137857344 | N125: 6.368670401e-08
A126: 60.058 | B126: ='DF raw data'!J131 -> -1.0193165e-05 | C126: ='DF raw data'!K131 -> 1.8639415e-06 | D126: ='DF raw data'!L131 -> -2.0029459e-07 | F126: -1.020572298e-05 | G126: 1.870514917e-06 | H126: -2.005413529e-07 | J126: 9.889062703e-06 | K126: 0.001301251849 | L126: -6.244562101e-06 | M126: -0.001140980562 | N126: 6.375511859e-08
A127: 60.55815 | B127: ='DF raw data'!J132 -> -8.5355123e-06 | C127: ='DF raw data'!K132 -> -1.5543292e-06 | D127: ='DF raw data'!L132 -> 1.1911745e-05 | F127: -8.546028051e-06 | G127: -1.559810732e-06 | H127: 1.192642027e-05 | J127: 5.614766773e-06 | K127: 0.001304060074 | L127: -7.024701439e-06 | M127: -0.001144493966 | N127: 6.379556673e-08
A128: 61.0583 | B128: ='DF raw data'!J133 -> -5.2414971e-06 | C128: ='DF raw data'!K133 -> -1.2746659e-06 | D128: ='DF raw data'!L133 -> 1.0310321e-05 | F128: -5.247954624e-06 | G128: -1.279161165e-06 | H128: 1.032302332e-05 | J128: 2.990002268e-06 | K128: 0.001305555524 | L128: -7.664473896e-06 | M128: -0.001148327353 | N128: 6.382941902e-08
A129: 61.55845 | B129: ='DF raw data'!J134 -> -5.9605998e-07 | C129: ='DF raw data'!K134 -> -6.741177e-06 | D129: ='DF raw data'!L134 -> 3.4907841e-06 | F129: -5.967943259e-07 | G129: -6.764950584e-06 | H129: 3.495084746e-06 | J129: 2.691515586e-06 | K129: 0.001306901685 | L129: -1.104796393e-05 | M129: -0.001153852992 | N129: 6.38940893e-08
A130: 62.0586 | B130: ='DF raw data'!J135 -> 2.874106e-06 | C130: ='DF raw data'!K135 -> 7.199561e-06 | D130: ='DF raw data'!L135 -> 1.0343529e-05 | F130: 2.877646899e-06 | G130: 7.224951131e-06 | H130: 1.035627223e-05 | J130: 4.130770682e-06 | K130: 0.00130896769 | L130: -7.434404622e-06 | M130: -0.001157571309 | N130: 6.393026697e-08
A131: 62.55875 | B131: ='DF raw data'!J136 -> -2.7363849e-06 | C131: ='DF raw data'!K136 -> 2.6822504e-06 | D131: ='DF raw data'!L136 -> 1.5108873e-05 | F131: -2.739756126e-06 | G131: 2.691709684e-06 | H131: 1.512748713e-05 | J131: 2.760481655e-06 | K131: 0.001310348345 | L131: -6.088146024e-06 | M131: -0.001160616296 | N131: 6.395261656e-08
A132: 63.0589 | B132: ='DF raw data'!J137 -> -1.2230826e-05 | C132: ='DF raw data'!K137 -> -7.2947664e-06 | D132: ='DF raw data'!L137 -> 1.0624119e-05 | F132: -1.224589438e-05 | G132: -7.320492284e-06 | H132: 1.063720791e-05 | J132: -3.364302418e-06 | K132: 0.001308665689 | L132: -9.74949024e-06 | M132: -0.001165492503 | N132: 6.400581806e-08
A133: 63.55905 | B133: ='DF raw data'!J138 -> -9.9033487e-06 | C133: ='DF raw data'!K138 -> -4.6338282e-06 | D133: ='DF raw data'!L138 -> 2.4695889e-06 | F133: -9.915549626e-06 | G133: -4.650169961e-06 | H133: 2.472631434e-06 | J133: -8.323564563e-06 | K133: 0.001304502658 | L133: -1.207527275e-05 | M133: -0.001171531951 | N133: 6.41133973e-08
A134: 64.0592 | B134: ='DF raw data'!J139 -> 2.7688031e-07 | C134: ='DF raw data'!K139 -> 2.5445536e-06 | D134: ='DF raw data'!L139 -> 1.5371604e-06 | F134: 2.772214265e-07 | G134: 2.553527279e-06 | H134: 1.539054182e-06 | J134: -8.184912266e-06 | K134: 0.001300408975 | L134: -1.079812608e-05 | M134: -0.001176932634 | N134: 6.420522099e-08
A135: 64.55935 | B135: ='DF raw data'!J140 -> 5.1823745e-06 | C135: ='DF raw data'!K140 -> 9.1926959e-06 | D135: ='DF raw data'!L140 -> 5.6924018e-06 | F135: 5.188759185e-06 | G135: =(1-$G$1*($B$2-$G$2))*C135*$M$2/$M$1 -> 9.225115065e-06 | H135: 5.699414839e-06 | J135: -5.58975436e-06 | K135: 0.001297613259 | L135: -6.184184778e-06 | M135: -0.001180025654 | N135: 6.423997617e-08
A136: =A135+$B$1 -> 65.0595 | B136: ='DF raw data'!J141 -> 7.8418097e-06 | C136: ='DF raw data'!K141 -> 1.2938831e-07 | D136: ='DF raw data'!L141 -> 1.5080711e-06 | F136: 7.85147081e-06 | G136: 1.298446137e-07 | H136: 1.509929044e-06 | J136: =F136*$B$1+J135 -> -1.662841234e-06 | K136: =J136*$B$1+K135 -> 0.001296781589 | L136: =G136*$B$1+L135 -> -6.119242994e-06 | M136: =L136*$B$1+M135 -> -0.001183086193 | N136: =(J136^2+L136^2)*$B$1+N135 -> 6.426008729e-08
A137: 65.55965 | B137: ='DF raw data'!J142 -> 9.900964e-06 | C137: ='DF raw data'!K142 -> -7.1702784e-06 | D137: ='DF raw data'!L142 -> 2.9841738e-06 | F137: 9.913161988e-06 | G137: -7.195565262e-06 | H137: 2.987850302e-06 | J137: 3.295226734e-06 | K137: 0.001298429697 | L137: -9.71810496e-06 | M137: -0.001187946703 | N137: 6.431275312e-08
A138: 66.0598 | B138: ='DF raw data'!J143 -> 9.5572041e-06 | C138: ='DF raw data'!K143 -> -1.1291044e-05 | D138: ='DF raw data'!L143 -> 9.4763363e-06 | F138: 9.568978575e-06 | G138: -1.133086325e-05 | H138: 9.488011146e-06 | J138: 8.081151368e-06 | K138: 0.001302471484 | L138: -1.538523621e-05 | M138: -0.001195641629 | N138: 6.446380367e-08
A139: 66.55995 | B139: ='DF raw data'!J144 -> 5.4774728e-06 | C139: ='DF raw data'!K144 -> -6.0446109e-07 | D139: ='DF raw data'!L144 -> 9.3063554e-06 | F139: 5.484221046e-06 | G139: -6.065927958e-07 | H139: 9.31782083e-06 | J139: 1.082408452e-05 | K139: 0.00130788515 | L139: -1.56886236e-05 | M139: -0.001203488294 | N139: 6.464550503e-08
A140: 67.0601 | B140: ='DF raw data'!J145 -> 3.5646963e-06 | C140: ='DF raw data'!K145 -> 1.9626777e-06 | D140: ='DF raw data'!L145 -> 8.0957379e-06 | F140: 3.569088006e-06 | G140: 1.969599323e-06 | H140: 8.105711849e-06 | J140: 1.260916389e-05 | K140: 0.001314191624 | L140: -1.47035285e-05 | M140: -0.001210842264 | N140: 6.483315369e-08
A141: 67.56025 | B141: ='DF raw data'!J146 -> 4.9454111e-06 | C141: ='DF raw data'!K146 -> -4.7890039e-06 | D141: ='DF raw data'!L146 -> 1.62015e-06 | F141: 4.951503846e-06 | G141: -4.805892907e-06 | H141: 1.622146025e-06 | J141: 1.508565854e-05 | K141: 0.001321736716 | L141: -1.710719584e-05 | M141: -0.001219398428 | N141: 6.509334834e-08
A142: 68.0604 | B142: ='DF raw data'!J147 -> 1.8801376e-06 | C142: ='DF raw data'!K147 -> -7.1640075e-06 | D142: ='DF raw data'!L147 -> -4.632735e-06 | F142: 1.88245393e-06 | G142: -7.189272247e-06 | H142: -4.63844253e-06 | J142: 1.602716787e-05 | K142: 0.001329752704 | L142: -2.070291035e-05 | M142: -0.001229752989 | N142: 6.543619147e-08
A143: 68.56055 | B143: ='DF raw data'!J148 -> 7.8938422e-07 | C143: ='DF raw data'!K148 -> -1.0078115e-06 | D143: ='DF raw data'!L148 -> -1.2659023e-06 | F143: 7.903567414e-07 | G143: -1.01136567e-06 | H143: -1.267461892e-06 | J143: 1.64224648e-05 | K143: 0.001337966399 | L143: -2.120874489e-05 | M143: -0.001240360542 | N143: 6.57960535e-08
A144: 69.0607 | B144: ='DF raw data'!J149 -> -3.2433206e-07 | C144: ='DF raw data'!K149 -> 2.472503e-06 | D144: ='DF raw data'!L149 -> 2.3408045e-06 | F144: -3.247316371e-07 | G144: 2.481222584e-06 | H144: 2.343688371e-06 | J144: 1.626005027e-05 | K144: 0.001346098864 | L144: -1.996776141e-05 | M144: -0.001250347418 | N144: 6.612770333e-08
A145: 69.56085 | B145: ='DF raw data'!J150 -> -3.5282471e-07 | C145: ='DF raw data'!K150 -> 9.550356e-07 | D145: ='DF raw data'!L150 -> -2.7629926e-07 | F145: -3.5325939e-07 | G145: 9.584036497e-07 | H145: -2.766396607e-07 | J145: 1.608336758e-05 | K145: 0.00135414296 | L145: -1.948841583e-05 | M145: -0.001260094549 | N145: 6.644703563e-08
A146: 70.061 | B146: ='DF raw data'!J151 -> 5.1626857e-06 | C146: ='DF raw data'!K151 -> 8.522491e-06 | D146: ='DF raw data'!L151 -> -6.4053329e-06 | F146: 5.169046129e-06 | G146: 8.552546605e-06 | H146: -6.41322427e-06 | J146: 1.866866601e-05 | K146: 0.001363480093 | L146: -1.521085964e-05 | M146: -0.001267702261 | N146: 6.673706729e-08
A147: 70.56115 | B147: ='DF raw data'!J152 -> 9.6698795e-06 | C147: ='DF raw data'!K152 -> -2.4506928e-06 | D147: ='DF raw data'!L152 -> -7.0857222e-06 | F147: 9.681792792e-06 | G147: -2.459335467e-06 | H147: -7.09445181e-06 | J147: 2.351101467e-05 | K147: 0.001375239127 | L147: -1.644089628e-05 | M147: -0.001275925175 | N147: 6.714872619e-08
A148: 71.0613 | B148: ='DF raw data'!J153 -> 7.8508174e-06 | C148: ='DF raw data'!K153 -> -5.9307404e-06 | D148: ='DF raw data'!L153 -> -5.8418245e-06 | F148: 7.860489607e-06 | G148: -5.95165588e-06 | H148: -5.849021628e-06 | J148: 2.744243855e-05 | K148: 0.001388964463 | L148: -1.941761697e-05 | M148: -0.001285636896 | N148: 6.771396135e-08
A149: 71.56145 | B149: ='DF raw data'!J154 -> -2.4665778e-06 | C149: ='DF raw data'!K154 -> 4.502197e-06 | D149: ='DF raw data'!L154 -> -9.3609287e-06 | F149: -2.469616624e-06 | G149: 4.518074547e-06 | H149: -9.372461364e-06 | J149: 2.620725979e-05 | K149: 0.001402072024 | L149: -1.715790198e-05 | M149: -0.001294218421 | N149: 6.820471556e-08
A150: 72.0616 | B150: ='DF raw data'!J155 -> -3.465756e-06 | C150: ='DF raw data'!K155 -> -1.2063987e-05 | D150: ='DF raw data'!L155 -> -1.2024424e-05 | F150: -3.470025811e-06 | G150: -1.210653212e-05 | H150: -1.203923809e-05 | J150: 2.447172638e-05 | K150: 0.001414311558 | L150: -2.321298402e-05 | M150: -0.001305828395 | N150: 6.877374023e-08
A151: 72.56175 | B151: ='DF raw data'!J156 -> 4.4853814e-06 | C151: ='DF raw data'!K156 -> -1.4320241e-05 | D151: ='DF raw data'!L156 -> -6.0080074e-06 | F151: =(1-$G$1*($B$2-$G$2))*B151 -> 4.49090739e-06 | G151: -1.437074308e-05 | H151: -6.015409265e-06 | J151: 2.671785371e-05 | K151: 0.001427674492 | L151: -3.040051117e-05 | M151: -0.001321033211 | N151: 6.959300333e-08
A152: 73.0619 | B152: ='DF raw data'!J157 -> 2.0759189e-06 | C152: ='DF raw data'!K157 -> 4.2252022e-06 | D152: ='DF raw data'!L157 -> 5.3158274e-06 | F152: 2.078476432e-06 | G152: 4.240102891e-06 | H152: 5.322376499e-06 | J152: 2.77574037e-05 | K152: 0.001441557358 | L152: -2.827982371e-05 | M152: -0.001335177364 | N152: 7.037834981e-08
A153: 73.56205 | B153: ='DF raw data'!J158 -> -3.4353861e-06 | C153: ='DF raw data'!K158 -> 4.5099359e-06 | D153: ='DF raw data'!L158 -> -4.5025661e-08 | F153: -3.439618496e-06 | G153: 4.52584074e-06 | H153: -4.508113261e-08 | J153: 2.603707851e-05 | K153: 0.001454579803 | L153: -2.601622447e-05 | M153: -0.001348189379 | N153: 7.105593972e-08
A154: 74.0622 | B154: ='DF raw data'!J159 -> -4.6018386e-06 | C154: ='DF raw data'!K159 -> 1.3817357e-06 | D154: ='DF raw data'!L159 -> -5.9149625e-06 | F154: -4.607508065e-06 | G154: 1.38660856e-06 | H154: -5.922249734e-06 | J154: 2.373263335e-05 | K154: 0.001466449679 | L154: -2.53227122e-05 | M154: -0.001360854534 | N154: 7.165835921e-08
A155: 74.56235 | B155: ='DF raw data'!J160 -> -2.0376456e-06 | C155: ='DF raw data'!K160 -> 1.4059619e-07 | D155: ='DF raw data'!L160 -> 3.5228151e-08 | F155: -2.040155979e-06 | G155: 1.410920196e-07 | H155: 3.527155208e-08 | J155: 2.271224934e-05 | K155: 0.001477809211 | L155: -2.525214502e-05 | M155: -0.001373484394 | N155: 7.223529079e-08
A156: 75.0625 | B156: ='DF raw data'!J161 -> 4.2799229e-06 | C156: ='DF raw data'!K161 -> 3.7168447e-06 | D156: ='DF raw data'!L161 -> 1.0458401e-05 | F156: 4.285195765e-06 | G156: 3.729952607e-06 | H156: 1.047128575e-05 | J156: 2.485549e-05 | K156: 0.001490240684 | L156: -2.338660923e-05 | M156: -0.001385181206 | N156: 7.281782993e-08
A157: 75.56265 | B157: ='DF raw data'!J162 -> 4.9240489e-06 | C157: ='DF raw data'!K162 -> 5.8784406e-07 | D157: ='DF raw data'!L162 -> 1.5248426e-05 | F157: 4.930115328e-06 | G157: 5.899171639e-07 | H157: 1.526721206e-05 | J157: 2.732128718e-05 | K157: 0.001503905426 | L157: -2.309156216e-05 | M157: -0.001396730451 | N157: 7.345785837e-08
A158: 76.0628 | B158: ='DF raw data'!J163 -> 5.1859106e-06 | C158: ='DF raw data'!K163 -> -4.5105412e-06 | D158: ='DF raw data'!L163 -> 4.1988515e-06 | F158: 5.192299642e-06 | G158: -4.526448174e-06 | H158: 4.204024485e-06 | J158: 2.991821585e-05 | K158: 0.001518869021 | L158: -2.535546521e-05 | M158: -0.001409411987 | N158: 7.42270887e-08
A159: 76.56295 | B159: ='DF raw data'!J164 -> 6.8547097e-06 | C159: ='DF raw data'!K164 -> 3.4910859e-06 | D159: ='DF raw data'!L164 -> 1.4234226e-06 | F159: 6.863154702e-06 | G159: 3.503397641e-06 | H159: 1.425176257e-06 | J159: 3.335082267e-05 | K159: 0.001535549435 | L159: -2.360324088e-05 | M159: -0.001421217148 | N159: 7.506203429e-08
A160: 77.0631 | B160: ='DF raw data'!J165 -> 8.9132038e-07 | C160: ='DF raw data'!K165 -> 3.8235867e-06 | D160: ='DF raw data'!L165 -> 8.0151349e-06 | F160: 8.924184867e-07 | G160: 3.837071045e-06 | H160: 8.025009546e-06 | J160: 3.379716578e-05 | K160: 0.001552453088 | L160: -2.16841298e-05 | M160: -0.001432062466 | N160: 7.58685011e-08
A161: 77.56325 | B161: ='DF raw data'!J166 -> -5.4333932e-06 | C161: ='DF raw data'!K166 -> -1.6035638e-06 | D161: ='DF raw data'!L166 -> 6.4981705e-06 | F161: -5.44008714e-06 | G161: -1.609218964e-06 | H161: 6.506176246e-06 | J161: 3.10763062e-05 | K161: 0.001567995902 | L161: -2.248898066e-05 | M161: -0.001443310329 | N161: 7.660446736e-08
A162: 78.0634 | B162: ='DF raw data'!J167 -> -2.1169535e-06 | C162: ='DF raw data'!K167 -> 2.9232199e-06 | D162: ='DF raw data'!L167 -> 3.7940024e-06 | F162: -2.119561587e-06 | G162: 2.933528992e-06 | H162: 3.798676611e-06 | J162: 3.001620747e-05 | K162: 0.001583008509 | L162: -2.102177614e-05 | M162: -0.001453824371 | N162: 7.727611268e-08
A163: 78.56355 | B163: ='DF raw data'!J168 -> -2.7349151e-06 | C163: ='DF raw data'!K168 -> 5.0856743e-06 | D163: ='DF raw data'!L168 -> 4.7177728e-06 | F163: -2.738284515e-06 | G163: 5.103609551e-06 | H163: 4.723585096e-06 | J163: 2.864665447e-05 | K163: 0.001597336133 | L163: -1.846920582e-05 | M163: -0.001463061744 | N163: 7.785715813e-08
A164: 79.0637 | B164: ='DF raw data'!J169 -> -2.1655424e-06 | C164: ='DF raw data'!K169 -> -9.6696367e-06 | D164: ='DF raw data'!L169 -> -3.0399156e-07 | F164: -2.168210348e-06 | G164: -9.703737855e-06 | H164: -3.043660776e-07 | J164: 2.756222406e-05 | K164: 0.001611121379 | L164: -2.332253031e-05 | M164: -0.001474726508 | N164: 7.850916198e-08
A165: 79.56385 | B165: ='DF raw data'!J170 -> 8.5712391e-06 | C165: ='DF raw data'!K170 -> -2.5835864e-06 | D165: ='DF raw data'!L170 -> -6.6438429e-07 | F165: 8.581798867e-06 | G165: -2.592697733e-06 | H165: -6.652028114e-07 | J165: 3.185441077e-05 | K165: 0.001627053363 | L165: -2.461926808e-05 | M165: -0.001487039834 | N165: 7.931981102e-08
A166: 80.064 | B166: ='DF raw data'!J171 -> 9.9676408e-06 | C166: ='DF raw data'!K171 -> 3.1533816e-06 | D166: ='DF raw data'!L171 -> 3.5701212e-06 | F166: 9.979920933e-06 | G166: 3.164502385e-06 | H166: 3.574519589e-06 | J166: 3.684586822e-05 | K166: 0.001645481824 | L166: -2.303654221e-05 | M166: -0.001498561561 | N166: 8.026424441e-08
A167: 80.56415 | B167: ='DF raw data'!J172 -> 5.0476331e-07 | C167: ='DF raw data'!K172 -> -1.0531043e-05 | D167: ='DF raw data'!L172 -> 3.9635179e-06 | F167: 5.053851784e-07 | G167: -1.056818201e-05 | H167: 3.968400954e-06 | J167: 3.709863662e-05 | K167: 0.001664036707 | L167: -2.832221844e-05 | M167: -0.001512726919 | N167: 8.135379963e-08
A168: 81.0643 | B168: ='DF raw data'!J173 -> -1.881387e-06 | C168: ='DF raw data'!K173 -> -1.3707333e-06 | D168: ='DF raw data'!L173 -> 3.1281359e-06 | F168: -1.883704869e-06 | G168: -1.375567358e-06 | H168: 3.131989763e-06 | J168: 3.615650163e-05 | K168: 0.001682120381 | L168: -2.901020846e-05 | M168: -0.001527236374 | N168: 8.242856436e-08
A169: 81.56445 | B169: ='DF raw data'!J174 -> -1.8470881e-06 | C169: ='DF raw data'!K174 -> 6.9607263e-06 | D169: ='DF raw data'!L174 -> 3.4221719e-06 | F169: -1.849363713e-06 | G169: 6.985274151e-06 | H169: 3.426388016e-06 | J169: 3.523154237e-05 | K169: 0.001699741437 | L169: -2.551652359e-05 | M169: -0.001539998464 | N169: 8.337502549e-08
A170: 82.0646 | B170: ='DF raw data'!J175 -> -6.7209903e-06 | C170: ='DF raw data'!K175 -> 4.7029471e-07 | D170: ='DF raw data'!L175 -> 3.2181104e-06 | F170: -6.72927056e-06 | G170: 4.719532617e-07 | H170: 3.222075112e-06 | J170: 3.18658977e-05 | K170: 0.001715679166 | L170: -2.528047617e-05 | M170: -0.001552642494 | N170: 8.420254263e-08
A171: 82.56475 | B171: ='DF raw data'!J176 -> -1.1260096e-05 | C171: ='DF raw data'!K176 -> -7.2016342e-06 | D171: ='DF raw data'!L176 -> -2.4675887e-07 | F171: -1.127396844e-05 | G171: -7.227031642e-06 | H171: -2.470628769e-07 | J171: 2.622722238e-05 | K171: 0.001728796711 | L171: -2.889507604e-05 | M171: -0.001567094366 | N171: 8.496416735e-08
A172: 83.0649 | B172: ='DF raw data'!J177 -> -1.1452327e-05 | C172: ='DF raw data'!K177 -> 7.5189855e-06 | D172: ='DF raw data'!L177 -> -1.3899573e-06 | F172: -1.146643627e-05 | G172: 7.54550212e-06 | H172: -1.391669727e-06 | J172: 2.049228428e-05 | K172: 0.001739045927 | L172: -2.512119316e-05 | M172: -0.001579658731 | N172: 8.548982904e-08
A173: 83.56505 | B173: ='DF raw data'!J178 -> -3.609005e-06 | C173: ='DF raw data'!K178 -> 3.1968789e-06 | D173: ='DF raw data'!L178 -> 3.4477978e-06 | F173: -3.613451294e-06 | G173: 3.208153084e-06 | H173: 3.452045487e-06 | J173: 1.868501662e-05 | K173: 0.001748391238 | L173: -2.351663539e-05 | M173: -0.001591420576 | N173: 8.594104535e-08
A174: 84.0652 | B174: ='DF raw data'!J179 -> 7.7152517e-06 | C174: ='DF raw data'!K179 -> -6.6154885e-06 | D174: ='DF raw data'!L179 -> 3.2771475e-06 | F174: 7.72475689e-06 | G174: -6.638818828e-06 | H174: 3.281184946e-06 | J174: 2.254855378e-05 | K174: 0.001759668897 | L174: -2.683704063e-05 | M174: -0.001604843122 | N174: 8.655556167e-08
A175: 84.56535 | B175: ='DF raw data'!J180 -> 6.8086529e-06 | C175: ='DF raw data'!K180 -> 6.3194752e-06 | D175: ='DF raw data'!L180 -> 4.3595878e-07 | F175: 6.81704116e-06 | G175: 6.341761601e-06 | H175: 4.364958812e-07 | J175: 2.595809691e-05 | K175: 0.001772651839 | L175: -2.366520856e-05 | M175: -0.001616679276 | N175: 8.717267919e-08
A176: 85.0655 | B176: ='DF raw data'!J181 -> -3.9609722e-06 | C176: ='DF raw data'!K181 -> 1.1899932e-05 | D176: ='DF raw data'!L181 -> 7.480774e-06 | F176: -3.965852118e-06 | G176: 1.194189856e-05 | H176: 7.489990314e-06 | J176: 2.397457598e-05 | K176: 0.001784642724 | L176: -1.7692468e-05 | M176: -0.001625528164 | N176: 8.761671422e-08
A177: 85.56565 | B177: ='DF raw data'!J182 -> -2.2732702e-06 | C177: ='DF raw data'!K182 -> 8.9275754e-06 | D177: ='DF raw data'!L182 -> 4.8112252e-06 | F177: -2.276070869e-06 | G177: 8.959059585e-06 | H177: 4.817152629e-06 | J177: 2.283619913e-05 | K177: 0.001796064249 | L177: -1.321159435e-05 | M177: -0.001632135943 | N177: 8.796483773e-08
A178: 86.0658 | B178: ='DF raw data'!J183 -> 6.5596114e-06 | C178: ='DF raw data'!K183 -> -8.0273389e-07 | D178: ='DF raw data'!L183 -> -1.04222e-05 | F178: 6.567692841e-06 | G178: -8.055648291e-07 | H178: -1.043504015e-05 | J178: 2.612103071e-05 | K178: 0.001809128682 | L178: -1.36144976e-05 | M178: -0.001638945234 | N178: 8.839879928e-08
A179: 86.56595 | B179: ='DF raw data'!J184 -> 3.0246892e-06 | C179: ='DF raw data'!K184 -> 2.6774471e-06 | D179: ='DF raw data'!L184 -> -1.3019149e-05 | F179: 3.028415617e-06 | G179: 2.686889444e-06 | H179: -1.303518859e-05 | J179: 2.763569278e-05 | K179: 0.001822950674 | L179: -1.227064984e-05 | M179: -0.001645082399 | N179: 8.88560866e-08
A180: 87.0661 | B180: ='DF raw data'!J185 -> -5.3474205e-06 | C180: ='DF raw data'!K185 -> 2.7332196e-06 | D180: ='DF raw data'!L185 -> -7.6291926e-06 | F180: -5.354008522e-06 | G180: 2.742858633e-06 | H180: -7.638591765e-06 | J180: 2.495788541e-05 | K180: 0.00183543336 | L180: -1.08988091e-05 | M180: -0.001650533439 | N180: 8.92270379e-08
A181: 87.56625 | B181: ='DF raw data'!J186 -> -8.0536402e-06 | C181: ='DF raw data'!K186 -> 1.1302255e-06 | D181: ='DF raw data'!L186 -> 1.2282815e-06 | F181: -8.063562285e-06 | G181: 1.134211378e-06 | H181: 1.229794743e-06 | J181: 2.092489474e-05 | K181: 0.001845898946 | L181: -1.033153327e-05 | M181: -0.001655700755 | N181: 8.949941549e-08
A182: 88.0664 | B182: ='DF raw data'!J187 -> -5.6821727e-06 | C182: ='DF raw data'!K187 -> 4.7730857e-08 | D182: ='DF raw data'!L187 -> 1.1846989e-05 | F182: -5.689173137e-06 | G182: 4.78991857e-08 | H182: 1.186158449e-05 | J182: 1.807945479e-05 | K182: 0.001854941386 | L182: -1.03075765e-05 | M182: -0.001660856089 | N182: 8.971603686e-08
A183: 88.56655 | B183: ='DF raw data'!J188 -> -7.7982156e-07 | C183: ='DF raw data'!K188 -> 1.9074389e-06 | D183: ='DF raw data'!L188 -> 1.2654416e-05 | F183: -7.807823002e-07 | G183: 1.914165716e-06 | H183: 1.267000624e-05 | J183: 1.768894653e-05 | K183: 0.001863788512 | L183: -9.350206514e-06 | M183: -0.001665532595 | N183: 8.991625951e-08
A184: 89.0667 | B184: ='DF raw data'!J189 -> 4.8834054e-06 | C184: ='DF raw data'!K189 -> 3.7880948e-06 | D184: ='DF raw data'!L189 -> 6.1058363e-06 | F184: 4.889421755e-06 | G184: 3.801453979e-06 | H184: 6.11335869e-06 | J184: 2.013439082e-05 | K184: 0.001873858728 | L184: -7.448909306e-06 | M184: -0.001669258167 | N184: 9.014676861e-08
A185: 89.56685 | B185: ='DF raw data'!J190 -> 7.7903396e-06 | C185: ='DF raw data'!K190 -> 3.9491415e-06 | D185: ='DF raw data'!L190 -> 3.2771475e-06 | F185: 7.799937298e-06 | G185: 3.96306863e-06 | H185: 3.281184946e-06 | J185: 2.403552946e-05 | K185: 0.001885880098 | L185: -5.466780531e-06 | M185: -0.001671992377 | N185: 9.045065593e-08
A186: 90.067 | B186: ='DF raw data'!J191 -> 5.7923326e-06 | C186: ='DF raw data'!K191 -> 2.8000666e-06 | D186: ='DF raw data'!L191 -> 3.4290258e-06 | F186: 5.799468754e-06 | G186: 2.809941377e-06 | H186: 3.43325036e-06 | J186: 2.693613375e-05 | K186: 0.001899352205 | L186: -4.061388351e-06 | M186: -0.001674023681 | N186: 9.082179233e-08
A187: 90.56715 | B187: ='DF raw data'!J192 -> 5.6410602e-07 | C187: ='DF raw data'!K192 -> 5.5481328e-06 | D187: ='DF raw data'!L192 -> -1.7686418e-06 | F187: 5.648009986e-07 | G187: 5.567698968e-06 | H187: -1.770820767e-06 | J187: 2.721861897e-05 | K187: 0.001912965597 | L187: -1.276703713e-06 | M187: -0.001674662224 | N187: 9.11931453e-08
A188: 91.0673 | B188: ='DF raw data'!J193 -> -3.4241666e-06 | C188: ='DF raw data'!K193 -> 2.8782549e-06 | D188: ='DF raw data'!L193 -> -5.7845523e-07 | F188: -3.428385173e-06 | G188: 2.888405417e-06 | H188: -5.791678868e-07 | J188: 2.550391213e-05 | K188: 0.001925721379 | L188: 1.679322569e-07 | M188: -0.001674578233 | N188: 9.151848174e-08
A189: 91.56745 | B189: ='DF raw data'!J194 -> 2.1149617e-06 | C189: ='DF raw data'!K194 -> -1.9395334e-06 | D189: ='DF raw data'!L194 -> 4.1646545e-06 | F189: 2.117567333e-06 | G189: -1.946373401e-06 | H189: 4.169785354e-06 | J189: 2.656301343e-05 | K189: 0.00193900687 | L189: -8.055463997e-07 | M189: -0.001674981127 | N189: 9.187170897e-08
A190: 92.0676 | B190: ='DF raw data'!J195 -> 9.3962599e-06 | C190: ='DF raw data'!K195 -> 4.5586366e-06 | D190: ='DF raw data'!L195 -> 5.2879459e-06 | F190: 9.407836092e-06 | G190: 4.574713189e-06 | H190: 5.294460649e-06 | J190: 3.126834265e-05 | K190: 0.001954645732 | L190: 1.482496402e-06 | M190: -0.001674239656 | N190: 9.236180948e-08
A191: 92.56775 | B191: ='DF raw data'!J196 -> 7.5709404e-06 | C191: ='DF raw data'!K196 -> -6.0608318e-06 | D191: ='DF raw data'!L196 -> 1.0682617e-05 | F191: 7.580267799e-06 | G191: -6.082206063e-06 | H191: 1.069577798e-05 | J191: 3.505961359e-05 | K191: 0.001972180798 | L191: -1.559518961e-06 | M191: -0.00167501965 | N191: 9.297779852e-08
A192: 93.0679 | B192: ='DF raw data'!J197 -> 2.9934608e-06 | C192: ='DF raw data'!K197 -> -3.228173e-06 | D192: ='DF raw data'!L197 -> 8.5754564e-06 | F192: 2.997148744e-06 | G192: -3.239557546e-06 | H192: 8.586021362e-06 | J192: 3.655863754e-05 | K192: 0.0019904656 | L192: -3.179783668e-06 | M192: -0.001676610018 | N192: 9.365132302e-08
A193: 93.56805 | B193: ='DF raw data'!J198 -> -8.5051477e-07 | C193: ='DF raw data'!K198 -> 7.2626717e-06 | D193: ='DF raw data'!L198 -> 5.0727085e-06 | F193: -8.515626042e-07 | G193: 7.288284399e-06 | H193: 5.078958077e-06 | J193: 3.61327285e-05 | K193: 0.002008537384 | L193: 4.654517741e-07 | M193: -0.001676377223 | N193: 9.430441424e-08
A194: 94.0682 | B194: ='DF raw data'!J199 -> -2.9714129e-06 | C194: ='DF raw data'!K199 -> -5.7351358e-06 | D194: ='DF raw data'!L199 -> 7.0081715e-06 | F194: -2.975073681e-06 | G194: -5.755361457e-06 | H194: 7.016805567e-06 | J194: 3.46447454e-05 | K194: 0.002025864954 | L194: -2.413092258e-06 | M194: -0.001677584131 | N194: 9.490763586e-08
A195: 94.56835 | B195: ='DF raw data'!J200 -> -4.244589e-06 | C195: ='DF raw data'!K200 -> -1.3890739e-05 | D195: ='DF raw data'!L200 -> 2.0294663e-06 | F195: -4.249818334e-06 | G195: -1.393972639e-05 | H195: 2.031966602e-06 | J195: 3.251919876e-05 | K195: 0.002042129431 | L195: -9.385046411e-06 | M195: -0.001682278062 | N195: 9.548059638e-08
A196: 95.0685 | B196: ='DF raw data'!J201 -> -6.4678161e-06 | C196: ='DF raw data'!K201 -> -9.9119407e-06 | D196: ='DF raw data'!L201 -> -4.8604143e-06 | F196: -6.475784449e-06 | G196: -9.946896369e-06 | H196: -4.86640233e-06 | J196: 2.928033517e-05 | K196: 0.002056773991 | L196: -1.435998663e-05 | M196: -0.001689460209 | N196: 9.601252954e-08
A197: 95.56865 | B197: ='DF raw data'!J202 -> -6.8721847e-06 | C197: ='DF raw data'!K202 -> 3.3286472e-07 | D197: ='DF raw data'!L202 -> 4.6418574e-08 | F197: -6.880651232e-06 | G197: 3.340386081e-07 | H197: 4.647576168e-08 | J197: 2.583897745e-05 | K197: 0.002069697355 | L197: -1.419291722e-05 | M197: -0.001696558797 | N197: 9.644720573e-08
A198: 96.0688 | B198: ='DF raw data'!J203 -> -4.0738369e-06 | C198: ='DF raw data'!K203 -> 2.5225381e-06 | D198: ='DF raw data'!L203 -> 6.5362965e-06 | F198: -4.078855867e-06 | G198: 2.531434139e-06 | H198: 6.544349217e-06 | J198: 2.379893769e-05 | K198: 0.002081600394 | L198: -1.292682044e-05 | M198: -0.001703024146 | N198: 9.681406181e-08
A199: 96.56895 | B199: ='DF raw data'!J204 -> -1.5615213e-06 | C199: ='DF raw data'!K204 -> -7.0253009e-07 | D199: ='DF raw data'!L204 -> 8.2627212e-06 | F199: -1.563445094e-06 | G199: =(1-$G$1*($B$2-$G$2))*C199*$M$2/$M$1 -> -7.050076481e-07 | H199: 8.272900873e-06 | J199: 2.301698063e-05 | K199: 0.002093112337 | L199: -1.327943001e-05 | M199: -0.001709665853 | N199: 9.716723006e-08
A200: =A199+$B$1 -> 97.0691 | B200: ='DF raw data'!J205 -> 8.253711e-07 | C200: ='DF raw data'!K205 -> 4.3531591e-06 | D200: ='DF raw data'!L205 -> 4.2690749e-07 | F200: 8.263879572e-07 | G200: 4.368511047e-06 | H200: 4.2743344e-07 | J200: =F200*$B$1+J199 -> 2.343029856e-05 | K200: =J200*$B$1+K199 -> 0.002104831001 | L200: =G200*$B$1+L199 -> -1.109451921e-05 | M200: =L200*$B$1+M199 -> -0.001715214777 | N200: =(J200^2+L200^2)*$B$1+N199 -> 9.75033645e-08
A201: 97.56925 | B201: ='DF raw data'!J206 -> -8.3229577e-07 | C201: ='DF raw data'!K206 -> -3.1131588e-06 | D201: ='DF raw data'!L206 -> -1.5931457e-06 | F201: -8.333211584e-07 | G201: -3.124137735e-06 | H201: -1.595108456e-06 | J201: 2.301351299e-05 | K201: 0.002116341209 | L201: -1.26570567e-05 | M201: -0.001721545204 | N201: 9.78483794e-08
... 1002 more rows

Sheet 10 x=2
A1: dz | B1: ='DF raw data'!N7 -> 0.50014 | C1: mm | F1: T_coeff | G1: -0.0008 | H1: /degC | L1: Hallref | M1: ='PI vs gap'!B44 -> 0.50528 | N1: T | P1: IBy total | Q1: =L1203*1000 -> -2.323804183 | R1: muTm | X1: DF ref | Y1: 21
A2: Tref | B2: ='DF raw data'!N8 -> 21.56 | C2: degC | F2: Tcorr | G2: 20 | H2: degC | L2: NMRref | M2: ='PI vs gap'!B45 -> 0.506438 | N2: T | P2: JBy total | Q2: =M1203 -> -0.94071792 | R2: muTm^2
A3: Encoder | B3: ='DF raw data'!N9 -> 17895607 | P3: PI total | Q3: =N1203 -> 706.4943666 | R3: T^2mm^3
A5: z [mm] | B5: Bx | C5: By | D5: Bz | F5: Bx_corr | G5: By_corr | H5: Bz_corr | J5: Ix | K5: Jx | L5: Iy | M5: Jy | N5: PI
A6: ='PI vs gap'!B53 -> 0.04 | B6: ='DF raw data'!M11 -> -5.9581203e-06 | C6: ='DF raw data'!N11 -> 1.863528e-06 | D6: ='DF raw data'!O11 -> 1.570516e-06 | F6: =(1-$G$1*($B$2-$G$2))*B6 -> -5.965556034e-06 | G6: =(1-$G$1*($B$2-$G$2))*C6*$M$2/$M$1 -> 1.870129844e-06 | H6: =(1-$G$1*($B$2-$G$2))*D6 -> 1.572476004e-06 | J6: =F6*$B$1 -> -2.983613195e-06 | K6: =J6*$B$1 -> -1.492224303e-06 | L6: =G6*$B$1 -> 9.353267401e-07 | M6: =L6*$B$1 -> 4.677943158e-07 | N6: =(J6^2+L6)^2*$B$1 -> 4.37548861e-13
A7: =A6+$B$1 -> 0.54014 | B7: ='DF raw data'!M12 -> -5.8807623e-06 | C7: ='DF raw data'!N12 -> -5.2335054e-07 | D7: ='DF raw data'!O12 -> -2.4115377e-07 | F7: =(1-$G$1*($B$2-$G$2))*B7 -> -5.888101491e-06 | G7: =(1-$G$1*($B$2-$G$2))*C7*$M$2/$M$1 -> -5.252045924e-07 | H7: -2.414547299e-07 | J7: =F7*$B$1+J6 -> -5.928488275e-06 | K7: =J7*$B$1+K6 -> -4.457298429e-06 | L7: =G7*$B$1+L6 -> 6.726509153e-07 | M7: =L7*$B$1+M6 -> 8.042139445e-07 | N7: =(J7^2+L7^2)*$B$1+N6 -> 1.824224902e-11
A8: =A7+$B$1 -> 1.04028 | B8: ='DF raw data'!M13 -> -5.8967839e-06 | C8: ='DF raw data'!N13 -> -6.1568244e-07 | D8: ='DF raw data'!O13 -> -3.6301637e-06 | F8: -5.904143086e-06 | G8: -6.178635928e-07 | H8: -3.634694144e-06 | J8: =F8*$B$1+J7 -> -8.881386398e-06 | K8: =J8*$B$1+K7 -> -8.899235022e-06 | L8: =G8*$B$1+L7 -> 3.63632618e-07 | M8: =L8*$B$1+M7 -> 9.860811621e-07 | N8: =(J8^2+L8^2)*$B$1+N7 -> 5.775893711e-11
A9: 1.54042 | B9: ='DF raw data'!M14 -> -6.0994921e-06 | C9: ='DF raw data'!N14 -> 4.9521e-06 | D9: ='DF raw data'!O14 -> -3.4636462e-06 | F9: -6.107104266e-06 | G9: 4.969643601e-06 | H9: -3.46796883e-06 | J9: -1.193579353e-05 | K9: -1.48688028e-05 | L9: 2.849150168e-06 | M9: 2.411055127e-06 | N9: 1.330704303e-10
A10: 2.04056 | B10: ='DF raw data'!M15 -> -5.9082654e-06 | C10: ='DF raw data'!N15 -> -5.3295753e-07 | D10: ='DF raw data'!O15 -> -5.0767699e-06 | F10: -5.915638915e-06 | G10: -5.348456167e-07 | H10: -5.083105709e-06 | J10: -1.489444117e-05 | K10: -2.23181086e-05 | L10: 2.581652482e-06 | M10: 3.702242799e-06 | N10: 2.473570753e-10
A11: 2.5407 | B11: ='DF raw data'!M16 -> -6.1063024e-06 | C11: ='DF raw data'!N16 -> 5.5684e-06 | D11: ='DF raw data'!O16 -> -8.3375141e-07 | F11: -6.113923065e-06 | G11: 5.588126941e-06 | H11: -8.347919318e-07 | J11: -1.795225865e-05 | K11: -3.129675125e-05 | L11: 5.37649829e-06 | M11: 6.391244654e-06 | N11: 4.230014043e-10
A12: 3.04084 | B12: ='DF raw data'!M17 -> -6.0964217e-06 | C12: ='DF raw data'!N17 -> 5.7138359e-06 | D12: ='DF raw data'!O17 -> 1.9951265e-06 | F12: -6.104030034e-06 | G12: 5.734078071e-06 | H12: 1.997616418e-06 | J12: -2.100512824e-05 | K12: -4.180225608e-05 | L12: 8.244340096e-06 | M12: 1.051456891e-05 | N12: 6.77664968e-10
A13: 3.54098 | B13: ='DF raw data'!M18 -> -5.9560539e-06 | C13: ='DF raw data'!N18 -> 2.1656072e-06 | D13: ='DF raw data'!O18 -> 4.1375029e-06 | F13: -5.963487055e-06 | G13: 2.173279207e-06 | H13: 4.142666504e-06 | J13: -2.398770665e-05 | K13: -5.379946769e-05 | L13: 9.331283959e-06 | M13: 1.518151727e-05 | N13: 1.008999181e-09
A14: 4.04112 | B14: ='DF raw data'!M19 -> -5.891909e-06 | C14: ='DF raw data'!N19 -> 1.2683994e-07 | D14: ='DF raw data'!O19 -> 2.4275221e-06 | F14: -5.899262102e-06 | G14: 1.272892906e-07 | H14: 2.430551648e-06 | J14: -2.69381636e-05 | K14: -6.727232083e-05 | L14: 9.394946425e-06 | M14: 1.988030577e-05 | N14: 1.416077969e-09
A15: 4.54126 | B15: ='DF raw data'!M20 -> -5.5484111e-06 | C15: ='DF raw data'!N20 -> -1.116777e-05 | D15: ='DF raw data'!O20 -> -9.7030852e-06 | F15: -5.555335517e-06 | G15: -1.12073336e-05 | H15: -9.71519465e-06 | J15: -2.971660911e-05 | K15: -8.213478571e-05 | L15: 3.789710599e-06 | M15: 2.177569163e-05 | N15: 1.864922992e-09
A16: 5.0414 | B16: ='DF raw data'!M21 -> -5.8325663e-06 | C16: ='DF raw data'!N21 -> -3.8115295e-06 | D16: ='DF raw data'!O21 -> -1.2433068e-05 | F16: -5.839845343e-06 | G16: -3.825032448e-06 | H16: -1.244858447e-05 | J16: -3.263734935e-05 | K16: -9.845802962e-05 | L16: 1.87665887e-06 | M16: 2.27142838e-05 | N16: 2.399431824e-09
A17: 5.54154 | B17: ='DF raw data'!M22 -> -6.2487511e-06 | C17: ='DF raw data'!N22 -> 8.7679837e-06 | D17: ='DF raw data'!O22 -> -4.7079952e-06 | F17: -6.256549541e-06 | G17: 8.799045674e-06 | H17: -4.713870778e-06 | J17: -3.576650004e-05 | K17: -0.0001163462869 | L17: 6.277413574e-06 | M17: 2.585386943e-05 | N17: 3.058940658e-09
A18: 6.04168 | B18: ='DF raw data'!M23 -> -5.5231781e-06 | C18: ='DF raw data'!N23 -> -1.1227546e-05 | D18: ='DF raw data'!O23 -> -5.858717e-06 | F18: -5.530071026e-06 | G18: -1.126732136e-05 | H18: -5.866028679e-06 | J18: -3.853230977e-05 | K18: -0.0001356178364 | L18: 6.421754666e-07 | M18: 2.617504706e-05 | N18: 3.801724221e-09
A19: 6.54182 | B19: ='DF raw data'!M24 -> -5.6909907e-06 | C19: ='DF raw data'!N24 -> -7.2179255e-06 | D19: ='DF raw data'!O24 -> -9.8051814e-06 | F19: -5.698093056e-06 | G19: -7.243496147e-06 | H19: -9.817418266e-06 | J19: -4.138215403e-05 | K19: -0.0001563147069 | L19: -2.980586696e-06 | M19: 2.468433643e-05 | N19: 4.662648497e-09
A20: 7.04196 | B20: ='DF raw data'!M25 -> -6.2915337e-06 | C20: ='DF raw data'!N25 -> 9.0839394e-06 | D20: ='DF raw data'!O25 -> -1.0403425e-05 | F20: -6.299385534e-06 | G20: 9.116120698e-06 | H20: -1.041640847e-05 | J20: -4.453272871e-05 | K20: -0.0001785873058 | L20: 1.578749909e-06 | M20: 2.547393241e-05 | N20: 5.655754678e-09
A21: 7.5421 | B21: ='DF raw data'!M26 -> -5.7673592e-06 | C21: ='DF raw data'!N26 -> -4.2940028e-06 | D21: ='DF raw data'!O26 -> -4.5906049e-06 | F21: -5.774556864e-06 | G21: -4.309214987e-06 | H21: -4.596333975e-06 | J21: -4.742081558e-05 | K21: -0.0002023043525 | L21: -5.764608741e-07 | M21: 2.518562127e-05 | N21: 6.780602576e-09
A22: 8.04224 | B22: ='DF raw data'!M27 -> -3.3989477e-06 | C22: ='DF raw data'!N27 -> 5.6436529e-06 | D22: ='DF raw data'!O27 -> 3.867754e-06 | F22: -3.403189587e-06 | G22: 5.663646436e-06 | H22: 3.872580957e-06 | J22: -4.912288682e-05 | K22: -0.0002268726731 | L22: 2.256155255e-06 | M22: 2.631401476e-05 | N22: 7.990015239e-09
A23: 8.54238 | B23: ='DF raw data'!M28 -> 2.4637978e-07 | C23: ='DF raw data'!N28 -> 3.4074137e-06 | D23: ='DF raw data'!O28 -> 6.8868544e-06 | F23: =(1-$G$1*($B$2-$G$2))*B23 -> 2.46687262e-07 | G23: 3.419485004e-06 | H23: 6.895449194e-06 | J23: -4.899950865e-05 | K23: -0.0002513792874 | L23: 3.966376485e-06 | M23: 2.829775829e-05 | N23: 9.19869557e-09
A24: 9.04252 | B24: ='DF raw data'!M29 -> -2.4208698e-06 | C24: ='DF raw data'!N29 -> -4.2976053e-06 | D24: ='DF raw data'!O29 -> 2.2984757e-06 | F24: -2.423891046e-06 | G24: -4.312830249e-06 | H24: 2.301344198e-06 | J24: -5.021179352e-05 | K24: -0.0002764922138 | L24: 1.809357564e-06 | M24: 2.920269039e-05 | N24: 1.046129799e-08
A25: 9.54266 | B25: ='DF raw data'!M30 -> -2.0128923e-06 | C25: ='DF raw data'!N30 -> -6.2616527e-06 | D25: ='DF raw data'!O30 -> -8.8334434e-07 | F25: -2.01540439e-06 | G25: -6.283835599e-06 | H25: -8.844467537e-07 | J25: -5.121977787e-05 | K25: -0.0003021092735 | L25: -1.333439973e-06 | M25: 2.853578372e-05 | N25: 1.177428738e-08
A26: 10.0428 | B26: ='DF raw data'!M31 -> 1.0797389e-06 | C26: ='DF raw data'!N31 -> -8.5491729e-07 | D26: ='DF raw data'!O31 -> 1.0111841e-06 | F26: 1.081086414e-06 | G26: -8.579459702e-07 | H26: 1.012446058e-06 | J26: -5.067908331e-05 | K26: -0.0003274559102 | L26: -1.76253307e-06 | M26: 2.765427043e-05 | N26: 1.306038539e-08
A27: 10.54294 | B27: ='DF raw data'!M32 -> 7.4379335e-07 | C27: ='DF raw data'!N32 -> -7.042202e-06 | D27: ='DF raw data'!O32 -> -2.1264416e-06 | F27: 7.447216041e-07 | G27: -7.067150119e-06 | H27: -2.129095399e-06 | J27: -5.030661825e-05 | K27: -0.0003526162623 | L27: -5.297097531e-06 | M27: 2.500498007e-05 | N27: 1.434015117e-08
A28: 11.04308 | B28: ='DF raw data'!M33 -> 4.3632185e-06 | C28: ='DF raw data'!N33 -> 1.3674457e-06 | D28: ='DF raw data'!O33 -> -3.3947574e-06 | F28: 4.368663797e-06 | G28: 1.372290094e-06 | H28: -3.398994057e-06 | J28: -4.812167474e-05 | K28: -0.0003766838367 | L28: -4.610760363e-06 | M28: 2.269895438e-05 | N28: 1.550895568e-08
A29: 11.54322 | B29: ='DF raw data'!M34 -> 1.0817953e-05 | C29: ='DF raw data'!N34 -> -1.4429931e-05 | D29: ='DF raw data'!O34 -> -2.5953284e-07 | F29: 1.083145381e-05 | G29: -1.448105132e-05 | H29: -2.59856737e-07 | J29: -4.270443143e-05 | K29: -0.000398042031 | L29: -1.185331337e-05 | M29: 1.677063823e-05 | N29: 1.649131542e-08
A30: 12.04336 | B30: ='DF raw data'!M35 -> 6.601987e-06 | C30: ='DF raw data'!N35 -> -2.9465214e-06 | D30: ='DF raw data'!O35 -> 2.1969906e-06 | F30: 6.61022628e-06 | G30: -2.95695992e-06 | H30: 2.199732444e-06 | J30: -3.939839286e-05 | K30: -0.0004177467432 | L30: -1.333220731e-05 | M30: 1.010266807e-05 | N30: 1.735654817e-08
A31: 12.5435 | B31: ='DF raw data'!M36 -> -1.3052909e-06 | C31: ='DF raw data'!N36 -> -6.7879319e-07 | D31: ='DF raw data'!O36 -> 6.9628591e-06 | F31: -1.306919903e-06 | G31: -6.811979226e-07 | H31: 6.971548748e-06 | J31: -4.005203578e-05 | K31: -0.0004377783684 | L31: -1.367290163e-05 | M31: 3.264303047e-06 | N31: 1.825235583e-08
A32: 13.04364 | B32: ='DF raw data'!M37 -> -3.5960534e-06 | C32: ='DF raw data'!N37 -> -3.6804158e-07 | D32: ='DF raw data'!O37 -> -8.4460714e-07 | F32: -3.600541275e-06 | G32: -3.693454257e-07 | H32: -8.456612097e-07 | J32: -4.185281049e-05 | K32: -0.000458710633 | L32: -1.385762606e-05 | M32: -3.666450048e-06 | N32: 1.922447372e-08
A33: 13.54378 | B33: ='DF raw data'!M38 -> 3.0010546e-07 | C33: ='DF raw data'!N38 -> -7.313638e-07 | D33: ='DF raw data'!O38 -> -1.1914802e-05 | F33: 3.004799916e-07 | G33: -7.339547724e-07 | H33: -1.192967167e-05 | J33: -4.170252843e-05 | K33: -0.0004795677356 | L33: -1.42247062e-05 | M33: -1.07807946e-05 | N33: 2.01954671e-08
A34: 14.04392 | B34: ='DF raw data'!M39 -> 1.1331445e-06 | C34: ='DF raw data'!N39 -> 6.0063985e-07 | D34: ='DF raw data'!O39 -> -9.5543355e-06 | F34: 1.134558664e-06 | G34: 6.02767712e-07 | H34: -9.566259311e-06 | J34: -4.113509026e-05 | K34: -0.0005001410396 | L34: -1.392323795e-05 | M34: -1.774436283e-05 | N34: 2.113870723e-08
A35: 14.54406 | B35: ='DF raw data'!M40 -> -1.4731618e-06 | C35: ='DF raw data'!N40 -> -1.7414072e-06 | D35: ='DF raw data'!O40 -> -3.0058866e-06 | F35: -1.475000306e-06 | G35: -1.747576411e-06 | H35: -3.009637946e-06 | J35: -4.187279691e-05 | K35: -0.0005210833003 | L35: -1.479727082e-05 | M35: -2.514506986e-05 | N35: 2.212512852e-08
A36: 15.0442 | B36: ='DF raw data'!M41 -> -3.0198121e-06 | C36: ='DF raw data'!N41 -> 3.551515e-06 | D36: ='DF raw data'!O41 -> -5.9364534e-06 | F36: -3.023580826e-06 | G36: 3.564096806e-06 | H36: -5.943862094e-06 | J36: -4.338501063e-05 | K36: -0.0005427818795 | L36: -1.301472344e-05 | M36: -3.165425364e-05 | N36: 2.315123684e-08
A37: 15.54434 | B37: ='DF raw data'!M42 -> -1.1669167e-06 | C37: ='DF raw data'!N42 -> 7.0809306e-06 | D37: ='DF raw data'!O42 -> -5.3693507e-06 | F37: -1.168373012e-06 | G37: 7.106015921e-06 | H37: -5.37605165e-06 | J37: -4.39693607e-05 | K37: -0.0005647727156 | L37: -9.460720639e-06 | M37: -3.638593846e-05 | N37: 2.416292499e-08
A38: 16.04448 | B38: ='DF raw data'!M43 -> 1.4227712e-06 | C38: ='DF raw data'!N43 -> -5.9669128e-06 | D38: ='DF raw data'!O43 -> -6.4048743e-07 | F38: 1.424546818e-06 | G38: -5.988051536e-06 | H38: -6.412867583e-07 | J38: -4.325688786e-05 | K38: -0.0005864072155 | L38: -1.245558473e-05 | M38: -4.261547461e-05 | N38: 2.517635864e-08
A39: 16.54462 | B39: ='DF raw data'!M44 -> 1.7423022e-06 | C39: ='DF raw data'!N44 -> -9.8456403e-06 | D39: ='DF raw data'!O44 -> -4.6644652e-07 | F39: 1.744476593e-06 | G39: -9.880520044e-06 | H39: -4.670286453e-07 | J39: -4.238440533e-05 | K39: -0.0006076053519 | L39: -1.739722803e-05 | M39: -5.131652424e-05 | N39: 2.62262032e-08
A40: 17.04476 | B40: ='DF raw data'!M45 -> 5.0009999e-06 | C40: ='DF raw data'!N45 -> 1.2214764e-06 | D40: ='DF raw data'!O45 -> 8.3388352e-07 | F40: 5.007241148e-06 | G40: 1.225803674e-06 | H40: 8.349242066e-07 | J40: -3.988008375e-05 | K40: -0.000627550977 | L40: -1.678415458e-05 | M40: -5.971095131e-05 | N40: 2.716252976e-08
A41: 17.5449 | B41: ='DF raw data'!M46 -> 7.5856092e-06 | C41: ='DF raw data'!N46 -> 8.173256e-07 | D41: ='DF raw data'!O46 -> 1.8066499e-06 | F41: 7.59507604e-06 | G41: 8.202211057e-07 | H41: 1.808904599e-06 | J41: -3.608148242e-05 | K41: -0.0006455967696 | L41: -1.63739292e-05 | M41: -6.790020826e-05 | N41: 2.794773902e-08
A42: 18.04504 | B42: ='DF raw data'!M47 -> -9.6573649e-07 | C42: ='DF raw data'!N47 -> -3.3369297e-06 | D42: ='DF raw data'!O47 -> -1.315347e-06 | F42: -9.669417291e-07 | G42: -3.348751303e-06 | H42: -1.316988553e-06 | J42: -3.656508865e-05 | K42: -0.0006638844331 | L42: -1.804877367e-05 | M42: -7.692712192e-05 | N42: 2.877935378e-08
A43: 18.54518 | B43: ='DF raw data'!M48 -> -9.7892034e-06 | C43: ='DF raw data'!N48 -> -1.0162307e-06 | D43: ='DF raw data'!O48 -> 8.068024e-07 | F43: -9.801420326e-06 | G43: -1.019830859e-06 | H43: 8.078092894e-07 | J43: -4.146717101e-05 | K43: -0.000684623824 | L43: -1.855883188e-05 | M43: -8.62091361e-05 | N43: 2.981162099e-08
A44: 19.04532 | B44: ='DF raw data'!M49 -> -2.3869376e-07 | C44: ='DF raw data'!N49 -> -1.6416472e-07 | D44: ='DF raw data'!O49 -> 5.917886e-06 | F44: -2.389916498e-07 | G44: -1.647462996e-07 | H44: 5.925271522e-06 | J44: -4.15867003e-05 | K44: -0.0007054229963 | L44: -1.864122809e-05 | M44: -9.553235992e-05 | N44: 3.085038627e-08
A45: 19.54546 | B45: ='DF raw data'!M50 -> 9.4327706e-06 | C45: ='DF raw data'!N50 -> 2.4764922e-06 | D45: ='DF raw data'!O50 -> 8.7288072e-06 | F45: 9.444542698e-06 | G45: 2.485265567e-06 | H45: 8.739700751e-06 | J45: -3.686310671e-05 | K45: -0.0007238597105 | L45: -1.739824737e-05 | M45: -0.0001042339194 | N45: 3.168141272e-08
A46: 20.0456 | B46: ='DF raw data'!M51 -> 5.567244e-06 | C46: ='DF raw data'!N51 -> -2.2129389e-06 | D46: ='DF raw data'!O51 -> 5.0066305e-06 | F46: 5.574191921e-06 | G46: -2.220778587e-06 | H46: 5.012878775e-06 | J46: -3.407523037e-05 | K46: -0.0007409020962 | L46: -1.850894757e-05 | M46: -0.0001134909844 | N46: 3.243347447e-08
A47: 20.54574 | B47: ='DF raw data'!M52 -> -3.397347e-06 | C47: ='DF raw data'!N52 -> -2.8473851e-06 | D47: ='DF raw data'!O52 -> 3.4231982e-07 | F47: -3.401586889e-06 | G47: -2.857472414e-06 | H47: 3.427470351e-07 | J47: -3.577650003e-05 | K47: -0.0007587953549 | L47: -1.993808383e-05 | M47: -0.0001234628176 | N47: 3.327245189e-08
A48: 21.04588 | B48: ='DF raw data'!M53 -> -8.3642362e-06 | C48: ='DF raw data'!N53 -> 7.4710715e-06 | D48: ='DF raw data'!O53 -> 1.3536779e-06 | F48: -8.374674767e-06 | G48: 7.497538957e-06 | H48: 1.35536729e-06 | J48: -3.996500987e-05 | K48: -0.0007787834549 | L48: -1.618826469e-05 | M48: -0.0001315592163 | N48: 3.420234315e-08
A49: 21.54602 | B49: ='DF raw data'!M54 -> -6.2932072e-06 | C49: ='DF raw data'!N54 -> 3.0450256e-06 | D49: ='DF raw data'!O54 -> -5.8665751e-06 | F49: -6.301061123e-06 | G49: 3.055813087e-06 | H49: -5.873896586e-06 | J49: -4.311642258e-05 | K49: -0.0008003477025 | L49: -1.465993034e-05 | M49: -0.0001388912339 | N49: 3.523960323e-08
A50: 22.04616 | B50: ='DF raw data'!M55 -> -7.9245234e-07 | C50: ='DF raw data'!N55 -> -1.5201849e-06 | D50: ='DF raw data'!O55 -> -6.3022303e-06 | F50: -7.934413205e-07 | G50: -1.525570396e-06 | H50: -6.310095483e-06 | J50: -4.351325432e-05 | K50: -0.0008221104215 | L50: -1.542292911e-05 | M50: -0.0001466048577 | N50: 3.630553663e-08
A51: 22.5463 | B51: ='DF raw data'!M56 -> -2.6067705e-06 | C51: ='DF raw data'!N56 -> 2.3536059e-06 | D51: ='DF raw data'!O56 -> 6.4300605e-07 | F51: -2.61002375e-06 | G51: 2.361943923e-06 | H51: 6.438085216e-07 | J51: -4.48186316e-05 | K51: -0.000844526012 | L51: -1.424162648e-05 | M51: -0.0001537276647 | N51: 3.741161307e-08
A52: 23.04644 | B52: ='DF raw data'!M57 -> -2.0263092e-06 | C52: ='DF raw data'!N57 -> 3.293467e-06 | D52: ='DF raw data'!O57 -> 6.6328798e-06 | F52: -2.028838034e-06 | G52: 3.30513463e-06 | H52: 6.641157634e-06 | J52: -4.583333465e-05 | K52: -0.000867449096 | L52: -1.258859645e-05 | M52: -0.0001600237254 | N52: 3.854151302e-08
A53: 23.54658 | B53: ='DF raw data'!M58 -> 3.3460833e-06 | C53: ='DF raw data'!N58 -> 1.4803252e-06 | D53: ='DF raw data'!O58 -> 5.8613809e-06 | F53: 3.350259212e-06 | G53: 1.485569487e-06 | H53: 5.868695903e-06 | J53: -4.415773601e-05 | K53: -0.000889534146 | L53: -1.184560372e-05 | M53: -0.0001659481856 | N53: 3.958691764e-08
A54: 24.04672 | B54: ='DF raw data'!M59 -> 6.3382045e-06 | C54: ='DF raw data'!N59 -> -6.2943427e-06 | D54: ='DF raw data'!O59 -> 4.244052e-06 | F54: 6.346114579e-06 | G54: -6.316641408e-06 | H54: 4.249348577e-06 | J54: -4.098379027e-05 | K54: -0.0009100317789 | L54: -1.500480876e-05 | M54: -0.0001734526907 | N54: 4.053959199e-08
A55: 24.54686 | B55: ='DF raw data'!M60 -> 4.0093159e-06 | C55: ='DF raw data'!N60 -> 4.2429347e-06 | D55: ='DF raw data'!O60 -> 3.327136e-06 | F55: 4.014319526e-06 | G55: 4.25796597e-06 | H55: 3.331288266e-06 | J55: -3.89760685e-05 | K55: -0.0009295252698 | L55: -1.287522966e-05 | M55: -0.000179892108 | N55: 4.13822806e-08
A56: 25.047 | B56: ='DF raw data'!M61 -> 7.0560912e-07 | C56: ='DF raw data'!N61 -> 7.2607904e-06 | D56: ='DF raw data'!O61 -> -2.0721193e-06 | F56: 7.064897202e-07 | G56: 7.286512903e-06 | H56: -2.074705305e-06 | J56: -3.862272473e-05 | K56: -0.0009488420393 | L56: -9.230953095e-06 | M56: -0.0001845088769 | N56: 4.217096405e-08
A57: 25.54714 | B57: ='DF raw data'!M62 -> 1.429305e-06 | C57: ='DF raw data'!N62 -> 3.1182769e-06 | D57: ='DF raw data'!O62 -> -6.309157e-06 | F57: 1.431088773e-06 | G57: 3.129323891e-06 | H57: -6.317030828e-06 | J57: -3.790697999e-05 | K57: -0.0009678008363 | L57: -7.665853044e-06 | M57: -0.0001883428767 | N57: 4.291902567e-08
A58: 26.04728 | B58: ='DF raw data'!M63 -> 2.012543e-07 | C58: ='DF raw data'!N63 -> 1.390026e-05 | D58: ='DF raw data'!O63 -> -7.6873539e-06 | F58: 2.015054654e-07 | G58: 1.394950388e-05 | H58: -7.696947718e-06 | J58: -3.780619905e-05 | K58: -0.0009867092287 | L58: -6.891481747e-07 | M58: -0.0001886875472 | N58: 4.363411765e-08
A59: 26.54742 | B59: ='DF raw data'!M64 -> -1.0205245e-06 | C59: ='DF raw data'!N64 -> -1.7510142e-06 | D59: ='DF raw data'!O64 -> -8.0116724e-06 | F59: -1.021798115e-06 | G59: -1.757217446e-06 | H59: -8.021670967e-06 | J59: -3.831724116e-05 | K59: -0.001005873214 | L59: -1.568002908e-06 | M59: -0.0001894717682 | N59: 4.436965834e-08
A60: 27.04756 | B60: ='DF raw data'!M65 -> 4.5599313e-06 | C60: ='DF raw data'!N65 -> -1.1214069e-05 | D60: ='DF raw data'!O65 -> -3.9440924e-06 | F60: 4.565622094e-06 | G60: -1.125379662e-05 | H60: -3.949014627e-06 | J60: -3.603379092e-05 | K60: -0.001023895154 | L60: -7.19647675e-06 | M60: -0.0001930710141 | N60: 4.504495905e-08
A61: 27.5477 | B61: ='DF raw data'!M66 -> 6.2659688e-06 | C61: ='DF raw data'!N66 -> 5.2233577e-06 | D61: ='DF raw data'!O66 -> 6.0606403e-06 | F61: 6.273788729e-06 | G61: 5.241862274e-06 | H61: 6.068203979e-06 | J61: -3.289601823e-05 | K61: -0.001040347768 | L61: -4.574811752e-06 | M61: -0.0001953590604 | N61: 4.559665194e-08
A62: 28.04784 | B62: ='DF raw data'!M67 -> 6.6682827e-07 | C62: ='DF raw data'!N67 -> -1.5101782e-06 | D62: ='DF raw data'!O67 -> 6.525865e-06 | F62: 6.676604717e-07 | G62: -1.515528246e-06 | H62: 6.53400928e-06 | J62: -3.256209452e-05 | K62: -0.001056633374 | L62: -5.332788049e-06 | M62: -0.000198026201 | N62: 4.614116868e-08
A63: 28.54798 | B63: ='DF raw data'!M68 -> 2.4684545e-07 | C63: ='DF raw data'!N68 -> 8.0851942e-07 | D63: ='DF raw data'!O68 -> 4.3441546e-06 | F63: 2.471535131e-07 | G63: 8.113837284e-07 | H63: 4.349576105e-06 | J63: -3.243848316e-05 | K63: -0.001072857157 | L63: -4.926982591e-06 | M63: -0.0002004903821 | N63: 4.667958457e-08
A64: 29.04812 | B64: ='DF raw data'!M69 -> 3.7842997e-06 | C64: ='DF raw data'!N69 -> 3.8872176e-06 | D64: ='DF raw data'!O69 -> 5.3175031e-06 | F64: 3.789022506e-06 | G64: 3.900988686e-06 | H64: 5.324139344e-06 | J64: -3.054344145e-05 | K64: -0.001088133154 | L64: -2.97594211e-06 | M64: -0.0002019787698 | N64: 4.715059544e-08
A65: 29.54826 | B65: ='DF raw data'!M70 -> 2.5423519e-06 | C65: ='DF raw data'!N70 -> -1.1632631e-05 | D65: ='DF raw data'!O70 -> 6.3365155e-06 | F65: 2.545524755e-06 | G65: -1.167384144e-05 | H65: 6.344423471e-06 | J65: -2.927032269e-05 | K65: -0.001102772413 | L65: -8.814497169e-06 | M65: -0.0002063872524 | N65: 4.761794984e-08
A66: 30.0484 | B66: ='DF raw data'!M71 -> -6.2597843e-07 | C66: ='DF raw data'!N71 -> 1.966934e-06 | D66: ='DF raw data'!O71 -> 4.0382733e-06 | F66: -6.267596511e-07 | G66: 1.973902176e-06 | H66: 4.043313065e-06 | J66: -2.958379027e-05 | K66: -0.00111756845 | L66: -7.827269734e-06 | M66: -0.0002103019831 | N66: 4.808631434e-08
A67: 30.54854 | B67: ='DF raw data'!M72 -> -1.275052e-06 | C67: ='DF raw data'!N72 -> 5.9183367e-07 | D67: ='DF raw data'!O72 -> -1.1996541e-07 | F67: -1.276643265e-06 | G67: 5.939303347e-07 | H67: -1.201151268e-07 | J67: -3.022229063e-05 | K67: -0.001132683827 | L67: -7.530221417e-06 | M67: -0.000214068148 | N67: 4.85714957e-08
A68: 31.04868 | B68: ='DF raw data'!M73 -> 1.9320591e-06 | C68: ='DF raw data'!N73 -> -3.8351891e-07 | D68: ='DF raw data'!O73 -> 2.0235952e-07 | F68: 1.93447031e-06 | G68: -3.848775866e-07 | H68: 2.026120647e-07 | J68: -2.925478465e-05 | K68: -0.001147315315 | L68: -7.722714093e-06 | M68: -0.0002179305863 | N68: 4.902936523e-08
A69: 31.54882 | B69: ='DF raw data'!M74 -> 4.8974048e-06 | C69: ='DF raw data'!N74 -> 1.1669091e-05 | D69: ='DF raw data'!O74 -> 8.0990585e-06 | F69: 4.903516761e-06 | G69: 1.171043061e-05 | H69: 8.109166125e-06 | J69: -2.680233978e-05 | K69: -0.001160720237 | L69: -1.865859329e-06 | M69: -0.0002188637772 | N69: 4.939038971e-08
A70: 32.04896 | B70: ='DF raw data'!M75 -> 4.5588545e-06 | C70: ='DF raw data'!N75 -> 4.6119944e-06 | D70: ='DF raw data'!O75 -> 1.0772143e-05 | F70: 4.56454395e-06 | G70: 4.628333122e-06 | H70: 1.078558663e-05 | J70: -2.451942876e-05 | K70: -0.001172983384 | L70: 4.48955199e-07 | M70: -0.0002186392367 | N70: 4.969117589e-08
A71: 32.5491 | B71: ='DF raw data'!M76 -> 4.606512e-06 | C71: ='DF raw data'!N76 -> -1.2126045e-05 | D71: ='DF raw data'!O76 -> 7.1442778e-06 | F71: 4.612260927e-06 | G71: =(1-$G$1*($B$2-$G$2))*C71*$M$2/$M$1 -> -1.216900344e-05 | H71: 7.153193859e-06 | J71: -2.221265258e-05 | K71: -0.00118409282 | L71: -5.637250181e-06 | M71: -0.000221458651 | N71: 4.995383967e-08
A72: =A71+$B$1 -> 33.04924 | B72: ='DF raw data'!M77 -> 5.6395961e-06 | C72: ='DF raw data'!N77 -> -6.9059724e-06 | D72: ='DF raw data'!O77 -> -8.8506147e-07 | F72: 5.646634316e-06 | G72: -6.930437904e-06 | H72: -8.861660267e-07 | J72: =F72*$B$1+J71 -> -1.93885449e-05 | K72: =J72*$B$1+K71 -> -0.001193789807 | L72: =G72*$B$1+L71 -> -9.103439394e-06 | M72: =L72*$B$1+M71 -> -0.0002260116452 | N72: =(J72^2+L72^2)*$B$1+N71 -> 5.018329804e-08
A73: 33.54938 | B73: ='DF raw data'!M78 -> 8.1768798e-07 | C73: ='DF raw data'!N78 -> 1.1418203e-06 | D73: ='DF raw data'!O78 -> -1.0771467e-06 | F73: 8.187084546e-07 | G73: 1.14586538e-06 | H73: -1.078490979e-06 | J73: -1.897907605e-05 | K73: -0.001203282002 | L73: -8.530346283e-06 | M73: -0.0002302780126 | N73: 5.039984473e-08
A74: 34.04952 | B74: ='DF raw data'!M79 -> -2.0197754e-06 | C74: ='DF raw data'!N79 -> -8.3076256e-06 | D74: ='DF raw data'!O79 -> 2.7607609e-06 | F74: -2.02229608e-06 | G74: -8.337056683e-06 | H74: 2.76420633e-06 | J74: -1.999050721e-05 | K74: -0.001213280054 | L74: -1.270004181e-05 | M74: -0.0002366298115 | N74: 5.068037898e-08
A75: 34.54966 | B75: ='DF raw data'!M80 -> -8.1740887e-07 | C75: ='DF raw data'!N80 -> -1.5257892e-06 | D75: ='DF raw data'!O80 -> 5.6890717e-06 | F75: -8.184289963e-07 | G75: -1.53119455e-06 | H75: 5.696171661e-06 | J75: -2.039983629e-05 | K75: -0.001223482828 | L75: -1.346585346e-05 | M75: -0.0002433646234 | N75: 5.097920389e-08
A76: 35.0498 | B76: ='DF raw data'!M81 -> -2.3272864e-06 | C76: ='DF raw data'!N81 -> -3.2057706e-06 | D76: ='DF raw data'!O81 -> 8.138727e-06 | F76: -2.330190853e-06 | G76: -3.217127551e-06 | H76: 8.148884131e-06 | J76: -2.156525794e-05 | K76: -0.001234268476 | L76: -1.507486763e-05 | M76: -0.0002509041677 | N76: 5.13254568e-08
A77: 35.54994 | B77: ='DF raw data'!M82 -> -6.7963688e-06 | C77: ='DF raw data'!N82 -> -3.684374e-06 | D77: ='DF raw data'!O82 -> 6.9659877e-06 | F77: -6.804850668e-06 | G77: -3.69742648e-06 | H77: 6.974681253e-06 | J77: -2.496863596e-05 | K77: -0.00124675629 | L77: -1.692409851e-05 | M77: -0.0002593685864 | N77: 5.178051313e-08
A78: 36.05008 | B78: ='DF raw data'!M83 -> -1.186518e-05 | C78: ='DF raw data'!N83 -> 6.5577624e-06 | D78: ='DF raw data'!O83 -> 1.7221906e-06 | F78: -1.187998774e-05 | G78: 6.580994314e-06 | H78: 1.724339894e-06 | J78: -3.091029303e-05 | K78: -0.001262215764 | L78: -1.363268001e-05 | M78: -0.0002661868349 | N78: 5.2351321e-08
A79: 36.55022 | B79: ='DF raw data'!M84 -> -9.9820454e-06 | C79: ='DF raw data'!N84 -> 1.1296028e-05 | D79: ='DF raw data'!O84 -> -4.3118048e-06 | F79: -9.994502993e-06 | G79: 1.133604597e-05 | H79: -4.317185932e-06 | J79: -3.590894375e-05 | K79: -0.001280175263 | L79: -7.963069979e-06 | M79: -0.0002701694848 | N79: 5.302794176e-08
A80: 37.05036 | B80: ='DF raw data'!M85 -> -4.7510971e-06 | C80: ='DF raw data'!N85 -> 2.3210498e-06 | D80: ='DF raw data'!O85 -> -3.8637659e-06 | F80: -4.757026469e-06 | G80: 2.329272487e-06 | H80: -3.86858788e-06 | J80: -3.828812297e-05 | K80: -0.001299324685 | L80: -6.798107637e-06 | M80: -0.0002735694903 | N80: 5.378425079e-08
A81: 37.5505 | B81: ='DF raw data'!M86 -> -3.5540711e-06 | C81: ='DF raw data'!N86 -> -7.2849061e-06 | D81: ='DF raw data'!O86 -> -6.1300666e-06 | F81: -3.558506581e-06 | G81: -7.310714036e-06 | H81: -6.137716923e-06 | J81: -4.006787445e-05 | K81: -0.001319364232 | L81: -1.045448816e-05 | M81: -0.000278798198 | N81: 5.464185629e-08
A82: 38.05064 | B82: ='DF raw data'!M87 -> -7.6775168e-06 | C82: ='DF raw data'!N87 -> -5.0010331e-06 | D82: ='DF raw data'!O87 -> -7.2080434e-06 | F82: -7.687098341e-06 | G82: -5.018750054e-06 | H82: -7.217039038e-06 | J82: -4.391249982e-05 | K82: -0.001341326629 | L82: -1.296456581e-05 | M82: -0.000285282296 | N82: 5.569034359e-08
